Workbook

Sheet Sample Report (hidden)
A2: Date
A3: Hen
A4: Program
A5: Start at 999999
A6: Sequence component 1 | B6: Time 1 | C6: Seqeunce Component 2 | D6: Time 2 | E6: Seqeunce Component 3 | F6: Time 3 | G6: Correct 0 = No 1=Yes | J6: Seqeunce | K6: Time
A7: 12 | B7: 7 | C7: 12 | D7: 42 | E7: 13 | F7: 18 | G7: if 77 new line, if 31 or 41 = yes new line on 77, | J7: =string of Seqeunce compponent 1, 2 & 3 | K7: =time 3
A8: This continues until ther is a 1 on its own to indicate start of summary data
J9: 10-19 =1
A10: Summary Data | J10: 20-29 =2
A11: Correct | B11: Incorrect | C11: Rft | D11: total | E11: Av Correct | F11: Av Incorrect | G11: Percent correct | H11: Time | J11: in this example the seqeunce would be 111
A12: 40 | B12: 33 | C12: 40 | D12: 73 | E12: 23.95 | F12: 15 | G12: 54 | H12: 806

Sheet Summary
A2: Day | B2: Date | C2: Average Response Rate | D2: Target % | E2: RF for non correct sequence | F2: U Value | K2: Block 1 | L2: Block 2 | M2: Block 3 | N2: Block 4 | O2: Block 5 | P2: Block 6
A3: 1 | B3: ='!N517B40.010'!B2:C2 -> <date> | C3: =('!N517B40.010'!F84/60)/'!N517B40.010'!Q3 -> 1.921581197 | D3: ='!N517B40.010'!N20/'!N517B40.010'!Q3 -> 0.5128205128 | E3: =SUM('!N517B40.010'!L20:Q20)/'!N517B40.010'!Q3 -> 3.551282051 | F3: ='!N517B40.010'!Q16 -> 0.2867388724 | J3: Average Response Rate | K3: =AVERAGE(C3:C7) -> 1.839044835 | L3: =AVERAGE(C8:C12) -> 1.770306572 | M3: =AVERAGE(C13:C17) -> 1.721598706 | N3: =AVERAGE(C18:C22) -> 1.758595201 | O3: =AVERAGE(C23:C27) -> 1.722774004 | P3: =AVERAGE(C28:C32) -> 1.721585412
A4: 2 | B4: ='!N518A50.010'!B2:C2 -> <date> | C4: =('!N518A50.010'!F71/60)/'!N518A50.010'!Q3 -> 1.86025641 | D4: ='!N518A50.010'!N20/'!N518A50.010'!Q3 -> 0.6153846154 | E4: =SUM('!N518A50.010'!L20:Q20)/'!N518A50.010'!Q3 -> 4.2 | F4: ='!N518A50.010'!Q16 -> 0.2612645307 | J4: Target % | K4: =AVERAGE(D3:D7) -> 0.5519309519 | L4: =AVERAGE(D8:D12) -> 0.7995352001 | M4: =AVERAGE(D13:D17) -> 0.8904505112 | N4: =AVERAGE(D18:D22) -> 0.7854808326 | O4: =AVERAGE(D23:D27) -> 0.7657933185 | P4: =AVERAGE(D28:D32) -> 0.8707482993
A5: 3 | B5: ='!N519B00.010'!B2:C2 -> <date> | C5: =('!N519B00.010'!F80/60)/'!N519B00.010'!Q3 -> 1.802477477 | D5: ='!N519B00.010'!N20/'!N519B00.010'!Q3 -> 0.5405405405 | E5: =SUM('!N519B00.010'!L20:Q20)/'!N519B00.010'!Q3 -> 3.864864865 | F5: ='!N519B00.010'!Q16 -> 0.2571000673 | J5: CCRF | K5: =AVERAGE(E3:E7) -> 3.825047565 | L5: =AVERAGE(E8:E12) -> 4.912721603 | M5: =AVERAGE(E13:E17) -> 5.959838501 | N5: =AVERAGE(E18:E22) -> 5.295728724 | O5: =AVERAGE(E23:E27) -> 5.208123456 | P5: =AVERAGE(E28:E32) -> 5.795578231
A6: 4 | B6: ='!N520950.010'!B2:C2 -> <date> | C6: =('!N520950.010'!F116/60)/'!N520950.010'!Q3 -> 1.867272727 | D6: ='!N520950.010'!N20/'!N520950.010'!Q3 -> 0.3636363636 | E6: =SUM('!N520950.010'!L20:Q20)/'!N520950.010'!Q3 -> 2.618181818 | F6: ='!N520950.010'!Q16 -> 0.2653038735 | J6: U Value | K6: =AVERAGE(F3:F7) -> 0.2466593297 | L6: =AVERAGE(F8:F12) -> 0.1606648716 | M6: =AVERAGE(F13:F17) -> 0.1034688481 | N6: =AVERAGE(F18:F22) -> 0.1388256912 | O6: =AVERAGE(F23:F27) -> 0.1448612749 | P6: =AVERAGE(F28:F32) -> 0.1147341203
A7: 5 | B7: ='!N521950.010'!B2:C2 -> <date> | C7: =('!N521950.010'!F61/60)/'!N521950.010'!Q3 -> 1.743636364 | D7: ='!N521950.010'!N20/'!N521950.010'!Q3 -> 0.7272727273 | E7: =SUM('!N521950.010'!L20:Q20)/'!N521950.010'!Q3 -> 4.890909091 | F7: ='!N521950.010'!Q16 -> 0.1628893048
A8: 6 | B8: ='!N522A50.010'!B2:C2 -> <date> | C8: =('!N522A50.010'!F55/60)/'!N522A50.010'!Q3 -> 1.791156463 | D8: ='!N522A50.010'!N20/'!N522A50.010'!Q3 -> 0.8163265306 | E8: =SUM('!N522A50.010'!L20:Q20)/'!N522A50.010'!Q3 -> 5.448979592 | F8: ='!N522A50.010'!Q16 -> 0.1625972534
A9: 7 | B9: ='!N523C10.010'!B2:C2 -> <date> | C9: =('!N523C10.010'!F52/60)/'!N523C10.010'!Q3 -> 1.76884058 | D9: ='!N523C10.010'!N20/'!N523C10.010'!Q3 -> 0.8695652174 | E9: =SUM('!N523C10.010'!L20:Q20)/'!N523C10.010'!Q3 -> 3.608695652 | F9: ='!N523C10.010'!Q16 -> 0.1164855055 | G9: =K3 -> 1.839044835 | H9: 1.770306572 | I9: 1.721598706 | J9: 1.758595201 | K9: 1.722774004 | L9: 1.721585412 | M9: =K4 -> 0.5519309519 | N9: 0.7995352001 | O9: 0.8904505112 | P9: 0.7854808326 | Q9: 0.7657933185 | R9: 0.8707482993 | S9: =K6 -> 0.2466593297 | T9: 0.1606648716 | U9: 0.1034688481 | V9: 0.1388256912 | W9: 0.1448612749 | X9: 0.1147341203
A10: 8 | B10: ='!N524A00.010'!B2:C2 -> <date> | C10: =('!N524A00.010'!F59/60)/'!N524A00.010'!Q3 -> 1.799056604 | D10: ='!N524A00.010'!N20/'!N524A00.010'!Q3 -> 0.7547169811 | E10: =SUM('!N524A00.010'!L20:Q20)/'!N524A00.010'!Q3 -> 5.075471698 | F10: ='!N524A00.010'!Q16 -> 0.1814778938
A11: 9 | B11: ='!N525920.010'!B2:C2 -> <date> | C11: =('!N525920.010'!F60/60)/'!N525920.010'!Q3 -> 1.787037037 | D11: ='!N525920.010'!N20/'!N525920.010'!Q3 -> 0.7407407407 | E11: =SUM('!N525920.010'!L20:Q20)/'!N525920.010'!Q3 -> 4.981481481 | F11: ='!N525920.010'!Q16 -> 0.1952206015
A12: 10 | B12: ='!N526A00.010'!B2:C2 -> <date> | C12: =('!N526A00.010'!F55/60)/'!N526A00.010'!Q3 -> 1.705442177 | D12: ='!N526A00.010'!N20/'!N526A00.010'!Q3 -> 0.8163265306 | E12: =SUM('!N526A00.010'!L20:Q20)/'!N526A00.010'!Q3 -> 5.448979592 | F12: ='!N526A00.010'!Q16 -> 0.1475431037
A13: 11 | B13: ='!N527A50.010'!B2:C2 -> <date> | C13: =('!N527A50.010'!F49/60)/'!N527A50.010'!Q3 -> 1.725581395 | D13: ='!N527A50.010'!N20/'!N527A50.010'!Q3 -> 0.9302325581 | E13: =SUM('!N527A50.010'!L20:Q20)/'!N527A50.010'!Q3 -> 6.162790698 | F13: ='!N527A50.010'!Q16 -> 0.06727559493
A14: 12 | B14: ='!N528920.010'!B2:C2 -> <date> | C14: =('!N528920.010'!F52/60)/'!N528920.010'!Q3 -> 1.789855072 | D14: ='!N528920.010'!N20/'!N528920.010'!Q3 -> 0.8695652174 | E14: =SUM('!N528920.010'!L20:Q20)/'!N528920.010'!Q3 -> 6 | F14: ='!N528920.010'!Q16 -> 0.1228205814
A15: 13 | B15: ='!N529C30.010'!B2:C2 -> <date> | C15: =('!N529C30.010'!F51/60)/'!N529C30.010'!Q3 -> 1.715925926 | D15: ='!N529C30.010'!N20/'!N529C30.010'!Q3 -> 0.8888888889 | E15: =SUM('!N529C30.010'!L20:Q20)/'!N529C30.010'!Q3 -> 5.911111111 | F15: ='!N529C30.010'!Q16 -> 0.1193743108
A16: 14 | B16: ='!N530A50.010'!B2:C2 -> <date> | C16: =('!N530A50.010'!F49/60)/'!N530A50.010'!Q3 -> 1.702325581 | D16: ='!N530A50.010'!N20/'!N530A50.010'!Q3 -> 0.9302325581 | E16: =SUM('!N530A50.010'!L20:Q20)/'!N530A50.010'!Q3 -> 6.162790698 | F16: ='!N530A50.010'!Q16 -> 0.06727559493
A17: 15 | B17: ='!N531940.010'!B2:C2 -> <date> | C17: =('!N531940.010'!F54/60)/'!N531940.010'!Q3 -> 1.674305556 | D17: ='!N531940.010'!N20/'!N531940.010'!Q3 -> 0.8333333333 | E17: =SUM('!N531940.010'!L20:Q20)/'!N531940.010'!Q3 -> 5.5625 | F17: ='!N531940.010'!Q16 -> 0.1405981584
A18: 16 | B18: ='!N601910.010'!B2:C2 -> <date> | C18: =('!N601910.010'!F58/60)/'!N601910.010'!Q3 -> 1.728205128 | D18: ='!N601910.010'!N20/'!N601910.010'!Q3 -> 0.7692307692 | E18: =SUM('!N601910.010'!L20:Q20)/'!N601910.010'!Q3 -> 5.346153846 | F18: ='!N601910.010'!Q16 -> 0.1848401741
A19: 17 | B19: ='!N602A30.010'!B2:C2 -> <date> | C19: =('!N602A30.010'!F49/60)/'!N602A30.010'!Q3 -> 1.700387597 | D19: ='!N602A30.010'!N20/'!N602A30.010'!Q3 -> 0.9302325581 | E19: =SUM('!N602A30.010'!L20:Q20)/'!N602A30.010'!Q3 -> 6.162790698 | F19: ='!N602A30.010'!Q16 -> 0.07908245547
A20: 18 | B20: ='!N603A40.010'!B2:C2 -> <date> | C20: =('!N603A40.010'!F48/60)/'!N603A40.010'!Q3 -> 1.724603175 | D20: ='!N603A40.010'!N20/'!N603A40.010'!Q3 -> 0.9523809524 | E20: =SUM('!N603A40.010'!L20:Q20)/'!N603A40.010'!Q3 -> 6.30952381 | F20: ='!N603A40.010'!Q16 -> 0.06005107821
A21: 19 | B21: ='!N604A40.010'!B2:C2 -> <date> | C21: =('!N604A40.010'!F85/60)/'!N604A40.010'!Q3 -> 1.888818565 | D21: ='!N604A40.010'!N20/'!N604A40.010'!Q3 -> 0.5063291139 | E21: =SUM('!N604A40.010'!L20:Q20)/'!N604A40.010'!Q3 -> 3.506329114 | F21: ='!N604A40.010'!Q16 -> 0.2071225863
A22: 20 | B22: ='!N605A00.010'!B2:C2 -> <date> | C22: =('!N605A00.010'!F58/60)/'!N605A00.010'!Q3 -> 1.750961538 | D22: ='!N605A00.010'!N20/'!N605A00.010'!Q3 -> 0.7692307692 | E22: =SUM('!N605A00.010'!L20:Q20)/'!N605A00.010'!Q3 -> 5.153846154 | F22: ='!N605A00.010'!Q16 -> 0.163032162
A23: 21 | B23: ='!N606930.010'!B2:C2 -> <date> | C23: =('!N606930.010'!F60/60)/'!N606930.010'!Q3 -> 1.730246914 | D23: ='!N606930.010'!N20/'!N606930.010'!Q3 -> 0.7407407407 | E23: =SUM('!N606930.010'!L20:Q20)/'!N606930.010'!Q3 -> 5.166666667 | F23: ='!N606930.010'!Q16 -> 0.1601893945
A24: 22 | B24: ='!N608910.010'!B2:C2 -> <date> | C24: =('!N608910.010'!F67/60)/'!N608910.010'!Q3 -> 1.739344262 | D24: ='!N608910.010'!N20/'!N608910.010'!Q3 -> 0.6557377049 | E24: =SUM('!N608910.010'!L20:Q20)/'!N608910.010'!Q3 -> 4.62295082 | F24: ='!N608910.010'!Q16 -> 0.1726467992
A25: 23 | B25: ='!N610A00.010'!B2:C2 -> <date> | C25: =('!N610A00.010'!F61/60)/'!N610A00.010'!Q3 -> 1.71030303 | D25: ='!N610A00.010'!N20/'!N610A00.010'!Q3 -> 0.7272727273 | E25: =SUM('!N610A00.010'!L20:Q20)/'!N610A00.010'!Q3 -> 4.890909091 | F25: ='!N610A00.010'!Q16 -> 0.1462200898
A26: 24 | B26: ='!N611C10.010'!B2:C2 -> <date> | C26: =('!N611C10.010'!F55/60)/'!N611C10.010'!Q3 -> 1.696938776 | D26: ='!N611C10.010'!N20/'!N611C10.010'!Q3 -> 0.8163265306 | E26: =SUM('!N611C10.010'!L20:Q20)/'!N611C10.010'!Q3 -> 5.448979592 | F26: ='!N611C10.010'!Q16 -> 0.1390067964
A27: 25 | B27: ='!N612A50.010'!B2:C2 -> <date> | C27: =('!N612A50.010'!F51/60)/'!N612A50.010'!Q3 -> 1.737037037 | D27: ='!N612A50.010'!N20/'!N612A50.010'!Q3 -> 0.8888888889 | E27: =SUM('!N612A50.010'!L20:Q20)/'!N612A50.010'!Q3 -> 5.911111111 | F27: ='!N612A50.010'!Q16 -> 0.1062432948
A28: 26 | B28: ='!N613B40.010'!B2:C2 -> <date> | C28: =('!N613B40.010'!F51/60)/'!N613B40.010'!Q3 -> 1.702592593 | D28: ='!N613B40.010'!N20/'!N613B40.010'!Q3 -> 0.8888888889 | E28: =SUM('!N613B40.010'!L20:Q20)/'!N613B40.010'!Q3 -> 5.911111111 | F28: ='!N613B40.010'!Q16 -> 0.09163725357
A29: 27 | B29: ='!N614A10.010'!B2:C2 -> <date> | C29: =('!N614A10.010'!F51/60)/'!N614A10.010'!Q3 -> 1.711851852 | D29: ='!N614A10.010'!N20/'!N614A10.010'!Q3 -> 0.8888888889 | E29: =SUM('!N614A10.010'!L20:Q20)/'!N614A10.010'!Q3 -> 5.911111111 | F29: ='!N614A10.010'!Q16 -> 0.1062432948
A30: 28 | B30: ='!N615900.010'!B2:C2 -> <date> | C30: =('!N615900.010'!F51/60)/'!N615900.010'!Q3 -> 1.714074074 | D30: ='!N615900.010'!N20/'!N615900.010'!Q3 -> 0.8888888889 | E30: =SUM('!N615900.010'!L20:Q20)/'!N615900.010'!Q3 -> 5.911111111 | F30: ='!N615900.010'!Q16 -> 0.1062432948
A31: 29 | B31: ='!N616A20.010'!B2:C2 -> <date> | C31: =('!N616A20.010'!F55/60)/'!N616A20.010'!Q3 -> 1.757823129 | D31: ='!N616A20.010'!N20/'!N616A20.010'!Q3 -> 0.8163265306 | E31: =SUM('!N616A20.010'!L20:Q20)/'!N616A20.010'!Q3 -> 5.448979592 | F31: ='!N616A20.010'!Q16 -> 0.1548126381
A32: 30

Sheet Start
F1: Use Folder 51 | H1: Auto Clean Up | J1: Correct sequence
F2: FALSE | H2: TRUE | J2: 211
A4: Working with Folder | G4: Process All/Or Pick A number: ALL or an integer
A5: E:\Hen Data\Raw Data\96_176\REPEAT PHASE 1\ | G5: ALL
A6: Filenames:
A7: !N517B40.010 | G7: Paint Cells
A8: !N518A50.010 | G8: FALSE
A9: !N519B00.010
A10: !N520950.010
A11: !N521950.010
A12: !N522A50.010
A13: !N523C10.010
A14: !N524A00.010
A15: !N525920.010
A16: !N526A00.010
A17: !N527A50.010
A18: !N528920.010
A19: !N529C30.010
A20: !N530A50.010
A21: !N531940.010
A22: !N601910.010
A23: !N602A30.010
A24: !N603A40.010
A25: !N604A40.010
A26: !N605A00.010
A27: !N606930.010
A28: !N608910.010
A29: !N610A00.010
A30: !N611C10.010
A31: !N612A50.010
A32: !N613B40.010
A33: !N614A10.010
A34: !N615900.010
A35: !N616A20.010

Sheet !N517B40.010
A1: Report for:!N517B40.010
A2: Date: | B2: <date>
A3: Hen: | B3: <hen> | F3: Correct Sequence | G3: =Start!J2 -> 211 | P3: Total Sequences in Data | Q3: =4994-COUNTBLANK(L7:L5000) -> 78 | V3: Total Sequences in Block Data | W3: =COUNTA(L7:L19) -> 13 | AA3: Total Sequences in Block Data | AB3: =COUNTA(L20:L32) -> 13 | AF3: Total Sequences in Block Data | AG3: =COUNTA(L33:L45) -> 13 | AK3: Total Sequences in Block Data | AL3: =COUNTA(L46:L58) -> 13 | AP3: Total Sequences in Block Data | AQ3: =COUNTA(L59:L71) -> 13 | AU3: Total Sequences in Block Data | AV3: =COUNTA(L72:L84) -> 13
P4: Total Sequences in Summary | Q4: =SUM(O7:O14) -> 78 | V4: Total Sequences in Block Summary | W4: =SUM(U7:U14) -> 13 | AA4: Total Sequences in Block Summary | AB4: =SUM(Z7:Z14) -> 13 | AF4: Total Sequences in Block Summary | AG4: =SUM(AE7:AE14) -> 13 | AK4: Total Sequences in Block Summary | AL4: =SUM(AJ7:AJ14) -> 13 | AP4: Total Sequences in Block Summary | AQ4: =SUM(AO7:AO14) -> 13 | AU4: Total Sequences in Block Summary | AV4: =SUM(AT7:AT14) -> 13
T5: Block 1 | Y5: Block 2 | AD5: Block 3 | AI5: Block 4 | AN5: Block 5 | AS5: Block 6
A6: Sequence Component 1 | B6: Time 1 | C6: Sequence Component 2 | D6: Time 2 | E6: Sequence Component 3 | F6: Time 3 | G6: Sequence Component 4 | H6: Time 4 | I6: Sequence Component 5 | J6: Time 5 | K6: Correct? 0=No 1=Yes | L6: Sequence | N6: Frequency | P6: Relative Frequency | Q6: Variability | T6: Frequency | V6: Relative Frequency | W6: Variability | Y6: Frequency | AA6: Relative Frequency | AB6: Variability | AD6: Frequency | AF6: Relative Frequency | AG6: Variability | AI6: Frequency | AK6: Relative Frequency | AL6: Variability | AN6: Frequency | AP6: Relative Frequency | AQ6: Variability | AS6: Frequency | AU6: Relative Frequency | AV6: Variability
A7: 21 | B7: 11 | C7: 22 | D7: 15 | E7: 24 | F7: 22 | K7: 0 | L7: 222 | N7: 111 | O7: =COUNTIF($L$7:$L$500,N7) -> 9 | P7: =O7/$Q$4 -> 0.1153846154 | Q7: =IF(P7=0,0,(P7*((LOG(P7))/LOG(2)))) -> -0.3594781405 | T7: =N7 -> 111 | U7: =COUNTIF(L7:L19,T7) -> 2 | V7: =U7/(W4-U11) -> 0.4 | W7: =IF(V7=0,0,(V7*((LOG(V7))/LOG(2)))) -> -0.528771238 | Y7: =N7 -> 111 | Z7: =COUNTIF(L20:L32,Y7) -> 3 | AA7: =Z7/(AB4-Z11) -> 0.5 | AB7: =IF(AA7=0,0,(AA7*((LOG(AA7))/LOG(2)))) -> -0.5 | AD7: =N7 -> 111 | AE7: =COUNTIF(L33:L45,AD7) -> 1 | AF7: =AE7/(AG4-AE11) -> 0.1666666667 | AG7: =IF(AF7=0,0,(AF7*((LOG(AF7))/LOG(2)))) -> -0.4308270835 | AI7: =N7 -> 111 | AJ7: =COUNTIF(L46:L58,AI7) -> 0 | AK7: =AJ7/(AL4-AJ11) -> 0 | AL7: =IF(AK7=0,0,(AK7*((LOG(AK7))/LOG(2)))) -> 0 | AN7: =N7 -> 111 | AO7: =COUNTIF(L59:L71,AN7) -> 2 | AP7: =AO7/(AQ4-AO11) -> 0.25 | AQ7: =IF(AP7=0,0,(AP7*((LOG(AP7))/LOG(2)))) -> -0.5 | AS7: =N7 -> 111 | AT7: =COUNTIF(L72:L84,AS7) -> 1 | AU7: =AT7/(AV4-AT11) -> 0.3333333333 | AV7: =IF(AU7=0,0,(AU7*((LOG(AU7))/LOG(2)))) -> -0.5283208336
A8: 21 | B8: 124 | C8: 22 | D8: 132 | E8: 24 | F8: 135 | K8: 0 | L8: 222 | N8: 112 | O8: =COUNTIF($L$7:$L$500,N8) -> 0 | P8: =O8/$Q$4 -> 0 | Q8: =IF(P8=0,0,(P8*((LOG(P8))/LOG(2)))) -> 0 | T8: =N8 -> 112 | U8: =COUNTIF(L7:L19,T8) -> 0 | V8: =U8/(W4-U11) -> 0 | W8: =IF(V8=0,0,(V8*((LOG(V8))/LOG(2)))) -> 0 | Y8: =N8 -> 112 | Z8: =COUNTIF(L20:L32,Y8) -> 0 | AA8: =Z8/(AB4-Z11) -> 0 | AB8: =IF(AA8=0,0,(AA8*((LOG(AA8))/LOG(2)))) -> 0 | AD8: =N8 -> 112 | AE8: =COUNTIF(L33:L45,AD8) -> 0 | AF8: =AE8/(AG4-AE11) -> 0 | AG8: =IF(AF8=0,0,(AF8*((LOG(AF8))/LOG(2)))) -> 0 | AI8: =N8 -> 112 | AJ8: =COUNTIF(L46:L58,AI8) -> 0 | AK8: =AJ8/(AL4-AJ11) -> 0 | AL8: =IF(AK8=0,0,(AK8*((LOG(AK8))/LOG(2)))) -> 0 | AN8: =N8 -> 112 | AO8: =COUNTIF(L59:L71,AN8) -> 0 | AP8: =AO8/(AQ4-AO11) -> 0 | AQ8: =IF(AP8=0,0,(AP8*((LOG(AP8))/LOG(2)))) -> 0 | AS8: =N8 -> 112 | AT8: =COUNTIF(L72:L84,AS8) -> 0 | AU8: =AT8/(AV4-AT11) -> 0 | AV8: =IF(AU8=0,0,(AU8*((LOG(AU8))/LOG(2)))) -> 0
A9: 21 | B9: 241 | C9: 11 | D9: 248 | E9: 22 | F9: 255 | K9: 0 | L9: 212 | N9: 121 | O9: =COUNTIF($L$7:$L$500,N9) -> 0 | P9: =O9/$Q$4 -> 0 | Q9: =IF(P9=0,0,(P9*((LOG(P9))/LOG(2)))) -> 0 | T9: =N9 -> 121 | U9: =COUNTIF(L7:L19,T9) -> 0 | V9: =U9/(W4-U11) -> 0 | W9: =IF(V9=0,0,(V9*((LOG(V9))/LOG(2)))) -> 0 | Y9: =N9 -> 121 | Z9: =COUNTIF(L20:L32,Y9) -> 0 | AA9: =Z9/(AB4-Z11) -> 0 | AB9: =IF(AA9=0,0,(AA9*((LOG(AA9))/LOG(2)))) -> 0 | AD9: =N9 -> 121 | AE9: =COUNTIF(L33:L45,AD9) -> 0 | AF9: =AE9/(AG4-AE11) -> 0 | AG9: =IF(AF9=0,0,(AF9*((LOG(AF9))/LOG(2)))) -> 0 | AI9: =N9 -> 121 | AJ9: =COUNTIF(L46:L58,AI9) -> 0 | AK9: =AJ9/(AL4-AJ11) -> 0 | AL9: =IF(AK9=0,0,(AK9*((LOG(AK9))/LOG(2)))) -> 0 | AN9: =N9 -> 121 | AO9: =COUNTIF(L59:L71,AN9) -> 0 | AP9: =AO9/(AQ4-AO11) -> 0 | AQ9: =IF(AP9=0,0,(AP9*((LOG(AP9))/LOG(2)))) -> 0 | AS9: =N9 -> 121 | AT9: =COUNTIF(L72:L84,AS9) -> 0 | AU9: =AT9/(AV4-AT11) -> 0 | AV9: =IF(AU9=0,0,(AU9*((LOG(AU9))/LOG(2)))) -> 0
A10: 21 | B10: 357 | C10: 11 | D10: 365 | E10: 11 | F10: 372 | K10: 0 | L10: 211 | N10: 122 | O10: =COUNTIF($L$7:$L$500,N10) -> 0 | P10: =O10/$Q$4 -> 0 | Q10: =IF(P10=0,0,(P10*((LOG(P10))/LOG(2)))) -> 0 | T10: =N10 -> 122 | U10: =COUNTIF(L7:L19,T10) -> 0 | V10: =U10/(W4-U11) -> 0 | W10: =IF(V10=0,0,(V10*((LOG(V10))/LOG(2)))) -> 0 | Y10: =N10 -> 122 | Z10: =COUNTIF(L20:L32,Y10) -> 0 | AA10: =Z10/(AB4-Z11) -> 0 | AB10: =IF(AA10=0,0,(AA10*((LOG(AA10))/LOG(2)))) -> 0 | AD10: =N10 -> 122 | AE10: =COUNTIF(L33:L45,AD10) -> 0 | AF10: =AE10/(AG4-AE11) -> 0 | AG10: =IF(AF10=0,0,(AF10*((LOG(AF10))/LOG(2)))) -> 0 | AI10: =N10 -> 122 | AJ10: =COUNTIF(L46:L58,AI10) -> 0 | AK10: =AJ10/(AL4-AJ11) -> 0 | AL10: =IF(AK10=0,0,(AK10*((LOG(AK10))/LOG(2)))) -> 0 | AN10: =N10 -> 122 | AO10: =COUNTIF(L59:L71,AN10) -> 0 | AP10: =AO10/(AQ4-AO11) -> 0 | AQ10: =IF(AP10=0,0,(AP10*((LOG(AP10))/LOG(2)))) -> 0 | AS10: =N10 -> 122 | AT10: =COUNTIF(L72:L84,AS10) -> 0 | AU10: =AT10/(AV4-AT11) -> 0 | AV10: =IF(AU10=0,0,(AU10*((LOG(AU10))/LOG(2)))) -> 0
A11: 21 | B11: 463 | C11: 11 | D11: 471 | E11: 11 | F11: 478 | K11: 0 | L11: 211 | N11: 211 | O11: =COUNTIF($L$7:$L$500,N11) -> 40 | P11: =O11/$Q$4 -> 0.5128205128 | Q11: =IF(P11=0,0,(P11*((LOG(P11))/LOG(2)))) -> -0.4940892943 | T11: =N11 -> 211 | U11: =COUNTIF(L7:L19,T11) -> 8 | Y11: =N11 -> 211 | Z11: =COUNTIF(L20:L32,Y11) -> 7 | AD11: =N11 -> 211 | AE11: =COUNTIF(L33:L45,AD11) -> 7 | AI11: =N11 -> 211 | AJ11: =COUNTIF(L46:L58,AI11) -> 3 | AN11: =N11 -> 211 | AO11: =COUNTIF(L59:L71,AN11) -> 5 | AS11: =N11 -> 211 | AT11: =COUNTIF(L72:L84,AS11) -> 10
A12: 21 | B12: 573 | C12: 11 | D12: 580 | E12: 11 | F12: 587 | K12: 0 | L12: 211 | N12: 212 | O12: =COUNTIF($L$7:$L$500,N12) -> 1 | P12: =O12/$Q$4 -> 0.01282051282 | Q12: =IF(P12=0,0,(P12*((LOG(P12))/LOG(2)))) -> -0.08058207973 | T12: =N12 -> 212 | U12: =COUNTIF(L7:L19,T12) -> 1 | V12: =U12/(W4-U11) -> 0.2 | W12: =IF(V12=0,0,(V12*((LOG(V12))/LOG(2)))) -> -0.464385619 | Y12: =N12 -> 212 | Z12: =COUNTIF(L20:L32,Y12) -> 0 | AA12: =Z12/(AB4-Z11) -> 0 | AB12: =IF(AA12=0,0,(AA12*((LOG(AA12))/LOG(2)))) -> 0 | AD12: =N12 -> 212 | AE12: =COUNTIF(L33:L45,AD12) -> 0 | AF12: =AE12/(AG4-AE11) -> 0 | AG12: =IF(AF12=0,0,(AF12*((LOG(AF12))/LOG(2)))) -> 0 | AI12: =N12 -> 212 | AJ12: =COUNTIF(L46:L58,AI12) -> 0 | AK12: =AJ12/(AL4-AJ11) -> 0 | AL12: =IF(AK12=0,0,(AK12*((LOG(AK12))/LOG(2)))) -> 0 | AN12: =N12 -> 212 | AO12: =COUNTIF(L59:L71,AN12) -> 0 | AP12: =AO12/(AQ4-AO11) -> 0 | AQ12: =IF(AP12=0,0,(AP12*((LOG(AP12))/LOG(2)))) -> 0 | AS12: =N12 -> 212 | AT12: =COUNTIF(L72:L84,AS12) -> 0 | AU12: =AT12/(AV4-AT11) -> 0 | AV12: =IF(AU12=0,0,(AU12*((LOG(AU12))/LOG(2)))) -> 0
A13: 12 | B13: 677 | C13: 13 | D13: 688 | E13: 13 | F13: 694 | K13: 0 | L13: 111 | N13: 221 | O13: =COUNTIF($L$7:$L$500,N13) -> 18 | P13: =O13/$Q$4 -> 0.2307692308 | Q13: =IF(P13=0,0,(P13*((LOG(P13))/LOG(2)))) -> -0.4881870502 | T13: =N13 -> 221 | U13: =COUNTIF(L7:L19,T13) -> 0 | V13: =U13/(W4-U11) -> 0 | W13: =IF(V13=0,0,(V13*((LOG(V13))/LOG(2)))) -> 0 | Y13: =N13 -> 221 | Z13: =COUNTIF(L20:L32,Y13) -> 3 | AA13: =Z13/(AB4-Z11) -> 0.5 | AB13: =IF(AA13=0,0,(AA13*((LOG(AA13))/LOG(2)))) -> -0.5 | AD13: =N13 -> 221 | AE13: =COUNTIF(L33:L45,AD13) -> 3 | AF13: =AE13/(AG4-AE11) -> 0.5 | AG13: =IF(AF13=0,0,(AF13*((LOG(AF13))/LOG(2)))) -> -0.5 | AI13: =N13 -> 221 | AJ13: =COUNTIF(L46:L58,AI13) -> 7 | AK13: =AJ13/(AL4-AJ11) -> 0.7 | AL13: =IF(AK13=0,0,(AK13*((LOG(AK13))/LOG(2)))) -> -0.360201221 | AN13: =N13 -> 221 | AO13: =COUNTIF(L59:L71,AN13) -> 4 | AP13: =AO13/(AQ4-AO11) -> 0.5 | AQ13: =IF(AP13=0,0,(AP13*((LOG(AP13))/LOG(2)))) -> -0.5 | AS13: =N13 -> 221 | AT13: =COUNTIF(L72:L84,AS13) -> 1 | AU13: =AT13/(AV4-AT11) -> 0.3333333333 | AV13: =IF(AU13=0,0,(AU13*((LOG(AU13))/LOG(2)))) -> -0.5283208336
A14: 21 | B14: 796 | C14: 11 | D14: 804 | E14: 11 | F14: 810 | K14: 0 | L14: 211 | N14: 222 | O14: =COUNTIF($L$7:$L$500,N14) -> 10 | P14: =O14/$Q$4 -> 0.1282051282 | Q14: =IF(P14=0,0,(P14*((LOG(P14))/LOG(2)))) -> -0.37993258 | T14: =N14 -> 222 | U14: =COUNTIF(L7:L19,T14) -> 2 | V14: =U14/(W4-U11) -> 0.4 | W14: =IF(V14=0,0,(V14*((LOG(V14))/LOG(2)))) -> -0.528771238 | Y14: =N14 -> 222 | Z14: =COUNTIF(L20:L32,Y14) -> 0 | AA14: =Z14/(AB4-Z11) -> 0 | AB14: =IF(AA14=0,0,(AA14*((LOG(AA14))/LOG(2)))) -> 0 | AD14: =N14 -> 222 | AE14: =COUNTIF(L33:L45,AD14) -> 2 | AF14: =AE14/(AG4-AE11) -> 0.3333333333 | AG14: =IF(AF14=0,0,(AF14*((LOG(AF14))/LOG(2)))) -> -0.5283208336 | AI14: =N14 -> 222 | AJ14: =COUNTIF(L46:L58,AI14) -> 3 | AK14: =AJ14/(AL4-AJ11) -> 0.3 | AL14: =IF(AK14=0,0,(AK14*((LOG(AK14))/LOG(2)))) -> -0.5210896782 | AN14: =N14 -> 222 | AO14: =COUNTIF(L59:L71,AN14) -> 2 | AP14: =AO14/(AQ4-AO11) -> 0.25 | AQ14: =IF(AP14=0,0,(AP14*((LOG(AP14))/LOG(2)))) -> -0.5 | AS14: =N14 -> 222 | AT14: =COUNTIF(L72:L84,AS14) -> 1 | AU14: =AT14/(AV4-AT11) -> 0.3333333333 | AV14: =IF(AU14=0,0,(AU14*((LOG(AU14))/LOG(2)))) -> -0.5283208336
A15: 21 | B15: 902 | C15: 11 | D15: 909 | E15: 11 | F15: 913 | K15: 0 | L15: 211 | P15: =SUM(P7:P14) -> 1 | Q15: =-SUM(Q7:Q14) -> 1.802269145 | V15: =SUM(V7:V14) -> 1 | W15: =-SUM(W7:W14) -> 1.521928095 | AA15: =SUM(AA7:AA14) -> 1 | AB15: =-SUM(AB7:AB14) -> 1 | AF15: =SUM(AF7:AF14) -> 1 | AG15: =-SUM(AG7:AG14) -> 1.459147917 | AK15: =SUM(AK7:AK14) -> 1 | AL15: =-SUM(AL7:AL14) -> 0.8812908992 | AP15: =SUM(AP7:AP14) -> 1 | AQ15: =-SUM(AQ7:AQ14) -> 1.5 | AU15: =SUM(AU7:AU14) -> 1 | AV15: =-SUM(AV7:AV14) -> 1.584962501
A16: 21 | B16: 1008 | C16: 11 | D16: 1015 | E16: 11 | F16: 1021 | K16: 0 | L16: 211 | P16: U= | Q16: =Q15/(LOG(Q4)/LOG(2)) -> 0.2867388724 | V16: U1= | W16: =W15/(LOG(W4)/LOG(2)) -> 0.4112830395 | AA16: U2= | AB16: =AB15/(LOG(AB4)/LOG(2)) -> 0.2702381544 | AF16: U3= | AG16: =AG15/(LOG(AG4)/LOG(2)) -> 0.3943174401 | AK16: U4= | AL16: =AL15/(LOG(AL4)/LOG(2)) -> 0.2381584261 | AP16: U5= | AQ16: =AQ15/(LOG(AQ4)/LOG(2)) -> 0.4053572316 | AU16: U6= | AV16: =AV15/(LOG(AV4)/LOG(2)) -> 0.428317341
A17: 12 | B17: 1108 | C17: 13 | D17: 1112 | E17: 13 | F17: 1119 | K17: 0 | L17: 111
A18: 21 | B18: 1221 | C18: 11 | D18: 1227 | E18: 11 | F18: 1231 | K18: 0 | L18: 211
A19: 21 | B19: 1323 | C19: 11 | D19: 1330 | E19: 11 | F19: 1336 | K19: 0 | L19: 211 | N19: Total Target Seq
A20: 21 | B20: 1424 | C20: 11 | D20: 1432 | E20: 11 | F20: 1435 | K20: 0 | L20: 211 | N20: =COUNTIF(L7:L84,G3) -> 40 | P20: 13 | Q20: 13 | R20: 13 | S20: 13 | T20: 13 | U20: 13
A21: 12 | B21: 1537 | C21: 13 | D21: 1540 | E21: 13 | F21: 1546 | K21: 0 | L21: 111 | P21: % of reinforcement given in 6 equal intervals based on number of trials
A22: 12 | B22: 1660 | C22: 13 | D22: 1664 | E22: 13 | F22: 1674 | K22: 0 | L22: 111 | P22: %_1 | Q22: %_2 | R22: %_3 | S22: %_4 | T22: %_5 | U22: %_6
A23: 21 | B23: 1788 | C23: 11 | D23: 1794 | E23: 11 | F23: 1801 | K23: 0 | L23: 211 | O23: target sequence | P23: =$G$3 -> 211 | Q23: =$G$3 -> 211 | R23: =$G$3 -> 211 | S23: =$G$3 -> 211 | T23: =$G$3 -> 211 | U23: =$G$3 -> 211
A24: 21 | B24: 1894 | C24: 11 | D24: 1903 | E24: 11 | F24: 1906 | K24: 0 | L24: 211 | O24: total reinforcement | P24: =U11 -> 8 | Q24: =Z11 -> 7 | R24: =AE11 -> 7 | S24: =AJ11 -> 3 | T24: =AO11 -> 5 | U24: =AT11 -> 10
A25: 21 | B25: 1997 | C25: 22 | D25: 2005 | E25: 13 | F25: 2014 | K25: 0 | L25: 221 | O25: % target
A26: 21 | B26: 2109 | C26: 11 | D26: 2117 | E26: 11 | F26: 2122 | K26: 0 | L26: 211 | O26: CCRF
A27: 12 | B27: 2233 | C27: 13 | D27: 2236 | E27: 13 | F27: 2240 | K27: 0 | L27: 111 | O27: % CCRf
A28: 21 | B28: 2364 | C28: 22 | D28: 2368 | E28: 13 | F28: 2374 | K28: 0 | L28: 221 | O28: average response rate | P28: =F19/P20 -> 102.7692308 | Q28: =(F32-F19)/Q20 -> 114.8461538 | R28: =(F45-F32)/R20 -> 115.6153846 | S28: =(F58-F45)/S20 -> 116.8461538 | T28: =(F71-F58)/T20 -> 126.4615385 | U28: =(F84-F71)/U20 -> 115.2307692
A29: 21 | B29: 2475 | C29: 11 | D29: 2483 | E29: 11 | F29: 2486 | K29: 0 | L29: 211
A30: 21 | B30: 2579 | C30: 22 | D30: 2583 | E30: 13 | F30: 2591 | K30: 0 | L30: 221
A31: 21 | B31: 2694 | C31: 11 | D31: 2704 | E31: 11 | F31: 2708 | K31: 0 | L31: 211
A32: 21 | B32: 2802 | C32: 11 | D32: 2819 | E32: 11 | F32: 2829 | K32: 0 | L32: 211
A33: 12 | B33: 2944 | C33: 13 | D33: 2947 | E33: 13 | F33: 2954 | K33: 0 | L33: 111
A34: 21 | B34: 3071 | C34: 11 | D34: 3078 | E34: 11 | F34: 3081 | K34: 0 | L34: 211
A35: 21 | B35: 3181 | C35: 11 | D35: 3191 | E35: 11 | F35: 3194 | K35: 0 | L35: 211
A36: 21 | B36: 3283 | C36: 22 | D36: 3291 | E36: 13 | F36: 3298 | K36: 0 | L36: 221
A37: 21 | B37: 3410 | C37: 11 | D37: 3419 | E37: 11 | F37: 3422 | K37: 0 | L37: 211
A38: 21 | B38: 3515 | C38: 22 | D38: 3525 | E38: 24 | F38: 3529 | K38: 0 | L38: 222
A39: 21 | B39: 3631 | C39: 22 | D39: 3639 | E39: 13 | F39: 3647 | K39: 0 | L39: 221
A40: 21 | B40: 3747 | C40: 22 | D40: 3756 | E40: 24 | F40: 3764 | K40: 0 | L40: 222
A41: 21 | B41: 3865 | C41: 11 | D41: 3884 | E41: 11 | F41: 3888 | K41: 0 | L41: 211
A42: 21 | B42: 3983 | C42: 11 | D42: 3991 | E42: 11 | F42: 3995 | K42: 0 | L42: 211
A43: 21 | B43: 4085 | C43: 22 | D43: 4098 | E43: 13 | F43: 4105 | K43: 0 | L43: 221
A44: 21 | B44: 4211 | C44: 11 | D44: 4219 | E44: 11 | F44: 4223 | K44: 0 | L44: 211
A45: 21 | B45: 4322 | C45: 11 | D45: 4328 | E45: 11 | F45: 4332 | K45: 0 | L45: 211
A46: 21 | B46: 4421 | C46: 22 | D46: 4428 | E46: 13 | F46: 4438 | K46: 0 | L46: 221
A47: 21 | B47: 4543 | C47: 22 | D47: 4551 | E47: 13 | F47: 4558 | K47: 0 | L47: 221
A48: 21 | B48: 4659 | C48: 22 | D48: 4665 | E48: 13 | F48: 4674 | K48: 0 | L48: 221
A49: 21 | B49: 4781 | C49: 11 | D49: 4791 | E49: 11 | F49: 4796 | K49: 0 | L49: 211
A50: 21 | B50: 4889 | C50: 11 | D50: 4900 | E50: 11 | F50: 4904 | K50: 0 | L50: 211
A51: 21 | B51: 4991 | C51: 22 | D51: 4998 | E51: 13 | F51: 5008 | K51: 0 | L51: 221
A52: 21 | B52: 5127 | C52: 11 | D52: 5134 | E52: 11 | F52: 5140 | K52: 0 | L52: 211
A53: 21 | B53: 5228 | C53: 22 | D53: 5231 | E53: 24 | F53: 5238 | K53: 0 | L53: 222
A54: 21 | B54: 5341 | C54: 22 | D54: 5348 | E54: 24 | F54: 5356 | K54: 0 | L54: 222
A55: 21 | B55: 5461 | C55: 22 | D55: 5468 | E55: 13 | F55: 5484 | K55: 0 | L55: 221
A56: 21 | B56: 5584 | C56: 22 | D56: 5590 | E56: 24 | F56: 5597 | K56: 0 | L56: 222
A57: 21 | B57: 5705 | C57: 22 | D57: 5713 | E57: 13 | F57: 5722 | K57: 0 | L57: 221
A58: 21 | B58: 5830 | C58: 22 | D58: 5842 | E58: 13 | F58: 5851 | K58: 0 | L58: 221
A59: 21 | B59: 5964 | C59: 11 | D59: 5973 | E59: 11 | F59: 5979 | K59: 0 | L59: 211
A60: 12 | B60: 6084 | C60: 13 | D60: 6088 | E60: 13 | F60: 6094 | K60: 0 | L60: 111
A61: 21 | B61: 6196 | C61: 22 | D61: 6205 | E61: 24 | F61: 6212 | K61: 0 | L61: 222
A62: 21 | B62: 6321 | C62: 22 | D62: 6327 | E62: 13 | F62: 6337 | K62: 0 | L62: 221
A63: 21 | B63: 6440 | C63: 22 | D63: 6446 | E63: 13 | F63: 6457 | K63: 0 | L63: 221
A64: 12 | B64: 6583 | C64: 13 | D64: 6587 | E64: 13 | F64: 6597 | K64: 0 | L64: 111
A65: 21 | B65: 6719 | C65: 11 | D65: 6729 | E65: 11 | F65: 6735 | K65: 0 | L65: 211
A66: 21 | B66: 6827 | C66: 22 | D66: 6836 | E66: 13 | F66: 6850 | K66: 0 | L66: 221
A67: 21 | B67: 6961 | C67: 11 | D67: 6974 | E67: 11 | F67: 6978 | K67: 0 | L67: 211
A68: 21 | B68: 7073 | C68: 22 | D68: 7081 | E68: 13 | F68: 7091 | K68: 0 | L68: 221
A69: 21 | B69: 7228 | C69: 11 | D69: 7237 | E69: 11 | F69: 7246 | K69: 0 | L69: 211
A70: 21 | B70: 7337 | C70: 22 | D70: 7341 | E70: 24 | F70: 7358 | K70: 0 | L70: 222
A71: 21 | B71: 7466 | C71: 11 | D71: 7490 | E71: 11 | F71: 7495 | K71: 0 | L71: 211
A72: 21 | B72: 7602 | C72: 11 | D72: 7610 | E72: 11 | F72: 7614 | K72: 0 | L72: 211
A73: 21 | B73: 7714 | C73: 11 | D73: 7723 | E73: 11 | F73: 7727 | K73: 0 | L73: 211
A74: 21 | B74: 7815 | C74: 22 | D74: 7819 | E74: 24 | F74: 7826 | K74: 0 | L74: 222
A75: 21 | B75: 7941 | C75: 11 | D75: 7950 | E75: 11 | F75: 7954 | K75: 0 | L75: 211
A76: 21 | B76: 8052 | C76: 11 | D76: 8061 | E76: 11 | F76: 8065 | K76: 0 | L76: 211
A77: 21 | B77: 8160 | C77: 11 | D77: 8168 | E77: 11 | F77: 8173 | K77: 0 | L77: 211
A78: 21 | B78: 8277 | C78: 11 | D78: 8285 | E78: 11 | F78: 8289 | K78: 0 | L78: 211
A79: 21 | B79: 8386 | C79: 11 | D79: 8395 | E79: 11 | F79: 8399 | K79: 0 | L79: 211
A80: 21 | B80: 8503 | C80: 11 | D80: 8511 | E80: 11 | F80: 8517 | K80: 0 | L80: 211
A81: 12 | B81: 8606 | C81: 13 | D81: 8610 | E81: 13 | F81: 8614 | K81: 0 | L81: 111
A82: 21 | B82: 8722 | C82: 22 | D82: 8732 | E82: 13 | F82: 8742 | K82: 0 | L82: 221
A83: 21 | B83: 8855 | C83: 11 | D83: 8865 | E83: 11 | F83: 8869 | K83: 0 | L83: 211
A84: 21 | B84: 8980 | C84: 11 | D84: 8989 | E84: 11 | F84: 8993 | K84: 1 | L84: 211

Sheet !N518A50.010
A1: Report for:!N518A50.010
A2: Date: | B2: <date>
A3: Hen: | B3: <hen> | F3: Correct Sequence | G3: =Start!J2 -> 211 | P3: Total Sequences in Data | Q3: =4994-COUNTBLANK(L7:L5000) -> 65 | V3: Total Sequences in Block Data | W3: =COUNTA(L7:L17) -> 11 | AA3: Total Sequences in Block Data | AB3: =COUNTA(L18:L28) -> 11 | AF3: Total Sequences in Block Data | AG3: =COUNTA(L29:L38) -> 10 | AK3: Total Sequences in Block Data | AL3: =COUNTA(L39:L49) -> 11 | AP3: Total Sequences in Block Data | AQ3: =COUNTA(L50:L60) -> 11 | AU3: Total Sequences in Block Data | AV3: =COUNTA(L61:L71) -> 11
P4: Total Sequences in Summary | Q4: =SUM(O7:O14) -> 65 | V4: Total Sequences in Block Summary | W4: =SUM(U7:U14) -> 11 | AA4: Total Sequences in Block Summary | AB4: =SUM(Z7:Z14) -> 11 | AF4: Total Sequences in Block Summary | AG4: =SUM(AE7:AE14) -> 10 | AK4: Total Sequences in Block Summary | AL4: =SUM(AJ7:AJ14) -> 11 | AP4: Total Sequences in Block Summary | AQ4: =SUM(AO7:AO14) -> 11 | AU4: Total Sequences in Block Summary | AV4: =SUM(AT7:AT14) -> 11
T5: Block 1 | Y5: Block 2 | AD5: Block 3 | AI5: Block 4 | AN5: Block 5 | AS5: Block 6
A6: Sequence Component 1 | B6: Time 1 | C6: Sequence Component 2 | D6: Time 2 | E6: Sequence Component 3 | F6: Time 3 | G6: Sequence Component 4 | H6: Time 4 | I6: Sequence Component 5 | J6: Time 5 | K6: Correct? 0=No 1=Yes | L6: Sequence | N6: Frequency | P6: Relative Frequency | Q6: Variability | T6: Frequency | V6: Relative Frequency | W6: Variability | Y6: Frequency | AA6: Relative Frequency | AB6: Variability | AD6: Frequency | AF6: Relative Frequency | AG6: Variability | AI6: Frequency | AK6: Relative Frequency | AL6: Variability | AN6: Frequency | AP6: Relative Frequency | AQ6: Variability | AS6: Frequency | AU6: Relative Frequency | AV6: Variability
A7: 12 | B7: 2 | C7: 24 | D7: 11 | E7: 13 | F7: 17 | K7: 0 | L7: 121 | N7: 111 | O7: =COUNTIF($L$7:$L$500,N7) -> 9 | P7: =O7/$Q$4 -> 0.1384615385 | Q7: =IF(P7=0,0,(P7*((LOG(P7))/LOG(2)))) -> -0.3949536201 | T7: =N7 -> 111 | U7: =COUNTIF(L7:L17,T7) -> 1 | V7: =U7/(W4-U11) -> 0.25 | W7: =IF(V7=0,0,(V7*((LOG(V7))/LOG(2)))) -> -0.5 | Y7: =N7 -> 111 | Z7: =COUNTIF(L18:L28,Y7) -> 1 | AA7: =Z7/(AB4-Z11) -> 1 | AB7: =IF(AA7=0,0,(AA7*((LOG(AA7))/LOG(2)))) -> 0 | AD7: =N7 -> 111 | AE7: =COUNTIF(L29:L38,AD7) -> 3 | AF7: =AE7/(AG4-AE11) -> 0.375 | AG7: =IF(AF7=0,0,(AF7*((LOG(AF7))/LOG(2)))) -> -0.5306390622 | AI7: =N7 -> 111 | AJ7: =COUNTIF(L39:L49,AI7) -> 0 | AK7: =AJ7/(AL4-AJ11) -> 0 | AL7: =IF(AK7=0,0,(AK7*((LOG(AK7))/LOG(2)))) -> 0 | AN7: =N7 -> 111 | AO7: =COUNTIF(L50:L60,AN7) -> 2 | AP7: =AO7/(AQ4-AO11) -> 0.5 | AQ7: =IF(AP7=0,0,(AP7*((LOG(AP7))/LOG(2)))) -> -0.5 | AS7: =N7 -> 111 | AT7: =COUNTIF(L61:L71,AS7) -> 2 | AU7: =AT7/(AV4-AT11) -> 0.4 | AV7: =IF(AU7=0,0,(AU7*((LOG(AU7))/LOG(2)))) -> -0.528771238
A8: 21 | B8: 116 | C8: 22 | D8: 122 | E8: 24 | F8: 129 | K8: 0 | L8: 222 | N8: 112 | O8: =COUNTIF($L$7:$L$500,N8) -> 0 | P8: =O8/$Q$4 -> 0 | Q8: =IF(P8=0,0,(P8*((LOG(P8))/LOG(2)))) -> 0 | T8: =N8 -> 112 | U8: =COUNTIF(L7:L17,T8) -> 0 | V8: =U8/(W4-U11) -> 0 | W8: =IF(V8=0,0,(V8*((LOG(V8))/LOG(2)))) -> 0 | Y8: =N8 -> 112 | Z8: =COUNTIF(L18:L28,Y8) -> 0 | AA8: =Z8/(AB4-Z11) -> 0 | AB8: =IF(AA8=0,0,(AA8*((LOG(AA8))/LOG(2)))) -> 0 | AD8: =N8 -> 112 | AE8: =COUNTIF(L29:L38,AD8) -> 0 | AF8: =AE8/(AG4-AE11) -> 0 | AG8: =IF(AF8=0,0,(AF8*((LOG(AF8))/LOG(2)))) -> 0 | AI8: =N8 -> 112 | AJ8: =COUNTIF(L39:L49,AI8) -> 0 | AK8: =AJ8/(AL4-AJ11) -> 0 | AL8: =IF(AK8=0,0,(AK8*((LOG(AK8))/LOG(2)))) -> 0 | AN8: =N8 -> 112 | AO8: =COUNTIF(L50:L60,AN8) -> 0 | AP8: =AO8/(AQ4-AO11) -> 0 | AQ8: =IF(AP8=0,0,(AP8*((LOG(AP8))/LOG(2)))) -> 0 | AS8: =N8 -> 112 | AT8: =COUNTIF(L61:L71,AS8) -> 0 | AU8: =AT8/(AV4-AT11) -> 0 | AV8: =IF(AU8=0,0,(AU8*((LOG(AU8))/LOG(2)))) -> 0
A9: 21 | B9: 238 | C9: 11 | D9: 245 | E9: 11 | F9: 255 | K9: 0 | L9: 211 | N9: 121 | O9: =COUNTIF($L$7:$L$500,N9) -> 1 | P9: =O9/$Q$4 -> 0.01538461538 | Q9: =IF(P9=0,0,(P9*((LOG(P9))/LOG(2)))) -> -0.09265181251 | T9: =N9 -> 121 | U9: =COUNTIF(L7:L17,T9) -> 1 | V9: =U9/(W4-U11) -> 0.25 | W9: =IF(V9=0,0,(V9*((LOG(V9))/LOG(2)))) -> -0.5 | Y9: =N9 -> 121 | Z9: =COUNTIF(L18:L28,Y9) -> 0 | AA9: =Z9/(AB4-Z11) -> 0 | AB9: =IF(AA9=0,0,(AA9*((LOG(AA9))/LOG(2)))) -> 0 | AD9: =N9 -> 121 | AE9: =COUNTIF(L29:L38,AD9) -> 0 | AF9: =AE9/(AG4-AE11) -> 0 | AG9: =IF(AF9=0,0,(AF9*((LOG(AF9))/LOG(2)))) -> 0 | AI9: =N9 -> 121 | AJ9: =COUNTIF(L39:L49,AI9) -> 0 | AK9: =AJ9/(AL4-AJ11) -> 0 | AL9: =IF(AK9=0,0,(AK9*((LOG(AK9))/LOG(2)))) -> 0 | AN9: =N9 -> 121 | AO9: =COUNTIF(L50:L60,AN9) -> 0 | AP9: =AO9/(AQ4-AO11) -> 0 | AQ9: =IF(AP9=0,0,(AP9*((LOG(AP9))/LOG(2)))) -> 0 | AS9: =N9 -> 121 | AT9: =COUNTIF(L61:L71,AS9) -> 0 | AU9: =AT9/(AV4-AT11) -> 0 | AV9: =IF(AU9=0,0,(AU9*((LOG(AU9))/LOG(2)))) -> 0
A10: 21 | B10: 348 | C10: 11 | D10: 355 | E10: 11 | F10: 359 | K10: 0 | L10: 211 | N10: 122 | O10: =COUNTIF($L$7:$L$500,N10) -> 0 | P10: =O10/$Q$4 -> 0 | Q10: =IF(P10=0,0,(P10*((LOG(P10))/LOG(2)))) -> 0 | T10: =N10 -> 122 | U10: =COUNTIF(L7:L17,T10) -> 0 | V10: =U10/(W4-U11) -> 0 | W10: =IF(V10=0,0,(V10*((LOG(V10))/LOG(2)))) -> 0 | Y10: =N10 -> 122 | Z10: =COUNTIF(L18:L28,Y10) -> 0 | AA10: =Z10/(AB4-Z11) -> 0 | AB10: =IF(AA10=0,0,(AA10*((LOG(AA10))/LOG(2)))) -> 0 | AD10: =N10 -> 122 | AE10: =COUNTIF(L29:L38,AD10) -> 0 | AF10: =AE10/(AG4-AE11) -> 0 | AG10: =IF(AF10=0,0,(AF10*((LOG(AF10))/LOG(2)))) -> 0 | AI10: =N10 -> 122 | AJ10: =COUNTIF(L39:L49,AI10) -> 0 | AK10: =AJ10/(AL4-AJ11) -> 0 | AL10: =IF(AK10=0,0,(AK10*((LOG(AK10))/LOG(2)))) -> 0 | AN10: =N10 -> 122 | AO10: =COUNTIF(L50:L60,AN10) -> 0 | AP10: =AO10/(AQ4-AO11) -> 0 | AQ10: =IF(AP10=0,0,(AP10*((LOG(AP10))/LOG(2)))) -> 0 | AS10: =N10 -> 122 | AT10: =COUNTIF(L61:L71,AS10) -> 0 | AU10: =AT10/(AV4-AT11) -> 0 | AV10: =IF(AU10=0,0,(AU10*((LOG(AU10))/LOG(2)))) -> 0
A11: 21 | B11: 453 | C11: 22 | D11: 463 | E11: 13 | F11: 471 | K11: 0 | L11: 221 | N11: 211 | O11: =COUNTIF($L$7:$L$500,N11) -> 40 | P11: =O11/$Q$4 -> 0.6153846154 | Q11: =IF(P11=0,0,(P11*((LOG(P11))/LOG(2)))) -> -0.4310398265 | T11: =N11 -> 211 | U11: =COUNTIF(L7:L17,T11) -> 7 | Y11: =N11 -> 211 | Z11: =COUNTIF(L18:L28,Y11) -> 10 | AD11: =N11 -> 211 | AE11: =COUNTIF(L29:L38,AD11) -> 2 | AI11: =N11 -> 211 | AJ11: =COUNTIF(L39:L49,AI11) -> 8 | AN11: =N11 -> 211 | AO11: =COUNTIF(L50:L60,AN11) -> 7 | AS11: =N11 -> 211 | AT11: =COUNTIF(L61:L71,AS11) -> 6
A12: 21 | B12: 559 | C12: 11 | D12: 568 | E12: 11 | F12: 571 | K12: 0 | L12: 211 | N12: 212 | O12: =COUNTIF($L$7:$L$500,N12) -> 0 | P12: =O12/$Q$4 -> 0 | Q12: =IF(P12=0,0,(P12*((LOG(P12))/LOG(2)))) -> 0 | T12: =N12 -> 212 | U12: =COUNTIF(L7:L17,T12) -> 0 | V12: =U12/(W4-U11) -> 0 | W12: =IF(V12=0,0,(V12*((LOG(V12))/LOG(2)))) -> 0 | Y12: =N12 -> 212 | Z12: =COUNTIF(L18:L28,Y12) -> 0 | AA12: =Z12/(AB4-Z11) -> 0 | AB12: =IF(AA12=0,0,(AA12*((LOG(AA12))/LOG(2)))) -> 0 | AD12: =N12 -> 212 | AE12: =COUNTIF(L29:L38,AD12) -> 0 | AF12: =AE12/(AG4-AE11) -> 0 | AG12: =IF(AF12=0,0,(AF12*((LOG(AF12))/LOG(2)))) -> 0 | AI12: =N12 -> 212 | AJ12: =COUNTIF(L39:L49,AI12) -> 0 | AK12: =AJ12/(AL4-AJ11) -> 0 | AL12: =IF(AK12=0,0,(AK12*((LOG(AK12))/LOG(2)))) -> 0 | AN12: =N12 -> 212 | AO12: =COUNTIF(L50:L60,AN12) -> 0 | AP12: =AO12/(AQ4-AO11) -> 0 | AQ12: =IF(AP12=0,0,(AP12*((LOG(AP12))/LOG(2)))) -> 0 | AS12: =N12 -> 212 | AT12: =COUNTIF(L61:L71,AS12) -> 0 | AU12: =AT12/(AV4-AT11) -> 0 | AV12: =IF(AU12=0,0,(AU12*((LOG(AU12))/LOG(2)))) -> 0
A13: 12 | B13: 669 | C13: 13 | D13: 673 | E13: 13 | F13: 682 | K13: 0 | L13: 111 | N13: 221 | O13: =COUNTIF($L$7:$L$500,N13) -> 12 | P13: =O13/$Q$4 -> 0.1846153846 | Q13: =IF(P13=0,0,(P13*((LOG(P13))/LOG(2)))) -> -0.4499825192 | T13: =N13 -> 221 | U13: =COUNTIF(L7:L17,T13) -> 1 | V13: =U13/(W4-U11) -> 0.25 | W13: =IF(V13=0,0,(V13*((LOG(V13))/LOG(2)))) -> -0.5 | Y13: =N13 -> 221 | Z13: =COUNTIF(L18:L28,Y13) -> 0 | AA13: =Z13/(AB4-Z11) -> 0 | AB13: =IF(AA13=0,0,(AA13*((LOG(AA13))/LOG(2)))) -> 0 | AD13: =N13 -> 221 | AE13: =COUNTIF(L29:L38,AD13) -> 4 | AF13: =AE13/(AG4-AE11) -> 0.5 | AG13: =IF(AF13=0,0,(AF13*((LOG(AF13))/LOG(2)))) -> -0.5 | AI13: =N13 -> 221 | AJ13: =COUNTIF(L39:L49,AI13) -> 3 | AK13: =AJ13/(AL4-AJ11) -> 1 | AL13: =IF(AK13=0,0,(AK13*((LOG(AK13))/LOG(2)))) -> 0 | AN13: =N13 -> 221 | AO13: =COUNTIF(L50:L60,AN13) -> 1 | AP13: =AO13/(AQ4-AO11) -> 0.25 | AQ13: =IF(AP13=0,0,(AP13*((LOG(AP13))/LOG(2)))) -> -0.5 | AS13: =N13 -> 221 | AT13: =COUNTIF(L61:L71,AS13) -> 3 | AU13: =AT13/(AV4-AT11) -> 0.6 | AV13: =IF(AU13=0,0,(AU13*((LOG(AU13))/LOG(2)))) -> -0.4421793565
A14: 21 | B14: 770 | C14: 11 | D14: 779 | E14: 11 | F14: 782 | K14: 0 | L14: 211 | N14: 222 | O14: =COUNTIF($L$7:$L$500,N14) -> 3 | P14: =O14/$Q$4 -> 0.04615384615 | Q14: =IF(P14=0,0,(P14*((LOG(P14))/LOG(2)))) -> -0.2048033221 | T14: =N14 -> 222 | U14: =COUNTIF(L7:L17,T14) -> 1 | V14: =U14/(W4-U11) -> 0.25 | W14: =IF(V14=0,0,(V14*((LOG(V14))/LOG(2)))) -> -0.5 | Y14: =N14 -> 222 | Z14: =COUNTIF(L18:L28,Y14) -> 0 | AA14: =Z14/(AB4-Z11) -> 0 | AB14: =IF(AA14=0,0,(AA14*((LOG(AA14))/LOG(2)))) -> 0 | AD14: =N14 -> 222 | AE14: =COUNTIF(L29:L38,AD14) -> 1 | AF14: =AE14/(AG4-AE11) -> 0.125 | AG14: =IF(AF14=0,0,(AF14*((LOG(AF14))/LOG(2)))) -> -0.375 | AI14: =N14 -> 222 | AJ14: =COUNTIF(L39:L49,AI14) -> 0 | AK14: =AJ14/(AL4-AJ11) -> 0 | AL14: =IF(AK14=0,0,(AK14*((LOG(AK14))/LOG(2)))) -> 0 | AN14: =N14 -> 222 | AO14: =COUNTIF(L50:L60,AN14) -> 1 | AP14: =AO14/(AQ4-AO11) -> 0.25 | AQ14: =IF(AP14=0,0,(AP14*((LOG(AP14))/LOG(2)))) -> -0.5 | AS14: =N14 -> 222 | AT14: =COUNTIF(L61:L71,AS14) -> 0 | AU14: =AT14/(AV4-AT11) -> 0 | AV14: =IF(AU14=0,0,(AU14*((LOG(AU14))/LOG(2)))) -> 0
A15: 21 | B15: 874 | C15: 11 | D15: 880 | E15: 11 | F15: 884 | K15: 0 | L15: 211 | P15: =SUM(P7:P14) -> 1 | Q15: =-SUM(Q7:Q14) -> 1.5734311 | V15: =SUM(V7:V14) -> 1 | W15: =-SUM(W7:W14) -> 2 | AA15: =SUM(AA7:AA14) -> 1 | AB15: =-SUM(AB7:AB14) -> 0 | AF15: =SUM(AF7:AF14) -> 1 | AG15: =-SUM(AG7:AG14) -> 1.405639062 | AK15: =SUM(AK7:AK14) -> 1 | AL15: =-SUM(AL7:AL14) -> 0 | AP15: =SUM(AP7:AP14) -> 1 | AQ15: =-SUM(AQ7:AQ14) -> 1.5 | AU15: =SUM(AU7:AU14) -> 1 | AV15: =-SUM(AV7:AV14) -> 0.9709505945
A16: 21 | B16: 972 | C16: 11 | D16: 979 | E16: 11 | F16: 983 | K16: 0 | L16: 211 | P16: U= | Q16: =Q15/(LOG(Q4)/LOG(2)) -> 0.2612645307 | V16: U1= | W16: =W15/(LOG(W4)/LOG(2)) -> 0.5781296526 | AA16: U2= | AB16: =AB15/(LOG(AB4)/LOG(2)) -> 0 | AF16: U3= | AG16: =AG15/(LOG(AG4)/LOG(2)) -> 0.4231395208 | AK16: U4= | AL16: =AL15/(LOG(AL4)/LOG(2)) -> 0 | AP16: U5= | AQ16: =AQ15/(LOG(AQ4)/LOG(2)) -> 0.4335972395 | AU16: U6= | AV16: =AV15/(LOG(AV4)/LOG(2)) -> 0.2806676649
A17: 21 | B17: 1072 | C17: 11 | D17: 1082 | E17: 11 | F17: 1085 | K17: 0 | L17: 211
A18: 21 | B18: 1174 | C18: 11 | D18: 1183 | E18: 11 | F18: 1187 | K18: 0 | L18: 211
A19: 21 | B19: 1277 | C19: 11 | D19: 1286 | E19: 11 | F19: 1289 | K19: 0 | L19: 211 | N19: Total Target Seq
A20: 21 | B20: 1377 | C20: 11 | D20: 1385 | E20: 11 | F20: 1388 | K20: 0 | L20: 211 | N20: =COUNTIF(L7:L71,G3) -> 40 | P20: 11 | Q20: 11 | R20: 10 | S20: 11 | T20: 11 | U20: 11
A21: 21 | B21: 1475 | C21: 11 | D21: 1489 | E21: 11 | F21: 1493 | K21: 0 | L21: 211 | P21: % of reinforcement given in 6 equal intervals based on number of trials
A22: 21 | B22: 1580 | C22: 11 | D22: 1587 | E22: 11 | F22: 1591 | K22: 0 | L22: 211 | P22: %_1 | Q22: %_2 | R22: %_3 | S22: %_4 | T22: %_5 | U22: %_6
A23: 12 | B23: 1677 | C23: 13 | D23: 1681 | E23: 13 | F23: 1684 | K23: 0 | L23: 111 | O23: target sequence | P23: =$G$3 -> 211 | Q23: =$G$3 -> 211 | R23: =$G$3 -> 211 | S23: =$G$3 -> 211 | T23: =$G$3 -> 211 | U23: =$G$3 -> 211
A24: 21 | B24: 1784 | C24: 11 | D24: 1797 | E24: 11 | F24: 1808 | K24: 0 | L24: 211 | O24: total reinforcement | P24: =U11 -> 7 | Q24: =Z11 -> 10 | R24: =AE11 -> 2 | S24: =AJ11 -> 8 | T24: =AO11 -> 7 | U24: =AT11 -> 6
A25: 21 | B25: 1896 | C25: 11 | D25: 1905 | E25: 11 | F25: 1908 | K25: 0 | L25: 211 | O25: % target
A26: 21 | B26: 1997 | C26: 11 | D26: 2006 | E26: 11 | F26: 2010 | K26: 0 | L26: 211 | O26: CCRF
A27: 21 | B27: 2096 | C27: 11 | D27: 2111 | E27: 11 | F27: 2117 | K27: 0 | L27: 211 | O27: % CCRf
A28: 21 | B28: 2207 | C28: 11 | D28: 2216 | E28: 11 | F28: 2219 | K28: 0 | L28: 211 | O28: average response rate | P28: =F17/P20 -> 98.63636364 | Q28: =(F28-F17)/Q20 -> 103.0909091 | R28: =(F38-F28)/R20 -> 118.7 | S28: =(F49-F38)/S20 -> 114.8181818 | T28: =(F60-F49)/T20 -> 113.4545455 | U28: =(F71-F60)/U20 -> 121.6363636
A29: 21 | B29: 2307 | C29: 11 | D29: 2325 | E29: 11 | F29: 2328 | K29: 0 | L29: 211
A30: 21 | B30: 2417 | C30: 22 | D30: 2431 | E30: 13 | F30: 2439 | K30: 0 | L30: 221
A31: 21 | B31: 2536 | C31: 22 | D31: 2545 | E31: 13 | F31: 2552 | K31: 0 | L31: 221
A32: 21 | B32: 2650 | C32: 22 | D32: 2654 | E32: 24 | F32: 2660 | K32: 0 | L32: 222
A33: 21 | B33: 2760 | C33: 11 | D33: 2767 | E33: 11 | F33: 2771 | K33: 0 | L33: 211
A34: 21 | B34: 2857 | C34: 22 | D34: 2861 | E34: 13 | F34: 2870 | K34: 0 | L34: 221
A35: 12 | B35: 2995 | C35: 13 | D35: 3011 | E35: 13 | F35: 3023 | K35: 0 | L35: 111
A36: 12 | B36: 3153 | C36: 13 | D36: 3158 | E36: 13 | F36: 3167 | K36: 0 | L36: 111
A37: 21 | B37: 3266 | C37: 22 | D37: 3271 | E37: 13 | F37: 3281 | K37: 0 | L37: 221
A38: 12 | B38: 3393 | C38: 13 | D38: 3397 | E38: 13 | F38: 3406 | K38: 0 | L38: 111
A39: 21 | B39: 3506 | C39: 22 | D39: 3527 | E39: 13 | F39: 3536 | K39: 0 | L39: 221
A40: 21 | B40: 3640 | C40: 22 | D40: 3647 | E40: 13 | F40: 3656 | K40: 0 | L40: 221
A41: 21 | B41: 3764 | C41: 11 | D41: 3774 | E41: 11 | F41: 3778 | K41: 0 | L41: 211
A42: 21 | B42: 3888 | C42: 11 | D42: 3896 | E42: 11 | F42: 3901 | K42: 0 | L42: 211
A43: 21 | B43: 3992 | C43: 11 | D43: 4003 | E43: 11 | F43: 4006 | K43: 0 | L43: 211
A44: 21 | B44: 4094 | C44: 11 | D44: 4106 | E44: 11 | F44: 4110 | K44: 0 | L44: 211
A45: 21 | B45: 4202 | C45: 11 | D45: 4212 | E45: 11 | F45: 4216 | K45: 0 | L45: 211
A46: 21 | B46: 4309 | C46: 22 | D46: 4316 | E46: 13 | F46: 4324 | K46: 0 | L46: 221
A47: 21 | B47: 4433 | C47: 11 | D47: 4446 | E47: 11 | F47: 4452 | K47: 0 | L47: 211
A48: 21 | B48: 4540 | C48: 11 | D48: 4556 | E48: 11 | F48: 4560 | K48: 0 | L48: 211
A49: 21 | B49: 4659 | C49: 11 | D49: 4665 | E49: 11 | F49: 4669 | K49: 0 | L49: 211
A50: 21 | B50: 4756 | C50: 11 | D50: 4772 | E50: 11 | F50: 4775 | K50: 0 | L50: 211
A51: 21 | B51: 4874 | C51: 11 | D51: 4883 | E51: 11 | F51: 4887 | K51: 0 | L51: 211
A52: 21 | B52: 4978 | C52: 11 | D52: 4987 | E52: 11 | F52: 4990 | K52: 0 | L52: 211
A53: 21 | B53: 5079 | C53: 22 | D53: 5093 | E53: 13 | F53: 5101 | K53: 0 | L53: 221
A54: 21 | B54: 5203 | C54: 22 | D54: 5207 | E54: 24 | F54: 5215 | K54: 0 | L54: 222
A55: 21 | B55: 5329 | C55: 11 | D55: 5338 | E55: 11 | F55: 5344 | K55: 0 | L55: 211
A56: 21 | B56: 5443 | C56: 11 | D56: 5452 | E56: 11 | F56: 5457 | K56: 0 | L56: 211
A57: 21 | B57: 5551 | C57: 11 | D57: 5561 | E57: 11 | F57: 5569 | K57: 0 | L57: 211
A58: 12 | B58: 5660 | C58: 13 | D58: 5664 | E58: 13 | F58: 5676 | K58: 0 | L58: 111
A59: 21 | B59: 5784 | C59: 11 | D59: 5793 | E59: 11 | F59: 5797 | K59: 0 | L59: 211
A60: 12 | B60: 5901 | C60: 13 | D60: 5904 | E60: 13 | F60: 5917 | K60: 0 | L60: 111
A61: 21 | B61: 6021 | C61: 11 | D61: 6029 | E61: 11 | F61: 6033 | K61: 0 | L61: 211
A62: 21 | B62: 6120 | C62: 22 | D62: 6127 | E62: 13 | F62: 6135 | K62: 0 | L62: 221
A63: 21 | B63: 6244 | C63: 11 | D63: 6253 | E63: 11 | F63: 6257 | K63: 0 | L63: 211
A64: 21 | B64: 6368 | C64: 11 | D64: 6377 | E64: 11 | F64: 6383 | K64: 0 | L64: 211
A65: 12 | B65: 6472 | C65: 13 | D65: 6476 | E65: 13 | F65: 6479 | K65: 0 | L65: 111
A66: 12 | B66: 6607 | C66: 13 | D66: 6611 | E66: 13 | F66: 6619 | K66: 0 | L66: 111
A67: 21 | B67: 6723 | C67: 22 | D67: 6741 | E67: 13 | F67: 6750 | K67: 0 | L67: 221
A68: 21 | B68: 6871 | C68: 11 | D68: 6880 | E68: 11 | F68: 6883 | K68: 0 | L68: 211
A69: 21 | B69: 6971 | C69: 22 | D69: 6988 | E69: 13 | F69: 6997 | K69: 0 | L69: 221
A70: 21 | B70: 7120 | C70: 11 | D70: 7129 | E70: 11 | F70: 7132 | K70: 0 | L70: 211
A71: 21 | B71: 7242 | C71: 11 | D71: 7251 | E71: 11 | F71: 7255 | K71: 1 | L71: 211

Sheet !N519B00.010
A1: Report for:!N519B00.010
A2: Date: | B2: <date>
A3: Hen: | B3: <hen> | F3: Correct Sequence | G3: =Start!J2 -> 211 | P3: Total Sequences in Data | Q3: =4994-COUNTBLANK(L7:L5000) -> 74 | V3: Total Sequences in Block Data | W3: =COUNTA(L7:L18) -> 12 | AA3: Total Sequences in Block Data | AB3: =COUNTA(L19:L31) -> 13 | AF3: Total Sequences in Block Data | AG3: =COUNTA(L32:L43) -> 12 | AK3: Total Sequences in Block Data | AL3: =COUNTA(L44:L55) -> 12 | AP3: Total Sequences in Block Data | AQ3: =COUNTA(L56:L68) -> 13 | AU3: Total Sequences in Block Data | AV3: =COUNTA(L69:L80) -> 12
P4: Total Sequences in Summary | Q4: =SUM(O7:O14) -> 74 | V4: Total Sequences in Block Summary | W4: =SUM(U7:U14) -> 12 | AA4: Total Sequences in Block Summary | AB4: =SUM(Z7:Z14) -> 13 | AF4: Total Sequences in Block Summary | AG4: =SUM(AE7:AE14) -> 12 | AK4: Total Sequences in Block Summary | AL4: =SUM(AJ7:AJ14) -> 12 | AP4: Total Sequences in Block Summary | AQ4: =SUM(AO7:AO14) -> 13 | AU4: Total Sequences in Block Summary | AV4: =SUM(AT7:AT14) -> 12
T5: Block 1 | Y5: Block 2 | AD5: Block 3 | AI5: Block 4 | AN5: Block 5 | AS5: Block 6
A6: Sequence Component 1 | B6: Time 1 | C6: Sequence Component 2 | D6: Time 2 | E6: Sequence Component 3 | F6: Time 3 | G6: Sequence Component 4 | H6: Time 4 | I6: Sequence Component 5 | J6: Time 5 | K6: Correct? 0=No 1=Yes | L6: Sequence | N6: Frequency | P6: Relative Frequency | Q6: Variability | T6: Frequency | V6: Relative Frequency | W6: Variability | Y6: Frequency | AA6: Relative Frequency | AB6: Variability | AD6: Frequency | AF6: Relative Frequency | AG6: Variability | AI6: Frequency | AK6: Relative Frequency | AL6: Variability | AN6: Frequency | AP6: Relative Frequency | AQ6: Variability | AS6: Frequency | AU6: Relative Frequency | AV6: Variability
A7: 21 | B7: 8 | C7: 22 | D7: 14 | E7: 13 | F7: 20 | K7: 0 | L7: 221 | N7: 111 | O7: =COUNTIF($L$7:$L$500,N7) -> 12 | P7: =O7/$Q$4 -> 0.1621621622 | Q7: =IF(P7=0,0,(P7*((LOG(P7))/LOG(2)))) -> -0.4255931132 | T7: =N7 -> 111 | U7: =COUNTIF(L7:L18,T7) -> 1 | V7: =U7/(W4-U11) -> 0.3333333333 | W7: =IF(V7=0,0,(V7*((LOG(V7))/LOG(2)))) -> -0.5283208336 | Y7: =N7 -> 111 | Z7: =COUNTIF(L19:L31,Y7) -> 2 | AA7: =Z7/(AB4-Z11) -> 0.4 | AB7: =IF(AA7=0,0,(AA7*((LOG(AA7))/LOG(2)))) -> -0.528771238 | AD7: =N7 -> 111 | AE7: =COUNTIF(L32:L43,AD7) -> 1 | AF7: =AE7/(AG4-AE11) -> 0.3333333333 | AG7: =IF(AF7=0,0,(AF7*((LOG(AF7))/LOG(2)))) -> -0.5283208336 | AI7: =N7 -> 111 | AJ7: =COUNTIF(L44:L55,AI7) -> 0 | AK7: =AJ7/(AL4-AJ11) -> 0 | AL7: =IF(AK7=0,0,(AK7*((LOG(AK7))/LOG(2)))) -> 0 | AN7: =N7 -> 111 | AO7: =COUNTIF(L56:L68,AN7) -> 2 | AP7: =AO7/(AQ4-AO11) -> 0.2857142857 | AQ7: =IF(AP7=0,0,(AP7*((LOG(AP7))/LOG(2)))) -> -0.5163871206 | AS7: =N7 -> 111 | AT7: =COUNTIF(L69:L80,AS7) -> 6 | AU7: =AT7/(AV4-AT11) -> 0.75 | AV7: =IF(AU7=0,0,(AU7*((LOG(AU7))/LOG(2)))) -> -0.3112781245
A8: 21 | B8: 121 | C8: 11 | D8: 127 | E8: 11 | F8: 133 | K8: 0 | L8: 211 | N8: 112 | O8: =COUNTIF($L$7:$L$500,N8) -> 0 | P8: =O8/$Q$4 -> 0 | Q8: =IF(P8=0,0,(P8*((LOG(P8))/LOG(2)))) -> 0 | T8: =N8 -> 112 | U8: =COUNTIF(L7:L18,T8) -> 0 | V8: =U8/(W4-U11) -> 0 | W8: =IF(V8=0,0,(V8*((LOG(V8))/LOG(2)))) -> 0 | Y8: =N8 -> 112 | Z8: =COUNTIF(L19:L31,Y8) -> 0 | AA8: =Z8/(AB4-Z11) -> 0 | AB8: =IF(AA8=0,0,(AA8*((LOG(AA8))/LOG(2)))) -> 0 | AD8: =N8 -> 112 | AE8: =COUNTIF(L32:L43,AD8) -> 0 | AF8: =AE8/(AG4-AE11) -> 0 | AG8: =IF(AF8=0,0,(AF8*((LOG(AF8))/LOG(2)))) -> 0 | AI8: =N8 -> 112 | AJ8: =COUNTIF(L44:L55,AI8) -> 0 | AK8: =AJ8/(AL4-AJ11) -> 0 | AL8: =IF(AK8=0,0,(AK8*((LOG(AK8))/LOG(2)))) -> 0 | AN8: =N8 -> 112 | AO8: =COUNTIF(L56:L68,AN8) -> 0 | AP8: =AO8/(AQ4-AO11) -> 0 | AQ8: =IF(AP8=0,0,(AP8*((LOG(AP8))/LOG(2)))) -> 0 | AS8: =N8 -> 112 | AT8: =COUNTIF(L69:L80,AS8) -> 0 | AU8: =AT8/(AV4-AT11) -> 0 | AV8: =IF(AU8=0,0,(AU8*((LOG(AU8))/LOG(2)))) -> 0
A9: 21 | B9: 223 | C9: 11 | D9: 230 | E9: 11 | F9: 236 | K9: 0 | L9: 211 | N9: 121 | O9: =COUNTIF($L$7:$L$500,N9) -> 0 | P9: =O9/$Q$4 -> 0 | Q9: =IF(P9=0,0,(P9*((LOG(P9))/LOG(2)))) -> 0 | T9: =N9 -> 121 | U9: =COUNTIF(L7:L18,T9) -> 0 | V9: =U9/(W4-U11) -> 0 | W9: =IF(V9=0,0,(V9*((LOG(V9))/LOG(2)))) -> 0 | Y9: =N9 -> 121 | Z9: =COUNTIF(L19:L31,Y9) -> 0 | AA9: =Z9/(AB4-Z11) -> 0 | AB9: =IF(AA9=0,0,(AA9*((LOG(AA9))/LOG(2)))) -> 0 | AD9: =N9 -> 121 | AE9: =COUNTIF(L32:L43,AD9) -> 0 | AF9: =AE9/(AG4-AE11) -> 0 | AG9: =IF(AF9=0,0,(AF9*((LOG(AF9))/LOG(2)))) -> 0 | AI9: =N9 -> 121 | AJ9: =COUNTIF(L44:L55,AI9) -> 0 | AK9: =AJ9/(AL4-AJ11) -> 0 | AL9: =IF(AK9=0,0,(AK9*((LOG(AK9))/LOG(2)))) -> 0 | AN9: =N9 -> 121 | AO9: =COUNTIF(L56:L68,AN9) -> 0 | AP9: =AO9/(AQ4-AO11) -> 0 | AQ9: =IF(AP9=0,0,(AP9*((LOG(AP9))/LOG(2)))) -> 0 | AS9: =N9 -> 121 | AT9: =COUNTIF(L69:L80,AS9) -> 0 | AU9: =AT9/(AV4-AT11) -> 0 | AV9: =IF(AU9=0,0,(AU9*((LOG(AU9))/LOG(2)))) -> 0
A10: 21 | B10: 323 | C10: 11 | D10: 330 | E10: 11 | F10: 334 | K10: 0 | L10: 211 | N10: 122 | O10: =COUNTIF($L$7:$L$500,N10) -> 0 | P10: =O10/$Q$4 -> 0 | Q10: =IF(P10=0,0,(P10*((LOG(P10))/LOG(2)))) -> 0 | T10: =N10 -> 122 | U10: =COUNTIF(L7:L18,T10) -> 0 | V10: =U10/(W4-U11) -> 0 | W10: =IF(V10=0,0,(V10*((LOG(V10))/LOG(2)))) -> 0 | Y10: =N10 -> 122 | Z10: =COUNTIF(L19:L31,Y10) -> 0 | AA10: =Z10/(AB4-Z11) -> 0 | AB10: =IF(AA10=0,0,(AA10*((LOG(AA10))/LOG(2)))) -> 0 | AD10: =N10 -> 122 | AE10: =COUNTIF(L32:L43,AD10) -> 0 | AF10: =AE10/(AG4-AE11) -> 0 | AG10: =IF(AF10=0,0,(AF10*((LOG(AF10))/LOG(2)))) -> 0 | AI10: =N10 -> 122 | AJ10: =COUNTIF(L44:L55,AI10) -> 0 | AK10: =AJ10/(AL4-AJ11) -> 0 | AL10: =IF(AK10=0,0,(AK10*((LOG(AK10))/LOG(2)))) -> 0 | AN10: =N10 -> 122 | AO10: =COUNTIF(L56:L68,AN10) -> 0 | AP10: =AO10/(AQ4-AO11) -> 0 | AQ10: =IF(AP10=0,0,(AP10*((LOG(AP10))/LOG(2)))) -> 0 | AS10: =N10 -> 122 | AT10: =COUNTIF(L69:L80,AS10) -> 0 | AU10: =AT10/(AV4-AT11) -> 0 | AV10: =IF(AU10=0,0,(AU10*((LOG(AU10))/LOG(2)))) -> 0
A11: 21 | B11: 424 | C11: 11 | D11: 432 | E11: 11 | F11: 435 | K11: 0 | L11: 211 | N11: 211 | O11: =COUNTIF($L$7:$L$500,N11) -> 40 | P11: =O11/$Q$4 -> 0.5405405405 | Q11: =IF(P11=0,0,(P11*((LOG(P11))/LOG(2)))) -> -0.4797433896 | T11: =N11 -> 211 | U11: =COUNTIF(L7:L18,T11) -> 9 | Y11: =N11 -> 211 | Z11: =COUNTIF(L19:L31,Y11) -> 8 | AD11: =N11 -> 211 | AE11: =COUNTIF(L32:L43,AD11) -> 9 | AI11: =N11 -> 211 | AJ11: =COUNTIF(L44:L55,AI11) -> 4 | AN11: =N11 -> 211 | AO11: =COUNTIF(L56:L68,AN11) -> 6 | AS11: =N11 -> 211 | AT11: =COUNTIF(L69:L80,AS11) -> 4
A12: 21 | B12: 523 | C12: 11 | D12: 533 | E12: 11 | F12: 537 | K12: 0 | L12: 211 | N12: 212 | O12: =COUNTIF($L$7:$L$500,N12) -> 0 | P12: =O12/$Q$4 -> 0 | Q12: =IF(P12=0,0,(P12*((LOG(P12))/LOG(2)))) -> 0 | T12: =N12 -> 212 | U12: =COUNTIF(L7:L18,T12) -> 0 | V12: =U12/(W4-U11) -> 0 | W12: =IF(V12=0,0,(V12*((LOG(V12))/LOG(2)))) -> 0 | Y12: =N12 -> 212 | Z12: =COUNTIF(L19:L31,Y12) -> 0 | AA12: =Z12/(AB4-Z11) -> 0 | AB12: =IF(AA12=0,0,(AA12*((LOG(AA12))/LOG(2)))) -> 0 | AD12: =N12 -> 212 | AE12: =COUNTIF(L32:L43,AD12) -> 0 | AF12: =AE12/(AG4-AE11) -> 0 | AG12: =IF(AF12=0,0,(AF12*((LOG(AF12))/LOG(2)))) -> 0 | AI12: =N12 -> 212 | AJ12: =COUNTIF(L44:L55,AI12) -> 0 | AK12: =AJ12/(AL4-AJ11) -> 0 | AL12: =IF(AK12=0,0,(AK12*((LOG(AK12))/LOG(2)))) -> 0 | AN12: =N12 -> 212 | AO12: =COUNTIF(L56:L68,AN12) -> 0 | AP12: =AO12/(AQ4-AO11) -> 0 | AQ12: =IF(AP12=0,0,(AP12*((LOG(AP12))/LOG(2)))) -> 0 | AS12: =N12 -> 212 | AT12: =COUNTIF(L69:L80,AS12) -> 0 | AU12: =AT12/(AV4-AT11) -> 0 | AV12: =IF(AU12=0,0,(AU12*((LOG(AU12))/LOG(2)))) -> 0
A13: 21 | B13: 626 | C13: 11 | D13: 634 | E13: 11 | F13: 640 | K13: 0 | L13: 211 | N13: 221 | O13: =COUNTIF($L$7:$L$500,N13) -> 19 | P13: =O13/$Q$4 -> 0.2567567568 | Q13: =IF(P13=0,0,(P13*((LOG(P13))/LOG(2)))) -> -0.5036350161 | T13: =N13 -> 221 | U13: =COUNTIF(L7:L18,T13) -> 2 | V13: =U13/(W4-U11) -> 0.6666666667 | W13: =IF(V13=0,0,(V13*((LOG(V13))/LOG(2)))) -> -0.3899750005 | Y13: =N13 -> 221 | Z13: =COUNTIF(L19:L31,Y13) -> 3 | AA13: =Z13/(AB4-Z11) -> 0.6 | AB13: =IF(AA13=0,0,(AA13*((LOG(AA13))/LOG(2)))) -> -0.4421793565 | AD13: =N13 -> 221 | AE13: =COUNTIF(L32:L43,AD13) -> 2 | AF13: =AE13/(AG4-AE11) -> 0.6666666667 | AG13: =IF(AF13=0,0,(AF13*((LOG(AF13))/LOG(2)))) -> -0.3899750005 | AI13: =N13 -> 221 | AJ13: =COUNTIF(L44:L55,AI13) -> 5 | AK13: =AJ13/(AL4-AJ11) -> 0.625 | AL13: =IF(AK13=0,0,(AK13*((LOG(AK13))/LOG(2)))) -> -0.4237949407 | AN13: =N13 -> 221 | AO13: =COUNTIF(L56:L68,AN13) -> 5 | AP13: =AO13/(AQ4-AO11) -> 0.7142857143 | AQ13: =IF(AP13=0,0,(AP13*((LOG(AP13))/LOG(2)))) -> -0.346733448 | AS13: =N13 -> 221 | AT13: =COUNTIF(L69:L80,AS13) -> 2 | AU13: =AT13/(AV4-AT11) -> 0.25 | AV13: =IF(AU13=0,0,(AU13*((LOG(AU13))/LOG(2)))) -> -0.5
A14: 21 | B14: 732 | C14: 11 | D14: 740 | E14: 11 | F14: 744 | K14: 0 | L14: 211 | N14: 222 | O14: =COUNTIF($L$7:$L$500,N14) -> 3 | P14: =O14/$Q$4 -> 0.04054054054 | Q14: =IF(P14=0,0,(P14*((LOG(P14))/LOG(2)))) -> -0.1874793594 | T14: =N14 -> 222 | U14: =COUNTIF(L7:L18,T14) -> 0 | V14: =U14/(W4-U11) -> 0 | W14: =IF(V14=0,0,(V14*((LOG(V14))/LOG(2)))) -> 0 | Y14: =N14 -> 222 | Z14: =COUNTIF(L19:L31,Y14) -> 0 | AA14: =Z14/(AB4-Z11) -> 0 | AB14: =IF(AA14=0,0,(AA14*((LOG(AA14))/LOG(2)))) -> 0 | AD14: =N14 -> 222 | AE14: =COUNTIF(L32:L43,AD14) -> 0 | AF14: =AE14/(AG4-AE11) -> 0 | AG14: =IF(AF14=0,0,(AF14*((LOG(AF14))/LOG(2)))) -> 0 | AI14: =N14 -> 222 | AJ14: =COUNTIF(L44:L55,AI14) -> 3 | AK14: =AJ14/(AL4-AJ11) -> 0.375 | AL14: =IF(AK14=0,0,(AK14*((LOG(AK14))/LOG(2)))) -> -0.5306390622 | AN14: =N14 -> 222 | AO14: =COUNTIF(L56:L68,AN14) -> 0 | AP14: =AO14/(AQ4-AO11) -> 0 | AQ14: =IF(AP14=0,0,(AP14*((LOG(AP14))/LOG(2)))) -> 0 | AS14: =N14 -> 222 | AT14: =COUNTIF(L69:L80,AS14) -> 0 | AU14: =AT14/(AV4-AT11) -> 0 | AV14: =IF(AU14=0,0,(AU14*((LOG(AU14))/LOG(2)))) -> 0
A15: 21 | B15: 833 | C15: 11 | D15: 843 | E15: 11 | F15: 865 | K15: 0 | L15: 211 | P15: =SUM(P7:P14) -> 1 | Q15: =-SUM(Q7:Q14) -> 1.596450878 | V15: =SUM(V7:V14) -> 1 | W15: =-SUM(W7:W14) -> 0.9182958341 | AA15: =SUM(AA7:AA14) -> 1 | AB15: =-SUM(AB7:AB14) -> 0.9709505945 | AF15: =SUM(AF7:AF14) -> 1 | AG15: =-SUM(AG7:AG14) -> 0.9182958341 | AK15: =SUM(AK7:AK14) -> 1 | AL15: =-SUM(AL7:AL14) -> 0.9544340029 | AP15: =SUM(AP7:AP14) -> 1 | AQ15: =-SUM(AQ7:AQ14) -> 0.8631205686 | AU15: =SUM(AU7:AU14) -> 1 | AV15: =-SUM(AV7:AV14) -> 0.8112781245
A16: 12 | B16: 957 | C16: 13 | D16: 972 | E16: 13 | F16: 975 | K16: 0 | L16: 111 | P16: U= | Q16: =Q15/(LOG(Q4)/LOG(2)) -> 0.2571000673 | V16: U1= | W16: =W15/(LOG(W4)/LOG(2)) -> 0.2561521449 | AA16: U2= | AB16: =AB15/(LOG(AB4)/LOG(2)) -> 0.2623878967 | AF16: U3= | AG16: =AG15/(LOG(AG4)/LOG(2)) -> 0.2561521449 | AK16: U4= | AL16: =AL15/(LOG(AL4)/LOG(2)) -> 0.2662326322 | AP16: U5= | AQ16: =AQ15/(LOG(AQ4)/LOG(2)) -> 0.2332481095 | AU16: U6= | AV16: =AV15/(LOG(AV4)/LOG(2)) -> 0.2263003098
A17: 21 | B17: 1065 | C17: 11 | D17: 1073 | E17: 11 | F17: 1076 | K17: 0 | L17: 211
A18: 21 | B18: 1162 | C18: 22 | D18: 1173 | E18: 13 | F18: 1181 | K18: 0 | L18: 221
A19: 21 | B19: 1279 | C19: 11 | D19: 1289 | E19: 11 | F19: 1292 | K19: 0 | L19: 211 | N19: Total Target Seq
A20: 21 | B20: 1380 | C20: 22 | D20: 1388 | E20: 13 | F20: 1396 | K20: 0 | L20: 221 | N20: =COUNTIF(L7:L80,G3) -> 40 | P20: 12 | Q20: 13 | R20: 12 | S20: 12 | T20: 13 | U20: 12
A21: 21 | B21: 1495 | C21: 11 | D21: 1504 | E21: 11 | F21: 1507 | K21: 0 | L21: 211 | P21: % of reinforcement given in 6 equal intervals based on number of trials
A22: 21 | B22: 1594 | C22: 11 | D22: 1608 | E22: 11 | F22: 1611 | K22: 0 | L22: 211 | P22: %_1 | Q22: %_2 | R22: %_3 | S22: %_4 | T22: %_5 | U22: %_6
A23: 12 | B23: 1720 | C23: 13 | D23: 1723 | E23: 13 | F23: 1736 | K23: 0 | L23: 111 | O23: target sequence | P23: =$G$3 -> 211 | Q23: =$G$3 -> 211 | R23: =$G$3 -> 211 | S23: =$G$3 -> 211 | T23: =$G$3 -> 211 | U23: =$G$3 -> 211
A24: 21 | B24: 1834 | C24: 22 | D24: 1845 | E24: 13 | F24: 1851 | K24: 0 | L24: 221 | O24: total reinforcement | P24: =U11 -> 9 | Q24: =Z11 -> 8 | R24: =AE11 -> 9 | S24: =AJ11 -> 4 | T24: =AO11 -> 6 | U24: =AT11 -> 4
A25: 21 | B25: 1950 | C25: 11 | D25: 1972 | E25: 11 | F25: 1977 | K25: 0 | L25: 211 | O25: % target
A26: 21 | B26: 2069 | C26: 11 | D26: 2078 | E26: 11 | F26: 2081 | K26: 0 | L26: 211 | O26: CCRF
A27: 21 | B27: 2169 | C27: 11 | D27: 2179 | E27: 11 | F27: 2182 | K27: 0 | L27: 211 | O27: % CCRf
A28: 21 | B28: 2270 | C28: 11 | D28: 2279 | E28: 11 | F28: 2283 | K28: 0 | L28: 211 | O28: average response rate | P28: =F18/P20 -> 98.41666667 | Q28: =(F31-F18)/Q20 -> 110.5384615 | R28: =(F43-F31)/R20 -> 111.5833333 | S28: =(F55-F43)/S20 -> 110.75 | T28: =(F68-F55)/T20 -> 107.6153846 | U28: =(F80-F68)/U20 -> 109.8333333
A29: 12 | B29: 2384 | C29: 13 | D29: 2388 | E29: 13 | F29: 2398 | K29: 0 | L29: 111
A30: 21 | B30: 2495 | C30: 22 | D30: 2499 | E30: 13 | F30: 2509 | K30: 0 | L30: 221
A31: 21 | B31: 2607 | C31: 11 | D31: 2615 | E31: 11 | F31: 2618 | K31: 0 | L31: 211
A32: 21 | B32: 2711 | C32: 11 | D32: 2718 | E32: 11 | F32: 2722 | K32: 0 | L32: 211
A33: 21 | B33: 2810 | C33: 11 | D33: 2827 | E33: 11 | F33: 2835 | K33: 0 | L33: 211
A34: 21 | B34: 2922 | C34: 22 | D34: 2938 | E34: 13 | F34: 2946 | K34: 0 | L34: 221
A35: 21 | B35: 3046 | C35: 11 | D35: 3053 | E35: 11 | F35: 3057 | K35: 0 | L35: 211
A36: 21 | B36: 3145 | C36: 11 | D36: 3164 | E36: 11 | F36: 3171 | K36: 0 | L36: 211
A37: 21 | B37: 3260 | C37: 11 | D37: 3269 | E37: 11 | F37: 3272 | K37: 0 | L37: 211
A38: 12 | B38: 3377 | C38: 13 | D38: 3382 | E38: 13 | F38: 3400 | K38: 0 | L38: 111
A39: 21 | B39: 3503 | C39: 11 | D39: 3512 | E39: 11 | F39: 3515 | K39: 0 | L39: 211
A40: 21 | B40: 3614 | C40: 11 | D40: 3623 | E40: 11 | F40: 3627 | K40: 0 | L40: 211
A41: 21 | B41: 3713 | C41: 22 | D41: 3724 | E41: 13 | F41: 3732 | K41: 0 | L41: 221
A42: 21 | B42: 3836 | C42: 11 | D42: 3846 | E42: 11 | F42: 3849 | K42: 0 | L42: 211
A43: 21 | B43: 3944 | C43: 11 | D43: 3954 | E43: 11 | F43: 3957 | K43: 0 | L43: 211
A44: 21 | B44: 4044 | C44: 11 | D44: 4053 | E44: 11 | F44: 4056 | K44: 0 | L44: 211
A45: 21 | B45: 4148 | C45: 11 | D45: 4154 | E45: 11 | F45: 4158 | K45: 0 | L45: 211
A46: 21 | B46: 4246 | C46: 22 | D46: 4253 | E46: 13 | F46: 4261 | K46: 0 | L46: 221
A47: 21 | B47: 4361 | C47: 11 | D47: 4384 | E47: 11 | F47: 4393 | K47: 0 | L47: 211
A48: 21 | B48: 4481 | C48: 22 | D48: 4492 | E48: 13 | F48: 4500 | K48: 0 | L48: 221
A49: 21 | B49: 4599 | C49: 22 | D49: 4603 | E49: 24 | F49: 4614 | K49: 0 | L49: 222
A50: 21 | B50: 4712 | C50: 22 | D50: 4718 | E50: 13 | F50: 4727 | K50: 0 | L50: 221
A51: 21 | B51: 4830 | C51: 11 | D51: 4837 | E51: 11 | F51: 4841 | K51: 0 | L51: 211
A52: 21 | B52: 4928 | C52: 22 | D52: 4944 | E52: 13 | F52: 4952 | K52: 0 | L52: 221
A53: 21 | B53: 5050 | C53: 22 | D53: 5054 | E53: 13 | F53: 5064 | K53: 0 | L53: 221
A54: 21 | B54: 5162 | C54: 22 | D54: 5166 | E54: 24 | F54: 5173 | K54: 0 | L54: 222
A55: 21 | B55: 5274 | C55: 22 | D55: 5280 | E55: 24 | F55: 5286 | K55: 0 | L55: 222
A56: 21 | B56: 5384 | C56: 11 | D56: 5394 | E56: 11 | F56: 5404 | K56: 0 | L56: 211
A57: 21 | B57: 5492 | C57: 22 | D57: 5496 | E57: 13 | F57: 5507 | K57: 0 | L57: 221
A58: 21 | B58: 5604 | C58: 22 | D58: 5609 | E58: 13 | F58: 5619 | K58: 0 | L58: 221
A59: 21 | B59: 5717 | C59: 11 | D59: 5725 | E59: 11 | F59: 5728 | K59: 0 | L59: 211
A60: 21 | B60: 5817 | C60: 11 | D60: 5826 | E60: 11 | F60: 5830 | K60: 0 | L60: 211
A61: 21 | B61: 5919 | C61: 11 | D61: 5930 | E61: 11 | F61: 5934 | K61: 0 | L61: 211
A62: 21 | B62: 6025 | C62: 11 | D62: 6036 | E62: 11 | F62: 6039 | K62: 0 | L62: 211
A63: 21 | B63: 6126 | C63: 22 | D63: 6130 | E63: 13 | F63: 6139 | K63: 0 | L63: 221
A64: 21 | B64: 6236 | C64: 11 | D64: 6244 | E64: 11 | F64: 6247 | K64: 0 | L64: 211
A65: 12 | B65: 6339 | C65: 13 | D65: 6342 | E65: 13 | F65: 6356 | K65: 0 | L65: 111
A66: 21 | B66: 6453 | C66: 22 | D66: 6459 | E66: 13 | F66: 6468 | K66: 0 | L66: 221
A67: 21 | B67: 6565 | C67: 22 | D67: 6570 | E67: 13 | F67: 6578 | K67: 0 | L67: 221
A68: 12 | B68: 6678 | C68: 13 | D68: 6682 | E68: 13 | F68: 6685 | K68: 0 | L68: 111
A69: 12 | B69: 6787 | C69: 13 | D69: 6790 | E69: 13 | F69: 6800 | K69: 0 | L69: 111
A70: 12 | B70: 6910 | C70: 13 | D70: 6913 | E70: 13 | F70: 6920 | K70: 0 | L70: 111
A71: 21 | B71: 7020 | C71: 11 | D71: 7028 | E71: 11 | F71: 7031 | K71: 0 | L71: 211
A72: 12 | B72: 7122 | C72: 13 | D72: 7126 | E72: 13 | F72: 7129 | K72: 0 | L72: 111
A73: 12 | B73: 7232 | C73: 13 | D73: 7235 | E73: 13 | F73: 7241 | K73: 0 | L73: 111
A74: 21 | B74: 7339 | C74: 22 | D74: 7346 | E74: 13 | F74: 7355 | K74: 0 | L74: 221
A75: 12 | B75: 7458 | C75: 13 | D75: 7462 | E75: 13 | F75: 7469 | K75: 0 | L75: 111
A76: 21 | B76: 7566 | C76: 11 | D76: 7579 | E76: 11 | F76: 7583 | K76: 0 | L76: 211
A77: 21 | B77: 7670 | C77: 11 | D77: 7680 | E77: 11 | F77: 7683 | K77: 0 | L77: 211
A78: 21 | B78: 7770 | C78: 22 | D78: 7774 | E78: 13 | F78: 7783 | K78: 0 | L78: 221
A79: 12 | B79: 7882 | C79: 13 | D79: 7886 | E79: 13 | F79: 7890 | K79: 0 | L79: 111
A80: 21 | B80: 7991 | C80: 11 | D80: 8000 | E80: 11 | F80: 8003 | K80: 1 | L80: 211

Sheet !N520950.010
A1: Report for:!N520950.010
A2: Date: | B2: <date>
A3: Hen: | B3: <hen> | F3: Correct Sequence | G3: =Start!J2 -> 211 | P3: Total Sequences in Data | Q3: =4994-COUNTBLANK(L7:L5000) -> 110 | V3: Total Sequences in Block Data | W3: =COUNTA(L7:L24) -> 18 | AA3: Total Sequences in Block Data | AB3: =COUNTA(L25:L43) -> 19 | AF3: Total Sequences in Block Data | AG3: =COUNTA(L44:L61) -> 18 | AK3: Total Sequences in Block Data | AL3: =COUNTA(L62:L79) -> 18 | AP3: Total Sequences in Block Data | AQ3: =COUNTA(L80:L98) -> 19 | AU3: Total Sequences in Block Data | AV3: =COUNTA(L99:L116) -> 18
P4: Total Sequences in Summary | Q4: =SUM(O7:O14) -> 110 | V4: Total Sequences in Block Summary | W4: =SUM(U7:U14) -> 18 | AA4: Total Sequences in Block Summary | AB4: =SUM(Z7:Z14) -> 19 | AF4: Total Sequences in Block Summary | AG4: =SUM(AE7:AE14) -> 18 | AK4: Total Sequences in Block Summary | AL4: =SUM(AJ7:AJ14) -> 18 | AP4: Total Sequences in Block Summary | AQ4: =SUM(AO7:AO14) -> 19 | AU4: Total Sequences in Block Summary | AV4: =SUM(AT7:AT14) -> 18
T5: Block 1 | Y5: Block 2 | AD5: Block 3 | AI5: Block 4 | AN5: Block 5 | AS5: Block 6
A6: Sequence Component 1 | B6: Time 1 | C6: Sequence Component 2 | D6: Time 2 | E6: Sequence Component 3 | F6: Time 3 | G6: Sequence Component 4 | H6: Time 4 | I6: Sequence Component 5 | J6: Time 5 | K6: Correct? 0=No 1=Yes | L6: Sequence | N6: Frequency | P6: Relative Frequency | Q6: Variability | T6: Frequency | V6: Relative Frequency | W6: Variability | Y6: Frequency | AA6: Relative Frequency | AB6: Variability | AD6: Frequency | AF6: Relative Frequency | AG6: Variability | AI6: Frequency | AK6: Relative Frequency | AL6: Variability | AN6: Frequency | AP6: Relative Frequency | AQ6: Variability | AS6: Frequency | AU6: Relative Frequency | AV6: Variability
A7: 21 | B7: 8 | C7: 11 | D7: 15 | E7: 11 | F7: 19 | K7: 0 | L7: 211 | N7: 111 | O7: =COUNTIF($L$7:$L$500,N7) -> 25 | P7: =O7/$Q$4 -> 0.2272727273 | Q7: =IF(P7=0,0,(P7*((LOG(P7))/LOG(2)))) -> -0.4857962554 | T7: =N7 -> 111 | U7: =COUNTIF(L7:L24,T7) -> 2 | V7: =U7/(W4-U11) -> 0.25 | W7: =IF(V7=0,0,(V7*((LOG(V7))/LOG(2)))) -> -0.5 | Y7: =N7 -> 111 | Z7: =COUNTIF(L25:L43,Y7) -> 0 | AA7: =Z7/(AB4-Z11) -> 0 | AB7: =IF(AA7=0,0,(AA7*((LOG(AA7))/LOG(2)))) -> 0 | AD7: =N7 -> 111 | AE7: =COUNTIF(L44:L61,AD7) -> 10 | AF7: =AE7/(AG4-AE11) -> 0.6666666667 | AG7: =IF(AF7=0,0,(AF7*((LOG(AF7))/LOG(2)))) -> -0.3899750005 | AI7: =N7 -> 111 | AJ7: =COUNTIF(L62:L79,AI7) -> 8 | AK7: =AJ7/(AL4-AJ11) -> 0.5714285714 | AL7: =IF(AK7=0,0,(AK7*((LOG(AK7))/LOG(2)))) -> -0.4613456697 | AN7: =N7 -> 111 | AO7: =COUNTIF(L80:L98,AN7) -> 3 | AP7: =AO7/(AQ4-AO11) -> 0.25 | AQ7: =IF(AP7=0,0,(AP7*((LOG(AP7))/LOG(2)))) -> -0.5 | AS7: =N7 -> 111 | AT7: =COUNTIF(L99:L116,AS7) -> 2 | AU7: =AT7/(AV4-AT11) -> 0.25 | AV7: =IF(AU7=0,0,(AU7*((LOG(AU7))/LOG(2)))) -> -0.5
A8: 21 | B8: 108 | C8: 11 | D8: 118 | E8: 11 | F8: 122 | K8: 0 | L8: 211 | N8: 112 | O8: =COUNTIF($L$7:$L$500,N8) -> 0 | P8: =O8/$Q$4 -> 0 | Q8: =IF(P8=0,0,(P8*((LOG(P8))/LOG(2)))) -> 0 | T8: =N8 -> 112 | U8: =COUNTIF(L7:L24,T8) -> 0 | V8: =U8/(W4-U11) -> 0 | W8: =IF(V8=0,0,(V8*((LOG(V8))/LOG(2)))) -> 0 | Y8: =N8 -> 112 | Z8: =COUNTIF(L25:L43,Y8) -> 0 | AA8: =Z8/(AB4-Z11) -> 0 | AB8: =IF(AA8=0,0,(AA8*((LOG(AA8))/LOG(2)))) -> 0 | AD8: =N8 -> 112 | AE8: =COUNTIF(L44:L61,AD8) -> 0 | AF8: =AE8/(AG4-AE11) -> 0 | AG8: =IF(AF8=0,0,(AF8*((LOG(AF8))/LOG(2)))) -> 0 | AI8: =N8 -> 112 | AJ8: =COUNTIF(L62:L79,AI8) -> 0 | AK8: =AJ8/(AL4-AJ11) -> 0 | AL8: =IF(AK8=0,0,(AK8*((LOG(AK8))/LOG(2)))) -> 0 | AN8: =N8 -> 112 | AO8: =COUNTIF(L80:L98,AN8) -> 0 | AP8: =AO8/(AQ4-AO11) -> 0 | AQ8: =IF(AP8=0,0,(AP8*((LOG(AP8))/LOG(2)))) -> 0 | AS8: =N8 -> 112 | AT8: =COUNTIF(L99:L116,AS8) -> 0 | AU8: =AT8/(AV4-AT11) -> 0 | AV8: =IF(AU8=0,0,(AU8*((LOG(AU8))/LOG(2)))) -> 0
A9: 21 | B9: 213 | C9: 11 | D9: 222 | E9: 11 | F9: 225 | K9: 0 | L9: 211 | N9: 121 | O9: =COUNTIF($L$7:$L$500,N9) -> 0 | P9: =O9/$Q$4 -> 0 | Q9: =IF(P9=0,0,(P9*((LOG(P9))/LOG(2)))) -> 0 | T9: =N9 -> 121 | U9: =COUNTIF(L7:L24,T9) -> 0 | V9: =U9/(W4-U11) -> 0 | W9: =IF(V9=0,0,(V9*((LOG(V9))/LOG(2)))) -> 0 | Y9: =N9 -> 121 | Z9: =COUNTIF(L25:L43,Y9) -> 0 | AA9: =Z9/(AB4-Z11) -> 0 | AB9: =IF(AA9=0,0,(AA9*((LOG(AA9))/LOG(2)))) -> 0 | AD9: =N9 -> 121 | AE9: =COUNTIF(L44:L61,AD9) -> 0 | AF9: =AE9/(AG4-AE11) -> 0 | AG9: =IF(AF9=0,0,(AF9*((LOG(AF9))/LOG(2)))) -> 0 | AI9: =N9 -> 121 | AJ9: =COUNTIF(L62:L79,AI9) -> 0 | AK9: =AJ9/(AL4-AJ11) -> 0 | AL9: =IF(AK9=0,0,(AK9*((LOG(AK9))/LOG(2)))) -> 0 | AN9: =N9 -> 121 | AO9: =COUNTIF(L80:L98,AN9) -> 0 | AP9: =AO9/(AQ4-AO11) -> 0 | AQ9: =IF(AP9=0,0,(AP9*((LOG(AP9))/LOG(2)))) -> 0 | AS9: =N9 -> 121 | AT9: =COUNTIF(L99:L116,AS9) -> 0 | AU9: =AT9/(AV4-AT11) -> 0 | AV9: =IF(AU9=0,0,(AU9*((LOG(AU9))/LOG(2)))) -> 0
A10: 12 | B10: 329 | C10: 13 | D10: 344 | E10: 13 | F10: 353 | K10: 0 | L10: 111 | N10: 122 | O10: =COUNTIF($L$7:$L$500,N10) -> 0 | P10: =O10/$Q$4 -> 0 | Q10: =IF(P10=0,0,(P10*((LOG(P10))/LOG(2)))) -> 0 | T10: =N10 -> 122 | U10: =COUNTIF(L7:L24,T10) -> 0 | V10: =U10/(W4-U11) -> 0 | W10: =IF(V10=0,0,(V10*((LOG(V10))/LOG(2)))) -> 0 | Y10: =N10 -> 122 | Z10: =COUNTIF(L25:L43,Y10) -> 0 | AA10: =Z10/(AB4-Z11) -> 0 | AB10: =IF(AA10=0,0,(AA10*((LOG(AA10))/LOG(2)))) -> 0 | AD10: =N10 -> 122 | AE10: =COUNTIF(L44:L61,AD10) -> 0 | AF10: =AE10/(AG4-AE11) -> 0 | AG10: =IF(AF10=0,0,(AF10*((LOG(AF10))/LOG(2)))) -> 0 | AI10: =N10 -> 122 | AJ10: =COUNTIF(L62:L79,AI10) -> 0 | AK10: =AJ10/(AL4-AJ11) -> 0 | AL10: =IF(AK10=0,0,(AK10*((LOG(AK10))/LOG(2)))) -> 0 | AN10: =N10 -> 122 | AO10: =COUNTIF(L80:L98,AN10) -> 0 | AP10: =AO10/(AQ4-AO11) -> 0 | AQ10: =IF(AP10=0,0,(AP10*((LOG(AP10))/LOG(2)))) -> 0 | AS10: =N10 -> 122 | AT10: =COUNTIF(L99:L116,AS10) -> 0 | AU10: =AT10/(AV4-AT11) -> 0 | AV10: =IF(AU10=0,0,(AU10*((LOG(AU10))/LOG(2)))) -> 0
A11: 21 | B11: 451 | C11: 11 | D11: 465 | E11: 11 | F11: 471 | K11: 0 | L11: 211 | N11: 211 | O11: =COUNTIF($L$7:$L$500,N11) -> 40 | P11: =O11/$Q$4 -> 0.3636363636 | Q11: =IF(P11=0,0,(P11*((LOG(P11))/LOG(2)))) -> -0.5307024068 | T11: =N11 -> 211 | U11: =COUNTIF(L7:L24,T11) -> 10 | Y11: =N11 -> 211 | Z11: =COUNTIF(L25:L43,Y11) -> 6 | AD11: =N11 -> 211 | AE11: =COUNTIF(L44:L61,AD11) -> 3 | AI11: =N11 -> 211 | AJ11: =COUNTIF(L62:L79,AI11) -> 4 | AN11: =N11 -> 211 | AO11: =COUNTIF(L80:L98,AN11) -> 7 | AS11: =N11 -> 211 | AT11: =COUNTIF(L99:L116,AS11) -> 10
A12: 21 | B12: 559 | C12: 11 | D12: 583 | E12: 11 | F12: 591 | K12: 0 | L12: 211 | N12: 212 | O12: =COUNTIF($L$7:$L$500,N12) -> 0 | P12: =O12/$Q$4 -> 0 | Q12: =IF(P12=0,0,(P12*((LOG(P12))/LOG(2)))) -> 0 | T12: =N12 -> 212 | U12: =COUNTIF(L7:L24,T12) -> 0 | V12: =U12/(W4-U11) -> 0 | W12: =IF(V12=0,0,(V12*((LOG(V12))/LOG(2)))) -> 0 | Y12: =N12 -> 212 | Z12: =COUNTIF(L25:L43,Y12) -> 0 | AA12: =Z12/(AB4-Z11) -> 0 | AB12: =IF(AA12=0,0,(AA12*((LOG(AA12))/LOG(2)))) -> 0 | AD12: =N12 -> 212 | AE12: =COUNTIF(L44:L61,AD12) -> 0 | AF12: =AE12/(AG4-AE11) -> 0 | AG12: =IF(AF12=0,0,(AF12*((LOG(AF12))/LOG(2)))) -> 0 | AI12: =N12 -> 212 | AJ12: =COUNTIF(L62:L79,AI12) -> 0 | AK12: =AJ12/(AL4-AJ11) -> 0 | AL12: =IF(AK12=0,0,(AK12*((LOG(AK12))/LOG(2)))) -> 0 | AN12: =N12 -> 212 | AO12: =COUNTIF(L80:L98,AN12) -> 0 | AP12: =AO12/(AQ4-AO11) -> 0 | AQ12: =IF(AP12=0,0,(AP12*((LOG(AP12))/LOG(2)))) -> 0 | AS12: =N12 -> 212 | AT12: =COUNTIF(L99:L116,AS12) -> 0 | AU12: =AT12/(AV4-AT11) -> 0 | AV12: =IF(AU12=0,0,(AU12*((LOG(AU12))/LOG(2)))) -> 0
A13: 21 | B13: 680 | C13: 11 | D13: 713 | E13: 11 | F13: 724 | K13: 0 | L13: 211 | N13: 221 | O13: =COUNTIF($L$7:$L$500,N13) -> 38 | P13: =O13/$Q$4 -> 0.3454545455 | Q13: =IF(P13=0,0,(P13*((LOG(P13))/LOG(2)))) -> -0.5297311237 | T13: =N13 -> 221 | U13: =COUNTIF(L7:L24,T13) -> 5 | V13: =U13/(W4-U11) -> 0.625 | W13: =IF(V13=0,0,(V13*((LOG(V13))/LOG(2)))) -> -0.4237949407 | Y13: =N13 -> 221 | Z13: =COUNTIF(L25:L43,Y13) -> 11 | AA13: =Z13/(AB4-Z11) -> 0.8461538462 | AB13: =IF(AA13=0,0,(AA13*((LOG(AA13))/LOG(2)))) -> -0.2039299303 | AD13: =N13 -> 221 | AE13: =COUNTIF(L44:L61,AD13) -> 4 | AF13: =AE13/(AG4-AE11) -> 0.2666666667 | AG13: =IF(AF13=0,0,(AF13*((LOG(AF13))/LOG(2)))) -> -0.5085041588 | AI13: =N13 -> 221 | AJ13: =COUNTIF(L62:L79,AI13) -> 3 | AK13: =AJ13/(AL4-AJ11) -> 0.2142857143 | AL13: =IF(AK13=0,0,(AK13*((LOG(AK13))/LOG(2)))) -> -0.4762269474 | AN13: =N13 -> 221 | AO13: =COUNTIF(L80:L98,AN13) -> 9 | AP13: =AO13/(AQ4-AO11) -> 0.75 | AQ13: =IF(AP13=0,0,(AP13*((LOG(AP13))/LOG(2)))) -> -0.3112781245 | AS13: =N13 -> 221 | AT13: =COUNTIF(L99:L116,AS13) -> 6 | AU13: =AT13/(AV4-AT11) -> 0.75 | AV13: =IF(AU13=0,0,(AU13*((LOG(AU13))/LOG(2)))) -> -0.3112781245
A14: 12 | B14: 830 | C14: 13 | D14: 839 | E14: 13 | F14: 849 | K14: 0 | L14: 111 | N14: 222 | O14: =COUNTIF($L$7:$L$500,N14) -> 7 | P14: =O14/$Q$4 -> 0.06363636364 | Q14: =IF(P14=0,0,(P14*((LOG(P14))/LOG(2)))) -> -0.252891214 | T14: =N14 -> 222 | U14: =COUNTIF(L7:L24,T14) -> 1 | V14: =U14/(W4-U11) -> 0.125 | W14: =IF(V14=0,0,(V14*((LOG(V14))/LOG(2)))) -> -0.375 | Y14: =N14 -> 222 | Z14: =COUNTIF(L25:L43,Y14) -> 2 | AA14: =Z14/(AB4-Z11) -> 0.1538461538 | AB14: =IF(AA14=0,0,(AA14*((LOG(AA14))/LOG(2)))) -> -0.4154522643 | AD14: =N14 -> 222 | AE14: =COUNTIF(L44:L61,AD14) -> 1 | AF14: =AE14/(AG4-AE11) -> 0.06666666667 | AG14: =IF(AF14=0,0,(AF14*((LOG(AF14))/LOG(2)))) -> -0.260459373 | AI14: =N14 -> 222 | AJ14: =COUNTIF(L62:L79,AI14) -> 3 | AK14: =AJ14/(AL4-AJ11) -> 0.2142857143 | AL14: =IF(AK14=0,0,(AK14*((LOG(AK14))/LOG(2)))) -> -0.4762269474 | AN14: =N14 -> 222 | AO14: =COUNTIF(L80:L98,AN14) -> 0 | AP14: =AO14/(AQ4-AO11) -> 0 | AQ14: =IF(AP14=0,0,(AP14*((LOG(AP14))/LOG(2)))) -> 0 | AS14: =N14 -> 222 | AT14: =COUNTIF(L99:L116,AS14) -> 0 | AU14: =AT14/(AV4-AT11) -> 0 | AV14: =IF(AU14=0,0,(AU14*((LOG(AU14))/LOG(2)))) -> 0
A15: 21 | B15: 950 | C15: 11 | D15: 975 | E15: 11 | F15: 989 | K15: 0 | L15: 211 | P15: =SUM(P7:P14) -> 1 | Q15: =-SUM(Q7:Q14) -> 1.799121 | V15: =SUM(V7:V14) -> 1 | W15: =-SUM(W7:W14) -> 1.298794941 | AA15: =SUM(AA7:AA14) -> 1 | AB15: =-SUM(AB7:AB14) -> 0.6193821947 | AF15: =SUM(AF7:AF14) -> 1 | AG15: =-SUM(AG7:AG14) -> 1.158938532 | AK15: =SUM(AK7:AK14) -> 1 | AL15: =-SUM(AL7:AL14) -> 1.413799565 | AP15: =SUM(AP7:AP14) -> 1 | AQ15: =-SUM(AQ7:AQ14) -> 0.8112781245 | AU15: =SUM(AU7:AU14) -> 1 | AV15: =-SUM(AV7:AV14) -> 0.8112781245
A16: 21 | B16: 1077 | C16: 22 | D16: 1085 | E16: 13 | F16: 1095 | K16: 0 | L16: 221 | P16: U= | Q16: =Q15/(LOG(Q4)/LOG(2)) -> 0.2653038735 | V16: U1= | W16: =W15/(LOG(W4)/LOG(2)) -> 0.3114672183 | AA16: U2= | AB16: =AB15/(LOG(AB4)/LOG(2)) -> 0.1458080894 | AF16: U3= | AG16: =AG15/(LOG(AG4)/LOG(2)) -> 0.277927908 | AK16: U4= | AL16: =AL15/(LOG(AL4)/LOG(2)) -> 0.3390467608 | AP16: U5= | AQ16: =AQ15/(LOG(AQ4)/LOG(2)) -> 0.1909821017 | AU16: U6= | AV16: =AV15/(LOG(AV4)/LOG(2)) -> 0.1945546081
A17: 21 | B17: 1194 | C17: 22 | D17: 1201 | E17: 13 | F17: 1214 | K17: 0 | L17: 221
A18: 21 | B18: 1313 | C18: 11 | D18: 1321 | E18: 11 | F18: 1324 | K18: 0 | L18: 211
A19: 21 | B19: 1412 | C19: 22 | D19: 1416 | E19: 13 | F19: 1434 | K19: 0 | L19: 221 | N19: Total Target Seq
A20: 21 | B20: 1535 | C20: 11 | D20: 1555 | E20: 11 | F20: 1563 | K20: 0 | L20: 211 | N20: =COUNTIF(L7:L116,G3) -> 40 | P20: 18 | Q20: 19 | R20: 18 | S20: 18 | T20: 19 | U20: 18
A21: 21 | B21: 1651 | C21: 22 | D21: 1658 | E21: 13 | F21: 1676 | K21: 0 | L21: 221 | P21: % of reinforcement given in 6 equal intervals based on number of trials
A22: 21 | B22: 1773 | C22: 22 | D22: 1780 | E22: 24 | F22: 1787 | K22: 0 | L22: 222 | P22: %_1 | Q22: %_2 | R22: %_3 | S22: %_4 | T22: %_5 | U22: %_6
A23: 21 | B23: 1883 | C23: 11 | D23: 1899 | E23: 11 | F23: 1918 | K23: 0 | L23: 211 | O23: target sequence | P23: =$G$3 -> 211 | Q23: =$G$3 -> 211 | R23: =$G$3 -> 211 | S23: =$G$3 -> 211 | T23: =$G$3 -> 211 | U23: =$G$3 -> 211
A24: 21 | B24: 2004 | C24: 22 | D24: 2008 | E24: 13 | F24: 2023 | K24: 0 | L24: 221 | O24: total reinforcement | P24: =U11 -> 10 | Q24: =Z11 -> 6 | R24: =AE11 -> 3 | S24: =AJ11 -> 4 | T24: =AO11 -> 7 | U24: =AT11 -> 10
A25: 21 | B25: 2119 | C25: 22 | D25: 2125 | E25: 13 | F25: 2135 | K25: 0 | L25: 221 | O25: % target
A26: 21 | B26: 2234 | C26: 11 | D26: 2247 | E26: 11 | F26: 2253 | K26: 0 | L26: 211 | O26: CCRF
A27: 21 | B27: 2340 | C27: 22 | D27: 2344 | E27: 13 | F27: 2353 | K27: 0 | L27: 221 | O27: % CCRf
A28: 21 | B28: 2451 | C28: 22 | D28: 2460 | E28: 13 | F28: 2469 | K28: 0 | L28: 221 | O28: average response rate | P28: =F24/P20 -> 112.3888889 | Q28: =(F43-F24)/Q20 -> 112.2631579 | R28: =(F61-F43)/R20 -> 115.7222222 | S28: =(F79-F61)/S20 -> 114.8333333 | T28: =(F98-F79)/T20 -> 107.8947368 | U28: =(F116-F98)/U20 -> 109.3333333
A29: 21 | B29: 2567 | C29: 22 | D29: 2571 | E29: 13 | F29: 2587 | K29: 0 | L29: 221
A30: 21 | B30: 2684 | C30: 22 | D30: 2688 | E30: 24 | F30: 2698 | K30: 0 | L30: 222
A31: 21 | B31: 2797 | C31: 11 | D31: 2806 | E31: 11 | F31: 2809 | K31: 0 | L31: 211
A32: 21 | B32: 2900 | C32: 22 | D32: 2907 | E32: 13 | F32: 2920 | K32: 0 | L32: 221
A33: 21 | B33: 3021 | C33: 22 | D33: 3028 | E33: 13 | F33: 3037 | K33: 0 | L33: 221
A34: 21 | B34: 3136 | C34: 11 | D34: 3148 | E34: 11 | F34: 3151 | K34: 0 | L34: 211
A35: 21 | B35: 3238 | C35: 22 | D35: 3245 | E35: 13 | F35: 3254 | K35: 0 | L35: 221
A36: 21 | B36: 3355 | C36: 11 | D36: 3377 | E36: 11 | F36: 3381 | K36: 0 | L36: 211
A37: 21 | B37: 3469 | C37: 22 | D37: 3478 | E37: 13 | F37: 3488 | K37: 0 | L37: 221
A38: 21 | B38: 3586 | C38: 22 | D38: 3590 | E38: 13 | F38: 3600 | K38: 0 | L38: 221
A39: 21 | B39: 3699 | C39: 22 | D39: 3707 | E39: 13 | F39: 3715 | K39: 0 | L39: 221
A40: 21 | B40: 3813 | C40: 11 | D40: 3821 | E40: 11 | F40: 3831 | K40: 0 | L40: 211
A41: 21 | B41: 3918 | C41: 22 | D41: 3922 | E41: 24 | F41: 3928 | K41: 0 | L41: 222
A42: 21 | B42: 4026 | C42: 22 | D42: 4030 | E42: 13 | F42: 4040 | K42: 0 | L42: 221
A43: 21 | B43: 4139 | C43: 11 | D43: 4150 | E43: 11 | F43: 4156 | K43: 0 | L43: 211
A44: 21 | B44: 4243 | C44: 22 | D44: 4248 | E44: 13 | F44: 4258 | K44: 0 | L44: 221
A45: 21 | B45: 4357 | C45: 11 | D45: 4366 | E45: 11 | F45: 4370 | K45: 0 | L45: 211
A46: 21 | B46: 4461 | C46: 22 | D46: 4465 | E46: 13 | F46: 4474 | K46: 0 | L46: 221
A47: 21 | B47: 4573 | C47: 11 | D47: 4589 | E47: 11 | F47: 4596 | K47: 0 | L47: 211
A48: 21 | B48: 4687 | C48: 11 | D48: 4705 | E48: 11 | F48: 4710 | K48: 0 | L48: 211
A49: 12 | B49: 4816 | C49: 13 | D49: 4820 | E49: 13 | F49: 4829 | K49: 0 | L49: 111
A50: 21 | B50: 4927 | C50: 22 | D50: 4931 | E50: 13 | F50: 4940 | K50: 0 | L50: 221
A51: 21 | B51: 5040 | C51: 22 | D51: 5044 | E51: 24 | F51: 5052 | K51: 0 | L51: 222
A52: 12 | B52: 5159 | C52: 13 | D52: 5165 | E52: 13 | F52: 5175 | K52: 0 | L52: 111
A53: 12 | B53: 5276 | C53: 13 | D53: 5279 | E53: 13 | F53: 5282 | K53: 0 | L53: 111
A54: 21 | B54: 5381 | C54: 22 | D54: 5385 | E54: 13 | F54: 5395 | K54: 0 | L54: 221
A55: 12 | B55: 5498 | C55: 13 | D55: 5502 | E55: 13 | F55: 5507 | K55: 0 | L55: 111
A56: 12 | B56: 5612 | C56: 13 | D56: 5616 | E56: 13 | F56: 5622 | K56: 0 | L56: 111
A57: 12 | B57: 5728 | C57: 13 | D57: 5731 | E57: 13 | F57: 5743 | K57: 0 | L57: 111
A58: 12 | B58: 5858 | C58: 13 | D58: 5864 | E58: 13 | F58: 5873 | K58: 0 | L58: 111
A59: 12 | B59: 5983 | C59: 13 | D59: 5990 | E59: 13 | F59: 6005 | K59: 0 | L59: 111
A60: 12 | B60: 6109 | C60: 13 | D60: 6113 | E60: 13 | F60: 6120 | K60: 0 | L60: 111
A61: 12 | B61: 6229 | C61: 13 | D61: 6233 | E61: 13 | F61: 6239 | K61: 0 | L61: 111
A62: 12 | B62: 6343 | C62: 13 | D62: 6346 | E62: 13 | F62: 6350 | K62: 0 | L62: 111
A63: 12 | B63: 6462 | C63: 13 | D63: 6466 | E63: 13 | F63: 6472 | K63: 0 | L63: 111
A64: 12 | B64: 6583 | C64: 13 | D64: 6586 | E64: 13 | F64: 6592 | K64: 0 | L64: 111
A65: 12 | B65: 6710 | C65: 13 | D65: 6714 | E65: 13 | F65: 6720 | K65: 0 | L65: 111
A66: 12 | B66: 6823 | C66: 13 | D66: 6826 | E66: 13 | F66: 6835 | K66: 0 | L66: 111
A67: 12 | B67: 6946 | C67: 13 | D67: 6949 | E67: 13 | F67: 6955 | K67: 0 | L67: 111
A68: 21 | B68: 7056 | C68: 22 | D68: 7060 | E68: 13 | F68: 7070 | K68: 0 | L68: 221
A69: 21 | B69: 7168 | C69: 11 | D69: 7181 | E69: 11 | F69: 7185 | K69: 0 | L69: 211
A70: 21 | B70: 7273 | C70: 22 | D70: 7277 | E70: 24 | F70: 7281 | K70: 0 | L70: 222
A71: 12 | B71: 7399 | C71: 13 | D71: 7402 | E71: 13 | F71: 7408 | K71: 0 | L71: 111
A72: 21 | B72: 7508 | C72: 22 | D72: 7515 | E72: 13 | F72: 7522 | K72: 0 | L72: 221
A73: 12 | B73: 7630 | C73: 13 | D73: 7634 | E73: 13 | F73: 7639 | K73: 0 | L73: 111
A74: 21 | B74: 7740 | C74: 11 | D74: 7750 | E74: 11 | F74: 7754 | K74: 0 | L74: 211
A75: 21 | B75: 7842 | C75: 22 | D75: 7846 | E75: 24 | F75: 7853 | K75: 0 | L75: 222
A76: 21 | B76: 7952 | C76: 22 | D76: 7956 | E76: 13 | F76: 7968 | K76: 0 | L76: 221
A77: 21 | B77: 8067 | C77: 11 | D77: 8081 | E77: 11 | F77: 8085 | K77: 0 | L77: 211
A78: 21 | B78: 8173 | C78: 22 | D78: 8177 | E78: 24 | F78: 8187 | K78: 0 | L78: 222
A79: 21 | B79: 8286 | C79: 11 | D79: 8301 | E79: 11 | F79: 8306 | K79: 0 | L79: 211
A80: 21 | B80: 8394 | C80: 22 | D80: 8398 | E80: 13 | F80: 8407 | K80: 0 | L80: 221
A81: 12 | B81: 8509 | C81: 13 | D81: 8513 | E81: 13 | F81: 8518 | K81: 0 | L81: 111
A82: 21 | B82: 8616 | C82: 11 | D82: 8625 | E82: 11 | F82: 8629 | K82: 0 | L82: 211
A83: 21 | B83: 8717 | C83: 22 | D83: 8721 | E83: 13 | F83: 8731 | K83: 0 | L83: 221
A84: 12 | B84: 8832 | C84: 13 | D84: 8836 | E84: 13 | F84: 8843 | K84: 0 | L84: 111
A85: 21 | B85: 8941 | C85: 22 | D85: 8946 | E85: 13 | F85: 8955 | K85: 0 | L85: 221
A86: 21 | B86: 9055 | C86: 11 | D86: 9064 | E86: 11 | F86: 9068 | K86: 0 | L86: 211
A87: 21 | B87: 9157 | C87: 22 | D87: 9161 | E87: 13 | F87: 9171 | K87: 0 | L87: 221
A88: 21 | B88: 9271 | C88: 11 | D88: 9280 | E88: 11 | F88: 9283 | K88: 0 | L88: 211
A89: 21 | B89: 9373 | C89: 11 | D89: 9383 | E89: 11 | F89: 9387 | K89: 0 | L89: 211
A90: 21 | B90: 9475 | C90: 22 | D90: 9479 | E90: 13 | F90: 9488 | K90: 0 | L90: 221
A91: 21 | B91: 9586 | C91: 22 | D91: 9590 | E91: 13 | F91: 9600 | K91: 0 | L91: 221
A92: 12 | B92: 9699 | C92: 13 | D92: 9703 | E92: 13 | F92: 9707 | K92: 0 | L92: 111
A93: 21 | B93: 9809 | C93: 11 | D93: 9820 | E93: 11 | F93: 9824 | K93: 0 | L93: 211
A94: 21 | B94: 9912 | C94: 22 | D94: 9916 | E94: 13 | F94: 9925 | K94: 0 | L94: 221
A95: 21 | B95: 10023 | C95: 11 | D95: 10032 | E95: 11 | F95: 10036 | K95: 0 | L95: 211
A96: 21 | B96: 10123 | C96: 22 | D96: 10129 | E96: 13 | F96: 10138 | K96: 0 | L96: 221
A97: 21 | B97: 10237 | C97: 11 | D97: 10244 | E97: 11 | F97: 10254 | K97: 0 | L97: 211
A98: 21 | B98: 10342 | C98: 22 | D98: 10346 | E98: 13 | F98: 10356 | K98: 0 | L98: 221
A99: 12 | B99: 10458 | C99: 13 | D99: 10462 | E99: 13 | F99: 10465 | K99: 0 | L99: 111
A100: 21 | B100: 10570 | C100: 11 | D100: 10579 | E100: 11 | F100: 10582 | K100: 0 | L100: 211
A101: 21 | B101: 10670 | C101: 22 | D101: 10677 | E101: 13 | F101: 10684 | K101: 0 | L101: 221
A102: 21 | B102: 10783 | C102: 11 | D102: 10793 | E102: 11 | F102: 10796 | K102: 0 | L102: 211
A103: 21 | B103: 10884 | C103: 22 | D103: 10888 | E103: 13 | F103: 10898 | K103: 0 | L103: 221
A104: 21 | B104: 10997 | C104: 11 | D104: 11007 | E104: 11 | F104: 11011 | K104: 0 | L104: 211
A105: 21 | B105: 11098 | C105: 22 | D105: 11108 | E105: 13 | F105: 11117 | K105: 0 | L105: 221
A106: 21 | B106: 11214 | C106: 11 | D106: 11225 | E106: 11 | F106: 11228 | K106: 0 | L106: 211
A107: 21 | B107: 11316 | C107: 22 | D107: 11320 | E107: 13 | F107: 11330 | K107: 0 | L107: 221
A108: 12 | B108: 11433 | C108: 13 | D108: 11437 | E108: 13 | F108: 11453 | K108: 0 | L108: 111
A109: 21 | B109: 11555 | C109: 11 | D109: 11564 | E109: 11 | F109: 11567 | K109: 0 | L109: 211
A110: 21 | B110: 11655 | C110: 11 | D110: 11668 | E110: 11 | F110: 11672 | K110: 0 | L110: 211
A111: 21 | B111: 11759 | C111: 11 | D111: 11779 | E111: 11 | F111: 11783 | K111: 0 | L111: 211
A112: 21 | B112: 11876 | C112: 11 | D112: 11885 | E112: 11 | F112: 11889 | K112: 0 | L112: 211
A113: 21 | B113: 11976 | C113: 11 | D113: 11997 | E113: 11 | F113: 12001 | K113: 0 | L113: 211
A114: 21 | B114: 12089 | C114: 22 | D114: 12093 | E114: 13 | F114: 12101 | K114: 0 | L114: 221
A115: 21 | B115: 12199 | C115: 22 | D115: 12205 | E115: 13 | F115: 12212 | K115: 0 | L115: 221
A116: 21 | B116: 12310 | C116: 11 | D116: 12320 | E116: 11 | F116: 12324 | K116: 1 | L116: 211

Sheet !N521950.010
A1: Report for:!N521950.010
A2: Date: | B2: <date>
A3: Hen: | B3: <hen> | F3: Correct Sequence | G3: =Start!J2 -> 211 | P3: Total Sequences in Data | Q3: =4994-COUNTBLANK(L7:L5000) -> 55 | V3: Total Sequences in Block Data | W3: =COUNTA(L7:L15) -> 9 | AA3: Total Sequences in Block Data | AB3: =COUNTA(L16:L24) -> 9 | AF3: Total Sequences in Block Data | AG3: =COUNTA(L25:L34) -> 10 | AK3: Total Sequences in Block Data | AL3: =COUNTA(L35:L43) -> 9 | AP3: Total Sequences in Block Data | AQ3: =COUNTA(L44:L52) -> 9 | AU3: Total Sequences in Block Data | AV3: =COUNTA(L53:L61) -> 9
P4: Total Sequences in Summary | Q4: =SUM(O7:O14) -> 55 | V4: Total Sequences in Block Summary | W4: =SUM(U7:U14) -> 9 | AA4: Total Sequences in Block Summary | AB4: =SUM(Z7:Z14) -> 9 | AF4: Total Sequences in Block Summary | AG4: =SUM(AE7:AE14) -> 10 | AK4: Total Sequences in Block Summary | AL4: =SUM(AJ7:AJ14) -> 9 | AP4: Total Sequences in Block Summary | AQ4: =SUM(AO7:AO14) -> 9 | AU4: Total Sequences in Block Summary | AV4: =SUM(AT7:AT14) -> 9
T5: Block 1 | Y5: Block 2 | AD5: Block 3 | AI5: Block 4 | AN5: Block 5 | AS5: Block 6
A6: Sequence Component 1 | B6: Time 1 | C6: Sequence Component 2 | D6: Time 2 | E6: Sequence Component 3 | F6: Time 3 | G6: Sequence Component 4 | H6: Time 4 | I6: Sequence Component 5 | J6: Time 5 | K6: Correct? 0=No 1=Yes | L6: Sequence | N6: Frequency | P6: Relative Frequency | Q6: Variability | T6: Frequency | V6: Relative Frequency | W6: Variability | Y6: Frequency | AA6: Relative Frequency | AB6: Variability | AD6: Frequency | AF6: Relative Frequency | AG6: Variability | AI6: Frequency | AK6: Relative Frequency | AL6: Variability | AN6: Frequency | AP6: Relative Frequency | AQ6: Variability | AS6: Frequency | AU6: Relative Frequency | AV6: Variability
A7: 21 | B7: 6 | C7: 11 | D7: 15 | E7: 11 | F7: 18 | K7: 0 | L7: 211 | N7: 111 | O7: =COUNTIF($L$7:$L$500,N7) -> 0 | P7: =O7/$Q$4 -> 0 | Q7: =IF(P7=0,0,(P7*((LOG(P7))/LOG(2)))) -> 0 | T7: =N7 -> 111 | U7: =COUNTIF(L7:L15,T7) -> 0 | V7: =U7/(W4-U11) -> 0 | W7: =IF(V7=0,0,(V7*((LOG(V7))/LOG(2)))) -> 0 | Y7: =N7 -> 111 | Z7: =COUNTIF(L16:L24,Y7) -> 0 | AA7: =Z7/(AB4-Z11) -> 0 | AB7: =IF(AA7=0,0,(AA7*((LOG(AA7))/LOG(2)))) -> 0 | AD7: =N7 -> 111 | AE7: =COUNTIF(L25:L34,AD7) -> 0 | AF7: =AE7/(AG4-AE11) -> 0 | AG7: =IF(AF7=0,0,(AF7*((LOG(AF7))/LOG(2)))) -> 0 | AI7: =N7 -> 111 | AJ7: =COUNTIF(L35:L43,AI7) -> 0 | AK7: =AJ7/(AL4-AJ11) -> 0 | AL7: =IF(AK7=0,0,(AK7*((LOG(AK7))/LOG(2)))) -> 0 | AN7: =N7 -> 111 | AO7: =COUNTIF(L44:L52,AN7) -> 0 | AP7: =AO7/(AQ4-AO11) -> 0 | AQ7: =IF(AP7=0,0,(AP7*((LOG(AP7))/LOG(2)))) -> 0 | AS7: =N7 -> 111 | AT7: =COUNTIF(L53:L61,AS7) -> 0 | AU7: =AT7/(AV4-AT11) -> 0 | AV7: =IF(AU7=0,0,(AU7*((LOG(AU7))/LOG(2)))) -> 0
A8: 21 | B8: 105 | C8: 22 | D8: 113 | E8: 13 | F8: 119 | K8: 0 | L8: 221 | N8: 112 | O8: =COUNTIF($L$7:$L$500,N8) -> 1 | P8: =O8/$Q$4 -> 0.01818181818 | Q8: =IF(P8=0,0,(P8*((LOG(P8))/LOG(2)))) -> -0.1051156312 | T8: =N8 -> 112 | U8: =COUNTIF(L7:L15,T8) -> 1 | V8: =U8/(W4-U11) -> 0.3333333333 | W8: =IF(V8=0,0,(V8*((LOG(V8))/LOG(2)))) -> -0.5283208336 | Y8: =N8 -> 112 | Z8: =COUNTIF(L16:L24,Y8) -> 0 | AA8: =Z8/(AB4-Z11) -> 0 | AB8: =IF(AA8=0,0,(AA8*((LOG(AA8))/LOG(2)))) -> 0 | AD8: =N8 -> 112 | AE8: =COUNTIF(L25:L34,AD8) -> 0 | AF8: =AE8/(AG4-AE11) -> 0 | AG8: =IF(AF8=0,0,(AF8*((LOG(AF8))/LOG(2)))) -> 0 | AI8: =N8 -> 112 | AJ8: =COUNTIF(L35:L43,AI8) -> 0 | AK8: =AJ8/(AL4-AJ11) -> 0 | AL8: =IF(AK8=0,0,(AK8*((LOG(AK8))/LOG(2)))) -> 0 | AN8: =N8 -> 112 | AO8: =COUNTIF(L44:L52,AN8) -> 0 | AP8: =AO8/(AQ4-AO11) -> 0 | AQ8: =IF(AP8=0,0,(AP8*((LOG(AP8))/LOG(2)))) -> 0 | AS8: =N8 -> 112 | AT8: =COUNTIF(L53:L61,AS8) -> 0 | AU8: =AT8/(AV4-AT11) -> 0 | AV8: =IF(AU8=0,0,(AU8*((LOG(AU8))/LOG(2)))) -> 0
A9: 21 | B9: 217 | C9: 11 | D9: 223 | E9: 11 | F9: 227 | K9: 0 | L9: 211 | N9: 121 | O9: =COUNTIF($L$7:$L$500,N9) -> 0 | P9: =O9/$Q$4 -> 0 | Q9: =IF(P9=0,0,(P9*((LOG(P9))/LOG(2)))) -> 0 | T9: =N9 -> 121 | U9: =COUNTIF(L7:L15,T9) -> 0 | V9: =U9/(W4-U11) -> 0 | W9: =IF(V9=0,0,(V9*((LOG(V9))/LOG(2)))) -> 0 | Y9: =N9 -> 121 | Z9: =COUNTIF(L16:L24,Y9) -> 0 | AA9: =Z9/(AB4-Z11) -> 0 | AB9: =IF(AA9=0,0,(AA9*((LOG(AA9))/LOG(2)))) -> 0 | AD9: =N9 -> 121 | AE9: =COUNTIF(L25:L34,AD9) -> 0 | AF9: =AE9/(AG4-AE11) -> 0 | AG9: =IF(AF9=0,0,(AF9*((LOG(AF9))/LOG(2)))) -> 0 | AI9: =N9 -> 121 | AJ9: =COUNTIF(L35:L43,AI9) -> 0 | AK9: =AJ9/(AL4-AJ11) -> 0 | AL9: =IF(AK9=0,0,(AK9*((LOG(AK9))/LOG(2)))) -> 0 | AN9: =N9 -> 121 | AO9: =COUNTIF(L44:L52,AN9) -> 0 | AP9: =AO9/(AQ4-AO11) -> 0 | AQ9: =IF(AP9=0,0,(AP9*((LOG(AP9))/LOG(2)))) -> 0 | AS9: =N9 -> 121 | AT9: =COUNTIF(L53:L61,AS9) -> 0 | AU9: =AT9/(AV4-AT11) -> 0 | AV9: =IF(AU9=0,0,(AU9*((LOG(AU9))/LOG(2)))) -> 0
A10: 12 | B10: 324 | C10: 13 | D10: 337 | E10: 24 | F10: 348 | K10: 0 | L10: 112 | N10: 122 | O10: =COUNTIF($L$7:$L$500,N10) -> 0 | P10: =O10/$Q$4 -> 0 | Q10: =IF(P10=0,0,(P10*((LOG(P10))/LOG(2)))) -> 0 | T10: =N10 -> 122 | U10: =COUNTIF(L7:L15,T10) -> 0 | V10: =U10/(W4-U11) -> 0 | W10: =IF(V10=0,0,(V10*((LOG(V10))/LOG(2)))) -> 0 | Y10: =N10 -> 122 | Z10: =COUNTIF(L16:L24,Y10) -> 0 | AA10: =Z10/(AB4-Z11) -> 0 | AB10: =IF(AA10=0,0,(AA10*((LOG(AA10))/LOG(2)))) -> 0 | AD10: =N10 -> 122 | AE10: =COUNTIF(L25:L34,AD10) -> 0 | AF10: =AE10/(AG4-AE11) -> 0 | AG10: =IF(AF10=0,0,(AF10*((LOG(AF10))/LOG(2)))) -> 0 | AI10: =N10 -> 122 | AJ10: =COUNTIF(L35:L43,AI10) -> 0 | AK10: =AJ10/(AL4-AJ11) -> 0 | AL10: =IF(AK10=0,0,(AK10*((LOG(AK10))/LOG(2)))) -> 0 | AN10: =N10 -> 122 | AO10: =COUNTIF(L44:L52,AN10) -> 0 | AP10: =AO10/(AQ4-AO11) -> 0 | AQ10: =IF(AP10=0,0,(AP10*((LOG(AP10))/LOG(2)))) -> 0 | AS10: =N10 -> 122 | AT10: =COUNTIF(L53:L61,AS10) -> 0 | AU10: =AT10/(AV4-AT11) -> 0 | AV10: =IF(AU10=0,0,(AU10*((LOG(AU10))/LOG(2)))) -> 0
A11: 21 | B11: 445 | C11: 11 | D11: 455 | E11: 11 | F11: 458 | K11: 0 | L11: 211 | N11: 211 | O11: =COUNTIF($L$7:$L$500,N11) -> 40 | P11: =O11/$Q$4 -> 0.7272727273 | Q11: =IF(P11=0,0,(P11*((LOG(P11))/LOG(2)))) -> -0.3341320863 | T11: =N11 -> 211 | U11: =COUNTIF(L7:L15,T11) -> 6 | Y11: =N11 -> 211 | Z11: =COUNTIF(L16:L24,Y11) -> 7 | AD11: =N11 -> 211 | AE11: =COUNTIF(L25:L34,AD11) -> 4 | AI11: =N11 -> 211 | AJ11: =COUNTIF(L35:L43,AI11) -> 7 | AN11: =N11 -> 211 | AO11: =COUNTIF(L44:L52,AN11) -> 8 | AS11: =N11 -> 211 | AT11: =COUNTIF(L53:L61,AS11) -> 8
A12: 21 | B12: 544 | C12: 22 | D12: 552 | E12: 13 | F12: 560 | K12: 0 | L12: 221 | N12: 212 | O12: =COUNTIF($L$7:$L$500,N12) -> 0 | P12: =O12/$Q$4 -> 0 | Q12: =IF(P12=0,0,(P12*((LOG(P12))/LOG(2)))) -> 0 | T12: =N12 -> 212 | U12: =COUNTIF(L7:L15,T12) -> 0 | V12: =U12/(W4-U11) -> 0 | W12: =IF(V12=0,0,(V12*((LOG(V12))/LOG(2)))) -> 0 | Y12: =N12 -> 212 | Z12: =COUNTIF(L16:L24,Y12) -> 0 | AA12: =Z12/(AB4-Z11) -> 0 | AB12: =IF(AA12=0,0,(AA12*((LOG(AA12))/LOG(2)))) -> 0 | AD12: =N12 -> 212 | AE12: =COUNTIF(L25:L34,AD12) -> 0 | AF12: =AE12/(AG4-AE11) -> 0 | AG12: =IF(AF12=0,0,(AF12*((LOG(AF12))/LOG(2)))) -> 0 | AI12: =N12 -> 212 | AJ12: =COUNTIF(L35:L43,AI12) -> 0 | AK12: =AJ12/(AL4-AJ11) -> 0 | AL12: =IF(AK12=0,0,(AK12*((LOG(AK12))/LOG(2)))) -> 0 | AN12: =N12 -> 212 | AO12: =COUNTIF(L44:L52,AN12) -> 0 | AP12: =AO12/(AQ4-AO11) -> 0 | AQ12: =IF(AP12=0,0,(AP12*((LOG(AP12))/LOG(2)))) -> 0 | AS12: =N12 -> 212 | AT12: =COUNTIF(L53:L61,AS12) -> 0 | AU12: =AT12/(AV4-AT11) -> 0 | AV12: =IF(AU12=0,0,(AU12*((LOG(AU12))/LOG(2)))) -> 0
A13: 21 | B13: 658 | C13: 11 | D13: 667 | E13: 11 | F13: 674 | K13: 0 | L13: 211 | N13: 221 | O13: =COUNTIF($L$7:$L$500,N13) -> 14 | P13: =O13/$Q$4 -> 0.2545454545 | Q13: =IF(P13=0,0,(P13*((LOG(P13))/LOG(2)))) -> -0.5024739469 | T13: =N13 -> 221 | U13: =COUNTIF(L7:L15,T13) -> 2 | V13: =U13/(W4-U11) -> 0.6666666667 | W13: =IF(V13=0,0,(V13*((LOG(V13))/LOG(2)))) -> -0.3899750005 | Y13: =N13 -> 221 | Z13: =COUNTIF(L16:L24,Y13) -> 2 | AA13: =Z13/(AB4-Z11) -> 1 | AB13: =IF(AA13=0,0,(AA13*((LOG(AA13))/LOG(2)))) -> 0 | AD13: =N13 -> 221 | AE13: =COUNTIF(L25:L34,AD13) -> 6 | AF13: =AE13/(AG4-AE11) -> 1 | AG13: =IF(AF13=0,0,(AF13*((LOG(AF13))/LOG(2)))) -> 0 | AI13: =N13 -> 221 | AJ13: =COUNTIF(L35:L43,AI13) -> 2 | AK13: =AJ13/(AL4-AJ11) -> 1 | AL13: =IF(AK13=0,0,(AK13*((LOG(AK13))/LOG(2)))) -> 0 | AN13: =N13 -> 221 | AO13: =COUNTIF(L44:L52,AN13) -> 1 | AP13: =AO13/(AQ4-AO11) -> 1 | AQ13: =IF(AP13=0,0,(AP13*((LOG(AP13))/LOG(2)))) -> 0 | AS13: =N13 -> 221 | AT13: =COUNTIF(L53:L61,AS13) -> 1 | AU13: =AT13/(AV4-AT11) -> 1 | AV13: =IF(AU13=0,0,(AU13*((LOG(AU13))/LOG(2)))) -> 0
A14: 21 | B14: 765 | C14: 11 | D14: 774 | E14: 11 | F14: 777 | K14: 0 | L14: 211 | N14: 222 | O14: =COUNTIF($L$7:$L$500,N14) -> 0 | P14: =O14/$Q$4 -> 0 | Q14: =IF(P14=0,0,(P14*((LOG(P14))/LOG(2)))) -> 0 | T14: =N14 -> 222 | U14: =COUNTIF(L7:L15,T14) -> 0 | V14: =U14/(W4-U11) -> 0 | W14: =IF(V14=0,0,(V14*((LOG(V14))/LOG(2)))) -> 0 | Y14: =N14 -> 222 | Z14: =COUNTIF(L16:L24,Y14) -> 0 | AA14: =Z14/(AB4-Z11) -> 0 | AB14: =IF(AA14=0,0,(AA14*((LOG(AA14))/LOG(2)))) -> 0 | AD14: =N14 -> 222 | AE14: =COUNTIF(L25:L34,AD14) -> 0 | AF14: =AE14/(AG4-AE11) -> 0 | AG14: =IF(AF14=0,0,(AF14*((LOG(AF14))/LOG(2)))) -> 0 | AI14: =N14 -> 222 | AJ14: =COUNTIF(L35:L43,AI14) -> 0 | AK14: =AJ14/(AL4-AJ11) -> 0 | AL14: =IF(AK14=0,0,(AK14*((LOG(AK14))/LOG(2)))) -> 0 | AN14: =N14 -> 222 | AO14: =COUNTIF(L44:L52,AN14) -> 0 | AP14: =AO14/(AQ4-AO11) -> 0 | AQ14: =IF(AP14=0,0,(AP14*((LOG(AP14))/LOG(2)))) -> 0 | AS14: =N14 -> 222 | AT14: =COUNTIF(L53:L61,AS14) -> 0 | AU14: =AT14/(AV4-AT11) -> 0 | AV14: =IF(AU14=0,0,(AU14*((LOG(AU14))/LOG(2)))) -> 0
A15: 21 | B15: 865 | C15: 11 | D15: 879 | E15: 11 | F15: 886 | K15: 0 | L15: 211 | P15: =SUM(P7:P14) -> 1 | Q15: =-SUM(Q7:Q14) -> 0.9417216644 | V15: =SUM(V7:V14) -> 1 | W15: =-SUM(W7:W14) -> 0.9182958341 | AA15: =SUM(AA7:AA14) -> 1 | AB15: =-SUM(AB7:AB14) -> 0 | AF15: =SUM(AF7:AF14) -> 1 | AG15: =-SUM(AG7:AG14) -> 0 | AK15: =SUM(AK7:AK14) -> 1 | AL15: =-SUM(AL7:AL14) -> 0 | AP15: =SUM(AP7:AP14) -> 1 | AQ15: =-SUM(AQ7:AQ14) -> 0 | AU15: =SUM(AU7:AU14) -> 1 | AV15: =-SUM(AV7:AV14) -> 0
A16: 21 | B16: 982 | C16: 11 | D16: 993 | E16: 11 | F16: 999 | K16: 0 | L16: 211 | P16: U= | Q16: =Q15/(LOG(Q4)/LOG(2)) -> 0.1628893048 | V16: U1= | W16: =W15/(LOG(W4)/LOG(2)) -> 0.2896900821 | AA16: U2= | AB16: =AB15/(LOG(AB4)/LOG(2)) -> 0 | AF16: U3= | AG16: =AG15/(LOG(AG4)/LOG(2)) -> 0 | AK16: U4= | AL16: =AL15/(LOG(AL4)/LOG(2)) -> 0 | AP16: U5= | AQ16: =AQ15/(LOG(AQ4)/LOG(2)) -> 0 | AU16: U6= | AV16: =AV15/(LOG(AV4)/LOG(2)) -> 0
A17: 21 | B17: 1088 | C17: 11 | D17: 1103 | E17: 11 | F17: 1109 | K17: 0 | L17: 211
A18: 21 | B18: 1200 | C18: 11 | D18: 1214 | E18: 11 | F18: 1217 | K18: 0 | L18: 211
A19: 21 | B19: 1303 | C19: 22 | D19: 1307 | E19: 13 | F19: 1314 | K19: 0 | L19: 221 | N19: Total Target Seq
A20: 21 | B20: 1411 | C20: 11 | D20: 1422 | E20: 11 | F20: 1429 | K20: 0 | L20: 211 | N20: =COUNTIF(L7:L61,G3) -> 40 | P20: 9 | Q20: 9 | R20: 10 | S20: 9 | T20: 9 | U20: 9
A21: 21 | B21: 1516 | C21: 22 | D21: 1521 | E21: 13 | F21: 1530 | K21: 0 | L21: 221 | P21: % of reinforcement given in 6 equal intervals based on number of trials
A22: 21 | B22: 1629 | C22: 11 | D22: 1639 | E22: 11 | F22: 1642 | K22: 0 | L22: 211 | P22: %_1 | Q22: %_2 | R22: %_3 | S22: %_4 | T22: %_5 | U22: %_6
A23: 21 | B23: 1729 | C23: 11 | D23: 1743 | E23: 11 | F23: 1753 | K23: 0 | L23: 211 | O23: target sequence | P23: =$G$3 -> 211 | Q23: =$G$3 -> 211 | R23: =$G$3 -> 211 | S23: =$G$3 -> 211 | T23: =$G$3 -> 211 | U23: =$G$3 -> 211
A24: 21 | B24: 1839 | C24: 11 | D24: 1853 | E24: 11 | F24: 1857 | K24: 0 | L24: 211 | O24: total reinforcement | P24: =U11 -> 6 | Q24: =Z11 -> 7 | R24: =AE11 -> 4 | S24: =AJ11 -> 7 | T24: =AO11 -> 8 | U24: =AT11 -> 8
A25: 21 | B25: 1942 | C25: 22 | D25: 1949 | E25: 13 | F25: 1956 | K25: 0 | L25: 221 | O25: % target
A26: 21 | B26: 2053 | C26: 22 | D26: 2060 | E26: 13 | F26: 2068 | K26: 0 | L26: 221 | O26: CCRF
A27: 21 | B27: 2166 | C27: 11 | D27: 2175 | E27: 11 | F27: 2178 | K27: 0 | L27: 211 | O27: % CCRf
A28: 21 | B28: 2269 | C28: 11 | D28: 2277 | E28: 11 | F28: 2286 | K28: 0 | L28: 211 | O28: average response rate | P28: =F15/P20 -> 98.44444444 | Q28: =(F24-F15)/Q20 -> 107.8888889 | R28: =(F34-F24)/R20 -> 109.6 | S28: =(F43-F34)/S20 -> 103.3333333 | T28: =(F52-F43)/T20 -> 104.8888889 | U28: =(F61-F52)/U20 -> 103
A29: 21 | B29: 2385 | C29: 11 | D29: 2394 | E29: 11 | F29: 2403 | K29: 0 | L29: 211
A30: 21 | B30: 2492 | C30: 22 | D30: 2497 | E30: 13 | F30: 2506 | K30: 0 | L30: 221
A31: 21 | B31: 2607 | C31: 11 | D31: 2617 | E31: 11 | F31: 2623 | K31: 0 | L31: 211
A32: 21 | B32: 2711 | C32: 22 | D32: 2716 | E32: 13 | F32: 2725 | K32: 0 | L32: 221
A33: 21 | B33: 2824 | C33: 22 | D33: 2832 | E33: 13 | F33: 2843 | K33: 0 | L33: 221
A34: 21 | B34: 2939 | C34: 22 | D34: 2943 | E34: 13 | F34: 2953 | K34: 0 | L34: 221
A35: 21 | B35: 3051 | C35: 11 | D35: 3060 | E35: 11 | F35: 3064 | K35: 0 | L35: 211
A36: 21 | B36: 3152 | C36: 11 | D36: 3160 | E36: 11 | F36: 3164 | K36: 0 | L36: 211
A37: 21 | B37: 3251 | C37: 11 | D37: 3260 | E37: 11 | F37: 3264 | K37: 0 | L37: 211
A38: 21 | B38: 3351 | C38: 22 | D38: 3359 | E38: 13 | F38: 3365 | K38: 0 | L38: 221
A39: 21 | B39: 3462 | C39: 11 | D39: 3473 | E39: 11 | F39: 3481 | K39: 0 | L39: 211
A40: 21 | B40: 3569 | C40: 11 | D40: 3577 | E40: 11 | F40: 3580 | K40: 0 | L40: 211
A41: 21 | B41: 3666 | C41: 11 | D41: 3676 | E41: 11 | F41: 3679 | K41: 0 | L41: 211
A42: 21 | B42: 3767 | C42: 11 | D42: 3775 | E42: 11 | F42: 3779 | K42: 0 | L42: 211
A43: 21 | B43: 3865 | C43: 22 | D43: 3874 | E43: 13 | F43: 3883 | K43: 0 | L43: 221
A44: 21 | B44: 3982 | C44: 11 | D44: 3992 | E44: 11 | F44: 3995 | K44: 0 | L44: 211
A45: 21 | B45: 4085 | C45: 11 | D45: 4098 | E45: 11 | F45: 4108 | K45: 0 | L45: 211
A46: 21 | B46: 4196 | C46: 22 | D46: 4200 | E46: 13 | F46: 4209 | K46: 0 | L46: 221
A47: 21 | B47: 4308 | C47: 11 | D47: 4317 | E47: 11 | F47: 4320 | K47: 0 | L47: 211
A48: 21 | B48: 4407 | C48: 11 | D48: 4415 | E48: 11 | F48: 4418 | K48: 0 | L48: 211
A49: 21 | B49: 4507 | C49: 11 | D49: 4514 | E49: 11 | F49: 4517 | K49: 0 | L49: 211
A50: 21 | B50: 4604 | C50: 11 | D50: 4613 | E50: 11 | F50: 4617 | K50: 0 | L50: 211
A51: 21 | B51: 4703 | C51: 11 | D51: 4710 | E51: 11 | F51: 4714 | K51: 0 | L51: 211
A52: 21 | B52: 4800 | C52: 11 | D52: 4820 | E52: 11 | F52: 4827 | K52: 0 | L52: 211
A53: 21 | B53: 4915 | C53: 11 | D53: 4922 | E53: 11 | F53: 4926 | K53: 0 | L53: 211
A54: 21 | B54: 5013 | C54: 11 | D54: 5030 | E54: 11 | F54: 5036 | K54: 0 | L54: 211
A55: 21 | B55: 5123 | C55: 22 | D55: 5130 | E55: 13 | F55: 5139 | K55: 0 | L55: 221
A56: 21 | B56: 5236 | C56: 11 | D56: 5243 | E56: 11 | F56: 5247 | K56: 0 | L56: 211
A57: 21 | B57: 5338 | C57: 11 | D57: 5354 | E57: 11 | F57: 5358 | K57: 0 | L57: 211
A58: 21 | B58: 5445 | C58: 11 | D58: 5455 | E58: 11 | F58: 5458 | K58: 0 | L58: 211
A59: 21 | B59: 5548 | C59: 11 | D59: 5555 | E59: 11 | F59: 5558 | K59: 0 | L59: 211
A60: 21 | B60: 5646 | C60: 11 | D60: 5653 | E60: 11 | F60: 5656 | K60: 0 | L60: 211
A61: 21 | B61: 5744 | C61: 11 | D61: 5751 | E61: 11 | F61: 5754 | K61: 1 | L61: 211

Sheet !N522A50.010
A1: Report for:!N522A50.010
A2: Date: | B2: <date>
A3: Hen: | B3: <hen> | F3: Correct Sequence | G3: =Start!J2 -> 211 | P3: Total Sequences in Data | Q3: =4994-COUNTBLANK(L7:L5000) -> 49 | V3: Total Sequences in Block Data | W3: =COUNTA(L7:L14) -> 8 | AA3: Total Sequences in Block Data | AB3: =COUNTA(L15:L22) -> 8 | AF3: Total Sequences in Block Data | AG3: =COUNTA(L23:L31) -> 9 | AK3: Total Sequences in Block Data | AL3: =COUNTA(L32:L39) -> 8 | AP3: Total Sequences in Block Data | AQ3: =COUNTA(L40:L47) -> 8 | AU3: Total Sequences in Block Data | AV3: =COUNTA(L48:L55) -> 8
P4: Total Sequences in Summary | Q4: =SUM(O7:O14) -> 49 | V4: Total Sequences in Block Summary | W4: =SUM(U7:U14) -> 8 | AA4: Total Sequences in Block Summary | AB4: =SUM(Z7:Z14) -> 8 | AF4: Total Sequences in Block Summary | AG4: =SUM(AE7:AE14) -> 9 | AK4: Total Sequences in Block Summary | AL4: =SUM(AJ7:AJ14) -> 8 | AP4: Total Sequences in Block Summary | AQ4: =SUM(AO7:AO14) -> 8 | AU4: Total Sequences in Block Summary | AV4: =SUM(AT7:AT14) -> 8
T5: Block 1 | Y5: Block 2 | AD5: Block 3 | AI5: Block 4 | AN5: Block 5 | AS5: Block 6
A6: Sequence Component 1 | B6: Time 1 | C6: Sequence Component 2 | D6: Time 2 | E6: Sequence Component 3 | F6: Time 3 | G6: Sequence Component 4 | H6: Time 4 | I6: Sequence Component 5 | J6: Time 5 | K6: Correct? 0=No 1=Yes | L6: Sequence | N6: Frequency | P6: Relative Frequency | Q6: Variability | T6: Frequency | V6: Relative Frequency | W6: Variability | Y6: Frequency | AA6: Relative Frequency | AB6: Variability | AD6: Frequency | AF6: Relative Frequency | AG6: Variability | AI6: Frequency | AK6: Relative Frequency | AL6: Variability | AN6: Frequency | AP6: Relative Frequency | AQ6: Variability | AS6: Frequency | AU6: Relative Frequency | AV6: Variability
A7: 21 | B7: 8 | C7: 11 | D7: 15 | E7: 11 | F7: 22 | K7: 0 | L7: 211 | N7: 111 | O7: =COUNTIF($L$7:$L$500,N7) -> 6 | P7: =O7/$Q$4 -> 0.1224489796 | Q7: =IF(P7=0,0,(P7*((LOG(P7))/LOG(2)))) -> -0.3709894706 | T7: =N7 -> 111 | U7: =COUNTIF(L7:L14,T7) -> 2 | V7: =U7/(W4-U11) -> 1 | W7: =IF(V7=0,0,(V7*((LOG(V7))/LOG(2)))) -> 0 | Y7: =N7 -> 111 | Z7: =COUNTIF(L15:L22,Y7) -> 0 | AA7: =Z7/(AB4-Z11) ->  | AB7: =IF(AA7=0,0,(AA7*((LOG(AA7))/LOG(2)))) ->  | AD7: =N7 -> 111 | AE7: =COUNTIF(L23:L31,AD7) -> 1 | AF7: =AE7/(AG4-AE11) -> 0.3333333333 | AG7: =IF(AF7=0,0,(AF7*((LOG(AF7))/LOG(2)))) -> -0.5283208336 | AI7: =N7 -> 111 | AJ7: =COUNTIF(L32:L39,AI7) -> 1 | AK7: =AJ7/(AL4-AJ11) -> 0.5 | AL7: =IF(AK7=0,0,(AK7*((LOG(AK7))/LOG(2)))) -> -0.5 | AN7: =N7 -> 111 | AO7: =COUNTIF(L40:L47,AN7) -> 1 | AP7: =AO7/(AQ4-AO11) -> 1 | AQ7: =IF(AP7=0,0,(AP7*((LOG(AP7))/LOG(2)))) -> 0 | AS7: =N7 -> 111 | AT7: =COUNTIF(L48:L55,AS7) -> 1 | AU7: =AT7/(AV4-AT11) -> 1 | AV7: =IF(AU7=0,0,(AU7*((LOG(AU7))/LOG(2)))) -> 0
A8: 21 | B8: 111 | C8: 11 | D8: 117 | E8: 11 | F8: 121 | K8: 0 | L8: 211 | N8: 112 | O8: =COUNTIF($L$7:$L$500,N8) -> 0 | P8: =O8/$Q$4 -> 0 | Q8: =IF(P8=0,0,(P8*((LOG(P8))/LOG(2)))) -> 0 | T8: =N8 -> 112 | U8: =COUNTIF(L7:L14,T8) -> 0 | V8: =U8/(W4-U11) -> 0 | W8: =IF(V8=0,0,(V8*((LOG(V8))/LOG(2)))) -> 0 | Y8: =N8 -> 112 | Z8: =COUNTIF(L15:L22,Y8) -> 0 | AA8: =Z8/(AB4-Z11) ->  | AB8: =IF(AA8=0,0,(AA8*((LOG(AA8))/LOG(2)))) ->  | AD8: =N8 -> 112 | AE8: =COUNTIF(L23:L31,AD8) -> 0 | AF8: =AE8/(AG4-AE11) -> 0 | AG8: =IF(AF8=0,0,(AF8*((LOG(AF8))/LOG(2)))) -> 0 | AI8: =N8 -> 112 | AJ8: =COUNTIF(L32:L39,AI8) -> 0 | AK8: =AJ8/(AL4-AJ11) -> 0 | AL8: =IF(AK8=0,0,(AK8*((LOG(AK8))/LOG(2)))) -> 0 | AN8: =N8 -> 112 | AO8: =COUNTIF(L40:L47,AN8) -> 0 | AP8: =AO8/(AQ4-AO11) -> 0 | AQ8: =IF(AP8=0,0,(AP8*((LOG(AP8))/LOG(2)))) -> 0 | AS8: =N8 -> 112 | AT8: =COUNTIF(L48:L55,AS8) -> 0 | AU8: =AT8/(AV4-AT11) -> 0 | AV8: =IF(AU8=0,0,(AU8*((LOG(AU8))/LOG(2)))) -> 0
A9: 21 | B9: 208 | C9: 11 | D9: 215 | E9: 11 | F9: 218 | K9: 0 | L9: 211 | N9: 121 | O9: =COUNTIF($L$7:$L$500,N9) -> 0 | P9: =O9/$Q$4 -> 0 | Q9: =IF(P9=0,0,(P9*((LOG(P9))/LOG(2)))) -> 0 | T9: =N9 -> 121 | U9: =COUNTIF(L7:L14,T9) -> 0 | V9: =U9/(W4-U11) -> 0 | W9: =IF(V9=0,0,(V9*((LOG(V9))/LOG(2)))) -> 0 | Y9: =N9 -> 121 | Z9: =COUNTIF(L15:L22,Y9) -> 0 | AA9: =Z9/(AB4-Z11) ->  | AB9: =IF(AA9=0,0,(AA9*((LOG(AA9))/LOG(2)))) ->  | AD9: =N9 -> 121 | AE9: =COUNTIF(L23:L31,AD9) -> 0 | AF9: =AE9/(AG4-AE11) -> 0 | AG9: =IF(AF9=0,0,(AF9*((LOG(AF9))/LOG(2)))) -> 0 | AI9: =N9 -> 121 | AJ9: =COUNTIF(L32:L39,AI9) -> 0 | AK9: =AJ9/(AL4-AJ11) -> 0 | AL9: =IF(AK9=0,0,(AK9*((LOG(AK9))/LOG(2)))) -> 0 | AN9: =N9 -> 121 | AO9: =COUNTIF(L40:L47,AN9) -> 0 | AP9: =AO9/(AQ4-AO11) -> 0 | AQ9: =IF(AP9=0,0,(AP9*((LOG(AP9))/LOG(2)))) -> 0 | AS9: =N9 -> 121 | AT9: =COUNTIF(L48:L55,AS9) -> 0 | AU9: =AT9/(AV4-AT11) -> 0 | AV9: =IF(AU9=0,0,(AU9*((LOG(AU9))/LOG(2)))) -> 0
A10: 12 | B10: 327 | C10: 13 | D10: 337 | E10: 13 | F10: 347 | K10: 0 | L10: 111 | N10: 122 | O10: =COUNTIF($L$7:$L$500,N10) -> 0 | P10: =O10/$Q$4 -> 0 | Q10: =IF(P10=0,0,(P10*((LOG(P10))/LOG(2)))) -> 0 | T10: =N10 -> 122 | U10: =COUNTIF(L7:L14,T10) -> 0 | V10: =U10/(W4-U11) -> 0 | W10: =IF(V10=0,0,(V10*((LOG(V10))/LOG(2)))) -> 0 | Y10: =N10 -> 122 | Z10: =COUNTIF(L15:L22,Y10) -> 0 | AA10: =Z10/(AB4-Z11) ->  | AB10: =IF(AA10=0,0,(AA10*((LOG(AA10))/LOG(2)))) ->  | AD10: =N10 -> 122 | AE10: =COUNTIF(L23:L31,AD10) -> 0 | AF10: =AE10/(AG4-AE11) -> 0 | AG10: =IF(AF10=0,0,(AF10*((LOG(AF10))/LOG(2)))) -> 0 | AI10: =N10 -> 122 | AJ10: =COUNTIF(L32:L39,AI10) -> 0 | AK10: =AJ10/(AL4-AJ11) -> 0 | AL10: =IF(AK10=0,0,(AK10*((LOG(AK10))/LOG(2)))) -> 0 | AN10: =N10 -> 122 | AO10: =COUNTIF(L40:L47,AN10) -> 0 | AP10: =AO10/(AQ4-AO11) -> 0 | AQ10: =IF(AP10=0,0,(AP10*((LOG(AP10))/LOG(2)))) -> 0 | AS10: =N10 -> 122 | AT10: =COUNTIF(L48:L55,AS10) -> 0 | AU10: =AT10/(AV4-AT11) -> 0 | AV10: =IF(AU10=0,0,(AU10*((LOG(AU10))/LOG(2)))) -> 0
A11: 21 | B11: 452 | C11: 11 | D11: 461 | E11: 11 | F11: 464 | K11: 0 | L11: 211 | N11: 211 | O11: =COUNTIF($L$7:$L$500,N11) -> 40 | P11: =O11/$Q$4 -> 0.8163265306 | Q11: =IF(P11=0,0,(P11*((LOG(P11))/LOG(2)))) -> -0.2390055096 | T11: =N11 -> 211 | U11: =COUNTIF(L7:L14,T11) -> 6 | Y11: =N11 -> 211 | Z11: =COUNTIF(L15:L22,Y11) -> 8 | AD11: =N11 -> 211 | AE11: =COUNTIF(L23:L31,AD11) -> 6 | AI11: =N11 -> 211 | AJ11: =COUNTIF(L32:L39,AI11) -> 6 | AN11: =N11 -> 211 | AO11: =COUNTIF(L40:L47,AN11) -> 7 | AS11: =N11 -> 211 | AT11: =COUNTIF(L48:L55,AS11) -> 7
A12: 21 | B12: 552 | C12: 11 | D12: 562 | E12: 11 | F12: 567 | K12: 0 | L12: 211 | N12: 212 | O12: =COUNTIF($L$7:$L$500,N12) -> 0 | P12: =O12/$Q$4 -> 0 | Q12: =IF(P12=0,0,(P12*((LOG(P12))/LOG(2)))) -> 0 | T12: =N12 -> 212 | U12: =COUNTIF(L7:L14,T12) -> 0 | V12: =U12/(W4-U11) -> 0 | W12: =IF(V12=0,0,(V12*((LOG(V12))/LOG(2)))) -> 0 | Y12: =N12 -> 212 | Z12: =COUNTIF(L15:L22,Y12) -> 0 | AA12: =Z12/(AB4-Z11) ->  | AB12: =IF(AA12=0,0,(AA12*((LOG(AA12))/LOG(2)))) ->  | AD12: =N12 -> 212 | AE12: =COUNTIF(L23:L31,AD12) -> 0 | AF12: =AE12/(AG4-AE11) -> 0 | AG12: =IF(AF12=0,0,(AF12*((LOG(AF12))/LOG(2)))) -> 0 | AI12: =N12 -> 212 | AJ12: =COUNTIF(L32:L39,AI12) -> 0 | AK12: =AJ12/(AL4-AJ11) -> 0 | AL12: =IF(AK12=0,0,(AK12*((LOG(AK12))/LOG(2)))) -> 0 | AN12: =N12 -> 212 | AO12: =COUNTIF(L40:L47,AN12) -> 0 | AP12: =AO12/(AQ4-AO11) -> 0 | AQ12: =IF(AP12=0,0,(AP12*((LOG(AP12))/LOG(2)))) -> 0 | AS12: =N12 -> 212 | AT12: =COUNTIF(L48:L55,AS12) -> 0 | AU12: =AT12/(AV4-AT11) -> 0 | AV12: =IF(AU12=0,0,(AU12*((LOG(AU12))/LOG(2)))) -> 0
A13: 21 | B13: 654 | C13: 11 | D13: 671 | E13: 11 | F13: 677 | K13: 0 | L13: 211 | N13: 221 | O13: =COUNTIF($L$7:$L$500,N13) -> 2 | P13: =O13/$Q$4 -> 0.04081632653 | Q13: =IF(P13=0,0,(P13*((LOG(P13))/LOG(2)))) -> -0.1883555038 | T13: =N13 -> 221 | U13: =COUNTIF(L7:L14,T13) -> 0 | V13: =U13/(W4-U11) -> 0 | W13: =IF(V13=0,0,(V13*((LOG(V13))/LOG(2)))) -> 0 | Y13: =N13 -> 221 | Z13: =COUNTIF(L15:L22,Y13) -> 0 | AA13: =Z13/(AB4-Z11) ->  | AB13: =IF(AA13=0,0,(AA13*((LOG(AA13))/LOG(2)))) ->  | AD13: =N13 -> 221 | AE13: =COUNTIF(L23:L31,AD13) -> 1 | AF13: =AE13/(AG4-AE11) -> 0.3333333333 | AG13: =IF(AF13=0,0,(AF13*((LOG(AF13))/LOG(2)))) -> -0.5283208336 | AI13: =N13 -> 221 | AJ13: =COUNTIF(L32:L39,AI13) -> 1 | AK13: =AJ13/(AL4-AJ11) -> 0.5 | AL13: =IF(AK13=0,0,(AK13*((LOG(AK13))/LOG(2)))) -> -0.5 | AN13: =N13 -> 221 | AO13: =COUNTIF(L40:L47,AN13) -> 0 | AP13: =AO13/(AQ4-AO11) -> 0 | AQ13: =IF(AP13=0,0,(AP13*((LOG(AP13))/LOG(2)))) -> 0 | AS13: =N13 -> 221 | AT13: =COUNTIF(L48:L55,AS13) -> 0 | AU13: =AT13/(AV4-AT11) -> 0 | AV13: =IF(AU13=0,0,(AU13*((LOG(AU13))/LOG(2)))) -> 0
A14: 12 | B14: 787 | C14: 13 | D14: 793 | E14: 13 | F14: 803 | K14: 0 | L14: 111 | N14: 222 | O14: =COUNTIF($L$7:$L$500,N14) -> 1 | P14: =O14/$Q$4 -> 0.02040816327 | Q14: =IF(P14=0,0,(P14*((LOG(P14))/LOG(2)))) -> -0.1145859152 | T14: =N14 -> 222 | U14: =COUNTIF(L7:L14,T14) -> 0 | V14: =U14/(W4-U11) -> 0 | W14: =IF(V14=0,0,(V14*((LOG(V14))/LOG(2)))) -> 0 | Y14: =N14 -> 222 | Z14: =COUNTIF(L15:L22,Y14) -> 0 | AA14: =Z14/(AB4-Z11) ->  | AB14: =IF(AA14=0,0,(AA14*((LOG(AA14))/LOG(2)))) ->  | AD14: =N14 -> 222 | AE14: =COUNTIF(L23:L31,AD14) -> 1 | AF14: =AE14/(AG4-AE11) -> 0.3333333333 | AG14: =IF(AF14=0,0,(AF14*((LOG(AF14))/LOG(2)))) -> -0.5283208336 | AI14: =N14 -> 222 | AJ14: =COUNTIF(L32:L39,AI14) -> 0 | AK14: =AJ14/(AL4-AJ11) -> 0 | AL14: =IF(AK14=0,0,(AK14*((LOG(AK14))/LOG(2)))) -> 0 | AN14: =N14 -> 222 | AO14: =COUNTIF(L40:L47,AN14) -> 0 | AP14: =AO14/(AQ4-AO11) -> 0 | AQ14: =IF(AP14=0,0,(AP14*((LOG(AP14))/LOG(2)))) -> 0 | AS14: =N14 -> 222 | AT14: =COUNTIF(L48:L55,AS14) -> 0 | AU14: =AT14/(AV4-AT11) -> 0 | AV14: =IF(AU14=0,0,(AU14*((LOG(AU14))/LOG(2)))) -> 0
A15: 21 | B15: 902 | C15: 11 | D15: 910 | E15: 11 | F15: 914 | K15: 0 | L15: 211 | P15: =SUM(P7:P14) -> 1 | Q15: =-SUM(Q7:Q14) -> 0.9129363992 | V15: =SUM(V7:V14) -> 1 | W15: =-SUM(W7:W14) -> 0 | AA15: =SUM(AA7:AA14) ->  | AB15: =-SUM(AB7:AB14) ->  | AF15: =SUM(AF7:AF14) -> 1 | AG15: =-SUM(AG7:AG14) -> 1.584962501 | AK15: =SUM(AK7:AK14) -> 1 | AL15: =-SUM(AL7:AL14) -> 1 | AP15: =SUM(AP7:AP14) -> 1 | AQ15: =-SUM(AQ7:AQ14) -> 0 | AU15: =SUM(AU7:AU14) -> 1 | AV15: =-SUM(AV7:AV14) -> 0
A16: 21 | B16: 1002 | C16: 11 | D16: 1012 | E16: 11 | F16: 1015 | K16: 0 | L16: 211 | P16: U= | Q16: =Q15/(LOG(Q4)/LOG(2)) -> 0.1625972534 | V16: U1= | W16: =W15/(LOG(W4)/LOG(2)) -> 0 | AA16: U2= | AB16: =AB15/(LOG(AB4)/LOG(2)) ->  | AF16: U3= | AG16: =AG15/(LOG(AG4)/LOG(2)) -> 0.5 | AK16: U4= | AL16: =AL15/(LOG(AL4)/LOG(2)) -> 0.3333333333 | AP16: U5= | AQ16: =AQ15/(LOG(AQ4)/LOG(2)) -> 0 | AU16: U6= | AV16: =AV15/(LOG(AV4)/LOG(2)) -> 0
A17: 21 | B17: 1109 | C17: 11 | D17: 1118 | E17: 11 | F17: 1127 | K17: 0 | L17: 211
A18: 21 | B18: 1215 | C18: 11 | D18: 1223 | E18: 11 | F18: 1227 | K18: 0 | L18: 211
A19: 21 | B19: 1323 | C19: 11 | D19: 1331 | E19: 11 | F19: 1338 | K19: 0 | L19: 211 | N19: Total Target Seq
A20: 21 | B20: 1426 | C20: 11 | D20: 1443 | E20: 11 | F20: 1455 | K20: 0 | L20: 211 | N20: =COUNTIF(L7:L55,G3) -> 40 | P20: 8 | Q20: 8 | R20: 9 | S20: 8 | T20: 8 | U20: 8
A21: 21 | B21: 1543 | C21: 11 | D21: 1558 | E21: 11 | F21: 1561 | K21: 0 | L21: 211 | P21: % of reinforcement given in 6 equal intervals based on number of trials
A22: 21 | B22: 1650 | C22: 11 | D22: 1675 | E22: 11 | F22: 1682 | K22: 0 | L22: 211 | P22: %_1 | Q22: %_2 | R22: %_3 | S22: %_4 | T22: %_5 | U22: %_6
A23: 21 | B23: 1770 | C23: 22 | D23: 1774 | E23: 13 | F23: 1788 | K23: 0 | L23: 221 | O23: target sequence | P23: =$G$3 -> 211 | Q23: =$G$3 -> 211 | R23: =$G$3 -> 211 | S23: =$G$3 -> 211 | T23: =$G$3 -> 211 | U23: =$G$3 -> 211
A24: 12 | B24: 1894 | C24: 13 | D24: 1903 | E24: 13 | F24: 1914 | K24: 0 | L24: 111 | O24: total reinforcement | P24: =U11 -> 6 | Q24: =Z11 -> 8 | R24: =AE11 -> 6 | S24: =AJ11 -> 6 | T24: =AO11 -> 7 | U24: =AT11 -> 7
A25: 21 | B25: 2011 | C25: 11 | D25: 2020 | E25: 11 | F25: 2023 | K25: 0 | L25: 211 | O25: % target
A26: 21 | B26: 2124 | C26: 11 | D26: 2138 | E26: 11 | F26: 2141 | K26: 0 | L26: 211 | O26: CCRF
A27: 21 | B27: 2229 | C27: 11 | D27: 2257 | E27: 11 | F27: 2266 | K27: 0 | L27: 211 | O27: % CCRf
A28: 21 | B28: 2354 | C28: 22 | D28: 2362 | E28: 24 | F28: 2368 | K28: 0 | L28: 222 | O28: average response rate | P28: =F14/P20 -> 100.375 | Q28: =(F22-F14)/Q20 -> 109.875 | R28: =(F31-F22)/R20 -> 111 | S28: =(F39-F31)/S20 -> 104.125 | T28: =(F47-F39)/T20 -> 113 | U28: =(F55-F47)/U20 -> 106
A29: 21 | B29: 2471 | C29: 11 | D29: 2479 | E29: 11 | F29: 2484 | K29: 0 | L29: 211
A30: 21 | B30: 2572 | C30: 11 | D30: 2579 | E30: 11 | F30: 2583 | K30: 0 | L30: 211
A31: 21 | B31: 2670 | C31: 11 | D31: 2677 | E31: 11 | F31: 2681 | K31: 0 | L31: 211
A32: 21 | B32: 2769 | C32: 11 | D32: 2776 | E32: 11 | F32: 2780 | K32: 0 | L32: 211
A33: 21 | B33: 2867 | C33: 11 | D33: 2876 | E33: 11 | F33: 2882 | K33: 0 | L33: 211
A34: 21 | B34: 2972 | C34: 11 | D34: 2980 | E34: 11 | F34: 2983 | K34: 0 | L34: 211
A35: 21 | B35: 3070 | C35: 22 | D35: 3074 | E35: 13 | F35: 3084 | K35: 0 | L35: 221
A36: 21 | B36: 3182 | C36: 11 | D36: 3189 | E36: 11 | F36: 3192 | K36: 0 | L36: 211
A37: 21 | B37: 3281 | C37: 11 | D37: 3288 | E37: 11 | F37: 3293 | K37: 0 | L37: 211
A38: 12 | B38: 3391 | C38: 13 | D38: 3394 | E38: 13 | F38: 3404 | K38: 0 | L38: 111
A39: 21 | B39: 3504 | C39: 11 | D39: 3511 | E39: 11 | F39: 3514 | K39: 0 | L39: 211
A40: 21 | B40: 3616 | C40: 11 | D40: 3629 | E40: 11 | F40: 3638 | K40: 0 | L40: 211
A41: 12 | B41: 3748 | C41: 13 | D41: 3753 | E41: 13 | F41: 3763 | K41: 0 | L41: 111
A42: 21 | B42: 3865 | C42: 11 | D42: 3873 | E42: 11 | F42: 3881 | K42: 0 | L42: 211
A43: 21 | B43: 3969 | C43: 11 | D43: 3983 | E43: 11 | F43: 3994 | K43: 0 | L43: 211
A44: 21 | B44: 4081 | C44: 11 | D44: 4098 | E44: 11 | F44: 4104 | K44: 0 | L44: 211
A45: 21 | B45: 4197 | C45: 11 | D45: 4211 | E45: 11 | F45: 4214 | K45: 0 | L45: 211
A46: 21 | B46: 4300 | C46: 11 | D46: 4314 | E46: 11 | F46: 4319 | K46: 0 | L46: 211
A47: 21 | B47: 4406 | C47: 11 | D47: 4414 | E47: 11 | F47: 4418 | K47: 0 | L47: 211
A48: 21 | B48: 4505 | C48: 11 | D48: 4514 | E48: 11 | F48: 4518 | K48: 0 | L48: 211
A49: 21 | B49: 4614 | C49: 11 | D49: 4621 | E49: 11 | F49: 4625 | K49: 0 | L49: 211
A50: 21 | B50: 4727 | C50: 11 | D50: 4737 | E50: 11 | F50: 4744 | K50: 0 | L50: 211
A51: 21 | B51: 4832 | C51: 11 | D51: 4839 | E51: 11 | F51: 4842 | K51: 0 | L51: 211
A52: 21 | B52: 4930 | C52: 11 | D52: 4937 | E52: 11 | F52: 4940 | K52: 0 | L52: 211
A53: 12 | B53: 5044 | C53: 13 | D53: 5050 | E53: 13 | F53: 5059 | K53: 0 | L53: 111
A54: 21 | B54: 5157 | C54: 11 | D54: 5165 | E54: 11 | F54: 5168 | K54: 0 | L54: 211
A55: 21 | B55: 5255 | C55: 11 | D55: 5263 | E55: 11 | F55: 5266 | K55: 1 | L55: 211

Sheet !N523C10.010
A1: Report for:!N523C10.010
A2: Date: | B2: <date>
A3: Hen: | B3: <hen> | F3: Correct Sequence | G3: =Start!J2 -> 211 | P3: Total Sequences in Data | Q3: =4994-COUNTBLANK(L7:L5000) -> 46 | V3: Total Sequences in Block Data | W3: =COUNTA(L7:L14) -> 8 | AA3: Total Sequences in Block Data | AB3: =COUNTA(L15:L21) -> 7 | AF3: Total Sequences in Block Data | AG3: =COUNTA(L22:L29) -> 8 | AK3: Total Sequences in Block Data | AL3: =COUNTA(L30:L37) -> 8 | AP3: Total Sequences in Block Data | AQ3: =COUNTA(L38:L44) -> 7 | AU3: Total Sequences in Block Data | AV3: =COUNTA(L45:L52) -> 8
P4: Total Sequences in Summary | Q4: =SUM(O7:O14) -> 46 | V4: Total Sequences in Block Summary | W4: =SUM(U7:U14) -> 8 | AA4: Total Sequences in Block Summary | AB4: =SUM(Z7:Z14) -> 7 | AF4: Total Sequences in Block Summary | AG4: =SUM(AE7:AE14) -> 8 | AK4: Total Sequences in Block Summary | AL4: =SUM(AJ7:AJ14) -> 8 | AP4: Total Sequences in Block Summary | AQ4: =SUM(AO7:AO14) -> 7 | AU4: Total Sequences in Block Summary | AV4: =SUM(AT7:AT14) -> 8
T5: Block 1 | Y5: Block 2 | AD5: Block 3 | AI5: Block 4 | AN5: Block 5 | AS5: Block 6
A6: Sequence Component 1 | B6: Time 1 | C6: Sequence Component 2 | D6: Time 2 | E6: Sequence Component 3 | F6: Time 3 | G6: Sequence Component 4 | H6: Time 4 | I6: Sequence Component 5 | J6: Time 5 | K6: Correct? 0=No 1=Yes | L6: Sequence | N6: Frequency | P6: Relative Frequency | Q6: Variability | T6: Frequency | V6: Relative Frequency | W6: Variability | Y6: Frequency | AA6: Relative Frequency | AB6: Variability | AD6: Frequency | AF6: Relative Frequency | AG6: Variability | AI6: Frequency | AK6: Relative Frequency | AL6: Variability | AN6: Frequency | AP6: Relative Frequency | AQ6: Variability | AS6: Frequency | AU6: Relative Frequency | AV6: Variability
A7: 12 | B7: 9 | C7: 13 | D7: 13 | E7: 13 | F7: 18 | K7: 0 | L7: 111 | N7: 111 | O7: =COUNTIF($L$7:$L$500,N7) -> 5 | P7: =O7/$Q$4 -> 0.1086956522 | Q7: =IF(P7=0,0,(P7*((LOG(P7))/LOG(2)))) -> -0.3480036806 | T7: =N7 -> 111 | U7: =COUNTIF(L7:L14,T7) -> 1 | V7: =U7/(W4-U11) -> 1 | W7: =IF(V7=0,0,(V7*((LOG(V7))/LOG(2)))) -> 0 | Y7: =N7 -> 111 | Z7: =COUNTIF(L15:L21,Y7) -> 1 | AA7: =Z7/(AB4-Z11) -> 0.5 | AB7: =IF(AA7=0,0,(AA7*((LOG(AA7))/LOG(2)))) -> -0.5 | AD7: =N7 -> 111 | AE7: =COUNTIF(L22:L29,AD7) -> 1 | AF7: =AE7/(AG4-AE11) -> 1 | AG7: =IF(AF7=0,0,(AF7*((LOG(AF7))/LOG(2)))) -> 0 | AI7: =N7 -> 111 | AJ7: =COUNTIF(L30:L37,AI7) -> 0 | AK7: =AJ7/(AL4-AJ11) ->  | AL7: =IF(AK7=0,0,(AK7*((LOG(AK7))/LOG(2)))) ->  | AN7: =N7 -> 111 | AO7: =COUNTIF(L38:L44,AN7) -> 1 | AP7: =AO7/(AQ4-AO11) -> 1 | AQ7: =IF(AP7=0,0,(AP7*((LOG(AP7))/LOG(2)))) -> 0 | AS7: =N7 -> 111 | AT7: =COUNTIF(L45:L52,AS7) -> 1 | AU7: =AT7/(AV4-AT11) -> 1 | AV7: =IF(AU7=0,0,(AU7*((LOG(AU7))/LOG(2)))) -> 0
A8: 21 | B8: 117 | C8: 11 | D8: 124 | E8: 11 | F8: 127 | K8: 0 | L8: 211 | N8: 112 | O8: =COUNTIF($L$7:$L$500,N8) -> 0 | P8: =O8/$Q$4 -> 0 | Q8: =IF(P8=0,0,(P8*((LOG(P8))/LOG(2)))) -> 0 | T8: =N8 -> 112 | U8: =COUNTIF(L7:L14,T8) -> 0 | V8: =U8/(W4-U11) -> 0 | W8: =IF(V8=0,0,(V8*((LOG(V8))/LOG(2)))) -> 0 | Y8: =N8 -> 112 | Z8: =COUNTIF(L15:L21,Y8) -> 0 | AA8: =Z8/(AB4-Z11) -> 0 | AB8: =IF(AA8=0,0,(AA8*((LOG(AA8))/LOG(2)))) -> 0 | AD8: =N8 -> 112 | AE8: =COUNTIF(L22:L29,AD8) -> 0 | AF8: =AE8/(AG4-AE11) -> 0 | AG8: =IF(AF8=0,0,(AF8*((LOG(AF8))/LOG(2)))) -> 0 | AI8: =N8 -> 112 | AJ8: =COUNTIF(L30:L37,AI8) -> 0 | AK8: =AJ8/(AL4-AJ11) ->  | AL8: =IF(AK8=0,0,(AK8*((LOG(AK8))/LOG(2)))) ->  | AN8: =N8 -> 112 | AO8: =COUNTIF(L38:L44,AN8) -> 0 | AP8: =AO8/(AQ4-AO11) -> 0 | AQ8: =IF(AP8=0,0,(AP8*((LOG(AP8))/LOG(2)))) -> 0 | AS8: =N8 -> 112 | AT8: =COUNTIF(L45:L52,AS8) -> 0 | AU8: =AT8/(AV4-AT11) -> 0 | AV8: =IF(AU8=0,0,(AU8*((LOG(AU8))/LOG(2)))) -> 0
A9: 21 | B9: 215 | C9: 11 | D9: 222 | E9: 11 | F9: 225 | K9: 0 | L9: 211 | N9: 121 | O9: =COUNTIF($L$7:$L$500,N9) -> 0 | P9: =O9/$Q$4 -> 0 | Q9: =IF(P9=0,0,(P9*((LOG(P9))/LOG(2)))) -> 0 | T9: =N9 -> 121 | U9: =COUNTIF(L7:L14,T9) -> 0 | V9: =U9/(W4-U11) -> 0 | W9: =IF(V9=0,0,(V9*((LOG(V9))/LOG(2)))) -> 0 | Y9: =N9 -> 121 | Z9: =COUNTIF(L15:L21,Y9) -> 0 | AA9: =Z9/(AB4-Z11) -> 0 | AB9: =IF(AA9=0,0,(AA9*((LOG(AA9))/LOG(2)))) -> 0 | AD9: =N9 -> 121 | AE9: =COUNTIF(L22:L29,AD9) -> 0 | AF9: =AE9/(AG4-AE11) -> 0 | AG9: =IF(AF9=0,0,(AF9*((LOG(AF9))/LOG(2)))) -> 0 | AI9: =N9 -> 121 | AJ9: =COUNTIF(L30:L37,AI9) -> 0 | AK9: =AJ9/(AL4-AJ11) ->  | AL9: =IF(AK9=0,0,(AK9*((LOG(AK9))/LOG(2)))) ->  | AN9: =N9 -> 121 | AO9: =COUNTIF(L38:L44,AN9) -> 0 | AP9: =AO9/(AQ4-AO11) -> 0 | AQ9: =IF(AP9=0,0,(AP9*((LOG(AP9))/LOG(2)))) -> 0 | AS9: =N9 -> 121 | AT9: =COUNTIF(L45:L52,AS9) -> 0 | AU9: =AT9/(AV4-AT11) -> 0 | AV9: =IF(AU9=0,0,(AU9*((LOG(AU9))/LOG(2)))) -> 0
A10: 21 | B10: 315 | C10: 11 | D10: 322 | E10: 11 | F10: 329 | K10: 0 | L10: 211 | N10: 122 | O10: =COUNTIF($L$7:$L$500,N10) -> 0 | P10: =O10/$Q$4 -> 0 | Q10: =IF(P10=0,0,(P10*((LOG(P10))/LOG(2)))) -> 0 | T10: =N10 -> 122 | U10: =COUNTIF(L7:L14,T10) -> 0 | V10: =U10/(W4-U11) -> 0 | W10: =IF(V10=0,0,(V10*((LOG(V10))/LOG(2)))) -> 0 | Y10: =N10 -> 122 | Z10: =COUNTIF(L15:L21,Y10) -> 0 | AA10: =Z10/(AB4-Z11) -> 0 | AB10: =IF(AA10=0,0,(AA10*((LOG(AA10))/LOG(2)))) -> 0 | AD10: =N10 -> 122 | AE10: =COUNTIF(L22:L29,AD10) -> 0 | AF10: =AE10/(AG4-AE11) -> 0 | AG10: =IF(AF10=0,0,(AF10*((LOG(AF10))/LOG(2)))) -> 0 | AI10: =N10 -> 122 | AJ10: =COUNTIF(L30:L37,AI10) -> 0 | AK10: =AJ10/(AL4-AJ11) ->  | AL10: =IF(AK10=0,0,(AK10*((LOG(AK10))/LOG(2)))) ->  | AN10: =N10 -> 122 | AO10: =COUNTIF(L38:L44,AN10) -> 0 | AP10: =AO10/(AQ4-AO11) -> 0 | AQ10: =IF(AP10=0,0,(AP10*((LOG(AP10))/LOG(2)))) -> 0 | AS10: =N10 -> 122 | AT10: =COUNTIF(L45:L52,AS10) -> 0 | AU10: =AT10/(AV4-AT11) -> 0 | AV10: =IF(AU10=0,0,(AU10*((LOG(AU10))/LOG(2)))) -> 0
A11: 21 | B11: 426 | C11: 11 | D11: 433 | E11: 11 | F11: 440 | K11: 0 | L11: 211 | N11: 211 | O11: =COUNTIF($L$7:$L$500,N11) -> 40 | P11: =O11/$Q$4 -> 0.8695652174 | Q11: =IF(P11=0,0,(P11*((LOG(P11))/LOG(2)))) -> -0.1753337923 | T11: =N11 -> 211 | U11: =COUNTIF(L7:L14,T11) -> 7 | Y11: =N11 -> 211 | Z11: =COUNTIF(L15:L21,Y11) -> 5 | AD11: =N11 -> 211 | AE11: =COUNTIF(L22:L29,AD11) -> 7 | AI11: =N11 -> 211 | AJ11: =COUNTIF(L30:L37,AI11) -> 8 | AN11: =N11 -> 211 | AO11: =COUNTIF(L38:L44,AN11) -> 6 | AS11: =N11 -> 211 | AT11: =COUNTIF(L45:L52,AS11) -> 7
A12: 21 | B12: 530 | C12: 11 | D12: 549 | E12: 11 | F12: 555 | K12: 0 | L12: 211 | N12: 212 | O12: =COUNTIF($L$7:$L$500,N12) -> 0 | P12: =O12/$Q$4 -> 0 | Q12: =IF(P12=0,0,(P12*((LOG(P12))/LOG(2)))) -> 0 | T12: =N12 -> 212 | U12: =COUNTIF(L7:L14,T12) -> 0 | V12: =U12/(W4-U11) -> 0 | W12: =IF(V12=0,0,(V12*((LOG(V12))/LOG(2)))) -> 0 | Y12: =N12 -> 212 | Z12: =COUNTIF(L15:L21,Y12) -> 0 | AA12: =Z12/(AB4-Z11) -> 0 | AB12: =IF(AA12=0,0,(AA12*((LOG(AA12))/LOG(2)))) -> 0 | AD12: =N12 -> 212 | AE12: =COUNTIF(L22:L29,AD12) -> 0 | AF12: =AE12/(AG4-AE11) -> 0 | AG12: =IF(AF12=0,0,(AF12*((LOG(AF12))/LOG(2)))) -> 0 | AI12: =N12 -> 212 | AJ12: =COUNTIF(L30:L37,AI12) -> 0 | AK12: =AJ12/(AL4-AJ11) ->  | AL12: =IF(AK12=0,0,(AK12*((LOG(AK12))/LOG(2)))) ->  | AN12: =N12 -> 212 | AO12: =COUNTIF(L38:L44,AN12) -> 0 | AP12: =AO12/(AQ4-AO11) -> 0 | AQ12: =IF(AP12=0,0,(AP12*((LOG(AP12))/LOG(2)))) -> 0 | AS12: =N12 -> 212 | AT12: =COUNTIF(L45:L52,AS12) -> 0 | AU12: =AT12/(AV4-AT11) -> 0 | AV12: =IF(AU12=0,0,(AU12*((LOG(AU12))/LOG(2)))) -> 0
A13: 21 | B13: 642 | C13: 11 | D13: 651 | E13: 11 | F13: 654 | K13: 0 | L13: 211 | N13: 221 | O13: =COUNTIF($L$7:$L$500,N13) -> 1 | P13: =O13/$Q$4 -> 0.02173913043 | Q13: =IF(P13=0,0,(P13*((LOG(P13))/LOG(2)))) -> -0.1200774338 | T13: =N13 -> 221 | U13: =COUNTIF(L7:L14,T13) -> 0 | V13: =U13/(W4-U11) -> 0 | W13: =IF(V13=0,0,(V13*((LOG(V13))/LOG(2)))) -> 0 | Y13: =N13 -> 221 | Z13: =COUNTIF(L15:L21,Y13) -> 1 | AA13: =Z13/(AB4-Z11) -> 0.5 | AB13: =IF(AA13=0,0,(AA13*((LOG(AA13))/LOG(2)))) -> -0.5 | AD13: =N13 -> 221 | AE13: =COUNTIF(L22:L29,AD13) -> 0 | AF13: =AE13/(AG4-AE11) -> 0 | AG13: =IF(AF13=0,0,(AF13*((LOG(AF13))/LOG(2)))) -> 0 | AI13: =N13 -> 221 | AJ13: =COUNTIF(L30:L37,AI13) -> 0 | AK13: =AJ13/(AL4-AJ11) ->  | AL13: =IF(AK13=0,0,(AK13*((LOG(AK13))/LOG(2)))) ->  | AN13: =N13 -> 221 | AO13: =COUNTIF(L38:L44,AN13) -> 0 | AP13: =AO13/(AQ4-AO11) -> 0 | AQ13: =IF(AP13=0,0,(AP13*((LOG(AP13))/LOG(2)))) -> 0 | AS13: =N13 -> 221 | AT13: =COUNTIF(L45:L52,AS13) -> 0 | AU13: =AT13/(AV4-AT11) -> 0 | AV13: =IF(AU13=0,0,(AU13*((LOG(AU13))/LOG(2)))) -> 0
A14: 21 | B14: 742 | C14: 11 | D14: 756 | E14: 11 | F14: 762 | K14: 0 | L14: 211 | N14: 222 | O14: =COUNTIF($L$7:$L$500,N14) -> 0 | P14: =O14/$Q$4 -> 0 | Q14: =IF(P14=0,0,(P14*((LOG(P14))/LOG(2)))) -> 0 | T14: =N14 -> 222 | U14: =COUNTIF(L7:L14,T14) -> 0 | V14: =U14/(W4-U11) -> 0 | W14: =IF(V14=0,0,(V14*((LOG(V14))/LOG(2)))) -> 0 | Y14: =N14 -> 222 | Z14: =COUNTIF(L15:L21,Y14) -> 0 | AA14: =Z14/(AB4-Z11) -> 0 | AB14: =IF(AA14=0,0,(AA14*((LOG(AA14))/LOG(2)))) -> 0 | AD14: =N14 -> 222 | AE14: =COUNTIF(L22:L29,AD14) -> 0 | AF14: =AE14/(AG4-AE11) -> 0 | AG14: =IF(AF14=0,0,(AF14*((LOG(AF14))/LOG(2)))) -> 0 | AI14: =N14 -> 222 | AJ14: =COUNTIF(L30:L37,AI14) -> 0 | AK14: =AJ14/(AL4-AJ11) ->  | AL14: =IF(AK14=0,0,(AK14*((LOG(AK14))/LOG(2)))) ->  | AN14: =N14 -> 222 | AO14: =COUNTIF(L38:L44,AN14) -> 0 | AP14: =AO14/(AQ4-AO11) -> 0 | AQ14: =IF(AP14=0,0,(AP14*((LOG(AP14))/LOG(2)))) -> 0 | AS14: =N14 -> 222 | AT14: =COUNTIF(L45:L52,AS14) -> 0 | AU14: =AT14/(AV4-AT11) -> 0 | AV14: =IF(AU14=0,0,(AU14*((LOG(AU14))/LOG(2)))) -> 0
A15: 21 | B15: 853 | C15: 11 | D15: 860 | E15: 11 | F15: 863 | K15: 0 | L15: 211 | P15: =SUM(P7:P14) -> 1 | Q15: =-SUM(Q7:Q14) -> 0.6434149067 | V15: =SUM(V7:V14) -> 1 | W15: =-SUM(W7:W14) -> 0 | AA15: =SUM(AA7:AA14) -> 1 | AB15: =-SUM(AB7:AB14) -> 1 | AF15: =SUM(AF7:AF14) -> 1 | AG15: =-SUM(AG7:AG14) -> 0 | AK15: =SUM(AK7:AK14) ->  | AL15: =-SUM(AL7:AL14) ->  | AP15: =SUM(AP7:AP14) -> 1 | AQ15: =-SUM(AQ7:AQ14) -> 0 | AU15: =SUM(AU7:AU14) -> 1 | AV15: =-SUM(AV7:AV14) -> 0
A16: 21 | B16: 951 | C16: 22 | D16: 956 | E16: 13 | F16: 973 | K16: 0 | L16: 221 | P16: U= | Q16: =Q15/(LOG(Q4)/LOG(2)) -> 0.1164855055 | V16: U1= | W16: =W15/(LOG(W4)/LOG(2)) -> 0 | AA16: U2= | AB16: =AB15/(LOG(AB4)/LOG(2)) -> 0.3562071871 | AF16: U3= | AG16: =AG15/(LOG(AG4)/LOG(2)) -> 0 | AK16: U4= | AL16: =AL15/(LOG(AL4)/LOG(2)) ->  | AP16: U5= | AQ16: =AQ15/(LOG(AQ4)/LOG(2)) -> 0 | AU16: U6= | AV16: =AV15/(LOG(AV4)/LOG(2)) -> 0
A17: 21 | B17: 1064 | C17: 11 | D17: 1075 | E17: 11 | F17: 1082 | K17: 0 | L17: 211
A18: 21 | B18: 1170 | C18: 11 | D18: 1192 | E18: 11 | F18: 1202 | K18: 0 | L18: 211
A19: 21 | B19: 1291 | C19: 11 | D19: 1299 | E19: 11 | F19: 1302 | K19: 0 | L19: 211 | N19: Total Target Seq
A20: 12 | B20: 1409 | C20: 13 | D20: 1422 | E20: 13 | F20: 1428 | K20: 0 | L20: 111 | N20: =COUNTIF(L7:L52,G3) -> 40 | P20: 8 | Q20: 7 | R20: 8 | S20: 8 | T20: 7 | U20: 8
A21: 21 | B21: 1532 | C21: 11 | D21: 1549 | E21: 11 | F21: 1555 | K21: 0 | L21: 211 | P21: % of reinforcement given in 6 equal intervals based on number of trials
A22: 21 | B22: 1643 | C22: 11 | D22: 1653 | E22: 11 | F22: 1656 | K22: 0 | L22: 211 | P22: %_1 | Q22: %_2 | R22: %_3 | S22: %_4 | T22: %_5 | U22: %_6
A23: 21 | B23: 1744 | C23: 11 | D23: 1755 | E23: 11 | F23: 1761 | K23: 0 | L23: 211 | O23: target sequence | P23: =$G$3 -> 211 | Q23: =$G$3 -> 211 | R23: =$G$3 -> 211 | S23: =$G$3 -> 211 | T23: =$G$3 -> 211 | U23: =$G$3 -> 211
A24: 21 | B24: 1848 | C24: 11 | D24: 1856 | E24: 11 | F24: 1859 | K24: 0 | L24: 211 | O24: total reinforcement | P24: =U11 -> 7 | Q24: =Z11 -> 5 | R24: =AE11 -> 7 | S24: =AJ11 -> 8 | T24: =AO11 -> 6 | U24: =AT11 -> 7
A25: 21 | B25: 1948 | C25: 11 | D25: 1956 | E25: 11 | F25: 1966 | K25: 0 | L25: 211 | O25: % target
A26: 21 | B26: 2054 | C26: 11 | D26: 2062 | E26: 11 | F26: 2066 | K26: 0 | L26: 211 | O26: CCRF
A27: 21 | B27: 2153 | C27: 11 | D27: 2160 | E27: 11 | F27: 2164 | K27: 0 | L27: 211 | O27: % CCRf
A28: 21 | B28: 2258 | C28: 11 | D28: 2274 | E28: 11 | F28: 2278 | K28: 0 | L28: 211 | O28: average response rate | P28: =F14/P20 -> 95.25 | Q28: =(F21-F14)/Q20 -> 113.2857143 | R28: =(F29-F21)/R20 -> 107.625 | S28: =(F37-F29)/S20 -> 102.625 | T28: =(F44-F37)/T20 -> 108 | U28: =(F52-F44)/U20 -> 111.125
A29: 12 | B29: 2385 | C29: 13 | D29: 2392 | E29: 13 | F29: 2416 | K29: 0 | L29: 111
A30: 21 | B30: 2514 | C30: 11 | D30: 2522 | E30: 11 | F30: 2525 | K30: 0 | L30: 211
A31: 21 | B31: 2612 | C31: 11 | D31: 2620 | E31: 11 | F31: 2624 | K31: 0 | L31: 211
A32: 21 | B32: 2711 | C32: 11 | D32: 2718 | E32: 11 | F32: 2732 | K32: 0 | L32: 211
A33: 21 | B33: 2818 | C33: 11 | D33: 2828 | E33: 11 | F33: 2831 | K33: 0 | L33: 211
A34: 21 | B34: 2918 | C34: 11 | D34: 2935 | E34: 11 | F34: 2942 | K34: 0 | L34: 211
A35: 21 | B35: 3028 | C35: 11 | D35: 3039 | E35: 11 | F35: 3043 | K35: 0 | L35: 211
A36: 21 | B36: 3130 | C36: 11 | D36: 3137 | E36: 11 | F36: 3140 | K36: 0 | L36: 211
A37: 21 | B37: 3227 | C37: 11 | D37: 3234 | E37: 11 | F37: 3237 | K37: 0 | L37: 211
A38: 21 | B38: 3327 | C38: 11 | D38: 3347 | E38: 11 | F38: 3354 | K38: 0 | L38: 211
A39: 21 | B39: 3442 | C39: 11 | D39: 3450 | E39: 11 | F39: 3453 | K39: 0 | L39: 211
A40: 12 | B40: 3559 | C40: 13 | D40: 3562 | E40: 13 | F40: 3576 | K40: 0 | L40: 111
A41: 21 | B41: 3672 | C41: 11 | D41: 3680 | E41: 11 | F41: 3684 | K41: 0 | L41: 211
A42: 21 | B42: 3771 | C42: 11 | D42: 3779 | E42: 11 | F42: 3782 | K42: 0 | L42: 211
A43: 21 | B43: 3868 | C43: 11 | D43: 3875 | E43: 11 | F43: 3879 | K43: 0 | L43: 211
A44: 21 | B44: 3967 | C44: 11 | D44: 3980 | E44: 11 | F44: 3993 | K44: 0 | L44: 211
A45: 21 | B45: 4079 | C45: 11 | D45: 4087 | E45: 11 | F45: 4091 | K45: 0 | L45: 211
A46: 21 | B46: 4177 | C46: 11 | D46: 4189 | E46: 11 | F46: 4199 | K46: 0 | L46: 211
A47: 12 | B47: 4300 | C47: 13 | D47: 4303 | E47: 13 | F47: 4313 | K47: 0 | L47: 111
A48: 21 | B48: 4419 | C48: 11 | D48: 4435 | E48: 11 | F48: 4444 | K48: 0 | L48: 211
A49: 21 | B49: 4532 | C49: 11 | D49: 4540 | E49: 11 | F49: 4544 | K49: 0 | L49: 211
A50: 21 | B50: 4630 | C50: 11 | D50: 4647 | E50: 11 | F50: 4654 | K50: 0 | L50: 211
A51: 21 | B51: 4744 | C51: 11 | D51: 4767 | E51: 11 | F51: 4784 | K51: 0 | L51: 211
A52: 21 | B52: 4871 | C52: 11 | D52: 4879 | E52: 11 | F52: 4882 | K52: 1 | L52: 211

Sheet !N524A00.010
A1: Report for:!N524A00.010
A2: Date: | B2: <date>
A3: Hen: | B3: <hen> | F3: Correct Sequence | G3: =Start!J2 -> 211 | P3: Total Sequences in Data | Q3: =4994-COUNTBLANK(L7:L5000) -> 53 | V3: Total Sequences in Block Data | W3: =COUNTA(L7:L15) -> 9 | AA3: Total Sequences in Block Data | AB3: =COUNTA(L16:L24) -> 9 | AF3: Total Sequences in Block Data | AG3: =COUNTA(L25:L32) -> 8 | AK3: Total Sequences in Block Data | AL3: =COUNTA(L33:L41) -> 9 | AP3: Total Sequences in Block Data | AQ3: =COUNTA(L42:L50) -> 9 | AU3: Total Sequences in Block Data | AV3: =COUNTA(L51:L59) -> 9
P4: Total Sequences in Summary | Q4: =SUM(O7:O14) -> 53 | V4: Total Sequences in Block Summary | W4: =SUM(U7:U14) -> 9 | AA4: Total Sequences in Block Summary | AB4: =SUM(Z7:Z14) -> 9 | AF4: Total Sequences in Block Summary | AG4: =SUM(AE7:AE14) -> 8 | AK4: Total Sequences in Block Summary | AL4: =SUM(AJ7:AJ14) -> 9 | AP4: Total Sequences in Block Summary | AQ4: =SUM(AO7:AO14) -> 9 | AU4: Total Sequences in Block Summary | AV4: =SUM(AT7:AT14) -> 9
T5: Block 1 | Y5: Block 2 | AD5: Block 3 | AI5: Block 4 | AN5: Block 5 | AS5: Block 6
A6: Sequence Component 1 | B6: Time 1 | C6: Sequence Component 2 | D6: Time 2 | E6: Sequence Component 3 | F6: Time 3 | G6: Sequence Component 4 | H6: Time 4 | I6: Sequence Component 5 | J6: Time 5 | K6: Correct? 0=No 1=Yes | L6: Sequence | N6: Frequency | P6: Relative Frequency | Q6: Variability | T6: Frequency | V6: Relative Frequency | W6: Variability | Y6: Frequency | AA6: Relative Frequency | AB6: Variability | AD6: Frequency | AF6: Relative Frequency | AG6: Variability | AI6: Frequency | AK6: Relative Frequency | AL6: Variability | AN6: Frequency | AP6: Relative Frequency | AQ6: Variability | AS6: Frequency | AU6: Relative Frequency | AV6: Variability
A7: 21 | B7: 12 | C7: 11 | D7: 18 | E7: 11 | F7: 21 | K7: 0 | L7: 211 | N7: 111 | O7: =COUNTIF($L$7:$L$500,N7) -> 8 | P7: =O7/$Q$4 -> 0.1509433962 | Q7: =IF(P7=0,0,(P7*((LOG(P7))/LOG(2)))) -> -0.411761578 | T7: =N7 -> 111 | U7: =COUNTIF(L7:L15,T7) -> 3 | V7: =U7/(W4-U11) -> 1 | W7: =IF(V7=0,0,(V7*((LOG(V7))/LOG(2)))) -> 0 | Y7: =N7 -> 111 | Z7: =COUNTIF(L16:L24,Y7) -> 1 | AA7: =Z7/(AB4-Z11) -> 0.25 | AB7: =IF(AA7=0,0,(AA7*((LOG(AA7))/LOG(2)))) -> -0.5 | AD7: =N7 -> 111 | AE7: =COUNTIF(L25:L32,AD7) -> 0 | AF7: =AE7/(AG4-AE11) -> 0 | AG7: =IF(AF7=0,0,(AF7*((LOG(AF7))/LOG(2)))) -> 0 | AI7: =N7 -> 111 | AJ7: =COUNTIF(L33:L41,AI7) -> 1 | AK7: =AJ7/(AL4-AJ11) -> 1 | AL7: =IF(AK7=0,0,(AK7*((LOG(AK7))/LOG(2)))) -> 0 | AN7: =N7 -> 111 | AO7: =COUNTIF(L42:L50,AN7) -> 3 | AP7: =AO7/(AQ4-AO11) -> 1 | AQ7: =IF(AP7=0,0,(AP7*((LOG(AP7))/LOG(2)))) -> 0 | AS7: =N7 -> 111 | AT7: =COUNTIF(L51:L59,AS7) -> 0 | AU7: =AT7/(AV4-AT11) -> 0 | AV7: =IF(AU7=0,0,(AU7*((LOG(AU7))/LOG(2)))) -> 0
A8: 21 | B8: 109 | C8: 11 | D8: 129 | E8: 11 | F8: 138 | K8: 0 | L8: 211 | N8: 112 | O8: =COUNTIF($L$7:$L$500,N8) -> 0 | P8: =O8/$Q$4 -> 0 | Q8: =IF(P8=0,0,(P8*((LOG(P8))/LOG(2)))) -> 0 | T8: =N8 -> 112 | U8: =COUNTIF(L7:L15,T8) -> 0 | V8: =U8/(W4-U11) -> 0 | W8: =IF(V8=0,0,(V8*((LOG(V8))/LOG(2)))) -> 0 | Y8: =N8 -> 112 | Z8: =COUNTIF(L16:L24,Y8) -> 0 | AA8: =Z8/(AB4-Z11) -> 0 | AB8: =IF(AA8=0,0,(AA8*((LOG(AA8))/LOG(2)))) -> 0 | AD8: =N8 -> 112 | AE8: =COUNTIF(L25:L32,AD8) -> 0 | AF8: =AE8/(AG4-AE11) -> 0 | AG8: =IF(AF8=0,0,(AF8*((LOG(AF8))/LOG(2)))) -> 0 | AI8: =N8 -> 112 | AJ8: =COUNTIF(L33:L41,AI8) -> 0 | AK8: =AJ8/(AL4-AJ11) -> 0 | AL8: =IF(AK8=0,0,(AK8*((LOG(AK8))/LOG(2)))) -> 0 | AN8: =N8 -> 112 | AO8: =COUNTIF(L42:L50,AN8) -> 0 | AP8: =AO8/(AQ4-AO11) -> 0 | AQ8: =IF(AP8=0,0,(AP8*((LOG(AP8))/LOG(2)))) -> 0 | AS8: =N8 -> 112 | AT8: =COUNTIF(L51:L59,AS8) -> 0 | AU8: =AT8/(AV4-AT11) -> 0 | AV8: =IF(AU8=0,0,(AU8*((LOG(AU8))/LOG(2)))) -> 0
A9: 12 | B9: 250 | C9: 13 | D9: 254 | E9: 13 | F9: 265 | K9: 0 | L9: 111 | N9: 121 | O9: =COUNTIF($L$7:$L$500,N9) -> 0 | P9: =O9/$Q$4 -> 0 | Q9: =IF(P9=0,0,(P9*((LOG(P9))/LOG(2)))) -> 0 | T9: =N9 -> 121 | U9: =COUNTIF(L7:L15,T9) -> 0 | V9: =U9/(W4-U11) -> 0 | W9: =IF(V9=0,0,(V9*((LOG(V9))/LOG(2)))) -> 0 | Y9: =N9 -> 121 | Z9: =COUNTIF(L16:L24,Y9) -> 0 | AA9: =Z9/(AB4-Z11) -> 0 | AB9: =IF(AA9=0,0,(AA9*((LOG(AA9))/LOG(2)))) -> 0 | AD9: =N9 -> 121 | AE9: =COUNTIF(L25:L32,AD9) -> 0 | AF9: =AE9/(AG4-AE11) -> 0 | AG9: =IF(AF9=0,0,(AF9*((LOG(AF9))/LOG(2)))) -> 0 | AI9: =N9 -> 121 | AJ9: =COUNTIF(L33:L41,AI9) -> 0 | AK9: =AJ9/(AL4-AJ11) -> 0 | AL9: =IF(AK9=0,0,(AK9*((LOG(AK9))/LOG(2)))) -> 0 | AN9: =N9 -> 121 | AO9: =COUNTIF(L42:L50,AN9) -> 0 | AP9: =AO9/(AQ4-AO11) -> 0 | AQ9: =IF(AP9=0,0,(AP9*((LOG(AP9))/LOG(2)))) -> 0 | AS9: =N9 -> 121 | AT9: =COUNTIF(L51:L59,AS9) -> 0 | AU9: =AT9/(AV4-AT11) -> 0 | AV9: =IF(AU9=0,0,(AU9*((LOG(AU9))/LOG(2)))) -> 0
A10: 12 | B10: 370 | C10: 13 | D10: 376 | E10: 13 | F10: 382 | K10: 0 | L10: 111 | N10: 122 | O10: =COUNTIF($L$7:$L$500,N10) -> 0 | P10: =O10/$Q$4 -> 0 | Q10: =IF(P10=0,0,(P10*((LOG(P10))/LOG(2)))) -> 0 | T10: =N10 -> 122 | U10: =COUNTIF(L7:L15,T10) -> 0 | V10: =U10/(W4-U11) -> 0 | W10: =IF(V10=0,0,(V10*((LOG(V10))/LOG(2)))) -> 0 | Y10: =N10 -> 122 | Z10: =COUNTIF(L16:L24,Y10) -> 0 | AA10: =Z10/(AB4-Z11) -> 0 | AB10: =IF(AA10=0,0,(AA10*((LOG(AA10))/LOG(2)))) -> 0 | AD10: =N10 -> 122 | AE10: =COUNTIF(L25:L32,AD10) -> 0 | AF10: =AE10/(AG4-AE11) -> 0 | AG10: =IF(AF10=0,0,(AF10*((LOG(AF10))/LOG(2)))) -> 0 | AI10: =N10 -> 122 | AJ10: =COUNTIF(L33:L41,AI10) -> 0 | AK10: =AJ10/(AL4-AJ11) -> 0 | AL10: =IF(AK10=0,0,(AK10*((LOG(AK10))/LOG(2)))) -> 0 | AN10: =N10 -> 122 | AO10: =COUNTIF(L42:L50,AN10) -> 0 | AP10: =AO10/(AQ4-AO11) -> 0 | AQ10: =IF(AP10=0,0,(AP10*((LOG(AP10))/LOG(2)))) -> 0 | AS10: =N10 -> 122 | AT10: =COUNTIF(L51:L59,AS10) -> 0 | AU10: =AT10/(AV4-AT11) -> 0 | AV10: =IF(AU10=0,0,(AU10*((LOG(AU10))/LOG(2)))) -> 0
A11: 21 | B11: 481 | C11: 11 | D11: 503 | E11: 11 | F11: 529 | K11: 0 | L11: 211 | N11: 211 | O11: =COUNTIF($L$7:$L$500,N11) -> 40 | P11: =O11/$Q$4 -> 0.7547169811 | Q11: =IF(P11=0,0,(P11*((LOG(P11))/LOG(2)))) -> -0.3064093281 | T11: =N11 -> 211 | U11: =COUNTIF(L7:L15,T11) -> 6 | Y11: =N11 -> 211 | Z11: =COUNTIF(L16:L24,Y11) -> 5 | AD11: =N11 -> 211 | AE11: =COUNTIF(L25:L32,AD11) -> 7 | AI11: =N11 -> 211 | AJ11: =COUNTIF(L33:L41,AI11) -> 8 | AN11: =N11 -> 211 | AO11: =COUNTIF(L42:L50,AN11) -> 6 | AS11: =N11 -> 211 | AT11: =COUNTIF(L51:L59,AS11) -> 8
A12: 21 | B12: 616 | C12: 11 | D12: 627 | E12: 11 | F12: 630 | K12: 0 | L12: 211 | N12: 212 | O12: =COUNTIF($L$7:$L$500,N12) -> 0 | P12: =O12/$Q$4 -> 0 | Q12: =IF(P12=0,0,(P12*((LOG(P12))/LOG(2)))) -> 0 | T12: =N12 -> 212 | U12: =COUNTIF(L7:L15,T12) -> 0 | V12: =U12/(W4-U11) -> 0 | W12: =IF(V12=0,0,(V12*((LOG(V12))/LOG(2)))) -> 0 | Y12: =N12 -> 212 | Z12: =COUNTIF(L16:L24,Y12) -> 0 | AA12: =Z12/(AB4-Z11) -> 0 | AB12: =IF(AA12=0,0,(AA12*((LOG(AA12))/LOG(2)))) -> 0 | AD12: =N12 -> 212 | AE12: =COUNTIF(L25:L32,AD12) -> 0 | AF12: =AE12/(AG4-AE11) -> 0 | AG12: =IF(AF12=0,0,(AF12*((LOG(AF12))/LOG(2)))) -> 0 | AI12: =N12 -> 212 | AJ12: =COUNTIF(L33:L41,AI12) -> 0 | AK12: =AJ12/(AL4-AJ11) -> 0 | AL12: =IF(AK12=0,0,(AK12*((LOG(AK12))/LOG(2)))) -> 0 | AN12: =N12 -> 212 | AO12: =COUNTIF(L42:L50,AN12) -> 0 | AP12: =AO12/(AQ4-AO11) -> 0 | AQ12: =IF(AP12=0,0,(AP12*((LOG(AP12))/LOG(2)))) -> 0 | AS12: =N12 -> 212 | AT12: =COUNTIF(L51:L59,AS12) -> 0 | AU12: =AT12/(AV4-AT11) -> 0 | AV12: =IF(AU12=0,0,(AU12*((LOG(AU12))/LOG(2)))) -> 0
A13: 12 | B13: 743 | C13: 13 | D13: 750 | E13: 13 | F13: 761 | K13: 0 | L13: 111 | N13: 221 | O13: =COUNTIF($L$7:$L$500,N13) -> 5 | P13: =O13/$Q$4 -> 0.09433962264 | Q13: =IF(P13=0,0,(P13*((LOG(P13))/LOG(2)))) -> -0.3213200339 | T13: =N13 -> 221 | U13: =COUNTIF(L7:L15,T13) -> 0 | V13: =U13/(W4-U11) -> 0 | W13: =IF(V13=0,0,(V13*((LOG(V13))/LOG(2)))) -> 0 | Y13: =N13 -> 221 | Z13: =COUNTIF(L16:L24,Y13) -> 3 | AA13: =Z13/(AB4-Z11) -> 0.75 | AB13: =IF(AA13=0,0,(AA13*((LOG(AA13))/LOG(2)))) -> -0.3112781245 | AD13: =N13 -> 221 | AE13: =COUNTIF(L25:L32,AD13) -> 1 | AF13: =AE13/(AG4-AE11) -> 1 | AG13: =IF(AF13=0,0,(AF13*((LOG(AF13))/LOG(2)))) -> 0 | AI13: =N13 -> 221 | AJ13: =COUNTIF(L33:L41,AI13) -> 0 | AK13: =AJ13/(AL4-AJ11) -> 0 | AL13: =IF(AK13=0,0,(AK13*((LOG(AK13))/LOG(2)))) -> 0 | AN13: =N13 -> 221 | AO13: =COUNTIF(L42:L50,AN13) -> 0 | AP13: =AO13/(AQ4-AO11) -> 0 | AQ13: =IF(AP13=0,0,(AP13*((LOG(AP13))/LOG(2)))) -> 0 | AS13: =N13 -> 221 | AT13: =COUNTIF(L51:L59,AS13) -> 1 | AU13: =AT13/(AV4-AT11) -> 1 | AV13: =IF(AU13=0,0,(AU13*((LOG(AU13))/LOG(2)))) -> 0
A14: 21 | B14: 861 | C14: 11 | D14: 869 | E14: 11 | F14: 872 | K14: 0 | L14: 211 | N14: 222 | O14: =COUNTIF($L$7:$L$500,N14) -> 0 | P14: =O14/$Q$4 -> 0 | Q14: =IF(P14=0,0,(P14*((LOG(P14))/LOG(2)))) -> 0 | T14: =N14 -> 222 | U14: =COUNTIF(L7:L15,T14) -> 0 | V14: =U14/(W4-U11) -> 0 | W14: =IF(V14=0,0,(V14*((LOG(V14))/LOG(2)))) -> 0 | Y14: =N14 -> 222 | Z14: =COUNTIF(L16:L24,Y14) -> 0 | AA14: =Z14/(AB4-Z11) -> 0 | AB14: =IF(AA14=0,0,(AA14*((LOG(AA14))/LOG(2)))) -> 0 | AD14: =N14 -> 222 | AE14: =COUNTIF(L25:L32,AD14) -> 0 | AF14: =AE14/(AG4-AE11) -> 0 | AG14: =IF(AF14=0,0,(AF14*((LOG(AF14))/LOG(2)))) -> 0 | AI14: =N14 -> 222 | AJ14: =COUNTIF(L33:L41,AI14) -> 0 | AK14: =AJ14/(AL4-AJ11) -> 0 | AL14: =IF(AK14=0,0,(AK14*((LOG(AK14))/LOG(2)))) -> 0 | AN14: =N14 -> 222 | AO14: =COUNTIF(L42:L50,AN14) -> 0 | AP14: =AO14/(AQ4-AO11) -> 0 | AQ14: =IF(AP14=0,0,(AP14*((LOG(AP14))/LOG(2)))) -> 0 | AS14: =N14 -> 222 | AT14: =COUNTIF(L51:L59,AS14) -> 0 | AU14: =AT14/(AV4-AT11) -> 0 | AV14: =IF(AU14=0,0,(AU14*((LOG(AU14))/LOG(2)))) -> 0
A15: 21 | B15: 959 | C15: 11 | D15: 973 | E15: 11 | F15: 980 | K15: 0 | L15: 211 | P15: =SUM(P7:P14) -> 1 | Q15: =-SUM(Q7:Q14) -> 1.03949094 | V15: =SUM(V7:V14) -> 1 | W15: =-SUM(W7:W14) -> 0 | AA15: =SUM(AA7:AA14) -> 1 | AB15: =-SUM(AB7:AB14) -> 0.8112781245 | AF15: =SUM(AF7:AF14) -> 1 | AG15: =-SUM(AG7:AG14) -> 0 | AK15: =SUM(AK7:AK14) -> 1 | AL15: =-SUM(AL7:AL14) -> 0 | AP15: =SUM(AP7:AP14) -> 1 | AQ15: =-SUM(AQ7:AQ14) -> 0 | AU15: =SUM(AU7:AU14) -> 1 | AV15: =-SUM(AV7:AV14) -> 0
A16: 21 | B16: 1065 | C16: 11 | D16: 1072 | E16: 11 | F16: 1076 | K16: 0 | L16: 211 | P16: U= | Q16: =Q15/(LOG(Q4)/LOG(2)) -> 0.1814778938 | V16: U1= | W16: =W15/(LOG(W4)/LOG(2)) -> 0 | AA16: U2= | AB16: =AB15/(LOG(AB4)/LOG(2)) -> 0.2559297536 | AF16: U3= | AG16: =AG15/(LOG(AG4)/LOG(2)) -> 0 | AK16: U4= | AL16: =AL15/(LOG(AL4)/LOG(2)) -> 0 | AP16: U5= | AQ16: =AQ15/(LOG(AQ4)/LOG(2)) -> 0 | AU16: U6= | AV16: =AV15/(LOG(AV4)/LOG(2)) -> 0
A17: 21 | B17: 1162 | C17: 11 | D17: 1175 | E17: 11 | F17: 1179 | K17: 0 | L17: 211
A18: 21 | B18: 1266 | C18: 22 | D18: 1271 | E18: 13 | F18: 1286 | K18: 0 | L18: 221
A19: 12 | B19: 1387 | C19: 13 | D19: 1391 | E19: 13 | F19: 1406 | K19: 0 | L19: 111 | N19: Total Target Seq
A20: 21 | B20: 1505 | C20: 11 | D20: 1513 | E20: 11 | F20: 1516 | K20: 0 | L20: 211 | N20: =COUNTIF(L7:L59,G3) -> 40 | P20: 9 | Q20: 9 | R20: 8 | S20: 9 | T20: 9 | U20: 9
A21: 21 | B21: 1603 | C21: 22 | D21: 1607 | E21: 13 | F21: 1617 | K21: 0 | L21: 221 | P21: % of reinforcement given in 6 equal intervals based on number of trials
A22: 21 | B22: 1715 | C22: 11 | D22: 1732 | E22: 11 | F22: 1735 | K22: 0 | L22: 211 | P22: %_1 | Q22: %_2 | R22: %_3 | S22: %_4 | T22: %_5 | U22: %_6
A23: 21 | B23: 1822 | C23: 22 | D23: 1826 | E23: 13 | F23: 1836 | K23: 0 | L23: 221 | O23: target sequence | P23: =$G$3 -> 211 | Q23: =$G$3 -> 211 | R23: =$G$3 -> 211 | S23: =$G$3 -> 211 | T23: =$G$3 -> 211 | U23: =$G$3 -> 211
A24: 21 | B24: 1933 | C24: 11 | D24: 1940 | E24: 11 | F24: 1953 | K24: 0 | L24: 211 | O24: total reinforcement | P24: =U11 -> 6 | Q24: =Z11 -> 5 | R24: =AE11 -> 7 | S24: =AJ11 -> 8 | T24: =AO11 -> 6 | U24: =AT11 -> 8
A25: 21 | B25: 2040 | C25: 22 | D25: 2047 | E25: 13 | F25: 2055 | K25: 0 | L25: 221 | O25: % target
A26: 21 | B26: 2152 | C26: 11 | D26: 2159 | E26: 11 | F26: 2162 | K26: 0 | L26: 211 | O26: CCRF
A27: 21 | B27: 2250 | C27: 11 | D27: 2257 | E27: 11 | F27: 2260 | K27: 0 | L27: 211 | O27: % CCRf
A28: 21 | B28: 2350 | C28: 11 | D28: 2359 | E28: 11 | F28: 2366 | K28: 0 | L28: 211 | O28: average response rate | P28: =F15/P20 -> 108.8888889 | Q28: =(F24-F15)/Q20 -> 108.1111111 | R28: =(F32-F24)/R20 -> 104.5 | S28: =(F41-F32)/S20 -> 110.6666667 | T28: =(F50-F41)/T20 -> 111.7777778 | U28: =(F59-F50)/U20 -> 103.3333333
A29: 21 | B29: 2453 | C29: 11 | D29: 2461 | E29: 11 | F29: 2468 | K29: 0 | L29: 211
A30: 21 | B30: 2555 | C30: 11 | D30: 2563 | E30: 11 | F30: 2566 | K30: 0 | L30: 211
A31: 21 | B31: 2653 | C31: 11 | D31: 2669 | E31: 11 | F31: 2676 | K31: 0 | L31: 211
A32: 21 | B32: 2773 | C32: 11 | D32: 2782 | E32: 11 | F32: 2789 | K32: 0 | L32: 211
A33: 21 | B33: 2882 | C33: 11 | D33: 2890 | E33: 11 | F33: 2894 | K33: 0 | L33: 211
A34: 21 | B34: 2987 | C34: 11 | D34: 2995 | E34: 11 | F34: 3002 | K34: 0 | L34: 211
A35: 21 | B35: 3099 | C35: 11 | D35: 3116 | E35: 11 | F35: 3122 | K35: 0 | L35: 211
A36: 21 | B36: 3208 | C36: 11 | D36: 3229 | E36: 11 | F36: 3235 | K36: 0 | L36: 211
A37: 21 | B37: 3328 | C37: 11 | D37: 3336 | E37: 11 | F37: 3339 | K37: 0 | L37: 211
A38: 12 | B38: 3451 | C38: 13 | D38: 3454 | E38: 13 | F38: 3469 | K38: 0 | L38: 111
A39: 21 | B39: 3565 | C39: 11 | D39: 3573 | E39: 11 | F39: 3576 | K39: 0 | L39: 211
A40: 21 | B40: 3664 | C40: 11 | D40: 3673 | E40: 11 | F40: 3682 | K40: 0 | L40: 211
A41: 21 | B41: 3773 | C41: 11 | D41: 3781 | E41: 11 | F41: 3785 | K41: 0 | L41: 211
A42: 21 | B42: 3872 | C42: 11 | D42: 3881 | E42: 11 | F42: 3884 | K42: 0 | L42: 211
A43: 12 | B43: 3985 | C43: 13 | D43: 3994 | E43: 13 | F43: 4003 | K43: 0 | L43: 111
A44: 12 | B44: 4117 | C44: 13 | D44: 4130 | E44: 13 | F44: 4141 | K44: 0 | L44: 111
A45: 21 | B45: 4239 | C45: 11 | D45: 4256 | E45: 11 | F45: 4262 | K45: 0 | L45: 211
A46: 21 | B46: 4348 | C46: 11 | D46: 4356 | E46: 11 | F46: 4359 | K46: 0 | L46: 211
A47: 12 | B47: 4457 | C47: 13 | D47: 4460 | E47: 13 | F47: 4475 | K47: 0 | L47: 111
A48: 21 | B48: 4572 | C48: 11 | D48: 4579 | E48: 11 | F48: 4583 | K48: 0 | L48: 211
A49: 21 | B49: 4670 | C49: 11 | D49: 4677 | E49: 11 | F49: 4684 | K49: 0 | L49: 211
A50: 21 | B50: 4771 | C50: 11 | D50: 4788 | E50: 11 | F50: 4791 | K50: 0 | L50: 211
A51: 21 | B51: 4880 | C51: 11 | D51: 4889 | E51: 11 | F51: 4896 | K51: 0 | L51: 211
A52: 21 | B52: 4988 | C52: 11 | D52: 4995 | E52: 11 | F52: 4999 | K52: 0 | L52: 211
A53: 21 | B53: 5086 | C53: 11 | D53: 5094 | E53: 11 | F53: 5097 | K53: 0 | L53: 211
A54: 21 | B54: 5191 | C54: 22 | D54: 5196 | E54: 13 | F54: 5203 | K54: 0 | L54: 221
A55: 21 | B55: 5301 | C55: 11 | D55: 5310 | E55: 11 | F55: 5313 | K55: 0 | L55: 211
A56: 21 | B56: 5399 | C56: 11 | D56: 5412 | E56: 11 | F56: 5419 | K56: 0 | L56: 211
A57: 21 | B57: 5510 | C57: 11 | D57: 5518 | E57: 11 | F57: 5525 | K57: 0 | L57: 211
A58: 21 | B58: 5613 | C58: 11 | D58: 5620 | E58: 11 | F58: 5624 | K58: 0 | L58: 211
A59: 21 | B59: 5710 | C59: 11 | D59: 5717 | E59: 11 | F59: 5721 | K59: 1 | L59: 211

Sheet !N525920.010
A1: Report for:!N525920.010
A2: Date: | B2: <date>
A3: Hen: | B3: <hen> | F3: Correct Sequence | G3: =Start!J2 -> 211 | P3: Total Sequences in Data | Q3: =4994-COUNTBLANK(L7:L5000) -> 54 | V3: Total Sequences in Block Data | W3: =COUNTA(L7:L15) -> 9 | AA3: Total Sequences in Block Data | AB3: =COUNTA(L16:L24) -> 9 | AF3: Total Sequences in Block Data | AG3: =COUNTA(L25:L33) -> 9 | AK3: Total Sequences in Block Data | AL3: =COUNTA(L34:L42) -> 9 | AP3: Total Sequences in Block Data | AQ3: =COUNTA(L43:L51) -> 9 | AU3: Total Sequences in Block Data | AV3: =COUNTA(L52:L60) -> 9
P4: Total Sequences in Summary | Q4: =SUM(O7:O14) -> 54 | V4: Total Sequences in Block Summary | W4: =SUM(U7:U14) -> 9 | AA4: Total Sequences in Block Summary | AB4: =SUM(Z7:Z14) -> 9 | AF4: Total Sequences in Block Summary | AG4: =SUM(AE7:AE14) -> 9 | AK4: Total Sequences in Block Summary | AL4: =SUM(AJ7:AJ14) -> 9 | AP4: Total Sequences in Block Summary | AQ4: =SUM(AO7:AO14) -> 9 | AU4: Total Sequences in Block Summary | AV4: =SUM(AT7:AT14) -> 9
T5: Block 1 | Y5: Block 2 | AD5: Block 3 | AI5: Block 4 | AN5: Block 5 | AS5: Block 6
A6: Sequence Component 1 | B6: Time 1 | C6: Sequence Component 2 | D6: Time 2 | E6: Sequence Component 3 | F6: Time 3 | G6: Sequence Component 4 | H6: Time 4 | I6: Sequence Component 5 | J6: Time 5 | K6: Correct? 0=No 1=Yes | L6: Sequence | N6: Frequency | P6: Relative Frequency | Q6: Variability | T6: Frequency | V6: Relative Frequency | W6: Variability | Y6: Frequency | AA6: Relative Frequency | AB6: Variability | AD6: Frequency | AF6: Relative Frequency | AG6: Variability | AI6: Frequency | AK6: Relative Frequency | AL6: Variability | AN6: Frequency | AP6: Relative Frequency | AQ6: Variability | AS6: Frequency | AU6: Relative Frequency | AV6: Variability
A7: 21 | B7: 7 | C7: 11 | D7: 13 | E7: 11 | F7: 16 | K7: 0 | L7: 211 | N7: 111 | O7: =COUNTIF($L$7:$L$500,N7) -> 2 | P7: =O7/$Q$4 -> 0.03703703704 | Q7: =IF(P7=0,0,(P7*((LOG(P7))/LOG(2)))) -> -0.1761069445 | T7: =N7 -> 111 | U7: =COUNTIF(L7:L15,T7) -> 0 | V7: =U7/(W4-U11) -> 0 | W7: =IF(V7=0,0,(V7*((LOG(V7))/LOG(2)))) -> 0 | Y7: =N7 -> 111 | Z7: =COUNTIF(L16:L24,Y7) -> 2 | AA7: =Z7/(AB4-Z11) -> 1 | AB7: =IF(AA7=0,0,(AA7*((LOG(AA7))/LOG(2)))) -> 0 | AD7: =N7 -> 111 | AE7: =COUNTIF(L25:L33,AD7) -> 0 | AF7: =AE7/(AG4-AE11) -> 0 | AG7: =IF(AF7=0,0,(AF7*((LOG(AF7))/LOG(2)))) -> 0 | AI7: =N7 -> 111 | AJ7: =COUNTIF(L34:L42,AI7) -> 0 | AK7: =AJ7/(AL4-AJ11) -> 0 | AL7: =IF(AK7=0,0,(AK7*((LOG(AK7))/LOG(2)))) -> 0 | AN7: =N7 -> 111 | AO7: =COUNTIF(L43:L51,AN7) -> 0 | AP7: =AO7/(AQ4-AO11) -> 0 | AQ7: =IF(AP7=0,0,(AP7*((LOG(AP7))/LOG(2)))) -> 0 | AS7: =N7 -> 111 | AT7: =COUNTIF(L52:L60,AS7) -> 0 | AU7: =AT7/(AV4-AT11) -> 0 | AV7: =IF(AU7=0,0,(AU7*((LOG(AU7))/LOG(2)))) -> 0
A8: 21 | B8: 104 | C8: 11 | D8: 111 | E8: 11 | F8: 114 | K8: 0 | L8: 211 | N8: 112 | O8: =COUNTIF($L$7:$L$500,N8) -> 0 | P8: =O8/$Q$4 -> 0 | Q8: =IF(P8=0,0,(P8*((LOG(P8))/LOG(2)))) -> 0 | T8: =N8 -> 112 | U8: =COUNTIF(L7:L15,T8) -> 0 | V8: =U8/(W4-U11) -> 0 | W8: =IF(V8=0,0,(V8*((LOG(V8))/LOG(2)))) -> 0 | Y8: =N8 -> 112 | Z8: =COUNTIF(L16:L24,Y8) -> 0 | AA8: =Z8/(AB4-Z11) -> 0 | AB8: =IF(AA8=0,0,(AA8*((LOG(AA8))/LOG(2)))) -> 0 | AD8: =N8 -> 112 | AE8: =COUNTIF(L25:L33,AD8) -> 0 | AF8: =AE8/(AG4-AE11) -> 0 | AG8: =IF(AF8=0,0,(AF8*((LOG(AF8))/LOG(2)))) -> 0 | AI8: =N8 -> 112 | AJ8: =COUNTIF(L34:L42,AI8) -> 0 | AK8: =AJ8/(AL4-AJ11) -> 0 | AL8: =IF(AK8=0,0,(AK8*((LOG(AK8))/LOG(2)))) -> 0 | AN8: =N8 -> 112 | AO8: =COUNTIF(L43:L51,AN8) -> 0 | AP8: =AO8/(AQ4-AO11) -> 0 | AQ8: =IF(AP8=0,0,(AP8*((LOG(AP8))/LOG(2)))) -> 0 | AS8: =N8 -> 112 | AT8: =COUNTIF(L52:L60,AS8) -> 0 | AU8: =AT8/(AV4-AT11) -> 0 | AV8: =IF(AU8=0,0,(AU8*((LOG(AU8))/LOG(2)))) -> 0
A9: 21 | B9: 203 | C9: 11 | D9: 215 | E9: 11 | F9: 222 | K9: 0 | L9: 211 | N9: 121 | O9: =COUNTIF($L$7:$L$500,N9) -> 0 | P9: =O9/$Q$4 -> 0 | Q9: =IF(P9=0,0,(P9*((LOG(P9))/LOG(2)))) -> 0 | T9: =N9 -> 121 | U9: =COUNTIF(L7:L15,T9) -> 0 | V9: =U9/(W4-U11) -> 0 | W9: =IF(V9=0,0,(V9*((LOG(V9))/LOG(2)))) -> 0 | Y9: =N9 -> 121 | Z9: =COUNTIF(L16:L24,Y9) -> 0 | AA9: =Z9/(AB4-Z11) -> 0 | AB9: =IF(AA9=0,0,(AA9*((LOG(AA9))/LOG(2)))) -> 0 | AD9: =N9 -> 121 | AE9: =COUNTIF(L25:L33,AD9) -> 0 | AF9: =AE9/(AG4-AE11) -> 0 | AG9: =IF(AF9=0,0,(AF9*((LOG(AF9))/LOG(2)))) -> 0 | AI9: =N9 -> 121 | AJ9: =COUNTIF(L34:L42,AI9) -> 0 | AK9: =AJ9/(AL4-AJ11) -> 0 | AL9: =IF(AK9=0,0,(AK9*((LOG(AK9))/LOG(2)))) -> 0 | AN9: =N9 -> 121 | AO9: =COUNTIF(L43:L51,AN9) -> 0 | AP9: =AO9/(AQ4-AO11) -> 0 | AQ9: =IF(AP9=0,0,(AP9*((LOG(AP9))/LOG(2)))) -> 0 | AS9: =N9 -> 121 | AT9: =COUNTIF(L52:L60,AS9) -> 0 | AU9: =AT9/(AV4-AT11) -> 0 | AV9: =IF(AU9=0,0,(AU9*((LOG(AU9))/LOG(2)))) -> 0
A10: 21 | B10: 307 | C10: 11 | D10: 322 | E10: 11 | F10: 332 | K10: 0 | L10: 211 | N10: 122 | O10: =COUNTIF($L$7:$L$500,N10) -> 0 | P10: =O10/$Q$4 -> 0 | Q10: =IF(P10=0,0,(P10*((LOG(P10))/LOG(2)))) -> 0 | T10: =N10 -> 122 | U10: =COUNTIF(L7:L15,T10) -> 0 | V10: =U10/(W4-U11) -> 0 | W10: =IF(V10=0,0,(V10*((LOG(V10))/LOG(2)))) -> 0 | Y10: =N10 -> 122 | Z10: =COUNTIF(L16:L24,Y10) -> 0 | AA10: =Z10/(AB4-Z11) -> 0 | AB10: =IF(AA10=0,0,(AA10*((LOG(AA10))/LOG(2)))) -> 0 | AD10: =N10 -> 122 | AE10: =COUNTIF(L25:L33,AD10) -> 0 | AF10: =AE10/(AG4-AE11) -> 0 | AG10: =IF(AF10=0,0,(AF10*((LOG(AF10))/LOG(2)))) -> 0 | AI10: =N10 -> 122 | AJ10: =COUNTIF(L34:L42,AI10) -> 0 | AK10: =AJ10/(AL4-AJ11) -> 0 | AL10: =IF(AK10=0,0,(AK10*((LOG(AK10))/LOG(2)))) -> 0 | AN10: =N10 -> 122 | AO10: =COUNTIF(L43:L51,AN10) -> 0 | AP10: =AO10/(AQ4-AO11) -> 0 | AQ10: =IF(AP10=0,0,(AP10*((LOG(AP10))/LOG(2)))) -> 0 | AS10: =N10 -> 122 | AT10: =COUNTIF(L52:L60,AS10) -> 0 | AU10: =AT10/(AV4-AT11) -> 0 | AV10: =IF(AU10=0,0,(AU10*((LOG(AU10))/LOG(2)))) -> 0
A11: 21 | B11: 420 | C11: 22 | D11: 428 | E11: 13 | F11: 444 | K11: 0 | L11: 221 | N11: 211 | O11: =COUNTIF($L$7:$L$500,N11) -> 40 | P11: =O11/$Q$4 -> 0.7407407407 | Q11: =IF(P11=0,0,(P11*((LOG(P11))/LOG(2)))) -> -0.3207106721 | T11: =N11 -> 211 | U11: =COUNTIF(L7:L15,T11) -> 6 | Y11: =N11 -> 211 | Z11: =COUNTIF(L16:L24,Y11) -> 7 | AD11: =N11 -> 211 | AE11: =COUNTIF(L25:L33,AD11) -> 8 | AI11: =N11 -> 211 | AJ11: =COUNTIF(L34:L42,AI11) -> 8 | AN11: =N11 -> 211 | AO11: =COUNTIF(L43:L51,AN11) -> 6 | AS11: =N11 -> 211 | AT11: =COUNTIF(L52:L60,AS11) -> 5
A12: 21 | B12: 534 | C12: 22 | D12: 549 | E12: 13 | F12: 563 | K12: 0 | L12: 221 | N12: 212 | O12: =COUNTIF($L$7:$L$500,N12) -> 0 | P12: =O12/$Q$4 -> 0 | Q12: =IF(P12=0,0,(P12*((LOG(P12))/LOG(2)))) -> 0 | T12: =N12 -> 212 | U12: =COUNTIF(L7:L15,T12) -> 0 | V12: =U12/(W4-U11) -> 0 | W12: =IF(V12=0,0,(V12*((LOG(V12))/LOG(2)))) -> 0 | Y12: =N12 -> 212 | Z12: =COUNTIF(L16:L24,Y12) -> 0 | AA12: =Z12/(AB4-Z11) -> 0 | AB12: =IF(AA12=0,0,(AA12*((LOG(AA12))/LOG(2)))) -> 0 | AD12: =N12 -> 212 | AE12: =COUNTIF(L25:L33,AD12) -> 0 | AF12: =AE12/(AG4-AE11) -> 0 | AG12: =IF(AF12=0,0,(AF12*((LOG(AF12))/LOG(2)))) -> 0 | AI12: =N12 -> 212 | AJ12: =COUNTIF(L34:L42,AI12) -> 0 | AK12: =AJ12/(AL4-AJ11) -> 0 | AL12: =IF(AK12=0,0,(AK12*((LOG(AK12))/LOG(2)))) -> 0 | AN12: =N12 -> 212 | AO12: =COUNTIF(L43:L51,AN12) -> 0 | AP12: =AO12/(AQ4-AO11) -> 0 | AQ12: =IF(AP12=0,0,(AP12*((LOG(AP12))/LOG(2)))) -> 0 | AS12: =N12 -> 212 | AT12: =COUNTIF(L52:L60,AS12) -> 0 | AU12: =AT12/(AV4-AT11) -> 0 | AV12: =IF(AU12=0,0,(AU12*((LOG(AU12))/LOG(2)))) -> 0
A13: 21 | B13: 663 | C13: 11 | D13: 679 | E13: 11 | F13: 683 | K13: 0 | L13: 211 | N13: 221 | O13: =COUNTIF($L$7:$L$500,N13) -> 10 | P13: =O13/$Q$4 -> 0.1851851852 | Q13: =IF(P13=0,0,(P13*((LOG(P13))/LOG(2)))) -> -0.4505480384 | T13: =N13 -> 221 | U13: =COUNTIF(L7:L15,T13) -> 2 | V13: =U13/(W4-U11) -> 0.6666666667 | W13: =IF(V13=0,0,(V13*((LOG(V13))/LOG(2)))) -> -0.3899750005 | Y13: =N13 -> 221 | Z13: =COUNTIF(L16:L24,Y13) -> 0 | AA13: =Z13/(AB4-Z11) -> 0 | AB13: =IF(AA13=0,0,(AA13*((LOG(AA13))/LOG(2)))) -> 0 | AD13: =N13 -> 221 | AE13: =COUNTIF(L25:L33,AD13) -> 1 | AF13: =AE13/(AG4-AE11) -> 1 | AG13: =IF(AF13=0,0,(AF13*((LOG(AF13))/LOG(2)))) -> 0 | AI13: =N13 -> 221 | AJ13: =COUNTIF(L34:L42,AI13) -> 1 | AK13: =AJ13/(AL4-AJ11) -> 1 | AL13: =IF(AK13=0,0,(AK13*((LOG(AK13))/LOG(2)))) -> 0 | AN13: =N13 -> 221 | AO13: =COUNTIF(L43:L51,AN13) -> 2 | AP13: =AO13/(AQ4-AO11) -> 0.6666666667 | AQ13: =IF(AP13=0,0,(AP13*((LOG(AP13))/LOG(2)))) -> -0.3899750005 | AS13: =N13 -> 221 | AT13: =COUNTIF(L52:L60,AS13) -> 4 | AU13: =AT13/(AV4-AT11) -> 1 | AV13: =IF(AU13=0,0,(AU13*((LOG(AU13))/LOG(2)))) -> 0
A14: 21 | B14: 768 | C14: 22 | D14: 774 | E14: 24 | F14: 785 | K14: 0 | L14: 222 | N14: 222 | O14: =COUNTIF($L$7:$L$500,N14) -> 2 | P14: =O14/$Q$4 -> 0.03703703704 | Q14: =IF(P14=0,0,(P14*((LOG(P14))/LOG(2)))) -> -0.1761069445 | T14: =N14 -> 222 | U14: =COUNTIF(L7:L15,T14) -> 1 | V14: =U14/(W4-U11) -> 0.3333333333 | W14: =IF(V14=0,0,(V14*((LOG(V14))/LOG(2)))) -> -0.5283208336 | Y14: =N14 -> 222 | Z14: =COUNTIF(L16:L24,Y14) -> 0 | AA14: =Z14/(AB4-Z11) -> 0 | AB14: =IF(AA14=0,0,(AA14*((LOG(AA14))/LOG(2)))) -> 0 | AD14: =N14 -> 222 | AE14: =COUNTIF(L25:L33,AD14) -> 0 | AF14: =AE14/(AG4-AE11) -> 0 | AG14: =IF(AF14=0,0,(AF14*((LOG(AF14))/LOG(2)))) -> 0 | AI14: =N14 -> 222 | AJ14: =COUNTIF(L34:L42,AI14) -> 0 | AK14: =AJ14/(AL4-AJ11) -> 0 | AL14: =IF(AK14=0,0,(AK14*((LOG(AK14))/LOG(2)))) -> 0 | AN14: =N14 -> 222 | AO14: =COUNTIF(L43:L51,AN14) -> 1 | AP14: =AO14/(AQ4-AO11) -> 0.3333333333 | AQ14: =IF(AP14=0,0,(AP14*((LOG(AP14))/LOG(2)))) -> -0.5283208336 | AS14: =N14 -> 222 | AT14: =COUNTIF(L52:L60,AS14) -> 0 | AU14: =AT14/(AV4-AT11) -> 0 | AV14: =IF(AU14=0,0,(AU14*((LOG(AU14))/LOG(2)))) -> 0
A15: 21 | B15: 881 | C15: 11 | D15: 892 | E15: 11 | F15: 900 | K15: 0 | L15: 211 | P15: =SUM(P7:P14) -> 1 | Q15: =-SUM(Q7:Q14) -> 1.123472599 | V15: =SUM(V7:V14) -> 1 | W15: =-SUM(W7:W14) -> 0.9182958341 | AA15: =SUM(AA7:AA14) -> 1 | AB15: =-SUM(AB7:AB14) -> 0 | AF15: =SUM(AF7:AF14) -> 1 | AG15: =-SUM(AG7:AG14) -> 0 | AK15: =SUM(AK7:AK14) -> 1 | AL15: =-SUM(AL7:AL14) -> 0 | AP15: =SUM(AP7:AP14) -> 1 | AQ15: =-SUM(AQ7:AQ14) -> 0.9182958341 | AU15: =SUM(AU7:AU14) -> 1 | AV15: =-SUM(AV7:AV14) -> 0
A16: 21 | B16: 988 | C16: 11 | D16: 1003 | E16: 11 | F16: 1010 | K16: 0 | L16: 211 | P16: U= | Q16: =Q15/(LOG(Q4)/LOG(2)) -> 0.1952206015 | V16: U1= | W16: =W15/(LOG(W4)/LOG(2)) -> 0.2896900821 | AA16: U2= | AB16: =AB15/(LOG(AB4)/LOG(2)) -> 0 | AF16: U3= | AG16: =AG15/(LOG(AG4)/LOG(2)) -> 0 | AK16: U4= | AL16: =AL15/(LOG(AL4)/LOG(2)) -> 0 | AP16: U5= | AQ16: =AQ15/(LOG(AQ4)/LOG(2)) -> 0.2896900821 | AU16: U6= | AV16: =AV15/(LOG(AV4)/LOG(2)) -> 0
A17: 12 | B17: 1109 | C17: 13 | D17: 1112 | E17: 13 | F17: 1126 | K17: 0 | L17: 111
A18: 12 | B18: 1221 | C18: 13 | D18: 1224 | E18: 13 | F18: 1240 | K18: 0 | L18: 111
A19: 21 | B19: 1336 | C19: 11 | D19: 1344 | E19: 11 | F19: 1347 | K19: 0 | L19: 211 | N19: Total Target Seq
A20: 21 | B20: 1435 | C20: 11 | D20: 1444 | E20: 11 | F20: 1450 | K20: 0 | L20: 211 | N20: =COUNTIF(L7:L60,G3) -> 40 | P20: 9 | Q20: 9 | R20: 9 | S20: 9 | T20: 9 | U20: 9
A21: 21 | B21: 1540 | C21: 11 | D21: 1550 | E21: 11 | F21: 1556 | K21: 0 | L21: 211 | P21: % of reinforcement given in 6 equal intervals based on number of trials
A22: 21 | B22: 1643 | C22: 11 | D22: 1650 | E22: 11 | F22: 1653 | K22: 0 | L22: 211 | P22: %_1 | Q22: %_2 | R22: %_3 | S22: %_4 | T22: %_5 | U22: %_6
A23: 21 | B23: 1752 | C23: 11 | D23: 1765 | E23: 11 | F23: 1771 | K23: 0 | L23: 211 | O23: target sequence | P23: =$G$3 -> 211 | Q23: =$G$3 -> 211 | R23: =$G$3 -> 211 | S23: =$G$3 -> 211 | T23: =$G$3 -> 211 | U23: =$G$3 -> 211
A24: 21 | B24: 1859 | C24: 11 | D24: 1874 | E24: 11 | F24: 1880 | K24: 0 | L24: 211 | O24: total reinforcement | P24: =U11 -> 6 | Q24: =Z11 -> 7 | R24: =AE11 -> 8 | S24: =AJ11 -> 8 | T24: =AO11 -> 6 | U24: =AT11 -> 5
A25: 21 | B25: 1966 | C25: 11 | D25: 1985 | E25: 11 | F25: 2000 | K25: 0 | L25: 211 | O25: % target
A26: 21 | B26: 2087 | C26: 11 | D26: 2098 | E26: 11 | F26: 2108 | K26: 0 | L26: 211 | O26: CCRF
A27: 21 | B27: 2198 | C27: 11 | D27: 2218 | E27: 11 | F27: 2225 | K27: 0 | L27: 211 | O27: % CCRf
A28: 21 | B28: 2314 | C28: 11 | D28: 2321 | E28: 11 | F28: 2335 | K28: 0 | L28: 211 | O28: average response rate | P28: =F15/P20 -> 100 | Q28: =(F24-F15)/Q20 -> 108.8888889 | R28: =(F33-F24)/R20 -> 111.6666667 | S28: =(F42-F33)/S20 -> 105.6666667 | T28: =(F51-F42)/T20 -> 109.5555556 | U28: =(F60-F51)/U20 -> 107.5555556
A29: 21 | B29: 2425 | C29: 11 | D29: 2438 | E29: 11 | F29: 2445 | K29: 0 | L29: 211
A30: 21 | B30: 2532 | C30: 11 | D30: 2543 | E30: 11 | F30: 2548 | K30: 0 | L30: 211
A31: 21 | B31: 2636 | C31: 11 | D31: 2648 | E31: 11 | F31: 2652 | K31: 0 | L31: 211
A32: 21 | B32: 2755 | C32: 22 | D32: 2769 | E32: 13 | F32: 2776 | K32: 0 | L32: 221
A33: 21 | B33: 2874 | C33: 11 | D33: 2882 | E33: 11 | F33: 2885 | K33: 0 | L33: 211
A34: 21 | B34: 2972 | C34: 11 | D34: 2983 | E34: 11 | F34: 2992 | K34: 0 | L34: 211
A35: 21 | B35: 3080 | C35: 11 | D35: 3091 | E35: 11 | F35: 3098 | K35: 0 | L35: 211
A36: 21 | B36: 3185 | C36: 11 | D36: 3194 | E36: 11 | F36: 3198 | K36: 0 | L36: 211
A37: 21 | B37: 3286 | C37: 11 | D37: 3300 | E37: 11 | F37: 3304 | K37: 0 | L37: 211
A38: 21 | B38: 3392 | C38: 11 | D38: 3400 | E38: 11 | F38: 3403 | K38: 0 | L38: 211
A39: 21 | B39: 3490 | C39: 11 | D39: 3499 | E39: 11 | F39: 3502 | K39: 0 | L39: 211
A40: 21 | B40: 3589 | C40: 11 | D40: 3606 | E40: 11 | F40: 3615 | K40: 0 | L40: 211
A41: 21 | B41: 3703 | C41: 22 | D41: 3707 | E41: 13 | F41: 3715 | K41: 0 | L41: 221
A42: 21 | B42: 3814 | C42: 11 | D42: 3823 | E42: 11 | F42: 3836 | K42: 0 | L42: 211
A43: 21 | B43: 3923 | C43: 11 | D43: 3940 | E43: 11 | F43: 3950 | K43: 0 | L43: 211
A44: 21 | B44: 4036 | C44: 11 | D44: 4054 | E44: 11 | F44: 4067 | K44: 0 | L44: 211
A45: 21 | B45: 4155 | C45: 22 | D45: 4165 | E45: 24 | F45: 4169 | K45: 0 | L45: 222
A46: 21 | B46: 4265 | C46: 11 | D46: 4273 | E46: 11 | F46: 4276 | K46: 0 | L46: 211
A47: 21 | B47: 4362 | C47: 22 | D47: 4372 | E47: 13 | F47: 4378 | K47: 0 | L47: 221
A48: 21 | B48: 4475 | C48: 11 | D48: 4494 | E48: 11 | F48: 4498 | K48: 0 | L48: 211
A49: 21 | B49: 4585 | C49: 11 | D49: 4599 | E49: 11 | F49: 4608 | K49: 0 | L49: 211
A50: 21 | B50: 4694 | C50: 22 | D50: 4705 | E50: 13 | F50: 4713 | K50: 0 | L50: 221
A51: 21 | B51: 4811 | C51: 11 | D51: 4818 | E51: 11 | F51: 4822 | K51: 0 | L51: 211
A52: 21 | B52: 4910 | C52: 22 | D52: 4920 | E52: 13 | F52: 4927 | K52: 0 | L52: 221
A53: 21 | B53: 5027 | C53: 11 | D53: 5035 | E53: 11 | F53: 5038 | K53: 0 | L53: 211
A54: 21 | B54: 5124 | C54: 11 | D54: 5133 | E54: 11 | F54: 5136 | K54: 0 | L54: 211
A55: 21 | B55: 5222 | C55: 22 | D55: 5230 | E55: 13 | F55: 5237 | K55: 0 | L55: 221
A56: 21 | B56: 5334 | C56: 11 | D56: 5343 | E56: 11 | F56: 5347 | K56: 0 | L56: 211
A57: 21 | B57: 5434 | C57: 22 | D57: 5444 | E57: 13 | F57: 5451 | K57: 0 | L57: 221
A58: 21 | B58: 5556 | C58: 11 | D58: 5563 | E58: 11 | F58: 5567 | K58: 0 | L58: 211
A59: 21 | B59: 5653 | C59: 22 | D59: 5661 | E59: 13 | F59: 5677 | K59: 0 | L59: 221
A60: 21 | B60: 5777 | C60: 11 | D60: 5787 | E60: 11 | F60: 5790 | K60: 1 | L60: 211

Sheet !N526A00.010
A1: Report for:!N526A00.010
A2: Date: | B2: <date>
A3: Hen: | B3: <hen> | F3: Correct Sequence | G3: =Start!J2 -> 211 | P3: Total Sequences in Data | Q3: =4994-COUNTBLANK(L7:L5000) -> 49 | V3: Total Sequences in Block Data | W3: =COUNTA(L7:L14) -> 8 | AA3: Total Sequences in Block Data | AB3: =COUNTA(L15:L22) -> 8 | AF3: Total Sequences in Block Data | AG3: =COUNTA(L23:L31) -> 9 | AK3: Total Sequences in Block Data | AL3: =COUNTA(L32:L39) -> 8 | AP3: Total Sequences in Block Data | AQ3: =COUNTA(L40:L47) -> 8 | AU3: Total Sequences in Block Data | AV3: =COUNTA(L48:L55) -> 8
P4: Total Sequences in Summary | Q4: =SUM(O7:O14) -> 49 | V4: Total Sequences in Block Summary | W4: =SUM(U7:U14) -> 8 | AA4: Total Sequences in Block Summary | AB4: =SUM(Z7:Z14) -> 8 | AF4: Total Sequences in Block Summary | AG4: =SUM(AE7:AE14) -> 9 | AK4: Total Sequences in Block Summary | AL4: =SUM(AJ7:AJ14) -> 8 | AP4: Total Sequences in Block Summary | AQ4: =SUM(AO7:AO14) -> 8 | AU4: Total Sequences in Block Summary | AV4: =SUM(AT7:AT14) -> 8
T5: Block 1 | Y5: Block 2 | AD5: Block 3 | AI5: Block 4 | AN5: Block 5 | AS5: Block 6
A6: Sequence Component 1 | B6: Time 1 | C6: Sequence Component 2 | D6: Time 2 | E6: Sequence Component 3 | F6: Time 3 | G6: Sequence Component 4 | H6: Time 4 | I6: Sequence Component 5 | J6: Time 5 | K6: Correct? 0=No 1=Yes | L6: Sequence | N6: Frequency | P6: Relative Frequency | Q6: Variability | T6: Frequency | V6: Relative Frequency | W6: Variability | Y6: Frequency | AA6: Relative Frequency | AB6: Variability | AD6: Frequency | AF6: Relative Frequency | AG6: Variability | AI6: Frequency | AK6: Relative Frequency | AL6: Variability | AN6: Frequency | AP6: Relative Frequency | AQ6: Variability | AS6: Frequency | AU6: Relative Frequency | AV6: Variability
A7: 21 | B7: 11 | C7: 11 | D7: 17 | E7: 11 | F7: 25 | K7: 0 | L7: 211 | N7: 111 | O7: =COUNTIF($L$7:$L$500,N7) -> 0 | P7: =O7/$Q$4 -> 0 | Q7: =IF(P7=0,0,(P7*((LOG(P7))/LOG(2)))) -> 0 | T7: =N7 -> 111 | U7: =COUNTIF(L7:L14,T7) -> 0 | V7: =U7/(W4-U11) -> 0 | W7: =IF(V7=0,0,(V7*((LOG(V7))/LOG(2)))) -> 0 | Y7: =N7 -> 111 | Z7: =COUNTIF(L15:L22,Y7) -> 0 | AA7: =Z7/(AB4-Z11) -> 0 | AB7: =IF(AA7=0,0,(AA7*((LOG(AA7))/LOG(2)))) -> 0 | AD7: =N7 -> 111 | AE7: =COUNTIF(L23:L31,AD7) -> 0 | AF7: =AE7/(AG4-AE11) -> 0 | AG7: =IF(AF7=0,0,(AF7*((LOG(AF7))/LOG(2)))) -> 0 | AI7: =N7 -> 111 | AJ7: =COUNTIF(L32:L39,AI7) -> 0 | AK7: =AJ7/(AL4-AJ11) -> 0 | AL7: =IF(AK7=0,0,(AK7*((LOG(AK7))/LOG(2)))) -> 0 | AN7: =N7 -> 111 | AO7: =COUNTIF(L40:L47,AN7) -> 0 | AP7: =AO7/(AQ4-AO11) ->  | AQ7: =IF(AP7=0,0,(AP7*((LOG(AP7))/LOG(2)))) ->  | AS7: =N7 -> 111 | AT7: =COUNTIF(L48:L55,AS7) -> 0 | AU7: =AT7/(AV4-AT11) ->  | AV7: =IF(AU7=0,0,(AU7*((LOG(AU7))/LOG(2)))) -> 
A8: 21 | B8: 115 | C8: 11 | D8: 122 | E8: 11 | F8: 125 | K8: 0 | L8: 211 | N8: 112 | O8: =COUNTIF($L$7:$L$500,N8) -> 0 | P8: =O8/$Q$4 -> 0 | Q8: =IF(P8=0,0,(P8*((LOG(P8))/LOG(2)))) -> 0 | T8: =N8 -> 112 | U8: =COUNTIF(L7:L14,T8) -> 0 | V8: =U8/(W4-U11) -> 0 | W8: =IF(V8=0,0,(V8*((LOG(V8))/LOG(2)))) -> 0 | Y8: =N8 -> 112 | Z8: =COUNTIF(L15:L22,Y8) -> 0 | AA8: =Z8/(AB4-Z11) -> 0 | AB8: =IF(AA8=0,0,(AA8*((LOG(AA8))/LOG(2)))) -> 0 | AD8: =N8 -> 112 | AE8: =COUNTIF(L23:L31,AD8) -> 0 | AF8: =AE8/(AG4-AE11) -> 0 | AG8: =IF(AF8=0,0,(AF8*((LOG(AF8))/LOG(2)))) -> 0 | AI8: =N8 -> 112 | AJ8: =COUNTIF(L32:L39,AI8) -> 0 | AK8: =AJ8/(AL4-AJ11) -> 0 | AL8: =IF(AK8=0,0,(AK8*((LOG(AK8))/LOG(2)))) -> 0 | AN8: =N8 -> 112 | AO8: =COUNTIF(L40:L47,AN8) -> 0 | AP8: =AO8/(AQ4-AO11) ->  | AQ8: =IF(AP8=0,0,(AP8*((LOG(AP8))/LOG(2)))) ->  | AS8: =N8 -> 112 | AT8: =COUNTIF(L48:L55,AS8) -> 0 | AU8: =AT8/(AV4-AT11) ->  | AV8: =IF(AU8=0,0,(AU8*((LOG(AU8))/LOG(2)))) -> 
A9: 21 | B9: 213 | C9: 11 | D9: 228 | E9: 11 | F9: 237 | K9: 0 | L9: 211 | N9: 121 | O9: =COUNTIF($L$7:$L$500,N9) -> 0 | P9: =O9/$Q$4 -> 0 | Q9: =IF(P9=0,0,(P9*((LOG(P9))/LOG(2)))) -> 0 | T9: =N9 -> 121 | U9: =COUNTIF(L7:L14,T9) -> 0 | V9: =U9/(W4-U11) -> 0 | W9: =IF(V9=0,0,(V9*((LOG(V9))/LOG(2)))) -> 0 | Y9: =N9 -> 121 | Z9: =COUNTIF(L15:L22,Y9) -> 0 | AA9: =Z9/(AB4-Z11) -> 0 | AB9: =IF(AA9=0,0,(AA9*((LOG(AA9))/LOG(2)))) -> 0 | AD9: =N9 -> 121 | AE9: =COUNTIF(L23:L31,AD9) -> 0 | AF9: =AE9/(AG4-AE11) -> 0 | AG9: =IF(AF9=0,0,(AF9*((LOG(AF9))/LOG(2)))) -> 0 | AI9: =N9 -> 121 | AJ9: =COUNTIF(L32:L39,AI9) -> 0 | AK9: =AJ9/(AL4-AJ11) -> 0 | AL9: =IF(AK9=0,0,(AK9*((LOG(AK9))/LOG(2)))) -> 0 | AN9: =N9 -> 121 | AO9: =COUNTIF(L40:L47,AN9) -> 0 | AP9: =AO9/(AQ4-AO11) ->  | AQ9: =IF(AP9=0,0,(AP9*((LOG(AP9))/LOG(2)))) ->  | AS9: =N9 -> 121 | AT9: =COUNTIF(L48:L55,AS9) -> 0 | AU9: =AT9/(AV4-AT11) ->  | AV9: =IF(AU9=0,0,(AU9*((LOG(AU9))/LOG(2)))) -> 
A10: 21 | B10: 326 | C10: 11 | D10: 336 | E10: 11 | F10: 343 | K10: 0 | L10: 211 | N10: 122 | O10: =COUNTIF($L$7:$L$500,N10) -> 0 | P10: =O10/$Q$4 -> 0 | Q10: =IF(P10=0,0,(P10*((LOG(P10))/LOG(2)))) -> 0 | T10: =N10 -> 122 | U10: =COUNTIF(L7:L14,T10) -> 0 | V10: =U10/(W4-U11) -> 0 | W10: =IF(V10=0,0,(V10*((LOG(V10))/LOG(2)))) -> 0 | Y10: =N10 -> 122 | Z10: =COUNTIF(L15:L22,Y10) -> 0 | AA10: =Z10/(AB4-Z11) -> 0 | AB10: =IF(AA10=0,0,(AA10*((LOG(AA10))/LOG(2)))) -> 0 | AD10: =N10 -> 122 | AE10: =COUNTIF(L23:L31,AD10) -> 0 | AF10: =AE10/(AG4-AE11) -> 0 | AG10: =IF(AF10=0,0,(AF10*((LOG(AF10))/LOG(2)))) -> 0 | AI10: =N10 -> 122 | AJ10: =COUNTIF(L32:L39,AI10) -> 0 | AK10: =AJ10/(AL4-AJ11) -> 0 | AL10: =IF(AK10=0,0,(AK10*((LOG(AK10))/LOG(2)))) -> 0 | AN10: =N10 -> 122 | AO10: =COUNTIF(L40:L47,AN10) -> 0 | AP10: =AO10/(AQ4-AO11) ->  | AQ10: =IF(AP10=0,0,(AP10*((LOG(AP10))/LOG(2)))) ->  | AS10: =N10 -> 122 | AT10: =COUNTIF(L48:L55,AS10) -> 0 | AU10: =AT10/(AV4-AT11) ->  | AV10: =IF(AU10=0,0,(AU10*((LOG(AU10))/LOG(2)))) -> 
A11: 21 | B11: 431 | C11: 11 | D11: 438 | E11: 11 | F11: 449 | K11: 0 | L11: 211 | N11: 211 | O11: =COUNTIF($L$7:$L$500,N11) -> 40 | P11: =O11/$Q$4 -> 0.8163265306 | Q11: =IF(P11=0,0,(P11*((LOG(P11))/LOG(2)))) -> -0.2390055096 | T11: =N11 -> 211 | U11: =COUNTIF(L7:L14,T11) -> 5 | Y11: =N11 -> 211 | Z11: =COUNTIF(L15:L22,Y11) -> 6 | AD11: =N11 -> 211 | AE11: =COUNTIF(L23:L31,AD11) -> 7 | AI11: =N11 -> 211 | AJ11: =COUNTIF(L32:L39,AI11) -> 6 | AN11: =N11 -> 211 | AO11: =COUNTIF(L40:L47,AN11) -> 8 | AS11: =N11 -> 211 | AT11: =COUNTIF(L48:L55,AS11) -> 8
A12: 21 | B12: 542 | C12: 22 | D12: 550 | E12: 13 | F12: 560 | K12: 0 | L12: 221 | N12: 212 | O12: =COUNTIF($L$7:$L$500,N12) -> 0 | P12: =O12/$Q$4 -> 0 | Q12: =IF(P12=0,0,(P12*((LOG(P12))/LOG(2)))) -> 0 | T12: =N12 -> 212 | U12: =COUNTIF(L7:L14,T12) -> 0 | V12: =U12/(W4-U11) -> 0 | W12: =IF(V12=0,0,(V12*((LOG(V12))/LOG(2)))) -> 0 | Y12: =N12 -> 212 | Z12: =COUNTIF(L15:L22,Y12) -> 0 | AA12: =Z12/(AB4-Z11) -> 0 | AB12: =IF(AA12=0,0,(AA12*((LOG(AA12))/LOG(2)))) -> 0 | AD12: =N12 -> 212 | AE12: =COUNTIF(L23:L31,AD12) -> 0 | AF12: =AE12/(AG4-AE11) -> 0 | AG12: =IF(AF12=0,0,(AF12*((LOG(AF12))/LOG(2)))) -> 0 | AI12: =N12 -> 212 | AJ12: =COUNTIF(L32:L39,AI12) -> 0 | AK12: =AJ12/(AL4-AJ11) -> 0 | AL12: =IF(AK12=0,0,(AK12*((LOG(AK12))/LOG(2)))) -> 0 | AN12: =N12 -> 212 | AO12: =COUNTIF(L40:L47,AN12) -> 0 | AP12: =AO12/(AQ4-AO11) ->  | AQ12: =IF(AP12=0,0,(AP12*((LOG(AP12))/LOG(2)))) ->  | AS12: =N12 -> 212 | AT12: =COUNTIF(L48:L55,AS12) -> 0 | AU12: =AT12/(AV4-AT11) ->  | AV12: =IF(AU12=0,0,(AU12*((LOG(AU12))/LOG(2)))) -> 
A13: 21 | B13: 648 | C13: 22 | D13: 652 | E13: 13 | F13: 659 | K13: 0 | L13: 221 | N13: 221 | O13: =COUNTIF($L$7:$L$500,N13) -> 7 | P13: =O13/$Q$4 -> 0.1428571429 | Q13: =IF(P13=0,0,(P13*((LOG(P13))/LOG(2)))) -> -0.4010507032 | T13: =N13 -> 221 | U13: =COUNTIF(L7:L14,T13) -> 2 | V13: =U13/(W4-U11) -> 0.6666666667 | W13: =IF(V13=0,0,(V13*((LOG(V13))/LOG(2)))) -> -0.3899750005 | Y13: =N13 -> 221 | Z13: =COUNTIF(L15:L22,Y13) -> 1 | AA13: =Z13/(AB4-Z11) -> 0.5 | AB13: =IF(AA13=0,0,(AA13*((LOG(AA13))/LOG(2)))) -> -0.5 | AD13: =N13 -> 221 | AE13: =COUNTIF(L23:L31,AD13) -> 2 | AF13: =AE13/(AG4-AE11) -> 1 | AG13: =IF(AF13=0,0,(AF13*((LOG(AF13))/LOG(2)))) -> 0 | AI13: =N13 -> 221 | AJ13: =COUNTIF(L32:L39,AI13) -> 2 | AK13: =AJ13/(AL4-AJ11) -> 1 | AL13: =IF(AK13=0,0,(AK13*((LOG(AK13))/LOG(2)))) -> 0 | AN13: =N13 -> 221 | AO13: =COUNTIF(L40:L47,AN13) -> 0 | AP13: =AO13/(AQ4-AO11) ->  | AQ13: =IF(AP13=0,0,(AP13*((LOG(AP13))/LOG(2)))) ->  | AS13: =N13 -> 221 | AT13: =COUNTIF(L48:L55,AS13) -> 0 | AU13: =AT13/(AV4-AT11) ->  | AV13: =IF(AU13=0,0,(AU13*((LOG(AU13))/LOG(2)))) -> 
A14: 21 | B14: 755 | C14: 22 | D14: 760 | E14: 24 | F14: 764 | K14: 0 | L14: 222 | N14: 222 | O14: =COUNTIF($L$7:$L$500,N14) -> 2 | P14: =O14/$Q$4 -> 0.04081632653 | Q14: =IF(P14=0,0,(P14*((LOG(P14))/LOG(2)))) -> -0.1883555038 | T14: =N14 -> 222 | U14: =COUNTIF(L7:L14,T14) -> 1 | V14: =U14/(W4-U11) -> 0.3333333333 | W14: =IF(V14=0,0,(V14*((LOG(V14))/LOG(2)))) -> -0.5283208336 | Y14: =N14 -> 222 | Z14: =COUNTIF(L15:L22,Y14) -> 1 | AA14: =Z14/(AB4-Z11) -> 0.5 | AB14: =IF(AA14=0,0,(AA14*((LOG(AA14))/LOG(2)))) -> -0.5 | AD14: =N14 -> 222 | AE14: =COUNTIF(L23:L31,AD14) -> 0 | AF14: =AE14/(AG4-AE11) -> 0 | AG14: =IF(AF14=0,0,(AF14*((LOG(AF14))/LOG(2)))) -> 0 | AI14: =N14 -> 222 | AJ14: =COUNTIF(L32:L39,AI14) -> 0 | AK14: =AJ14/(AL4-AJ11) -> 0 | AL14: =IF(AK14=0,0,(AK14*((LOG(AK14))/LOG(2)))) -> 0 | AN14: =N14 -> 222 | AO14: =COUNTIF(L40:L47,AN14) -> 0 | AP14: =AO14/(AQ4-AO11) ->  | AQ14: =IF(AP14=0,0,(AP14*((LOG(AP14))/LOG(2)))) ->  | AS14: =N14 -> 222 | AT14: =COUNTIF(L48:L55,AS14) -> 0 | AU14: =AT14/(AV4-AT11) ->  | AV14: =IF(AU14=0,0,(AU14*((LOG(AU14))/LOG(2)))) -> 
A15: 21 | B15: 861 | C15: 11 | D15: 868 | E15: 11 | F15: 876 | K15: 0 | L15: 211 | P15: =SUM(P7:P14) -> 1 | Q15: =-SUM(Q7:Q14) -> 0.8284117166 | V15: =SUM(V7:V14) -> 1 | W15: =-SUM(W7:W14) -> 0.9182958341 | AA15: =SUM(AA7:AA14) -> 1 | AB15: =-SUM(AB7:AB14) -> 1 | AF15: =SUM(AF7:AF14) -> 1 | AG15: =-SUM(AG7:AG14) -> 0 | AK15: =SUM(AK7:AK14) -> 1 | AL15: =-SUM(AL7:AL14) -> 0 | AP15: =SUM(AP7:AP14) ->  | AQ15: =-SUM(AQ7:AQ14) ->  | AU15: =SUM(AU7:AU14) ->  | AV15: =-SUM(AV7:AV14) -> 
A16: 21 | B16: 963 | C16: 11 | D16: 974 | E16: 11 | F16: 988 | K16: 0 | L16: 211 | P16: U= | Q16: =Q15/(LOG(Q4)/LOG(2)) -> 0.1475431037 | V16: U1= | W16: =W15/(LOG(W4)/LOG(2)) -> 0.3060986114 | AA16: U2= | AB16: =AB15/(LOG(AB4)/LOG(2)) -> 0.3333333333 | AF16: U3= | AG16: =AG15/(LOG(AG4)/LOG(2)) -> 0 | AK16: U4= | AL16: =AL15/(LOG(AL4)/LOG(2)) -> 0 | AP16: U5= | AQ16: =AQ15/(LOG(AQ4)/LOG(2)) ->  | AU16: U6= | AV16: =AV15/(LOG(AV4)/LOG(2)) -> 
A17: 21 | B17: 1074 | C17: 11 | D17: 1083 | E17: 11 | F17: 1086 | K17: 0 | L17: 211
A18: 21 | B18: 1172 | C18: 11 | D18: 1179 | E18: 11 | F18: 1183 | K18: 0 | L18: 211
A19: 21 | B19: 1269 | C19: 22 | D19: 1274 | E19: 24 | F19: 1293 | K19: 0 | L19: 222 | N19: Total Target Seq
A20: 21 | B20: 1390 | C20: 11 | D20: 1403 | E20: 11 | F20: 1410 | K20: 0 | L20: 211 | N20: =COUNTIF(L7:L55,G3) -> 40 | P20: 8 | Q20: 8 | R20: 9 | S20: 8 | T20: 8 | U20: 8
A21: 21 | B21: 1496 | C21: 22 | D21: 1508 | E21: 13 | F21: 1518 | K21: 0 | L21: 221 | P21: % of reinforcement given in 6 equal intervals based on number of trials
A22: 21 | B22: 1616 | C22: 11 | D22: 1623 | E22: 11 | F22: 1627 | K22: 0 | L22: 211 | P22: %_1 | Q22: %_2 | R22: %_3 | S22: %_4 | T22: %_5 | U22: %_6
A23: 21 | B23: 1717 | C23: 11 | D23: 1725 | E23: 11 | F23: 1731 | K23: 0 | L23: 211 | O23: target sequence | P23: =$G$3 -> 211 | Q23: =$G$3 -> 211 | R23: =$G$3 -> 211 | S23: =$G$3 -> 211 | T23: =$G$3 -> 211 | U23: =$G$3 -> 211
A24: 21 | B24: 1819 | C24: 22 | D24: 1826 | E24: 13 | F24: 1833 | K24: 0 | L24: 221 | O24: total reinforcement | P24: =U11 -> 5 | Q24: =Z11 -> 6 | R24: =AE11 -> 7 | S24: =AJ11 -> 6 | T24: =AO11 -> 8 | U24: =AT11 -> 8
A25: 21 | B25: 1930 | C25: 11 | D25: 1937 | E25: 11 | F25: 1948 | K25: 0 | L25: 211 | O25: % target
A26: 21 | B26: 2035 | C26: 11 | D26: 2042 | E26: 11 | F26: 2046 | K26: 0 | L26: 211 | O26: CCRF
A27: 21 | B27: 2132 | C27: 11 | D27: 2139 | E27: 11 | F27: 2142 | K27: 0 | L27: 211 | O27: % CCRf
A28: 21 | B28: 2229 | C28: 11 | D28: 2236 | E28: 11 | F28: 2247 | K28: 0 | L28: 211 | O28: average response rate | P28: =F14/P20 -> 95.5 | Q28: =(F22-F14)/Q20 -> 107.875 | R28: =(F31-F22)/R20 -> 103.5555556 | S28: =(F39-F31)/S20 -> 103.125 | T28: =(F47-F39)/T20 -> 100.125 | U28: =(F55-F47)/U20 -> 103.625
A29: 21 | B29: 2334 | C29: 22 | D29: 2338 | E29: 13 | F29: 2346 | K29: 0 | L29: 221
A30: 21 | B30: 2443 | C30: 11 | D30: 2450 | E30: 11 | F30: 2456 | K30: 0 | L30: 211
A31: 21 | B31: 2542 | C31: 11 | D31: 2550 | E31: 11 | F31: 2559 | K31: 0 | L31: 211
A32: 21 | B32: 2646 | C32: 22 | D32: 2649 | E32: 13 | F32: 2657 | K32: 0 | L32: 221
A33: 21 | B33: 2753 | C33: 22 | D33: 2757 | E33: 13 | F33: 2765 | K33: 0 | L33: 221
A34: 21 | B34: 2860 | C34: 11 | D34: 2867 | E34: 11 | F34: 2871 | K34: 0 | L34: 211
A35: 21 | B35: 2957 | C35: 11 | D35: 2964 | E35: 11 | F35: 2968 | K35: 0 | L35: 211
A36: 21 | B36: 3054 | C36: 11 | D36: 3062 | E36: 11 | F36: 3067 | K36: 0 | L36: 211
A37: 21 | B37: 3154 | C37: 11 | D37: 3162 | E37: 11 | F37: 3166 | K37: 0 | L37: 211
A38: 21 | B38: 3256 | C38: 11 | D38: 3265 | E38: 11 | F38: 3272 | K38: 0 | L38: 211
A39: 21 | B39: 3359 | C39: 11 | D39: 3375 | E39: 11 | F39: 3384 | K39: 0 | L39: 211
A40: 21 | B40: 3474 | C40: 11 | D40: 3481 | E40: 11 | F40: 3485 | K40: 0 | L40: 211
A41: 21 | B41: 3573 | C41: 11 | D41: 3584 | E41: 11 | F41: 3587 | K41: 0 | L41: 211
A42: 21 | B42: 3675 | C42: 11 | D42: 3682 | E42: 11 | F42: 3688 | K42: 0 | L42: 211
A43: 21 | B43: 3777 | C43: 11 | D43: 3784 | E43: 11 | F43: 3788 | K43: 0 | L43: 211
A44: 21 | B44: 3875 | C44: 11 | D44: 3882 | E44: 11 | F44: 3888 | K44: 0 | L44: 211
A45: 21 | B45: 3975 | C45: 11 | D45: 3982 | E45: 11 | F45: 3986 | K45: 0 | L45: 211
A46: 21 | B46: 4072 | C46: 11 | D46: 4079 | E46: 11 | F46: 4083 | K46: 0 | L46: 211
A47: 21 | B47: 4172 | C47: 11 | D47: 4179 | E47: 11 | F47: 4185 | K47: 0 | L47: 211
A48: 21 | B48: 4284 | C48: 11 | D48: 4299 | E48: 11 | F48: 4314 | K48: 0 | L48: 211
A49: 21 | B49: 4402 | C49: 11 | D49: 4409 | E49: 11 | F49: 4413 | K49: 0 | L49: 211
A50: 21 | B50: 4499 | C50: 11 | D50: 4507 | E50: 11 | F50: 4510 | K50: 0 | L50: 211
A51: 21 | B51: 4597 | C51: 11 | D51: 4604 | E51: 11 | F51: 4618 | K51: 0 | L51: 211
A52: 21 | B52: 4705 | C52: 11 | D52: 4712 | E52: 11 | F52: 4715 | K52: 0 | L52: 211
A53: 21 | B53: 4802 | C53: 11 | D53: 4809 | E53: 11 | F53: 4814 | K53: 0 | L53: 211
A54: 21 | B54: 4900 | C54: 11 | D54: 4908 | E54: 11 | F54: 4915 | K54: 0 | L54: 211
A55: 21 | B55: 5002 | C55: 11 | D55: 5009 | E55: 11 | F55: 5014 | K55: 1 | L55: 211

Sheet !N527A50.010
A1: Report for:!N527A50.010
A2: Date: | B2: <date>
A3: Hen: | B3: <hen> | F3: Correct Sequence | G3: =Start!J2 -> 211 | P3: Total Sequences in Data | Q3: =4994-COUNTBLANK(L7:L5000) -> 43 | V3: Total Sequences in Block Data | W3: =COUNTA(L7:L13) -> 7 | AA3: Total Sequences in Block Data | AB3: =COUNTA(L14:L20) -> 7 | AF3: Total Sequences in Block Data | AG3: =COUNTA(L21:L28) -> 8 | AK3: Total Sequences in Block Data | AL3: =COUNTA(L29:L35) -> 7 | AP3: Total Sequences in Block Data | AQ3: =COUNTA(L36:L42) -> 7 | AU3: Total Sequences in Block Data | AV3: =COUNTA(L43:L49) -> 7
P4: Total Sequences in Summary | Q4: =SUM(O7:O14) -> 43 | V4: Total Sequences in Block Summary | W4: =SUM(U7:U14) -> 7 | AA4: Total Sequences in Block Summary | AB4: =SUM(Z7:Z14) -> 7 | AF4: Total Sequences in Block Summary | AG4: =SUM(AE7:AE14) -> 8 | AK4: Total Sequences in Block Summary | AL4: =SUM(AJ7:AJ14) -> 7 | AP4: Total Sequences in Block Summary | AQ4: =SUM(AO7:AO14) -> 7 | AU4: Total Sequences in Block Summary | AV4: =SUM(AT7:AT14) -> 7
T5: Block 1 | Y5: Block 2 | AD5: Block 3 | AI5: Block 4 | AN5: Block 5 | AS5: Block 6
A6: Sequence Component 1 | B6: Time 1 | C6: Sequence Component 2 | D6: Time 2 | E6: Sequence Component 3 | F6: Time 3 | G6: Sequence Component 4 | H6: Time 4 | I6: Sequence Component 5 | J6: Time 5 | K6: Correct? 0=No 1=Yes | L6: Sequence | N6: Frequency | P6: Relative Frequency | Q6: Variability | T6: Frequency | V6: Relative Frequency | W6: Variability | Y6: Frequency | AA6: Relative Frequency | AB6: Variability | AD6: Frequency | AF6: Relative Frequency | AG6: Variability | AI6: Frequency | AK6: Relative Frequency | AL6: Variability | AN6: Frequency | AP6: Relative Frequency | AQ6: Variability | AS6: Frequency | AU6: Relative Frequency | AV6: Variability
A7: 21 | B7: 6 | C7: 11 | D7: 12 | E7: 11 | F7: 17 | K7: 0 | L7: 211 | N7: 111 | O7: =COUNTIF($L$7:$L$500,N7) -> 0 | P7: =O7/$Q$4 -> 0 | Q7: =IF(P7=0,0,(P7*((LOG(P7))/LOG(2)))) -> 0 | T7: =N7 -> 111 | U7: =COUNTIF(L7:L13,T7) -> 0 | V7: =U7/(W4-U11) ->  | W7: =IF(V7=0,0,(V7*((LOG(V7))/LOG(2)))) ->  | Y7: =N7 -> 111 | Z7: =COUNTIF(L14:L20,Y7) -> 0 | AA7: =Z7/(AB4-Z11) ->  | AB7: =IF(AA7=0,0,(AA7*((LOG(AA7))/LOG(2)))) ->  | AD7: =N7 -> 111 | AE7: =COUNTIF(L21:L28,AD7) -> 0 | AF7: =AE7/(AG4-AE11) -> 0 | AG7: =IF(AF7=0,0,(AF7*((LOG(AF7))/LOG(2)))) -> 0 | AI7: =N7 -> 111 | AJ7: =COUNTIF(L29:L35,AI7) -> 0 | AK7: =AJ7/(AL4-AJ11) -> 0 | AL7: =IF(AK7=0,0,(AK7*((LOG(AK7))/LOG(2)))) -> 0 | AN7: =N7 -> 111 | AO7: =COUNTIF(L36:L42,AN7) -> 0 | AP7: =AO7/(AQ4-AO11) ->  | AQ7: =IF(AP7=0,0,(AP7*((LOG(AP7))/LOG(2)))) ->  | AS7: =N7 -> 111 | AT7: =COUNTIF(L43:L49,AS7) -> 0 | AU7: =AT7/(AV4-AT11) ->  | AV7: =IF(AU7=0,0,(AU7*((LOG(AU7))/LOG(2)))) -> 
A8: 21 | B8: 110 | C8: 11 | D8: 116 | E8: 11 | F8: 120 | K8: 0 | L8: 211 | N8: 112 | O8: =COUNTIF($L$7:$L$500,N8) -> 0 | P8: =O8/$Q$4 -> 0 | Q8: =IF(P8=0,0,(P8*((LOG(P8))/LOG(2)))) -> 0 | T8: =N8 -> 112 | U8: =COUNTIF(L7:L13,T8) -> 0 | V8: =U8/(W4-U11) ->  | W8: =IF(V8=0,0,(V8*((LOG(V8))/LOG(2)))) ->  | Y8: =N8 -> 112 | Z8: =COUNTIF(L14:L20,Y8) -> 0 | AA8: =Z8/(AB4-Z11) ->  | AB8: =IF(AA8=0,0,(AA8*((LOG(AA8))/LOG(2)))) ->  | AD8: =N8 -> 112 | AE8: =COUNTIF(L21:L28,AD8) -> 0 | AF8: =AE8/(AG4-AE11) -> 0 | AG8: =IF(AF8=0,0,(AF8*((LOG(AF8))/LOG(2)))) -> 0 | AI8: =N8 -> 112 | AJ8: =COUNTIF(L29:L35,AI8) -> 0 | AK8: =AJ8/(AL4-AJ11) -> 0 | AL8: =IF(AK8=0,0,(AK8*((LOG(AK8))/LOG(2)))) -> 0 | AN8: =N8 -> 112 | AO8: =COUNTIF(L36:L42,AN8) -> 0 | AP8: =AO8/(AQ4-AO11) ->  | AQ8: =IF(AP8=0,0,(AP8*((LOG(AP8))/LOG(2)))) ->  | AS8: =N8 -> 112 | AT8: =COUNTIF(L43:L49,AS8) -> 0 | AU8: =AT8/(AV4-AT11) ->  | AV8: =IF(AU8=0,0,(AU8*((LOG(AU8))/LOG(2)))) -> 
A9: 21 | B9: 206 | C9: 11 | D9: 213 | E9: 11 | F9: 220 | K9: 0 | L9: 211 | N9: 121 | O9: =COUNTIF($L$7:$L$500,N9) -> 0 | P9: =O9/$Q$4 -> 0 | Q9: =IF(P9=0,0,(P9*((LOG(P9))/LOG(2)))) -> 0 | T9: =N9 -> 121 | U9: =COUNTIF(L7:L13,T9) -> 0 | V9: =U9/(W4-U11) ->  | W9: =IF(V9=0,0,(V9*((LOG(V9))/LOG(2)))) ->  | Y9: =N9 -> 121 | Z9: =COUNTIF(L14:L20,Y9) -> 0 | AA9: =Z9/(AB4-Z11) ->  | AB9: =IF(AA9=0,0,(AA9*((LOG(AA9))/LOG(2)))) ->  | AD9: =N9 -> 121 | AE9: =COUNTIF(L21:L28,AD9) -> 0 | AF9: =AE9/(AG4-AE11) -> 0 | AG9: =IF(AF9=0,0,(AF9*((LOG(AF9))/LOG(2)))) -> 0 | AI9: =N9 -> 121 | AJ9: =COUNTIF(L29:L35,AI9) -> 0 | AK9: =AJ9/(AL4-AJ11) -> 0 | AL9: =IF(AK9=0,0,(AK9*((LOG(AK9))/LOG(2)))) -> 0 | AN9: =N9 -> 121 | AO9: =COUNTIF(L36:L42,AN9) -> 0 | AP9: =AO9/(AQ4-AO11) ->  | AQ9: =IF(AP9=0,0,(AP9*((LOG(AP9))/LOG(2)))) ->  | AS9: =N9 -> 121 | AT9: =COUNTIF(L43:L49,AS9) -> 0 | AU9: =AT9/(AV4-AT11) ->  | AV9: =IF(AU9=0,0,(AU9*((LOG(AU9))/LOG(2)))) -> 
A10: 21 | B10: 309 | C10: 11 | D10: 316 | E10: 11 | F10: 320 | K10: 0 | L10: 211 | N10: 122 | O10: =COUNTIF($L$7:$L$500,N10) -> 0 | P10: =O10/$Q$4 -> 0 | Q10: =IF(P10=0,0,(P10*((LOG(P10))/LOG(2)))) -> 0 | T10: =N10 -> 122 | U10: =COUNTIF(L7:L13,T10) -> 0 | V10: =U10/(W4-U11) ->  | W10: =IF(V10=0,0,(V10*((LOG(V10))/LOG(2)))) ->  | Y10: =N10 -> 122 | Z10: =COUNTIF(L14:L20,Y10) -> 0 | AA10: =Z10/(AB4-Z11) ->  | AB10: =IF(AA10=0,0,(AA10*((LOG(AA10))/LOG(2)))) ->  | AD10: =N10 -> 122 | AE10: =COUNTIF(L21:L28,AD10) -> 0 | AF10: =AE10/(AG4-AE11) -> 0 | AG10: =IF(AF10=0,0,(AF10*((LOG(AF10))/LOG(2)))) -> 0 | AI10: =N10 -> 122 | AJ10: =COUNTIF(L29:L35,AI10) -> 0 | AK10: =AJ10/(AL4-AJ11) -> 0 | AL10: =IF(AK10=0,0,(AK10*((LOG(AK10))/LOG(2)))) -> 0 | AN10: =N10 -> 122 | AO10: =COUNTIF(L36:L42,AN10) -> 0 | AP10: =AO10/(AQ4-AO11) ->  | AQ10: =IF(AP10=0,0,(AP10*((LOG(AP10))/LOG(2)))) ->  | AS10: =N10 -> 122 | AT10: =COUNTIF(L43:L49,AS10) -> 0 | AU10: =AT10/(AV4-AT11) ->  | AV10: =IF(AU10=0,0,(AU10*((LOG(AU10))/LOG(2)))) -> 
A11: 21 | B11: 415 | C11: 11 | D11: 429 | E11: 11 | F11: 443 | K11: 0 | L11: 211 | N11: 211 | O11: =COUNTIF($L$7:$L$500,N11) -> 40 | P11: =O11/$Q$4 -> 0.9302325581 | Q11: =IF(P11=0,0,(P11*((LOG(P11))/LOG(2)))) -> -0.09705735797 | T11: =N11 -> 211 | U11: =COUNTIF(L7:L13,T11) -> 7 | Y11: =N11 -> 211 | Z11: =COUNTIF(L14:L20,Y11) -> 7 | AD11: =N11 -> 211 | AE11: =COUNTIF(L21:L28,AD11) -> 6 | AI11: =N11 -> 211 | AJ11: =COUNTIF(L29:L35,AI11) -> 6 | AN11: =N11 -> 211 | AO11: =COUNTIF(L36:L42,AN11) -> 7 | AS11: =N11 -> 211 | AT11: =COUNTIF(L43:L49,AS11) -> 7
A12: 21 | B12: 534 | C12: 11 | D12: 549 | E12: 11 | F12: 567 | K12: 0 | L12: 211 | N12: 212 | O12: =COUNTIF($L$7:$L$500,N12) -> 0 | P12: =O12/$Q$4 -> 0 | Q12: =IF(P12=0,0,(P12*((LOG(P12))/LOG(2)))) -> 0 | T12: =N12 -> 212 | U12: =COUNTIF(L7:L13,T12) -> 0 | V12: =U12/(W4-U11) ->  | W12: =IF(V12=0,0,(V12*((LOG(V12))/LOG(2)))) ->  | Y12: =N12 -> 212 | Z12: =COUNTIF(L14:L20,Y12) -> 0 | AA12: =Z12/(AB4-Z11) ->  | AB12: =IF(AA12=0,0,(AA12*((LOG(AA12))/LOG(2)))) ->  | AD12: =N12 -> 212 | AE12: =COUNTIF(L21:L28,AD12) -> 0 | AF12: =AE12/(AG4-AE11) -> 0 | AG12: =IF(AF12=0,0,(AF12*((LOG(AF12))/LOG(2)))) -> 0 | AI12: =N12 -> 212 | AJ12: =COUNTIF(L29:L35,AI12) -> 0 | AK12: =AJ12/(AL4-AJ11) -> 0 | AL12: =IF(AK12=0,0,(AK12*((LOG(AK12))/LOG(2)))) -> 0 | AN12: =N12 -> 212 | AO12: =COUNTIF(L36:L42,AN12) -> 0 | AP12: =AO12/(AQ4-AO11) ->  | AQ12: =IF(AP12=0,0,(AP12*((LOG(AP12))/LOG(2)))) ->  | AS12: =N12 -> 212 | AT12: =COUNTIF(L43:L49,AS12) -> 0 | AU12: =AT12/(AV4-AT11) ->  | AV12: =IF(AU12=0,0,(AU12*((LOG(AU12))/LOG(2)))) -> 
A13: 21 | B13: 658 | C13: 11 | D13: 667 | E13: 11 | F13: 670 | K13: 0 | L13: 211 | N13: 221 | O13: =COUNTIF($L$7:$L$500,N13) -> 3 | P13: =O13/$Q$4 -> 0.06976744186 | Q13: =IF(P13=0,0,(P13*((LOG(P13))/LOG(2)))) -> -0.2679978317 | T13: =N13 -> 221 | U13: =COUNTIF(L7:L13,T13) -> 0 | V13: =U13/(W4-U11) ->  | W13: =IF(V13=0,0,(V13*((LOG(V13))/LOG(2)))) ->  | Y13: =N13 -> 221 | Z13: =COUNTIF(L14:L20,Y13) -> 0 | AA13: =Z13/(AB4-Z11) ->  | AB13: =IF(AA13=0,0,(AA13*((LOG(AA13))/LOG(2)))) ->  | AD13: =N13 -> 221 | AE13: =COUNTIF(L21:L28,AD13) -> 2 | AF13: =AE13/(AG4-AE11) -> 1 | AG13: =IF(AF13=0,0,(AF13*((LOG(AF13))/LOG(2)))) -> 0 | AI13: =N13 -> 221 | AJ13: =COUNTIF(L29:L35,AI13) -> 1 | AK13: =AJ13/(AL4-AJ11) -> 1 | AL13: =IF(AK13=0,0,(AK13*((LOG(AK13))/LOG(2)))) -> 0 | AN13: =N13 -> 221 | AO13: =COUNTIF(L36:L42,AN13) -> 0 | AP13: =AO13/(AQ4-AO11) ->  | AQ13: =IF(AP13=0,0,(AP13*((LOG(AP13))/LOG(2)))) ->  | AS13: =N13 -> 221 | AT13: =COUNTIF(L43:L49,AS13) -> 0 | AU13: =AT13/(AV4-AT11) ->  | AV13: =IF(AU13=0,0,(AU13*((LOG(AU13))/LOG(2)))) -> 
A14: 21 | B14: 757 | C14: 11 | D14: 764 | E14: 11 | F14: 771 | K14: 0 | L14: 211 | N14: 222 | O14: =COUNTIF($L$7:$L$500,N14) -> 0 | P14: =O14/$Q$4 -> 0 | Q14: =IF(P14=0,0,(P14*((LOG(P14))/LOG(2)))) -> 0 | T14: =N14 -> 222 | U14: =COUNTIF(L7:L13,T14) -> 0 | V14: =U14/(W4-U11) ->  | W14: =IF(V14=0,0,(V14*((LOG(V14))/LOG(2)))) ->  | Y14: =N14 -> 222 | Z14: =COUNTIF(L14:L20,Y14) -> 0 | AA14: =Z14/(AB4-Z11) ->  | AB14: =IF(AA14=0,0,(AA14*((LOG(AA14))/LOG(2)))) ->  | AD14: =N14 -> 222 | AE14: =COUNTIF(L21:L28,AD14) -> 0 | AF14: =AE14/(AG4-AE11) -> 0 | AG14: =IF(AF14=0,0,(AF14*((LOG(AF14))/LOG(2)))) -> 0 | AI14: =N14 -> 222 | AJ14: =COUNTIF(L29:L35,AI14) -> 0 | AK14: =AJ14/(AL4-AJ11) -> 0 | AL14: =IF(AK14=0,0,(AK14*((LOG(AK14))/LOG(2)))) -> 0 | AN14: =N14 -> 222 | AO14: =COUNTIF(L36:L42,AN14) -> 0 | AP14: =AO14/(AQ4-AO11) ->  | AQ14: =IF(AP14=0,0,(AP14*((LOG(AP14))/LOG(2)))) ->  | AS14: =N14 -> 222 | AT14: =COUNTIF(L43:L49,AS14) -> 0 | AU14: =AT14/(AV4-AT11) ->  | AV14: =IF(AU14=0,0,(AU14*((LOG(AU14))/LOG(2)))) -> 
A15: 21 | B15: 859 | C15: 11 | D15: 871 | E15: 11 | F15: 881 | K15: 0 | L15: 211 | P15: =SUM(P7:P14) -> 1 | Q15: =-SUM(Q7:Q14) -> 0.3650551896 | V15: =SUM(V7:V14) ->  | W15: =-SUM(W7:W14) ->  | AA15: =SUM(AA7:AA14) ->  | AB15: =-SUM(AB7:AB14) ->  | AF15: =SUM(AF7:AF14) -> 1 | AG15: =-SUM(AG7:AG14) -> 0 | AK15: =SUM(AK7:AK14) -> 1 | AL15: =-SUM(AL7:AL14) -> 0 | AP15: =SUM(AP7:AP14) ->  | AQ15: =-SUM(AQ7:AQ14) ->  | AU15: =SUM(AU7:AU14) ->  | AV15: =-SUM(AV7:AV14) -> 
A16: 21 | B16: 977 | C16: 11 | D16: 984 | E16: 11 | F16: 988 | K16: 0 | L16: 211 | P16: U= | Q16: =Q15/(LOG(Q4)/LOG(2)) -> 0.06727559493 | V16: U1= | W16: =W15/(LOG(W4)/LOG(2)) ->  | AA16: U2= | AB16: =AB15/(LOG(AB4)/LOG(2)) ->  | AF16: U3= | AG16: =AG15/(LOG(AG4)/LOG(2)) -> 0 | AK16: U4= | AL16: =AL15/(LOG(AL4)/LOG(2)) -> 0 | AP16: U5= | AQ16: =AQ15/(LOG(AQ4)/LOG(2)) ->  | AU16: U6= | AV16: =AV15/(LOG(AV4)/LOG(2)) -> 
A17: 21 | B17: 1078 | C17: 11 | D17: 1086 | E17: 11 | F17: 1095 | K17: 0 | L17: 211
A18: 21 | B18: 1183 | C18: 11 | D18: 1194 | E18: 11 | F18: 1200 | K18: 0 | L18: 211
A19: 21 | B19: 1288 | C19: 11 | D19: 1295 | E19: 11 | F19: 1299 | K19: 0 | L19: 211 | N19: Total Target Seq
A20: 21 | B20: 1387 | C20: 11 | D20: 1397 | E20: 11 | F20: 1400 | K20: 0 | L20: 211 | N20: =COUNTIF(L7:L49,G3) -> 40 | P20: 7 | Q20: 7 | R20: 8 | S20: 7 | T20: 7 | U20: 7
A21: 21 | B21: 1487 | C21: 22 | D21: 1490 | E21: 13 | F21: 1497 | K21: 0 | L21: 221 | P21: % of reinforcement given in 6 equal intervals based on number of trials
A22: 21 | B22: 1584 | C22: 11 | D22: 1594 | E22: 11 | F22: 1618 | K22: 0 | L22: 211 | P22: %_1 | Q22: %_2 | R22: %_3 | S22: %_4 | T22: %_5 | U22: %_6
A23: 21 | B23: 1705 | C23: 22 | D23: 1710 | E23: 13 | F23: 1717 | K23: 0 | L23: 221 | O23: target sequence | P23: =$G$3 -> 211 | Q23: =$G$3 -> 211 | R23: =$G$3 -> 211 | S23: =$G$3 -> 211 | T23: =$G$3 -> 211 | U23: =$G$3 -> 211
A24: 21 | B24: 1814 | C24: 11 | D24: 1828 | E24: 11 | F24: 1838 | K24: 0 | L24: 211 | O24: total reinforcement | P24: =U11 -> 7 | Q24: =Z11 -> 7 | R24: =AE11 -> 6 | S24: =AJ11 -> 6 | T24: =AO11 -> 7 | U24: =AT11 -> 7
A25: 21 | B25: 1925 | C25: 11 | D25: 1933 | E25: 11 | F25: 1940 | K25: 0 | L25: 211 | O25: % target
A26: 21 | B26: 2027 | C26: 11 | D26: 2034 | E26: 11 | F26: 2045 | K26: 0 | L26: 211 | O26: CCRF
A27: 21 | B27: 2134 | C27: 11 | D27: 2141 | E27: 11 | F27: 2144 | K27: 0 | L27: 211 | O27: % CCRf
A28: 21 | B28: 2232 | C28: 11 | D28: 2239 | E28: 11 | F28: 2242 | K28: 0 | L28: 211 | O28: average response rate | P28: =F13/P20 -> 95.71428571 | Q28: =(F20-F13)/Q20 -> 104.2857143 | R28: =(F28-F20)/R20 -> 105.25 | S28: =(F35-F28)/S20 -> 102.8571429 | T28: =(F42-F35)/T20 -> 105.2857143 | U28: =(F49-F42)/U20 -> 107.5714286
A29: 21 | B29: 2329 | C29: 11 | D29: 2336 | E29: 11 | F29: 2339 | K29: 0 | L29: 211
A30: 21 | B30: 2426 | C30: 11 | D30: 2433 | E30: 11 | F30: 2440 | K30: 0 | L30: 211
A31: 21 | B31: 2527 | C31: 11 | D31: 2534 | E31: 11 | F31: 2538 | K31: 0 | L31: 211
A32: 21 | B32: 2624 | C32: 11 | D32: 2638 | E32: 11 | F32: 2649 | K32: 0 | L32: 211
A33: 21 | B33: 2735 | C33: 11 | D33: 2742 | E33: 11 | F33: 2745 | K33: 0 | L33: 211
A34: 21 | B34: 2833 | C34: 22 | D34: 2836 | E34: 13 | F34: 2844 | K34: 0 | L34: 221
A35: 21 | B35: 2940 | C35: 11 | D35: 2954 | E35: 11 | F35: 2962 | K35: 0 | L35: 211
A36: 21 | B36: 3048 | C36: 11 | D36: 3055 | E36: 11 | F36: 3061 | K36: 0 | L36: 211
A37: 21 | B37: 3149 | C37: 11 | D37: 3156 | E37: 11 | F37: 3159 | K37: 0 | L37: 211
A38: 21 | B38: 3246 | C38: 11 | D38: 3253 | E38: 11 | F38: 3256 | K38: 0 | L38: 211
A39: 21 | B39: 3344 | C39: 11 | D39: 3355 | E39: 11 | F39: 3366 | K39: 0 | L39: 211
A40: 21 | B40: 3462 | C40: 11 | D40: 3479 | E40: 11 | F40: 3488 | K40: 0 | L40: 211
A41: 21 | B41: 3574 | C41: 11 | D41: 3582 | E41: 11 | F41: 3585 | K41: 0 | L41: 211
A42: 21 | B42: 3671 | C42: 11 | D42: 3684 | E42: 11 | F42: 3699 | K42: 0 | L42: 211
A43: 21 | B43: 3788 | C43: 11 | D43: 3795 | E43: 11 | F43: 3816 | K43: 0 | L43: 211
A44: 21 | B44: 3903 | C44: 11 | D44: 3918 | E44: 11 | F44: 3929 | K44: 0 | L44: 211
A45: 21 | B45: 4016 | C45: 11 | D45: 4026 | E45: 11 | F45: 4029 | K45: 0 | L45: 211
A46: 21 | B46: 4116 | C46: 11 | D46: 4123 | E46: 11 | F46: 4133 | K46: 0 | L46: 211
A47: 21 | B47: 4223 | C47: 11 | D47: 4230 | E47: 11 | F47: 4236 | K47: 0 | L47: 211
A48: 21 | B48: 4329 | C48: 11 | D48: 4336 | E48: 11 | F48: 4343 | K48: 0 | L48: 211
A49: 21 | B49: 4430 | C49: 11 | D49: 4446 | E49: 11 | F49: 4452 | K49: 1 | L49: 211

Sheet !N528920.010
A1: Report for:!N528920.010
A2: Date: | B2: <date>
A3: Hen: | B3: <hen> | F3: Correct Sequence | G3: =Start!J2 -> 211 | P3: Total Sequences in Data | Q3: =4994-COUNTBLANK(L7:L5000) -> 46 | V3: Total Sequences in Block Data | W3: =COUNTA(L7:L14) -> 8 | AA3: Total Sequences in Block Data | AB3: =COUNTA(L15:L21) -> 7 | AF3: Total Sequences in Block Data | AG3: =COUNTA(L22:L29) -> 8 | AK3: Total Sequences in Block Data | AL3: =COUNTA(L30:L37) -> 8 | AP3: Total Sequences in Block Data | AQ3: =COUNTA(L38:L44) -> 7 | AU3: Total Sequences in Block Data | AV3: =COUNTA(L45:L52) -> 8
P4: Total Sequences in Summary | Q4: =SUM(O7:O14) -> 46 | V4: Total Sequences in Block Summary | W4: =SUM(U7:U14) -> 8 | AA4: Total Sequences in Block Summary | AB4: =SUM(Z7:Z14) -> 7 | AF4: Total Sequences in Block Summary | AG4: =SUM(AE7:AE14) -> 8 | AK4: Total Sequences in Block Summary | AL4: =SUM(AJ7:AJ14) -> 8 | AP4: Total Sequences in Block Summary | AQ4: =SUM(AO7:AO14) -> 7 | AU4: Total Sequences in Block Summary | AV4: =SUM(AT7:AT14) -> 8
T5: Block 1 | Y5: Block 2 | AD5: Block 3 | AI5: Block 4 | AN5: Block 5 | AS5: Block 6
A6: Sequence Component 1 | B6: Time 1 | C6: Sequence Component 2 | D6: Time 2 | E6: Sequence Component 3 | F6: Time 3 | G6: Sequence Component 4 | H6: Time 4 | I6: Sequence Component 5 | J6: Time 5 | K6: Correct? 0=No 1=Yes | L6: Sequence | N6: Frequency | P6: Relative Frequency | Q6: Variability | T6: Frequency | V6: Relative Frequency | W6: Variability | Y6: Frequency | AA6: Relative Frequency | AB6: Variability | AD6: Frequency | AF6: Relative Frequency | AG6: Variability | AI6: Frequency | AK6: Relative Frequency | AL6: Variability | AN6: Frequency | AP6: Relative Frequency | AQ6: Variability | AS6: Frequency | AU6: Relative Frequency | AV6: Variability
A7: 12 | B7: 14 | C7: 13 | D7: 23 | E7: 13 | F7: 28 | K7: 0 | L7: 111 | N7: 111 | O7: =COUNTIF($L$7:$L$500,N7) -> 4 | P7: =O7/$Q$4 -> 0.08695652174 | Q7: =IF(P7=0,0,(P7*((LOG(P7))/LOG(2)))) -> -0.3063966918 | T7: =N7 -> 111 | U7: =COUNTIF(L7:L14,T7) -> 2 | V7: =U7/(W4-U11) -> 0.6666666667 | W7: =IF(V7=0,0,(V7*((LOG(V7))/LOG(2)))) -> -0.3899750005 | Y7: =N7 -> 111 | Z7: =COUNTIF(L15:L21,Y7) -> 0 | AA7: =Z7/(AB4-Z11) -> 0 | AB7: =IF(AA7=0,0,(AA7*((LOG(AA7))/LOG(2)))) -> 0 | AD7: =N7 -> 111 | AE7: =COUNTIF(L22:L29,AD7) -> 0 | AF7: =AE7/(AG4-AE11) ->  | AG7: =IF(AF7=0,0,(AF7*((LOG(AF7))/LOG(2)))) ->  | AI7: =N7 -> 111 | AJ7: =COUNTIF(L30:L37,AI7) -> 1 | AK7: =AJ7/(AL4-AJ11) -> 1 | AL7: =IF(AK7=0,0,(AK7*((LOG(AK7))/LOG(2)))) -> 0 | AN7: =N7 -> 111 | AO7: =COUNTIF(L38:L44,AN7) -> 0 | AP7: =AO7/(AQ4-AO11) ->  | AQ7: =IF(AP7=0,0,(AP7*((LOG(AP7))/LOG(2)))) ->  | AS7: =N7 -> 111 | AT7: =COUNTIF(L45:L52,AS7) -> 1 | AU7: =AT7/(AV4-AT11) -> 1 | AV7: =IF(AU7=0,0,(AU7*((LOG(AU7))/LOG(2)))) -> 0
A8: 21 | B8: 126 | C8: 22 | D8: 130 | E8: 13 | F8: 141 | K8: 0 | L8: 221 | N8: 112 | O8: =COUNTIF($L$7:$L$500,N8) -> 0 | P8: =O8/$Q$4 -> 0 | Q8: =IF(P8=0,0,(P8*((LOG(P8))/LOG(2)))) -> 0 | T8: =N8 -> 112 | U8: =COUNTIF(L7:L14,T8) -> 0 | V8: =U8/(W4-U11) -> 0 | W8: =IF(V8=0,0,(V8*((LOG(V8))/LOG(2)))) -> 0 | Y8: =N8 -> 112 | Z8: =COUNTIF(L15:L21,Y8) -> 0 | AA8: =Z8/(AB4-Z11) -> 0 | AB8: =IF(AA8=0,0,(AA8*((LOG(AA8))/LOG(2)))) -> 0 | AD8: =N8 -> 112 | AE8: =COUNTIF(L22:L29,AD8) -> 0 | AF8: =AE8/(AG4-AE11) ->  | AG8: =IF(AF8=0,0,(AF8*((LOG(AF8))/LOG(2)))) ->  | AI8: =N8 -> 112 | AJ8: =COUNTIF(L30:L37,AI8) -> 0 | AK8: =AJ8/(AL4-AJ11) -> 0 | AL8: =IF(AK8=0,0,(AK8*((LOG(AK8))/LOG(2)))) -> 0 | AN8: =N8 -> 112 | AO8: =COUNTIF(L38:L44,AN8) -> 0 | AP8: =AO8/(AQ4-AO11) ->  | AQ8: =IF(AP8=0,0,(AP8*((LOG(AP8))/LOG(2)))) ->  | AS8: =N8 -> 112 | AT8: =COUNTIF(L45:L52,AS8) -> 0 | AU8: =AT8/(AV4-AT11) -> 0 | AV8: =IF(AU8=0,0,(AU8*((LOG(AU8))/LOG(2)))) -> 0
A9: 21 | B9: 232 | C9: 11 | D9: 245 | E9: 11 | F9: 258 | K9: 0 | L9: 211 | N9: 121 | O9: =COUNTIF($L$7:$L$500,N9) -> 0 | P9: =O9/$Q$4 -> 0 | Q9: =IF(P9=0,0,(P9*((LOG(P9))/LOG(2)))) -> 0 | T9: =N9 -> 121 | U9: =COUNTIF(L7:L14,T9) -> 0 | V9: =U9/(W4-U11) -> 0 | W9: =IF(V9=0,0,(V9*((LOG(V9))/LOG(2)))) -> 0 | Y9: =N9 -> 121 | Z9: =COUNTIF(L15:L21,Y9) -> 0 | AA9: =Z9/(AB4-Z11) -> 0 | AB9: =IF(AA9=0,0,(AA9*((LOG(AA9))/LOG(2)))) -> 0 | AD9: =N9 -> 121 | AE9: =COUNTIF(L22:L29,AD9) -> 0 | AF9: =AE9/(AG4-AE11) ->  | AG9: =IF(AF9=0,0,(AF9*((LOG(AF9))/LOG(2)))) ->  | AI9: =N9 -> 121 | AJ9: =COUNTIF(L30:L37,AI9) -> 0 | AK9: =AJ9/(AL4-AJ11) -> 0 | AL9: =IF(AK9=0,0,(AK9*((LOG(AK9))/LOG(2)))) -> 0 | AN9: =N9 -> 121 | AO9: =COUNTIF(L38:L44,AN9) -> 0 | AP9: =AO9/(AQ4-AO11) ->  | AQ9: =IF(AP9=0,0,(AP9*((LOG(AP9))/LOG(2)))) ->  | AS9: =N9 -> 121 | AT9: =COUNTIF(L45:L52,AS9) -> 0 | AU9: =AT9/(AV4-AT11) -> 0 | AV9: =IF(AU9=0,0,(AU9*((LOG(AU9))/LOG(2)))) -> 0
A10: 21 | B10: 350 | C10: 11 | D10: 364 | E10: 11 | F10: 374 | K10: 0 | L10: 211 | N10: 122 | O10: =COUNTIF($L$7:$L$500,N10) -> 0 | P10: =O10/$Q$4 -> 0 | Q10: =IF(P10=0,0,(P10*((LOG(P10))/LOG(2)))) -> 0 | T10: =N10 -> 122 | U10: =COUNTIF(L7:L14,T10) -> 0 | V10: =U10/(W4-U11) -> 0 | W10: =IF(V10=0,0,(V10*((LOG(V10))/LOG(2)))) -> 0 | Y10: =N10 -> 122 | Z10: =COUNTIF(L15:L21,Y10) -> 0 | AA10: =Z10/(AB4-Z11) -> 0 | AB10: =IF(AA10=0,0,(AA10*((LOG(AA10))/LOG(2)))) -> 0 | AD10: =N10 -> 122 | AE10: =COUNTIF(L22:L29,AD10) -> 0 | AF10: =AE10/(AG4-AE11) ->  | AG10: =IF(AF10=0,0,(AF10*((LOG(AF10))/LOG(2)))) ->  | AI10: =N10 -> 122 | AJ10: =COUNTIF(L30:L37,AI10) -> 0 | AK10: =AJ10/(AL4-AJ11) -> 0 | AL10: =IF(AK10=0,0,(AK10*((LOG(AK10))/LOG(2)))) -> 0 | AN10: =N10 -> 122 | AO10: =COUNTIF(L38:L44,AN10) -> 0 | AP10: =AO10/(AQ4-AO11) ->  | AQ10: =IF(AP10=0,0,(AP10*((LOG(AP10))/LOG(2)))) ->  | AS10: =N10 -> 122 | AT10: =COUNTIF(L45:L52,AS10) -> 0 | AU10: =AT10/(AV4-AT11) -> 0 | AV10: =IF(AU10=0,0,(AU10*((LOG(AU10))/LOG(2)))) -> 0
A11: 12 | B11: 481 | C11: 13 | D11: 493 | E11: 13 | F11: 502 | K11: 0 | L11: 111 | N11: 211 | O11: =COUNTIF($L$7:$L$500,N11) -> 40 | P11: =O11/$Q$4 -> 0.8695652174 | Q11: =IF(P11=0,0,(P11*((LOG(P11))/LOG(2)))) -> -0.1753337923 | T11: =N11 -> 211 | U11: =COUNTIF(L7:L14,T11) -> 5 | Y11: =N11 -> 211 | Z11: =COUNTIF(L15:L21,Y11) -> 6 | AD11: =N11 -> 211 | AE11: =COUNTIF(L22:L29,AD11) -> 8 | AI11: =N11 -> 211 | AJ11: =COUNTIF(L30:L37,AI11) -> 7 | AN11: =N11 -> 211 | AO11: =COUNTIF(L38:L44,AN11) -> 7 | AS11: =N11 -> 211 | AT11: =COUNTIF(L45:L52,AS11) -> 7
A12: 21 | B12: 598 | C12: 11 | D12: 614 | E12: 11 | F12: 621 | K12: 0 | L12: 211 | N12: 212 | O12: =COUNTIF($L$7:$L$500,N12) -> 0 | P12: =O12/$Q$4 -> 0 | Q12: =IF(P12=0,0,(P12*((LOG(P12))/LOG(2)))) -> 0 | T12: =N12 -> 212 | U12: =COUNTIF(L7:L14,T12) -> 0 | V12: =U12/(W4-U11) -> 0 | W12: =IF(V12=0,0,(V12*((LOG(V12))/LOG(2)))) -> 0 | Y12: =N12 -> 212 | Z12: =COUNTIF(L15:L21,Y12) -> 0 | AA12: =Z12/(AB4-Z11) -> 0 | AB12: =IF(AA12=0,0,(AA12*((LOG(AA12))/LOG(2)))) -> 0 | AD12: =N12 -> 212 | AE12: =COUNTIF(L22:L29,AD12) -> 0 | AF12: =AE12/(AG4-AE11) ->  | AG12: =IF(AF12=0,0,(AF12*((LOG(AF12))/LOG(2)))) ->  | AI12: =N12 -> 212 | AJ12: =COUNTIF(L30:L37,AI12) -> 0 | AK12: =AJ12/(AL4-AJ11) -> 0 | AL12: =IF(AK12=0,0,(AK12*((LOG(AK12))/LOG(2)))) -> 0 | AN12: =N12 -> 212 | AO12: =COUNTIF(L38:L44,AN12) -> 0 | AP12: =AO12/(AQ4-AO11) ->  | AQ12: =IF(AP12=0,0,(AP12*((LOG(AP12))/LOG(2)))) ->  | AS12: =N12 -> 212 | AT12: =COUNTIF(L45:L52,AS12) -> 0 | AU12: =AT12/(AV4-AT11) -> 0 | AV12: =IF(AU12=0,0,(AU12*((LOG(AU12))/LOG(2)))) -> 0
A13: 21 | B13: 710 | C13: 11 | D13: 717 | E13: 11 | F13: 721 | K13: 0 | L13: 211 | N13: 221 | O13: =COUNTIF($L$7:$L$500,N13) -> 2 | P13: =O13/$Q$4 -> 0.04347826087 | Q13: =IF(P13=0,0,(P13*((LOG(P13))/LOG(2)))) -> -0.1966766068 | T13: =N13 -> 221 | U13: =COUNTIF(L7:L14,T13) -> 1 | V13: =U13/(W4-U11) -> 0.3333333333 | W13: =IF(V13=0,0,(V13*((LOG(V13))/LOG(2)))) -> -0.5283208336 | Y13: =N13 -> 221 | Z13: =COUNTIF(L15:L21,Y13) -> 1 | AA13: =Z13/(AB4-Z11) -> 1 | AB13: =IF(AA13=0,0,(AA13*((LOG(AA13))/LOG(2)))) -> 0 | AD13: =N13 -> 221 | AE13: =COUNTIF(L22:L29,AD13) -> 0 | AF13: =AE13/(AG4-AE11) ->  | AG13: =IF(AF13=0,0,(AF13*((LOG(AF13))/LOG(2)))) ->  | AI13: =N13 -> 221 | AJ13: =COUNTIF(L30:L37,AI13) -> 0 | AK13: =AJ13/(AL4-AJ11) -> 0 | AL13: =IF(AK13=0,0,(AK13*((LOG(AK13))/LOG(2)))) -> 0 | AN13: =N13 -> 221 | AO13: =COUNTIF(L38:L44,AN13) -> 0 | AP13: =AO13/(AQ4-AO11) ->  | AQ13: =IF(AP13=0,0,(AP13*((LOG(AP13))/LOG(2)))) ->  | AS13: =N13 -> 221 | AT13: =COUNTIF(L45:L52,AS13) -> 0 | AU13: =AT13/(AV4-AT11) -> 0 | AV13: =IF(AU13=0,0,(AU13*((LOG(AU13))/LOG(2)))) -> 0
A14: 21 | B14: 808 | C14: 11 | D14: 828 | E14: 11 | F14: 839 | K14: 0 | L14: 211 | N14: 222 | O14: =COUNTIF($L$7:$L$500,N14) -> 0 | P14: =O14/$Q$4 -> 0 | Q14: =IF(P14=0,0,(P14*((LOG(P14))/LOG(2)))) -> 0 | T14: =N14 -> 222 | U14: =COUNTIF(L7:L14,T14) -> 0 | V14: =U14/(W4-U11) -> 0 | W14: =IF(V14=0,0,(V14*((LOG(V14))/LOG(2)))) -> 0 | Y14: =N14 -> 222 | Z14: =COUNTIF(L15:L21,Y14) -> 0 | AA14: =Z14/(AB4-Z11) -> 0 | AB14: =IF(AA14=0,0,(AA14*((LOG(AA14))/LOG(2)))) -> 0 | AD14: =N14 -> 222 | AE14: =COUNTIF(L22:L29,AD14) -> 0 | AF14: =AE14/(AG4-AE11) ->  | AG14: =IF(AF14=0,0,(AF14*((LOG(AF14))/LOG(2)))) ->  | AI14: =N14 -> 222 | AJ14: =COUNTIF(L30:L37,AI14) -> 0 | AK14: =AJ14/(AL4-AJ11) -> 0 | AL14: =IF(AK14=0,0,(AK14*((LOG(AK14))/LOG(2)))) -> 0 | AN14: =N14 -> 222 | AO14: =COUNTIF(L38:L44,AN14) -> 0 | AP14: =AO14/(AQ4-AO11) ->  | AQ14: =IF(AP14=0,0,(AP14*((LOG(AP14))/LOG(2)))) ->  | AS14: =N14 -> 222 | AT14: =COUNTIF(L45:L52,AS14) -> 0 | AU14: =AT14/(AV4-AT11) -> 0 | AV14: =IF(AU14=0,0,(AU14*((LOG(AU14))/LOG(2)))) -> 0
A15: 21 | B15: 930 | C15: 11 | D15: 944 | E15: 11 | F15: 953 | K15: 0 | L15: 211 | P15: =SUM(P7:P14) -> 1 | Q15: =-SUM(Q7:Q14) -> 0.6784070909 | V15: =SUM(V7:V14) -> 1 | W15: =-SUM(W7:W14) -> 0.9182958341 | AA15: =SUM(AA7:AA14) -> 1 | AB15: =-SUM(AB7:AB14) -> 0 | AF15: =SUM(AF7:AF14) ->  | AG15: =-SUM(AG7:AG14) ->  | AK15: =SUM(AK7:AK14) -> 1 | AL15: =-SUM(AL7:AL14) -> 0 | AP15: =SUM(AP7:AP14) ->  | AQ15: =-SUM(AQ7:AQ14) ->  | AU15: =SUM(AU7:AU14) -> 1 | AV15: =-SUM(AV7:AV14) -> 0
A16: 21 | B16: 1045 | C16: 11 | D16: 1059 | E16: 11 | F16: 1069 | K16: 0 | L16: 211 | P16: U= | Q16: =Q15/(LOG(Q4)/LOG(2)) -> 0.1228205814 | V16: U1= | W16: =W15/(LOG(W4)/LOG(2)) -> 0.3060986114 | AA16: U2= | AB16: =AB15/(LOG(AB4)/LOG(2)) -> 0 | AF16: U3= | AG16: =AG15/(LOG(AG4)/LOG(2)) ->  | AK16: U4= | AL16: =AL15/(LOG(AL4)/LOG(2)) -> 0 | AP16: U5= | AQ16: =AQ15/(LOG(AQ4)/LOG(2)) ->  | AU16: U6= | AV16: =AV15/(LOG(AV4)/LOG(2)) -> 0
A17: 21 | B17: 1158 | C17: 11 | D17: 1176 | E17: 11 | F17: 1190 | K17: 0 | L17: 211
A18: 21 | B18: 1278 | C18: 11 | D18: 1299 | E18: 11 | F18: 1306 | K18: 0 | L18: 211
A19: 21 | B19: 1406 | C19: 11 | D19: 1417 | E19: 11 | F19: 1423 | K19: 0 | L19: 211 | N19: Total Target Seq
A20: 21 | B20: 1510 | C20: 22 | D20: 1514 | E20: 13 | F20: 1527 | K20: 0 | L20: 221 | N20: =COUNTIF(L7:L52,G3) -> 40 | P20: 8 | Q20: 7 | R20: 8 | S20: 8 | T20: 7 | U20: 8
A21: 21 | B21: 1629 | C21: 11 | D21: 1640 | E21: 11 | F21: 1644 | K21: 0 | L21: 211 | P21: % of reinforcement given in 6 equal intervals based on number of trials
A22: 21 | B22: 1730 | C22: 11 | D22: 1741 | E22: 11 | F22: 1748 | K22: 0 | L22: 211 | P22: %_1 | Q22: %_2 | R22: %_3 | S22: %_4 | T22: %_5 | U22: %_6
A23: 21 | B23: 1835 | C23: 11 | D23: 1850 | E23: 11 | F23: 1873 | K23: 0 | L23: 211 | O23: target sequence | P23: =$G$3 -> 211 | Q23: =$G$3 -> 211 | R23: =$G$3 -> 211 | S23: =$G$3 -> 211 | T23: =$G$3 -> 211 | U23: =$G$3 -> 211
A24: 21 | B24: 1958 | C24: 11 | D24: 1966 | E24: 11 | F24: 1969 | K24: 0 | L24: 211 | O24: total reinforcement | P24: =U11 -> 5 | Q24: =Z11 -> 6 | R24: =AE11 -> 8 | S24: =AJ11 -> 7 | T24: =AO11 -> 7 | U24: =AT11 -> 7
A25: 21 | B25: 2057 | C25: 11 | D25: 2065 | E25: 11 | F25: 2068 | K25: 0 | L25: 211 | O25: % target
A26: 21 | B26: 2158 | C26: 11 | D26: 2172 | E26: 11 | F26: 2182 | K26: 0 | L26: 211 | O26: CCRF
A27: 21 | B27: 2271 | C27: 11 | D27: 2282 | E27: 11 | F27: 2289 | K27: 0 | L27: 211 | O27: % CCRf
A28: 21 | B28: 2375 | C28: 11 | D28: 2383 | E28: 11 | F28: 2387 | K28: 0 | L28: 211 | O28: average response rate | P28: =F14/P20 -> 104.875 | Q28: =(F21-F14)/Q20 -> 115 | R28: =(F29-F21)/R20 -> 105.75 | S28: =(F37-F29)/S20 -> 111.5 | T28: =(F44-F37)/T20 -> 103.5714286 | U28: =(F52-F44)/U20 -> 104.125
A29: 21 | B29: 2479 | C29: 11 | D29: 2486 | E29: 11 | F29: 2490 | K29: 0 | L29: 211
A30: 12 | B30: 2599 | C30: 13 | D30: 2610 | E30: 13 | F30: 2617 | K30: 0 | L30: 111
A31: 21 | B31: 2718 | C31: 11 | D31: 2728 | E31: 11 | F31: 2732 | K31: 0 | L31: 211
A32: 21 | B32: 2820 | C32: 11 | D32: 2828 | E32: 11 | F32: 2840 | K32: 0 | L32: 211
A33: 21 | B33: 2926 | C33: 11 | D33: 2937 | E33: 11 | F33: 2943 | K33: 0 | L33: 211
A34: 21 | B34: 3032 | C34: 11 | D34: 3046 | E34: 11 | F34: 3055 | K34: 0 | L34: 211
A35: 21 | B35: 3142 | C35: 11 | D35: 3160 | E35: 11 | F35: 3170 | K35: 0 | L35: 211
A36: 21 | B36: 3258 | C36: 11 | D36: 3274 | E36: 11 | F36: 3281 | K36: 0 | L36: 211
A37: 21 | B37: 3371 | C37: 11 | D37: 3378 | E37: 11 | F37: 3382 | K37: 0 | L37: 211
A38: 21 | B38: 3469 | C38: 11 | D38: 3475 | E38: 11 | F38: 3486 | K38: 0 | L38: 211
A39: 21 | B39: 3573 | C39: 11 | D39: 3579 | E39: 11 | F39: 3585 | K39: 0 | L39: 211
A40: 21 | B40: 3674 | C40: 11 | D40: 3681 | E40: 11 | F40: 3688 | K40: 0 | L40: 211
A41: 21 | B41: 3786 | C41: 11 | D41: 3796 | E41: 11 | F41: 3800 | K41: 0 | L41: 211
A42: 21 | B42: 3889 | C42: 11 | D42: 3897 | E42: 11 | F42: 3907 | K42: 0 | L42: 211
A43: 21 | B43: 3995 | C43: 11 | D43: 4002 | E43: 11 | F43: 4006 | K43: 0 | L43: 211
A44: 21 | B44: 4094 | C44: 11 | D44: 4101 | E44: 11 | F44: 4107 | K44: 0 | L44: 211
A45: 21 | B45: 4194 | C45: 11 | D45: 4202 | E45: 11 | F45: 4205 | K45: 0 | L45: 211
A46: 21 | B46: 4292 | C46: 11 | D46: 4298 | E46: 11 | F46: 4304 | K46: 0 | L46: 211
A47: 12 | B47: 4408 | C47: 13 | D47: 4418 | E47: 13 | F47: 4424 | K47: 0 | L47: 111
A48: 21 | B48: 4522 | C48: 11 | D48: 4531 | E48: 11 | F48: 4543 | K48: 0 | L48: 211
A49: 21 | B49: 4629 | C49: 11 | D49: 4636 | E49: 11 | F49: 4642 | K49: 0 | L49: 211
A50: 21 | B50: 4731 | C50: 11 | D50: 4738 | E50: 11 | F50: 4742 | K50: 0 | L50: 211
A51: 21 | B51: 4829 | C51: 11 | D51: 4836 | E51: 11 | F51: 4841 | K51: 0 | L51: 211
A52: 21 | B52: 4928 | C52: 11 | D52: 4935 | E52: 11 | F52: 4940 | K52: 1 | L52: 211

Sheet !N529C30.010
A1: Report for:!N529C30.010
A2: Date: | B2: <date>
A3: Hen: | B3: <hen> | F3: Correct Sequence | G3: =Start!J2 -> 211 | P3: Total Sequences in Data | Q3: =4994-COUNTBLANK(L7:L5000) -> 45 | V3: Total Sequences in Block Data | W3: =COUNTA(L7:L14) -> 8 | AA3: Total Sequences in Block Data | AB3: =COUNTA(L15:L21) -> 7 | AF3: Total Sequences in Block Data | AG3: =COUNTA(L22:L29) -> 8 | AK3: Total Sequences in Block Data | AL3: =COUNTA(L30:L36) -> 7 | AP3: Total Sequences in Block Data | AQ3: =COUNTA(L37:L44) -> 8 | AU3: Total Sequences in Block Data | AV3: =COUNTA(L45:L51) -> 7
P4: Total Sequences in Summary | Q4: =SUM(O7:O14) -> 45 | V4: Total Sequences in Block Summary | W4: =SUM(U7:U14) -> 8 | AA4: Total Sequences in Block Summary | AB4: =SUM(Z7:Z14) -> 7 | AF4: Total Sequences in Block Summary | AG4: =SUM(AE7:AE14) -> 8 | AK4: Total Sequences in Block Summary | AL4: =SUM(AJ7:AJ14) -> 7 | AP4: Total Sequences in Block Summary | AQ4: =SUM(AO7:AO14) -> 8 | AU4: Total Sequences in Block Summary | AV4: =SUM(AT7:AT14) -> 7
T5: Block 1 | Y5: Block 2 | AD5: Block 3 | AI5: Block 4 | AN5: Block 5 | AS5: Block 6
A6: Sequence Component 1 | B6: Time 1 | C6: Sequence Component 2 | D6: Time 2 | E6: Sequence Component 3 | F6: Time 3 | G6: Sequence Component 4 | H6: Time 4 | I6: Sequence Component 5 | J6: Time 5 | K6: Correct? 0=No 1=Yes | L6: Sequence | N6: Frequency | P6: Relative Frequency | Q6: Variability | T6: Frequency | V6: Relative Frequency | W6: Variability | Y6: Frequency | AA6: Relative Frequency | AB6: Variability | AD6: Frequency | AF6: Relative Frequency | AG6: Variability | AI6: Frequency | AK6: Relative Frequency | AL6: Variability | AN6: Frequency | AP6: Relative Frequency | AQ6: Variability | AS6: Frequency | AU6: Relative Frequency | AV6: Variability
A7: 12 | B7: 7 | C7: 13 | D7: 11 | E7: 24 | F7: 35 | K7: 0 | L7: 112 | N7: 111 | O7: =COUNTIF($L$7:$L$500,N7) -> 1 | P7: =O7/$Q$4 -> 0.02222222222 | Q7: =IF(P7=0,0,(P7*((LOG(P7))/LOG(2)))) -> -0.1220411799 | T7: =N7 -> 111 | U7: =COUNTIF(L7:L14,T7) -> 1 | V7: =U7/(W4-U11) -> 0.25 | W7: =IF(V7=0,0,(V7*((LOG(V7))/LOG(2)))) -> -0.5 | Y7: =N7 -> 111 | Z7: =COUNTIF(L15:L21,Y7) -> 0 | AA7: =Z7/(AB4-Z11) ->  | AB7: =IF(AA7=0,0,(AA7*((LOG(AA7))/LOG(2)))) ->  | AD7: =N7 -> 111 | AE7: =COUNTIF(L22:L29,AD7) -> 0 | AF7: =AE7/(AG4-AE11) ->  | AG7: =IF(AF7=0,0,(AF7*((LOG(AF7))/LOG(2)))) ->  | AI7: =N7 -> 111 | AJ7: =COUNTIF(L30:L36,AI7) -> 0 | AK7: =AJ7/(AL4-AJ11) ->  | AL7: =IF(AK7=0,0,(AK7*((LOG(AK7))/LOG(2)))) ->  | AN7: =N7 -> 111 | AO7: =COUNTIF(L37:L44,AN7) -> 0 | AP7: =AO7/(AQ4-AO11) -> 0 | AQ7: =IF(AP7=0,0,(AP7*((LOG(AP7))/LOG(2)))) -> 0 | AS7: =N7 -> 111 | AT7: =COUNTIF(L45:L51,AS7) -> 0 | AU7: =AT7/(AV4-AT11) ->  | AV7: =IF(AU7=0,0,(AU7*((LOG(AU7))/LOG(2)))) -> 
A8: 21 | B8: 130 | C8: 11 | D8: 138 | E8: 11 | F8: 146 | K8: 0 | L8: 211 | N8: 112 | O8: =COUNTIF($L$7:$L$500,N8) -> 1 | P8: =O8/$Q$4 -> 0.02222222222 | Q8: =IF(P8=0,0,(P8*((LOG(P8))/LOG(2)))) -> -0.1220411799 | T8: =N8 -> 112 | U8: =COUNTIF(L7:L14,T8) -> 1 | V8: =U8/(W4-U11) -> 0.25 | W8: =IF(V8=0,0,(V8*((LOG(V8))/LOG(2)))) -> -0.5 | Y8: =N8 -> 112 | Z8: =COUNTIF(L15:L21,Y8) -> 0 | AA8: =Z8/(AB4-Z11) ->  | AB8: =IF(AA8=0,0,(AA8*((LOG(AA8))/LOG(2)))) ->  | AD8: =N8 -> 112 | AE8: =COUNTIF(L22:L29,AD8) -> 0 | AF8: =AE8/(AG4-AE11) ->  | AG8: =IF(AF8=0,0,(AF8*((LOG(AF8))/LOG(2)))) ->  | AI8: =N8 -> 112 | AJ8: =COUNTIF(L30:L36,AI8) -> 0 | AK8: =AJ8/(AL4-AJ11) ->  | AL8: =IF(AK8=0,0,(AK8*((LOG(AK8))/LOG(2)))) ->  | AN8: =N8 -> 112 | AO8: =COUNTIF(L37:L44,AN8) -> 0 | AP8: =AO8/(AQ4-AO11) -> 0 | AQ8: =IF(AP8=0,0,(AP8*((LOG(AP8))/LOG(2)))) -> 0 | AS8: =N8 -> 112 | AT8: =COUNTIF(L45:L51,AS8) -> 0 | AU8: =AT8/(AV4-AT11) ->  | AV8: =IF(AU8=0,0,(AU8*((LOG(AU8))/LOG(2)))) -> 
A9: 12 | B9: 236 | C9: 13 | D9: 240 | E9: 13 | F9: 246 | K9: 0 | L9: 111 | N9: 121 | O9: =COUNTIF($L$7:$L$500,N9) -> 0 | P9: =O9/$Q$4 -> 0 | Q9: =IF(P9=0,0,(P9*((LOG(P9))/LOG(2)))) -> 0 | T9: =N9 -> 121 | U9: =COUNTIF(L7:L14,T9) -> 0 | V9: =U9/(W4-U11) -> 0 | W9: =IF(V9=0,0,(V9*((LOG(V9))/LOG(2)))) -> 0 | Y9: =N9 -> 121 | Z9: =COUNTIF(L15:L21,Y9) -> 0 | AA9: =Z9/(AB4-Z11) ->  | AB9: =IF(AA9=0,0,(AA9*((LOG(AA9))/LOG(2)))) ->  | AD9: =N9 -> 121 | AE9: =COUNTIF(L22:L29,AD9) -> 0 | AF9: =AE9/(AG4-AE11) ->  | AG9: =IF(AF9=0,0,(AF9*((LOG(AF9))/LOG(2)))) ->  | AI9: =N9 -> 121 | AJ9: =COUNTIF(L30:L36,AI9) -> 0 | AK9: =AJ9/(AL4-AJ11) ->  | AL9: =IF(AK9=0,0,(AK9*((LOG(AK9))/LOG(2)))) ->  | AN9: =N9 -> 121 | AO9: =COUNTIF(L37:L44,AN9) -> 0 | AP9: =AO9/(AQ4-AO11) -> 0 | AQ9: =IF(AP9=0,0,(AP9*((LOG(AP9))/LOG(2)))) -> 0 | AS9: =N9 -> 121 | AT9: =COUNTIF(L45:L51,AS9) -> 0 | AU9: =AT9/(AV4-AT11) ->  | AV9: =IF(AU9=0,0,(AU9*((LOG(AU9))/LOG(2)))) -> 
A10: 21 | B10: 354 | C10: 11 | D10: 361 | E10: 11 | F10: 374 | K10: 0 | L10: 211 | N10: 122 | O10: =COUNTIF($L$7:$L$500,N10) -> 0 | P10: =O10/$Q$4 -> 0 | Q10: =IF(P10=0,0,(P10*((LOG(P10))/LOG(2)))) -> 0 | T10: =N10 -> 122 | U10: =COUNTIF(L7:L14,T10) -> 0 | V10: =U10/(W4-U11) -> 0 | W10: =IF(V10=0,0,(V10*((LOG(V10))/LOG(2)))) -> 0 | Y10: =N10 -> 122 | Z10: =COUNTIF(L15:L21,Y10) -> 0 | AA10: =Z10/(AB4-Z11) ->  | AB10: =IF(AA10=0,0,(AA10*((LOG(AA10))/LOG(2)))) ->  | AD10: =N10 -> 122 | AE10: =COUNTIF(L22:L29,AD10) -> 0 | AF10: =AE10/(AG4-AE11) ->  | AG10: =IF(AF10=0,0,(AF10*((LOG(AF10))/LOG(2)))) ->  | AI10: =N10 -> 122 | AJ10: =COUNTIF(L30:L36,AI10) -> 0 | AK10: =AJ10/(AL4-AJ11) ->  | AL10: =IF(AK10=0,0,(AK10*((LOG(AK10))/LOG(2)))) ->  | AN10: =N10 -> 122 | AO10: =COUNTIF(L37:L44,AN10) -> 0 | AP10: =AO10/(AQ4-AO11) -> 0 | AQ10: =IF(AP10=0,0,(AP10*((LOG(AP10))/LOG(2)))) -> 0 | AS10: =N10 -> 122 | AT10: =COUNTIF(L45:L51,AS10) -> 0 | AU10: =AT10/(AV4-AT11) ->  | AV10: =IF(AU10=0,0,(AU10*((LOG(AU10))/LOG(2)))) -> 
A11: 21 | B11: 466 | C11: 11 | D11: 472 | E11: 11 | F11: 478 | K11: 0 | L11: 211 | N11: 211 | O11: =COUNTIF($L$7:$L$500,N11) -> 40 | P11: =O11/$Q$4 -> 0.8888888889 | Q11: =IF(P11=0,0,(P11*((LOG(P11))/LOG(2)))) -> -0.1510444457 | T11: =N11 -> 211 | U11: =COUNTIF(L7:L14,T11) -> 4 | Y11: =N11 -> 211 | Z11: =COUNTIF(L15:L21,Y11) -> 7 | AD11: =N11 -> 211 | AE11: =COUNTIF(L22:L29,AD11) -> 8 | AI11: =N11 -> 211 | AJ11: =COUNTIF(L30:L36,AI11) -> 7 | AN11: =N11 -> 211 | AO11: =COUNTIF(L37:L44,AN11) -> 7 | AS11: =N11 -> 211 | AT11: =COUNTIF(L45:L51,AS11) -> 7
A12: 21 | B12: 578 | C12: 11 | D12: 589 | E12: 11 | F12: 592 | K12: 0 | L12: 211 | N12: 212 | O12: =COUNTIF($L$7:$L$500,N12) -> 0 | P12: =O12/$Q$4 -> 0 | Q12: =IF(P12=0,0,(P12*((LOG(P12))/LOG(2)))) -> 0 | T12: =N12 -> 212 | U12: =COUNTIF(L7:L14,T12) -> 0 | V12: =U12/(W4-U11) -> 0 | W12: =IF(V12=0,0,(V12*((LOG(V12))/LOG(2)))) -> 0 | Y12: =N12 -> 212 | Z12: =COUNTIF(L15:L21,Y12) -> 0 | AA12: =Z12/(AB4-Z11) ->  | AB12: =IF(AA12=0,0,(AA12*((LOG(AA12))/LOG(2)))) ->  | AD12: =N12 -> 212 | AE12: =COUNTIF(L22:L29,AD12) -> 0 | AF12: =AE12/(AG4-AE11) ->  | AG12: =IF(AF12=0,0,(AF12*((LOG(AF12))/LOG(2)))) ->  | AI12: =N12 -> 212 | AJ12: =COUNTIF(L30:L36,AI12) -> 0 | AK12: =AJ12/(AL4-AJ11) ->  | AL12: =IF(AK12=0,0,(AK12*((LOG(AK12))/LOG(2)))) ->  | AN12: =N12 -> 212 | AO12: =COUNTIF(L37:L44,AN12) -> 0 | AP12: =AO12/(AQ4-AO11) -> 0 | AQ12: =IF(AP12=0,0,(AP12*((LOG(AP12))/LOG(2)))) -> 0 | AS12: =N12 -> 212 | AT12: =COUNTIF(L45:L51,AS12) -> 0 | AU12: =AT12/(AV4-AT11) ->  | AV12: =IF(AU12=0,0,(AU12*((LOG(AU12))/LOG(2)))) -> 
A13: 21 | B13: 682 | C13: 22 | D13: 686 | E13: 13 | F13: 694 | K13: 0 | L13: 221 | N13: 221 | O13: =COUNTIF($L$7:$L$500,N13) -> 3 | P13: =O13/$Q$4 -> 0.06666666667 | Q13: =IF(P13=0,0,(P13*((LOG(P13))/LOG(2)))) -> -0.260459373 | T13: =N13 -> 221 | U13: =COUNTIF(L7:L14,T13) -> 2 | V13: =U13/(W4-U11) -> 0.5 | W13: =IF(V13=0,0,(V13*((LOG(V13))/LOG(2)))) -> -0.5 | Y13: =N13 -> 221 | Z13: =COUNTIF(L15:L21,Y13) -> 0 | AA13: =Z13/(AB4-Z11) ->  | AB13: =IF(AA13=0,0,(AA13*((LOG(AA13))/LOG(2)))) ->  | AD13: =N13 -> 221 | AE13: =COUNTIF(L22:L29,AD13) -> 0 | AF13: =AE13/(AG4-AE11) ->  | AG13: =IF(AF13=0,0,(AF13*((LOG(AF13))/LOG(2)))) ->  | AI13: =N13 -> 221 | AJ13: =COUNTIF(L30:L36,AI13) -> 0 | AK13: =AJ13/(AL4-AJ11) ->  | AL13: =IF(AK13=0,0,(AK13*((LOG(AK13))/LOG(2)))) ->  | AN13: =N13 -> 221 | AO13: =COUNTIF(L37:L44,AN13) -> 1 | AP13: =AO13/(AQ4-AO11) -> 1 | AQ13: =IF(AP13=0,0,(AP13*((LOG(AP13))/LOG(2)))) -> 0 | AS13: =N13 -> 221 | AT13: =COUNTIF(L45:L51,AS13) -> 0 | AU13: =AT13/(AV4-AT11) ->  | AV13: =IF(AU13=0,0,(AU13*((LOG(AU13))/LOG(2)))) -> 
A14: 21 | B14: 783 | C14: 22 | D14: 788 | E14: 13 | F14: 795 | K14: 0 | L14: 221 | N14: 222 | O14: =COUNTIF($L$7:$L$500,N14) -> 0 | P14: =O14/$Q$4 -> 0 | Q14: =IF(P14=0,0,(P14*((LOG(P14))/LOG(2)))) -> 0 | T14: =N14 -> 222 | U14: =COUNTIF(L7:L14,T14) -> 0 | V14: =U14/(W4-U11) -> 0 | W14: =IF(V14=0,0,(V14*((LOG(V14))/LOG(2)))) -> 0 | Y14: =N14 -> 222 | Z14: =COUNTIF(L15:L21,Y14) -> 0 | AA14: =Z14/(AB4-Z11) ->  | AB14: =IF(AA14=0,0,(AA14*((LOG(AA14))/LOG(2)))) ->  | AD14: =N14 -> 222 | AE14: =COUNTIF(L22:L29,AD14) -> 0 | AF14: =AE14/(AG4-AE11) ->  | AG14: =IF(AF14=0,0,(AF14*((LOG(AF14))/LOG(2)))) ->  | AI14: =N14 -> 222 | AJ14: =COUNTIF(L30:L36,AI14) -> 0 | AK14: =AJ14/(AL4-AJ11) ->  | AL14: =IF(AK14=0,0,(AK14*((LOG(AK14))/LOG(2)))) ->  | AN14: =N14 -> 222 | AO14: =COUNTIF(L37:L44,AN14) -> 0 | AP14: =AO14/(AQ4-AO11) -> 0 | AQ14: =IF(AP14=0,0,(AP14*((LOG(AP14))/LOG(2)))) -> 0 | AS14: =N14 -> 222 | AT14: =COUNTIF(L45:L51,AS14) -> 0 | AU14: =AT14/(AV4-AT11) ->  | AV14: =IF(AU14=0,0,(AU14*((LOG(AU14))/LOG(2)))) -> 
A15: 21 | B15: 894 | C15: 11 | D15: 901 | E15: 11 | F15: 909 | K15: 0 | L15: 211 | P15: =SUM(P7:P14) -> 1 | Q15: =-SUM(Q7:Q14) -> 0.6555861786 | V15: =SUM(V7:V14) -> 1 | W15: =-SUM(W7:W14) -> 1.5 | AA15: =SUM(AA7:AA14) ->  | AB15: =-SUM(AB7:AB14) ->  | AF15: =SUM(AF7:AF14) ->  | AG15: =-SUM(AG7:AG14) ->  | AK15: =SUM(AK7:AK14) ->  | AL15: =-SUM(AL7:AL14) ->  | AP15: =SUM(AP7:AP14) -> 1 | AQ15: =-SUM(AQ7:AQ14) -> 0 | AU15: =SUM(AU7:AU14) ->  | AV15: =-SUM(AV7:AV14) -> 
A16: 21 | B16: 1000 | C16: 11 | D16: 1008 | E16: 11 | F16: 1015 | K16: 0 | L16: 211 | P16: U= | Q16: =Q15/(LOG(Q4)/LOG(2)) -> 0.1193743108 | V16: U1= | W16: =W15/(LOG(W4)/LOG(2)) -> 0.5 | AA16: U2= | AB16: =AB15/(LOG(AB4)/LOG(2)) ->  | AF16: U3= | AG16: =AG15/(LOG(AG4)/LOG(2)) ->  | AK16: U4= | AL16: =AL15/(LOG(AL4)/LOG(2)) ->  | AP16: U5= | AQ16: =AQ15/(LOG(AQ4)/LOG(2)) -> 0 | AU16: U6= | AV16: =AV15/(LOG(AV4)/LOG(2)) -> 
A17: 21 | B17: 1102 | C17: 11 | D17: 1109 | E17: 11 | F17: 1115 | K17: 0 | L17: 211
A18: 21 | B18: 1214 | C18: 11 | D18: 1221 | E18: 11 | F18: 1225 | K18: 0 | L18: 211
A19: 21 | B19: 1316 | C19: 11 | D19: 1333 | E19: 11 | F19: 1339 | K19: 0 | L19: 211 | N19: Total Target Seq
A20: 21 | B20: 1426 | C20: 11 | D20: 1433 | E20: 11 | F20: 1437 | K20: 0 | L20: 211 | N20: =COUNTIF(L7:L51,G3) -> 40 | P20: 8 | Q20: 7 | R20: 8 | S20: 7 | T20: 8 | U20: 7
A21: 21 | B21: 1528 | C21: 11 | D21: 1534 | E21: 11 | F21: 1538 | K21: 0 | L21: 211 | P21: % of reinforcement given in 6 equal intervals based on number of trials
A22: 21 | B22: 1625 | C22: 11 | D22: 1633 | E22: 11 | F22: 1647 | K22: 0 | L22: 211 | P22: %_1 | Q22: %_2 | R22: %_3 | S22: %_4 | T22: %_5 | U22: %_6
A23: 21 | B23: 1734 | C23: 11 | D23: 1741 | E23: 11 | F23: 1748 | K23: 0 | L23: 211 | O23: target sequence | P23: =$G$3 -> 211 | Q23: =$G$3 -> 211 | R23: =$G$3 -> 211 | S23: =$G$3 -> 211 | T23: =$G$3 -> 211 | U23: =$G$3 -> 211
A24: 21 | B24: 1836 | C24: 11 | D24: 1843 | E24: 11 | F24: 1850 | K24: 0 | L24: 211 | O24: total reinforcement | P24: =U11 -> 4 | Q24: =Z11 -> 7 | R24: =AE11 -> 8 | S24: =AJ11 -> 7 | T24: =AO11 -> 7 | U24: =AT11 -> 7
A25: 21 | B25: 1941 | C25: 11 | D25: 1948 | E25: 11 | F25: 1952 | K25: 0 | L25: 211 | O25: % target
A26: 21 | B26: 2039 | C26: 11 | D26: 2046 | E26: 11 | F26: 2053 | K26: 0 | L26: 211 | O26: CCRF
A27: 21 | B27: 2140 | C27: 11 | D27: 2147 | E27: 11 | F27: 2151 | K27: 0 | L27: 211 | O27: % CCRf
A28: 21 | B28: 2237 | C28: 11 | D28: 2244 | E28: 11 | F28: 2250 | K28: 0 | L28: 211 | O28: average response rate | P28: =F14/P20 -> 99.375 | Q28: =(F21-F14)/Q20 -> 106.1428571 | R28: =(F29-F21)/R20 -> 101.125 | S28: =(F36-F29)/S20 -> 105 | T28: =(F44-F36)/T20 -> 104.625 | U28: =(F51-F44)/U20 -> 102
A29: 21 | B29: 2336 | C29: 11 | D29: 2344 | E29: 11 | F29: 2347 | K29: 0 | L29: 211
A30: 21 | B30: 2434 | C30: 11 | D30: 2441 | E30: 11 | F30: 2445 | K30: 0 | L30: 211
A31: 21 | B31: 2532 | C31: 11 | D31: 2539 | E31: 11 | F31: 2547 | K31: 0 | L31: 211
A32: 21 | B32: 2637 | C32: 11 | D32: 2644 | E32: 11 | F32: 2651 | K32: 0 | L32: 211
A33: 21 | B33: 2742 | C33: 11 | D33: 2749 | E33: 11 | F33: 2755 | K33: 0 | L33: 211
A34: 21 | B34: 2840 | C34: 11 | D34: 2865 | E34: 11 | F34: 2869 | K34: 0 | L34: 211
A35: 21 | B35: 2955 | C35: 11 | D35: 2970 | E35: 11 | F35: 2978 | K35: 0 | L35: 211
A36: 21 | B36: 3067 | C36: 11 | D36: 3074 | E36: 11 | F36: 3082 | K36: 0 | L36: 211
A37: 21 | B37: 3170 | C37: 11 | D37: 3177 | E37: 11 | F37: 3184 | K37: 0 | L37: 211
A38: 21 | B38: 3272 | C38: 11 | D38: 3280 | E38: 11 | F38: 3284 | K38: 0 | L38: 211
A39: 21 | B39: 3384 | C39: 11 | D39: 3391 | E39: 11 | F39: 3395 | K39: 0 | L39: 211
A40: 21 | B40: 3481 | C40: 11 | D40: 3488 | E40: 11 | F40: 3498 | K40: 0 | L40: 211
A41: 21 | B41: 3586 | C41: 11 | D41: 3593 | E41: 11 | F41: 3597 | K41: 0 | L41: 211
A42: 21 | B42: 3692 | C42: 11 | D42: 3699 | E42: 11 | F42: 3705 | K42: 0 | L42: 211
A43: 21 | B43: 3791 | C43: 22 | D43: 3795 | E43: 13 | F43: 3802 | K43: 0 | L43: 221
A44: 21 | B44: 3898 | C44: 11 | D44: 3910 | E44: 11 | F44: 3919 | K44: 0 | L44: 211
A45: 21 | B45: 4006 | C45: 11 | D45: 4013 | E45: 11 | F45: 4021 | K45: 0 | L45: 211
A46: 21 | B46: 4109 | C46: 11 | D46: 4115 | E46: 11 | F46: 4119 | K46: 0 | L46: 211
A47: 21 | B47: 4205 | C47: 11 | D47: 4213 | E47: 11 | F47: 4217 | K47: 0 | L47: 211
A48: 21 | B48: 4304 | C48: 11 | D48: 4311 | E48: 11 | F48: 4318 | K48: 0 | L48: 211
A49: 21 | B49: 4406 | C49: 11 | D49: 4413 | E49: 11 | F49: 4420 | K49: 0 | L49: 211
A50: 21 | B50: 4516 | C50: 11 | D50: 4524 | E50: 11 | F50: 4531 | K50: 0 | L50: 211
A51: 21 | B51: 4619 | C51: 11 | D51: 4626 | E51: 11 | F51: 4633 | K51: 1 | L51: 211

Sheet !N530A50.010
A1: Report for:!N530A50.010
A2: Date: | B2: <date>
A3: Hen: | B3: <hen> | F3: Correct Sequence | G3: =Start!J2 -> 211 | P3: Total Sequences in Data | Q3: =4994-COUNTBLANK(L7:L5000) -> 43 | V3: Total Sequences in Block Data | W3: =COUNTA(L7:L13) -> 7 | AA3: Total Sequences in Block Data | AB3: =COUNTA(L14:L20) -> 7 | AF3: Total Sequences in Block Data | AG3: =COUNTA(L21:L28) -> 8 | AK3: Total Sequences in Block Data | AL3: =COUNTA(L29:L35) -> 7 | AP3: Total Sequences in Block Data | AQ3: =COUNTA(L36:L42) -> 7 | AU3: Total Sequences in Block Data | AV3: =COUNTA(L43:L49) -> 7
P4: Total Sequences in Summary | Q4: =SUM(O7:O14) -> 43 | V4: Total Sequences in Block Summary | W4: =SUM(U7:U14) -> 7 | AA4: Total Sequences in Block Summary | AB4: =SUM(Z7:Z14) -> 7 | AF4: Total Sequences in Block Summary | AG4: =SUM(AE7:AE14) -> 8 | AK4: Total Sequences in Block Summary | AL4: =SUM(AJ7:AJ14) -> 7 | AP4: Total Sequences in Block Summary | AQ4: =SUM(AO7:AO14) -> 7 | AU4: Total Sequences in Block Summary | AV4: =SUM(AT7:AT14) -> 7
T5: Block 1 | Y5: Block 2 | AD5: Block 3 | AI5: Block 4 | AN5: Block 5 | AS5: Block 6
A6: Sequence Component 1 | B6: Time 1 | C6: Sequence Component 2 | D6: Time 2 | E6: Sequence Component 3 | F6: Time 3 | G6: Sequence Component 4 | H6: Time 4 | I6: Sequence Component 5 | J6: Time 5 | K6: Correct? 0=No 1=Yes | L6: Sequence | N6: Frequency | P6: Relative Frequency | Q6: Variability | T6: Frequency | V6: Relative Frequency | W6: Variability | Y6: Frequency | AA6: Relative Frequency | AB6: Variability | AD6: Frequency | AF6: Relative Frequency | AG6: Variability | AI6: Frequency | AK6: Relative Frequency | AL6: Variability | AN6: Frequency | AP6: Relative Frequency | AQ6: Variability | AS6: Frequency | AU6: Relative Frequency | AV6: Variability
A7: 21 | B7: 9 | C7: 11 | D7: 16 | E7: 11 | F7: 24 | K7: 0 | L7: 211 | N7: 111 | O7: =COUNTIF($L$7:$L$500,N7) -> 0 | P7: =O7/$Q$4 -> 0 | Q7: =IF(P7=0,0,(P7*((LOG(P7))/LOG(2)))) -> 0 | T7: =N7 -> 111 | U7: =COUNTIF(L7:L13,T7) -> 0 | V7: =U7/(W4-U11) ->  | W7: =IF(V7=0,0,(V7*((LOG(V7))/LOG(2)))) ->  | Y7: =N7 -> 111 | Z7: =COUNTIF(L14:L20,Y7) -> 0 | AA7: =Z7/(AB4-Z11) -> 0 | AB7: =IF(AA7=0,0,(AA7*((LOG(AA7))/LOG(2)))) -> 0 | AD7: =N7 -> 111 | AE7: =COUNTIF(L21:L28,AD7) -> 0 | AF7: =AE7/(AG4-AE11) -> 0 | AG7: =IF(AF7=0,0,(AF7*((LOG(AF7))/LOG(2)))) -> 0 | AI7: =N7 -> 111 | AJ7: =COUNTIF(L29:L35,AI7) -> 0 | AK7: =AJ7/(AL4-AJ11) ->  | AL7: =IF(AK7=0,0,(AK7*((LOG(AK7))/LOG(2)))) ->  | AN7: =N7 -> 111 | AO7: =COUNTIF(L36:L42,AN7) -> 0 | AP7: =AO7/(AQ4-AO11) ->  | AQ7: =IF(AP7=0,0,(AP7*((LOG(AP7))/LOG(2)))) ->  | AS7: =N7 -> 111 | AT7: =COUNTIF(L43:L49,AS7) -> 0 | AU7: =AT7/(AV4-AT11) ->  | AV7: =IF(AU7=0,0,(AU7*((LOG(AU7))/LOG(2)))) -> 
A8: 21 | B8: 114 | C8: 11 | D8: 121 | E8: 11 | F8: 125 | K8: 0 | L8: 211 | N8: 112 | O8: =COUNTIF($L$7:$L$500,N8) -> 0 | P8: =O8/$Q$4 -> 0 | Q8: =IF(P8=0,0,(P8*((LOG(P8))/LOG(2)))) -> 0 | T8: =N8 -> 112 | U8: =COUNTIF(L7:L13,T8) -> 0 | V8: =U8/(W4-U11) ->  | W8: =IF(V8=0,0,(V8*((LOG(V8))/LOG(2)))) ->  | Y8: =N8 -> 112 | Z8: =COUNTIF(L14:L20,Y8) -> 0 | AA8: =Z8/(AB4-Z11) -> 0 | AB8: =IF(AA8=0,0,(AA8*((LOG(AA8))/LOG(2)))) -> 0 | AD8: =N8 -> 112 | AE8: =COUNTIF(L21:L28,AD8) -> 0 | AF8: =AE8/(AG4-AE11) -> 0 | AG8: =IF(AF8=0,0,(AF8*((LOG(AF8))/LOG(2)))) -> 0 | AI8: =N8 -> 112 | AJ8: =COUNTIF(L29:L35,AI8) -> 0 | AK8: =AJ8/(AL4-AJ11) ->  | AL8: =IF(AK8=0,0,(AK8*((LOG(AK8))/LOG(2)))) ->  | AN8: =N8 -> 112 | AO8: =COUNTIF(L36:L42,AN8) -> 0 | AP8: =AO8/(AQ4-AO11) ->  | AQ8: =IF(AP8=0,0,(AP8*((LOG(AP8))/LOG(2)))) ->  | AS8: =N8 -> 112 | AT8: =COUNTIF(L43:L49,AS8) -> 0 | AU8: =AT8/(AV4-AT11) ->  | AV8: =IF(AU8=0,0,(AU8*((LOG(AU8))/LOG(2)))) -> 
A9: 21 | B9: 213 | C9: 11 | D9: 220 | E9: 11 | F9: 226 | K9: 0 | L9: 211 | N9: 121 | O9: =COUNTIF($L$7:$L$500,N9) -> 0 | P9: =O9/$Q$4 -> 0 | Q9: =IF(P9=0,0,(P9*((LOG(P9))/LOG(2)))) -> 0 | T9: =N9 -> 121 | U9: =COUNTIF(L7:L13,T9) -> 0 | V9: =U9/(W4-U11) ->  | W9: =IF(V9=0,0,(V9*((LOG(V9))/LOG(2)))) ->  | Y9: =N9 -> 121 | Z9: =COUNTIF(L14:L20,Y9) -> 0 | AA9: =Z9/(AB4-Z11) -> 0 | AB9: =IF(AA9=0,0,(AA9*((LOG(AA9))/LOG(2)))) -> 0 | AD9: =N9 -> 121 | AE9: =COUNTIF(L21:L28,AD9) -> 0 | AF9: =AE9/(AG4-AE11) -> 0 | AG9: =IF(AF9=0,0,(AF9*((LOG(AF9))/LOG(2)))) -> 0 | AI9: =N9 -> 121 | AJ9: =COUNTIF(L29:L35,AI9) -> 0 | AK9: =AJ9/(AL4-AJ11) ->  | AL9: =IF(AK9=0,0,(AK9*((LOG(AK9))/LOG(2)))) ->  | AN9: =N9 -> 121 | AO9: =COUNTIF(L36:L42,AN9) -> 0 | AP9: =AO9/(AQ4-AO11) ->  | AQ9: =IF(AP9=0,0,(AP9*((LOG(AP9))/LOG(2)))) ->  | AS9: =N9 -> 121 | AT9: =COUNTIF(L43:L49,AS9) -> 0 | AU9: =AT9/(AV4-AT11) ->  | AV9: =IF(AU9=0,0,(AU9*((LOG(AU9))/LOG(2)))) -> 
A10: 21 | B10: 315 | C10: 11 | D10: 322 | E10: 11 | F10: 335 | K10: 0 | L10: 211 | N10: 122 | O10: =COUNTIF($L$7:$L$500,N10) -> 0 | P10: =O10/$Q$4 -> 0 | Q10: =IF(P10=0,0,(P10*((LOG(P10))/LOG(2)))) -> 0 | T10: =N10 -> 122 | U10: =COUNTIF(L7:L13,T10) -> 0 | V10: =U10/(W4-U11) ->  | W10: =IF(V10=0,0,(V10*((LOG(V10))/LOG(2)))) ->  | Y10: =N10 -> 122 | Z10: =COUNTIF(L14:L20,Y10) -> 0 | AA10: =Z10/(AB4-Z11) -> 0 | AB10: =IF(AA10=0,0,(AA10*((LOG(AA10))/LOG(2)))) -> 0 | AD10: =N10 -> 122 | AE10: =COUNTIF(L21:L28,AD10) -> 0 | AF10: =AE10/(AG4-AE11) -> 0 | AG10: =IF(AF10=0,0,(AF10*((LOG(AF10))/LOG(2)))) -> 0 | AI10: =N10 -> 122 | AJ10: =COUNTIF(L29:L35,AI10) -> 0 | AK10: =AJ10/(AL4-AJ11) ->  | AL10: =IF(AK10=0,0,(AK10*((LOG(AK10))/LOG(2)))) ->  | AN10: =N10 -> 122 | AO10: =COUNTIF(L36:L42,AN10) -> 0 | AP10: =AO10/(AQ4-AO11) ->  | AQ10: =IF(AP10=0,0,(AP10*((LOG(AP10))/LOG(2)))) ->  | AS10: =N10 -> 122 | AT10: =COUNTIF(L43:L49,AS10) -> 0 | AU10: =AT10/(AV4-AT11) ->  | AV10: =IF(AU10=0,0,(AU10*((LOG(AU10))/LOG(2)))) -> 
A11: 21 | B11: 421 | C11: 11 | D11: 431 | E11: 11 | F11: 435 | K11: 0 | L11: 211 | N11: 211 | O11: =COUNTIF($L$7:$L$500,N11) -> 40 | P11: =O11/$Q$4 -> 0.9302325581 | Q11: =IF(P11=0,0,(P11*((LOG(P11))/LOG(2)))) -> -0.09705735797 | T11: =N11 -> 211 | U11: =COUNTIF(L7:L13,T11) -> 7 | Y11: =N11 -> 211 | Z11: =COUNTIF(L14:L20,Y11) -> 6 | AD11: =N11 -> 211 | AE11: =COUNTIF(L21:L28,AD11) -> 6 | AI11: =N11 -> 211 | AJ11: =COUNTIF(L29:L35,AI11) -> 7 | AN11: =N11 -> 211 | AO11: =COUNTIF(L36:L42,AN11) -> 7 | AS11: =N11 -> 211 | AT11: =COUNTIF(L43:L49,AS11) -> 7
A12: 21 | B12: 522 | C12: 11 | D12: 529 | E12: 11 | F12: 535 | K12: 0 | L12: 211 | N12: 212 | O12: =COUNTIF($L$7:$L$500,N12) -> 0 | P12: =O12/$Q$4 -> 0 | Q12: =IF(P12=0,0,(P12*((LOG(P12))/LOG(2)))) -> 0 | T12: =N12 -> 212 | U12: =COUNTIF(L7:L13,T12) -> 0 | V12: =U12/(W4-U11) ->  | W12: =IF(V12=0,0,(V12*((LOG(V12))/LOG(2)))) ->  | Y12: =N12 -> 212 | Z12: =COUNTIF(L14:L20,Y12) -> 0 | AA12: =Z12/(AB4-Z11) -> 0 | AB12: =IF(AA12=0,0,(AA12*((LOG(AA12))/LOG(2)))) -> 0 | AD12: =N12 -> 212 | AE12: =COUNTIF(L21:L28,AD12) -> 0 | AF12: =AE12/(AG4-AE11) -> 0 | AG12: =IF(AF12=0,0,(AF12*((LOG(AF12))/LOG(2)))) -> 0 | AI12: =N12 -> 212 | AJ12: =COUNTIF(L29:L35,AI12) -> 0 | AK12: =AJ12/(AL4-AJ11) ->  | AL12: =IF(AK12=0,0,(AK12*((LOG(AK12))/LOG(2)))) ->  | AN12: =N12 -> 212 | AO12: =COUNTIF(L36:L42,AN12) -> 0 | AP12: =AO12/(AQ4-AO11) ->  | AQ12: =IF(AP12=0,0,(AP12*((LOG(AP12))/LOG(2)))) ->  | AS12: =N12 -> 212 | AT12: =COUNTIF(L43:L49,AS12) -> 0 | AU12: =AT12/(AV4-AT11) ->  | AV12: =IF(AU12=0,0,(AU12*((LOG(AU12))/LOG(2)))) -> 
A13: 21 | B13: 623 | C13: 11 | D13: 631 | E13: 11 | F13: 635 | K13: 0 | L13: 211 | N13: 221 | O13: =COUNTIF($L$7:$L$500,N13) -> 3 | P13: =O13/$Q$4 -> 0.06976744186 | Q13: =IF(P13=0,0,(P13*((LOG(P13))/LOG(2)))) -> -0.2679978317 | T13: =N13 -> 221 | U13: =COUNTIF(L7:L13,T13) -> 0 | V13: =U13/(W4-U11) ->  | W13: =IF(V13=0,0,(V13*((LOG(V13))/LOG(2)))) ->  | Y13: =N13 -> 221 | Z13: =COUNTIF(L14:L20,Y13) -> 1 | AA13: =Z13/(AB4-Z11) -> 1 | AB13: =IF(AA13=0,0,(AA13*((LOG(AA13))/LOG(2)))) -> 0 | AD13: =N13 -> 221 | AE13: =COUNTIF(L21:L28,AD13) -> 2 | AF13: =AE13/(AG4-AE11) -> 1 | AG13: =IF(AF13=0,0,(AF13*((LOG(AF13))/LOG(2)))) -> 0 | AI13: =N13 -> 221 | AJ13: =COUNTIF(L29:L35,AI13) -> 0 | AK13: =AJ13/(AL4-AJ11) ->  | AL13: =IF(AK13=0,0,(AK13*((LOG(AK13))/LOG(2)))) ->  | AN13: =N13 -> 221 | AO13: =COUNTIF(L36:L42,AN13) -> 0 | AP13: =AO13/(AQ4-AO11) ->  | AQ13: =IF(AP13=0,0,(AP13*((LOG(AP13))/LOG(2)))) ->  | AS13: =N13 -> 221 | AT13: =COUNTIF(L43:L49,AS13) -> 0 | AU13: =AT13/(AV4-AT11) ->  | AV13: =IF(AU13=0,0,(AU13*((LOG(AU13))/LOG(2)))) -> 
A14: 21 | B14: 724 | C14: 11 | D14: 732 | E14: 11 | F14: 737 | K14: 0 | L14: 211 | N14: 222 | O14: =COUNTIF($L$7:$L$500,N14) -> 0 | P14: =O14/$Q$4 -> 0 | Q14: =IF(P14=0,0,(P14*((LOG(P14))/LOG(2)))) -> 0 | T14: =N14 -> 222 | U14: =COUNTIF(L7:L13,T14) -> 0 | V14: =U14/(W4-U11) ->  | W14: =IF(V14=0,0,(V14*((LOG(V14))/LOG(2)))) ->  | Y14: =N14 -> 222 | Z14: =COUNTIF(L14:L20,Y14) -> 0 | AA14: =Z14/(AB4-Z11) -> 0 | AB14: =IF(AA14=0,0,(AA14*((LOG(AA14))/LOG(2)))) -> 0 | AD14: =N14 -> 222 | AE14: =COUNTIF(L21:L28,AD14) -> 0 | AF14: =AE14/(AG4-AE11) -> 0 | AG14: =IF(AF14=0,0,(AF14*((LOG(AF14))/LOG(2)))) -> 0 | AI14: =N14 -> 222 | AJ14: =COUNTIF(L29:L35,AI14) -> 0 | AK14: =AJ14/(AL4-AJ11) ->  | AL14: =IF(AK14=0,0,(AK14*((LOG(AK14))/LOG(2)))) ->  | AN14: =N14 -> 222 | AO14: =COUNTIF(L36:L42,AN14) -> 0 | AP14: =AO14/(AQ4-AO11) ->  | AQ14: =IF(AP14=0,0,(AP14*((LOG(AP14))/LOG(2)))) ->  | AS14: =N14 -> 222 | AT14: =COUNTIF(L43:L49,AS14) -> 0 | AU14: =AT14/(AV4-AT11) ->  | AV14: =IF(AU14=0,0,(AU14*((LOG(AU14))/LOG(2)))) -> 
A15: 21 | B15: 824 | C15: 11 | D15: 832 | E15: 11 | F15: 836 | K15: 0 | L15: 211 | P15: =SUM(P7:P14) -> 1 | Q15: =-SUM(Q7:Q14) -> 0.3650551896 | V15: =SUM(V7:V14) ->  | W15: =-SUM(W7:W14) ->  | AA15: =SUM(AA7:AA14) -> 1 | AB15: =-SUM(AB7:AB14) -> 0 | AF15: =SUM(AF7:AF14) -> 1 | AG15: =-SUM(AG7:AG14) -> 0 | AK15: =SUM(AK7:AK14) ->  | AL15: =-SUM(AL7:AL14) ->  | AP15: =SUM(AP7:AP14) ->  | AQ15: =-SUM(AQ7:AQ14) ->  | AU15: =SUM(AU7:AU14) ->  | AV15: =-SUM(AV7:AV14) -> 
A16: 21 | B16: 923 | C16: 11 | D16: 930 | E16: 11 | F16: 935 | K16: 0 | L16: 211 | P16: U= | Q16: =Q15/(LOG(Q4)/LOG(2)) -> 0.06727559493 | V16: U1= | W16: =W15/(LOG(W4)/LOG(2)) ->  | AA16: U2= | AB16: =AB15/(LOG(AB4)/LOG(2)) -> 0 | AF16: U3= | AG16: =AG15/(LOG(AG4)/LOG(2)) -> 0 | AK16: U4= | AL16: =AL15/(LOG(AL4)/LOG(2)) ->  | AP16: U5= | AQ16: =AQ15/(LOG(AQ4)/LOG(2)) ->  | AU16: U6= | AV16: =AV15/(LOG(AV4)/LOG(2)) -> 
A17: 21 | B17: 1027 | C17: 11 | D17: 1037 | E17: 11 | F17: 1041 | K17: 0 | L17: 211
A18: 21 | B18: 1128 | C18: 22 | D18: 1136 | E18: 13 | F18: 1143 | K18: 0 | L18: 221
A19: 21 | B19: 1230 | C19: 11 | D19: 1237 | E19: 11 | F19: 1244 | K19: 0 | L19: 211 | N19: Total Target Seq
A20: 21 | B20: 1331 | C20: 11 | D20: 1338 | E20: 11 | F20: 1343 | K20: 0 | L20: 211 | N20: =COUNTIF(L7:L49,G3) -> 40 | P20: 7 | Q20: 7 | R20: 8 | S20: 7 | T20: 7 | U20: 7
A21: 21 | B21: 1471 | C21: 22 | D21: 1476 | E21: 13 | F21: 1484 | K21: 0 | L21: 221 | P21: % of reinforcement given in 6 equal intervals based on number of trials
A22: 21 | B22: 1580 | C22: 11 | D22: 1587 | E22: 11 | F22: 1591 | K22: 0 | L22: 211 | P22: %_1 | Q22: %_2 | R22: %_3 | S22: %_4 | T22: %_5 | U22: %_6
A23: 21 | B23: 1678 | C23: 11 | D23: 1686 | E23: 11 | F23: 1692 | K23: 0 | L23: 211 | O23: target sequence | P23: =$G$3 -> 211 | Q23: =$G$3 -> 211 | R23: =$G$3 -> 211 | S23: =$G$3 -> 211 | T23: =$G$3 -> 211 | U23: =$G$3 -> 211
A24: 21 | B24: 1782 | C24: 11 | D24: 1790 | E24: 11 | F24: 1796 | K24: 0 | L24: 211 | O24: total reinforcement | P24: =U11 -> 7 | Q24: =Z11 -> 6 | R24: =AE11 -> 6 | S24: =AJ11 -> 7 | T24: =AO11 -> 7 | U24: =AT11 -> 7
A25: 21 | B25: 1884 | C25: 11 | D25: 1892 | E25: 11 | F25: 1897 | K25: 0 | L25: 211 | O25: % target
A26: 21 | B26: 1988 | C26: 11 | D26: 1996 | E26: 11 | F26: 1999 | K26: 0 | L26: 211 | O26: CCRF
A27: 21 | B27: 2086 | C27: 11 | D27: 2093 | E27: 11 | F27: 2097 | K27: 0 | L27: 211 | O27: % CCRf
A28: 21 | B28: 2186 | C28: 22 | D28: 2194 | E28: 13 | F28: 2201 | K28: 0 | L28: 221 | O28: average response rate | P28: =F13/P20 -> 90.71428571 | Q28: =(F20-F13)/Q20 -> 101.1428571 | R28: =(F28-F20)/R20 -> 107.25 | S28: =(F35-F28)/S20 -> 106.2857143 | T28: =(F42-F35)/T20 -> 103.2857143 | U28: =(F49-F42)/U20 -> 103.4285714
A29: 21 | B29: 2303 | C29: 11 | D29: 2313 | E29: 11 | F29: 2316 | K29: 0 | L29: 211
A30: 21 | B30: 2403 | C30: 11 | D30: 2411 | E30: 11 | F30: 2417 | K30: 0 | L30: 211
A31: 21 | B31: 2513 | C31: 11 | D31: 2521 | E31: 11 | F31: 2528 | K31: 0 | L31: 211
A32: 21 | B32: 2616 | C32: 11 | D32: 2624 | E32: 11 | F32: 2628 | K32: 0 | L32: 211
A33: 21 | B33: 2725 | C33: 11 | D33: 2733 | E33: 11 | F33: 2742 | K33: 0 | L33: 211
A34: 21 | B34: 2829 | C34: 11 | D34: 2837 | E34: 11 | F34: 2842 | K34: 0 | L34: 211
A35: 21 | B35: 2933 | C35: 11 | D35: 2941 | E35: 11 | F35: 2945 | K35: 0 | L35: 211
A36: 21 | B36: 3032 | C36: 11 | D36: 3040 | E36: 11 | F36: 3045 | K36: 0 | L36: 211
A37: 21 | B37: 3137 | C37: 11 | D37: 3145 | E37: 11 | F37: 3153 | K37: 0 | L37: 211
A38: 21 | B38: 3241 | C38: 11 | D38: 3249 | E38: 11 | F38: 3255 | K38: 0 | L38: 211
A39: 21 | B39: 3344 | C39: 11 | D39: 3352 | E39: 11 | F39: 3356 | K39: 0 | L39: 211
A40: 21 | B40: 3443 | C40: 11 | D40: 3450 | E40: 11 | F40: 3455 | K40: 0 | L40: 211
A41: 21 | B41: 3549 | C41: 11 | D41: 3557 | E41: 11 | F41: 3561 | K41: 0 | L41: 211
A42: 21 | B42: 3656 | C42: 11 | D42: 3664 | E42: 11 | F42: 3668 | K42: 0 | L42: 211
A43: 21 | B43: 3756 | C43: 11 | D43: 3763 | E43: 11 | F43: 3768 | K43: 0 | L43: 211
A44: 21 | B44: 3855 | C44: 11 | D44: 3863 | E44: 11 | F44: 3871 | K44: 0 | L44: 211
A45: 21 | B45: 3958 | C45: 11 | D45: 3966 | E45: 11 | F45: 3969 | K45: 0 | L45: 211
A46: 21 | B46: 4057 | C46: 11 | D46: 4064 | E46: 11 | F46: 4072 | K46: 0 | L46: 211
A47: 21 | B47: 4171 | C47: 11 | D47: 4181 | E47: 11 | F47: 4191 | K47: 0 | L47: 211
A48: 21 | B48: 4280 | C48: 11 | D48: 4288 | E48: 11 | F48: 4292 | K48: 0 | L48: 211
A49: 21 | B49: 4380 | C49: 11 | D49: 4387 | E49: 11 | F49: 4392 | K49: 1 | L49: 211

Sheet !N531940.010
A1: Report for:!N531940.010
A2: Date: | B2: <date>
A3: Hen: | B3: <hen> | F3: Correct Sequence | G3: =Start!J2 -> 211 | P3: Total Sequences in Data | Q3: =4994-COUNTBLANK(L7:L5000) -> 48 | V3: Total Sequences in Block Data | W3: =COUNTA(L7:L14) -> 8 | AA3: Total Sequences in Block Data | AB3: =COUNTA(L15:L22) -> 8 | AF3: Total Sequences in Block Data | AG3: =COUNTA(L23:L30) -> 8 | AK3: Total Sequences in Block Data | AL3: =COUNTA(L31:L38) -> 8 | AP3: Total Sequences in Block Data | AQ3: =COUNTA(L39:L46) -> 8 | AU3: Total Sequences in Block Data | AV3: =COUNTA(L47:L54) -> 8
P4: Total Sequences in Summary | Q4: =SUM(O7:O14) -> 48 | V4: Total Sequences in Block Summary | W4: =SUM(U7:U14) -> 8 | AA4: Total Sequences in Block Summary | AB4: =SUM(Z7:Z14) -> 8 | AF4: Total Sequences in Block Summary | AG4: =SUM(AE7:AE14) -> 8 | AK4: Total Sequences in Block Summary | AL4: =SUM(AJ7:AJ14) -> 8 | AP4: Total Sequences in Block Summary | AQ4: =SUM(AO7:AO14) -> 8 | AU4: Total Sequences in Block Summary | AV4: =SUM(AT7:AT14) -> 8
T5: Block 1 | Y5: Block 2 | AD5: Block 3 | AI5: Block 4 | AN5: Block 5 | AS5: Block 6
A6: Sequence Component 1 | B6: Time 1 | C6: Sequence Component 2 | D6: Time 2 | E6: Sequence Component 3 | F6: Time 3 | G6: Sequence Component 4 | H6: Time 4 | I6: Sequence Component 5 | J6: Time 5 | K6: Correct? 0=No 1=Yes | L6: Sequence | N6: Frequency | P6: Relative Frequency | Q6: Variability | T6: Frequency | V6: Relative Frequency | W6: Variability | Y6: Frequency | AA6: Relative Frequency | AB6: Variability | AD6: Frequency | AF6: Relative Frequency | AG6: Variability | AI6: Frequency | AK6: Relative Frequency | AL6: Variability | AN6: Frequency | AP6: Relative Frequency | AQ6: Variability | AS6: Frequency | AU6: Relative Frequency | AV6: Variability
A7: 21 | B7: 8 | C7: 11 | D7: 15 | E7: 11 | F7: 19 | K7: 0 | L7: 211 | N7: 111 | O7: =COUNTIF($L$7:$L$500,N7) -> 2 | P7: =O7/$Q$4 -> 0.04166666667 | Q7: =IF(P7=0,0,(P7*((LOG(P7))/LOG(2)))) -> -0.1910401042 | T7: =N7 -> 111 | U7: =COUNTIF(L7:L14,T7) -> 0 | V7: =U7/(W4-U11) -> 0 | W7: =IF(V7=0,0,(V7*((LOG(V7))/LOG(2)))) -> 0 | Y7: =N7 -> 111 | Z7: =COUNTIF(L15:L22,Y7) -> 0 | AA7: =Z7/(AB4-Z11) ->  | AB7: =IF(AA7=0,0,(AA7*((LOG(AA7))/LOG(2)))) ->  | AD7: =N7 -> 111 | AE7: =COUNTIF(L23:L30,AD7) -> 0 | AF7: =AE7/(AG4-AE11) -> 0 | AG7: =IF(AF7=0,0,(AF7*((LOG(AF7))/LOG(2)))) -> 0 | AI7: =N7 -> 111 | AJ7: =COUNTIF(L31:L38,AI7) -> 0 | AK7: =AJ7/(AL4-AJ11) -> 0 | AL7: =IF(AK7=0,0,(AK7*((LOG(AK7))/LOG(2)))) -> 0 | AN7: =N7 -> 111 | AO7: =COUNTIF(L39:L46,AN7) -> 2 | AP7: =AO7/(AQ4-AO11) -> 1 | AQ7: =IF(AP7=0,0,(AP7*((LOG(AP7))/LOG(2)))) -> 0 | AS7: =N7 -> 111 | AT7: =COUNTIF(L47:L54,AS7) -> 0 | AU7: =AT7/(AV4-AT11) -> 0 | AV7: =IF(AU7=0,0,(AU7*((LOG(AU7))/LOG(2)))) -> 0
A8: 21 | B8: 105 | C8: 11 | D8: 112 | E8: 11 | F8: 116 | K8: 0 | L8: 211 | N8: 112 | O8: =COUNTIF($L$7:$L$500,N8) -> 0 | P8: =O8/$Q$4 -> 0 | Q8: =IF(P8=0,0,(P8*((LOG(P8))/LOG(2)))) -> 0 | T8: =N8 -> 112 | U8: =COUNTIF(L7:L14,T8) -> 0 | V8: =U8/(W4-U11) -> 0 | W8: =IF(V8=0,0,(V8*((LOG(V8))/LOG(2)))) -> 0 | Y8: =N8 -> 112 | Z8: =COUNTIF(L15:L22,Y8) -> 0 | AA8: =Z8/(AB4-Z11) ->  | AB8: =IF(AA8=0,0,(AA8*((LOG(AA8))/LOG(2)))) ->  | AD8: =N8 -> 112 | AE8: =COUNTIF(L23:L30,AD8) -> 0 | AF8: =AE8/(AG4-AE11) -> 0 | AG8: =IF(AF8=0,0,(AF8*((LOG(AF8))/LOG(2)))) -> 0 | AI8: =N8 -> 112 | AJ8: =COUNTIF(L31:L38,AI8) -> 0 | AK8: =AJ8/(AL4-AJ11) -> 0 | AL8: =IF(AK8=0,0,(AK8*((LOG(AK8))/LOG(2)))) -> 0 | AN8: =N8 -> 112 | AO8: =COUNTIF(L39:L46,AN8) -> 0 | AP8: =AO8/(AQ4-AO11) -> 0 | AQ8: =IF(AP8=0,0,(AP8*((LOG(AP8))/LOG(2)))) -> 0 | AS8: =N8 -> 112 | AT8: =COUNTIF(L47:L54,AS8) -> 0 | AU8: =AT8/(AV4-AT11) -> 0 | AV8: =IF(AU8=0,0,(AU8*((LOG(AU8))/LOG(2)))) -> 0
A9: 21 | B9: 203 | C9: 11 | D9: 210 | E9: 11 | F9: 214 | K9: 0 | L9: 211 | N9: 121 | O9: =COUNTIF($L$7:$L$500,N9) -> 0 | P9: =O9/$Q$4 -> 0 | Q9: =IF(P9=0,0,(P9*((LOG(P9))/LOG(2)))) -> 0 | T9: =N9 -> 121 | U9: =COUNTIF(L7:L14,T9) -> 0 | V9: =U9/(W4-U11) -> 0 | W9: =IF(V9=0,0,(V9*((LOG(V9))/LOG(2)))) -> 0 | Y9: =N9 -> 121 | Z9: =COUNTIF(L15:L22,Y9) -> 0 | AA9: =Z9/(AB4-Z11) ->  | AB9: =IF(AA9=0,0,(AA9*((LOG(AA9))/LOG(2)))) ->  | AD9: =N9 -> 121 | AE9: =COUNTIF(L23:L30,AD9) -> 0 | AF9: =AE9/(AG4-AE11) -> 0 | AG9: =IF(AF9=0,0,(AF9*((LOG(AF9))/LOG(2)))) -> 0 | AI9: =N9 -> 121 | AJ9: =COUNTIF(L31:L38,AI9) -> 0 | AK9: =AJ9/(AL4-AJ11) -> 0 | AL9: =IF(AK9=0,0,(AK9*((LOG(AK9))/LOG(2)))) -> 0 | AN9: =N9 -> 121 | AO9: =COUNTIF(L39:L46,AN9) -> 0 | AP9: =AO9/(AQ4-AO11) -> 0 | AQ9: =IF(AP9=0,0,(AP9*((LOG(AP9))/LOG(2)))) -> 0 | AS9: =N9 -> 121 | AT9: =COUNTIF(L47:L54,AS9) -> 0 | AU9: =AT9/(AV4-AT11) -> 0 | AV9: =IF(AU9=0,0,(AU9*((LOG(AU9))/LOG(2)))) -> 0
A10: 21 | B10: 301 | C10: 22 | D10: 305 | E10: 13 | F10: 312 | K10: 0 | L10: 221 | N10: 122 | O10: =COUNTIF($L$7:$L$500,N10) -> 0 | P10: =O10/$Q$4 -> 0 | Q10: =IF(P10=0,0,(P10*((LOG(P10))/LOG(2)))) -> 0 | T10: =N10 -> 122 | U10: =COUNTIF(L7:L14,T10) -> 0 | V10: =U10/(W4-U11) -> 0 | W10: =IF(V10=0,0,(V10*((LOG(V10))/LOG(2)))) -> 0 | Y10: =N10 -> 122 | Z10: =COUNTIF(L15:L22,Y10) -> 0 | AA10: =Z10/(AB4-Z11) ->  | AB10: =IF(AA10=0,0,(AA10*((LOG(AA10))/LOG(2)))) ->  | AD10: =N10 -> 122 | AE10: =COUNTIF(L23:L30,AD10) -> 0 | AF10: =AE10/(AG4-AE11) -> 0 | AG10: =IF(AF10=0,0,(AF10*((LOG(AF10))/LOG(2)))) -> 0 | AI10: =N10 -> 122 | AJ10: =COUNTIF(L31:L38,AI10) -> 0 | AK10: =AJ10/(AL4-AJ11) -> 0 | AL10: =IF(AK10=0,0,(AK10*((LOG(AK10))/LOG(2)))) -> 0 | AN10: =N10 -> 122 | AO10: =COUNTIF(L39:L46,AN10) -> 0 | AP10: =AO10/(AQ4-AO11) -> 0 | AQ10: =IF(AP10=0,0,(AP10*((LOG(AP10))/LOG(2)))) -> 0 | AS10: =N10 -> 122 | AT10: =COUNTIF(L47:L54,AS10) -> 0 | AU10: =AT10/(AV4-AT11) -> 0 | AV10: =IF(AU10=0,0,(AU10*((LOG(AU10))/LOG(2)))) -> 0
A11: 21 | B11: 399 | C11: 11 | D11: 406 | E11: 11 | F11: 420 | K11: 0 | L11: 211 | N11: 211 | O11: =COUNTIF($L$7:$L$500,N11) -> 40 | P11: =O11/$Q$4 -> 0.8333333333 | Q11: =IF(P11=0,0,(P11*((LOG(P11))/LOG(2)))) -> -0.2191953382 | T11: =N11 -> 211 | U11: =COUNTIF(L7:L14,T11) -> 6 | Y11: =N11 -> 211 | Z11: =COUNTIF(L15:L22,Y11) -> 8 | AD11: =N11 -> 211 | AE11: =COUNTIF(L23:L30,AD11) -> 6 | AI11: =N11 -> 211 | AJ11: =COUNTIF(L31:L38,AI11) -> 7 | AN11: =N11 -> 211 | AO11: =COUNTIF(L39:L46,AN11) -> 6 | AS11: =N11 -> 211 | AT11: =COUNTIF(L47:L54,AS11) -> 7
A12: 21 | B12: 507 | C12: 22 | D12: 511 | E12: 13 | F12: 520 | K12: 0 | L12: 221 | N12: 212 | O12: =COUNTIF($L$7:$L$500,N12) -> 0 | P12: =O12/$Q$4 -> 0 | Q12: =IF(P12=0,0,(P12*((LOG(P12))/LOG(2)))) -> 0 | T12: =N12 -> 212 | U12: =COUNTIF(L7:L14,T12) -> 0 | V12: =U12/(W4-U11) -> 0 | W12: =IF(V12=0,0,(V12*((LOG(V12))/LOG(2)))) -> 0 | Y12: =N12 -> 212 | Z12: =COUNTIF(L15:L22,Y12) -> 0 | AA12: =Z12/(AB4-Z11) ->  | AB12: =IF(AA12=0,0,(AA12*((LOG(AA12))/LOG(2)))) ->  | AD12: =N12 -> 212 | AE12: =COUNTIF(L23:L30,AD12) -> 0 | AF12: =AE12/(AG4-AE11) -> 0 | AG12: =IF(AF12=0,0,(AF12*((LOG(AF12))/LOG(2)))) -> 0 | AI12: =N12 -> 212 | AJ12: =COUNTIF(L31:L38,AI12) -> 0 | AK12: =AJ12/(AL4-AJ11) -> 0 | AL12: =IF(AK12=0,0,(AK12*((LOG(AK12))/LOG(2)))) -> 0 | AN12: =N12 -> 212 | AO12: =COUNTIF(L39:L46,AN12) -> 0 | AP12: =AO12/(AQ4-AO11) -> 0 | AQ12: =IF(AP12=0,0,(AP12*((LOG(AP12))/LOG(2)))) -> 0 | AS12: =N12 -> 212 | AT12: =COUNTIF(L47:L54,AS12) -> 0 | AU12: =AT12/(AV4-AT11) -> 0 | AV12: =IF(AU12=0,0,(AU12*((LOG(AU12))/LOG(2)))) -> 0
A13: 21 | B13: 619 | C13: 11 | D13: 625 | E13: 11 | F13: 630 | K13: 0 | L13: 211 | N13: 221 | O13: =COUNTIF($L$7:$L$500,N13) -> 6 | P13: =O13/$Q$4 -> 0.125 | Q13: =IF(P13=0,0,(P13*((LOG(P13))/LOG(2)))) -> -0.375 | T13: =N13 -> 221 | U13: =COUNTIF(L7:L14,T13) -> 2 | V13: =U13/(W4-U11) -> 1 | W13: =IF(V13=0,0,(V13*((LOG(V13))/LOG(2)))) -> 0 | Y13: =N13 -> 221 | Z13: =COUNTIF(L15:L22,Y13) -> 0 | AA13: =Z13/(AB4-Z11) ->  | AB13: =IF(AA13=0,0,(AA13*((LOG(AA13))/LOG(2)))) ->  | AD13: =N13 -> 221 | AE13: =COUNTIF(L23:L30,AD13) -> 2 | AF13: =AE13/(AG4-AE11) -> 1 | AG13: =IF(AF13=0,0,(AF13*((LOG(AF13))/LOG(2)))) -> 0 | AI13: =N13 -> 221 | AJ13: =COUNTIF(L31:L38,AI13) -> 1 | AK13: =AJ13/(AL4-AJ11) -> 1 | AL13: =IF(AK13=0,0,(AK13*((LOG(AK13))/LOG(2)))) -> 0 | AN13: =N13 -> 221 | AO13: =COUNTIF(L39:L46,AN13) -> 0 | AP13: =AO13/(AQ4-AO11) -> 0 | AQ13: =IF(AP13=0,0,(AP13*((LOG(AP13))/LOG(2)))) -> 0 | AS13: =N13 -> 221 | AT13: =COUNTIF(L47:L54,AS13) -> 1 | AU13: =AT13/(AV4-AT11) -> 1 | AV13: =IF(AU13=0,0,(AU13*((LOG(AU13))/LOG(2)))) -> 0
A14: 21 | B14: 717 | C14: 11 | D14: 724 | E14: 11 | F14: 728 | K14: 0 | L14: 211 | N14: 222 | O14: =COUNTIF($L$7:$L$500,N14) -> 0 | P14: =O14/$Q$4 -> 0 | Q14: =IF(P14=0,0,(P14*((LOG(P14))/LOG(2)))) -> 0 | T14: =N14 -> 222 | U14: =COUNTIF(L7:L14,T14) -> 0 | V14: =U14/(W4-U11) -> 0 | W14: =IF(V14=0,0,(V14*((LOG(V14))/LOG(2)))) -> 0 | Y14: =N14 -> 222 | Z14: =COUNTIF(L15:L22,Y14) -> 0 | AA14: =Z14/(AB4-Z11) ->  | AB14: =IF(AA14=0,0,(AA14*((LOG(AA14))/LOG(2)))) ->  | AD14: =N14 -> 222 | AE14: =COUNTIF(L23:L30,AD14) -> 0 | AF14: =AE14/(AG4-AE11) -> 0 | AG14: =IF(AF14=0,0,(AF14*((LOG(AF14))/LOG(2)))) -> 0 | AI14: =N14 -> 222 | AJ14: =COUNTIF(L31:L38,AI14) -> 0 | AK14: =AJ14/(AL4-AJ11) -> 0 | AL14: =IF(AK14=0,0,(AK14*((LOG(AK14))/LOG(2)))) -> 0 | AN14: =N14 -> 222 | AO14: =COUNTIF(L39:L46,AN14) -> 0 | AP14: =AO14/(AQ4-AO11) -> 0 | AQ14: =IF(AP14=0,0,(AP14*((LOG(AP14))/LOG(2)))) -> 0 | AS14: =N14 -> 222 | AT14: =COUNTIF(L47:L54,AS14) -> 0 | AU14: =AT14/(AV4-AT11) -> 0 | AV14: =IF(AU14=0,0,(AU14*((LOG(AU14))/LOG(2)))) -> 0
A15: 21 | B15: 813 | C15: 11 | D15: 821 | E15: 11 | F15: 824 | K15: 0 | L15: 211 | P15: =SUM(P7:P14) -> 1 | Q15: =-SUM(Q7:Q14) -> 0.7852354424 | V15: =SUM(V7:V14) -> 1 | W15: =-SUM(W7:W14) -> 0 | AA15: =SUM(AA7:AA14) ->  | AB15: =-SUM(AB7:AB14) ->  | AF15: =SUM(AF7:AF14) -> 1 | AG15: =-SUM(AG7:AG14) -> 0 | AK15: =SUM(AK7:AK14) -> 1 | AL15: =-SUM(AL7:AL14) -> 0 | AP15: =SUM(AP7:AP14) -> 1 | AQ15: =-SUM(AQ7:AQ14) -> 0 | AU15: =SUM(AU7:AU14) -> 1 | AV15: =-SUM(AV7:AV14) -> 0
A16: 21 | B16: 912 | C16: 11 | D16: 919 | E16: 11 | F16: 924 | K16: 0 | L16: 211 | P16: U= | Q16: =Q15/(LOG(Q4)/LOG(2)) -> 0.1405981584 | V16: U1= | W16: =W15/(LOG(W4)/LOG(2)) -> 0 | AA16: U2= | AB16: =AB15/(LOG(AB4)/LOG(2)) ->  | AF16: U3= | AG16: =AG15/(LOG(AG4)/LOG(2)) -> 0 | AK16: U4= | AL16: =AL15/(LOG(AL4)/LOG(2)) -> 0 | AP16: U5= | AQ16: =AQ15/(LOG(AQ4)/LOG(2)) -> 0 | AU16: U6= | AV16: =AV15/(LOG(AV4)/LOG(2)) -> 0
A17: 21 | B17: 1012 | C17: 11 | D17: 1029 | E17: 11 | F17: 1036 | K17: 0 | L17: 211
A18: 21 | B18: 1123 | C18: 11 | D18: 1133 | E18: 11 | F18: 1137 | K18: 0 | L18: 211
A19: 21 | B19: 1224 | C19: 11 | D19: 1232 | E19: 11 | F19: 1238 | K19: 0 | L19: 211 | N19: Total Target Seq
A20: 21 | B20: 1327 | C20: 11 | D20: 1334 | E20: 11 | F20: 1337 | K20: 0 | L20: 211 | N20: =COUNTIF(L7:L54,G3) -> 40 | P20: 8 | Q20: 8 | R20: 8 | S20: 8 | T20: 8 | U20: 8
A21: 21 | B21: 1427 | C21: 11 | D21: 1434 | E21: 11 | F21: 1438 | K21: 0 | L21: 211 | P21: % of reinforcement given in 6 equal intervals based on number of trials
A22: 21 | B22: 1524 | C22: 11 | D22: 1531 | E22: 11 | F22: 1535 | K22: 0 | L22: 211 | P22: %_1 | Q22: %_2 | R22: %_3 | S22: %_4 | T22: %_5 | U22: %_6
A23: 21 | B23: 1627 | C23: 11 | D23: 1634 | E23: 11 | F23: 1638 | K23: 0 | L23: 211 | O23: target sequence | P23: =$G$3 -> 211 | Q23: =$G$3 -> 211 | R23: =$G$3 -> 211 | S23: =$G$3 -> 211 | T23: =$G$3 -> 211 | U23: =$G$3 -> 211
A24: 21 | B24: 1728 | C24: 11 | D24: 1735 | E24: 11 | F24: 1741 | K24: 0 | L24: 211 | O24: total reinforcement | P24: =U11 -> 6 | Q24: =Z11 -> 8 | R24: =AE11 -> 6 | S24: =AJ11 -> 7 | T24: =AO11 -> 6 | U24: =AT11 -> 7
A25: 21 | B25: 1829 | C25: 11 | D25: 1837 | E25: 11 | F25: 1841 | K25: 0 | L25: 211 | O25: % target
A26: 21 | B26: 1927 | C26: 11 | D26: 1934 | E26: 11 | F26: 1939 | K26: 0 | L26: 211 | O26: CCRF
A27: 21 | B27: 2027 | C27: 22 | D27: 2032 | E27: 13 | F27: 2039 | K27: 0 | L27: 221 | O27: % CCRf
A28: 21 | B28: 2135 | C28: 11 | D28: 2142 | E28: 11 | F28: 2146 | K28: 0 | L28: 211 | O28: average response rate | P28: =F14/P20 -> 91 | Q28: =(F22-F14)/Q20 -> 100.875 | R28: =(F30-F22)/R20 -> 103.5 | S28: =(F38-F30)/S20 -> 102.25 | T28: =(F46-F38)/T20 -> 102.5 | U28: =(F54-F46)/U20 -> 102.625
A29: 21 | B29: 2237 | C29: 22 | D29: 2245 | E29: 13 | F29: 2252 | K29: 0 | L29: 221
A30: 21 | B30: 2352 | C30: 11 | D30: 2360 | E30: 11 | F30: 2363 | K30: 0 | L30: 211
A31: 21 | B31: 2452 | C31: 11 | D31: 2460 | E31: 11 | F31: 2464 | K31: 0 | L31: 211
A32: 21 | B32: 2555 | C32: 11 | D32: 2562 | E32: 11 | F32: 2566 | K32: 0 | L32: 211
A33: 21 | B33: 2654 | C33: 11 | D33: 2662 | E33: 11 | F33: 2666 | K33: 0 | L33: 211
A34: 21 | B34: 2752 | C34: 22 | D34: 2760 | E34: 13 | F34: 2767 | K34: 0 | L34: 221
A35: 21 | B35: 2869 | C35: 11 | D35: 2877 | E35: 11 | F35: 2880 | K35: 0 | L35: 211
A36: 21 | B36: 2970 | C36: 11 | D36: 2978 | E36: 11 | F36: 2981 | K36: 0 | L36: 211
A37: 21 | B37: 3069 | C37: 11 | D37: 3079 | E37: 11 | F37: 3083 | K37: 0 | L37: 211
A38: 21 | B38: 3169 | C38: 11 | D38: 3177 | E38: 11 | F38: 3181 | K38: 0 | L38: 211
A39: 21 | B39: 3267 | C39: 11 | D39: 3275 | E39: 11 | F39: 3278 | K39: 0 | L39: 211
A40: 21 | B40: 3372 | C40: 11 | D40: 3379 | E40: 11 | F40: 3383 | K40: 0 | L40: 211
A41: 21 | B41: 3472 | C41: 11 | D41: 3479 | E41: 11 | F41: 3483 | K41: 0 | L41: 211
A42: 12 | B42: 3573 | C42: 13 | D42: 3580 | E42: 13 | F42: 3583 | K42: 0 | L42: 111
A43: 21 | B43: 3671 | C43: 11 | D43: 3678 | E43: 11 | F43: 3681 | K43: 0 | L43: 211
A44: 12 | B44: 3770 | C44: 13 | D44: 3777 | E44: 13 | F44: 3788 | K44: 0 | L44: 111
A45: 21 | B45: 3887 | C45: 11 | D45: 3894 | E45: 11 | F45: 3898 | K45: 0 | L45: 211
A46: 21 | B46: 3984 | C46: 11 | D46: 3995 | E46: 11 | F46: 4001 | K46: 0 | L46: 211
A47: 21 | B47: 4088 | C47: 11 | D47: 4097 | E47: 11 | F47: 4101 | K47: 0 | L47: 211
A48: 21 | B48: 4187 | C48: 22 | D48: 4192 | E48: 13 | F48: 4199 | K48: 0 | L48: 221
A49: 21 | B49: 4300 | C49: 11 | D49: 4308 | E49: 11 | F49: 4311 | K49: 0 | L49: 211
A50: 21 | B50: 4397 | C50: 11 | D50: 4406 | E50: 11 | F50: 4409 | K50: 0 | L50: 211
A51: 21 | B51: 4505 | C51: 11 | D51: 4513 | E51: 11 | F51: 4516 | K51: 0 | L51: 211
A52: 21 | B52: 4608 | C52: 11 | D52: 4615 | E52: 11 | F52: 4619 | K52: 0 | L52: 211
A53: 21 | B53: 4712 | C53: 11 | D53: 4719 | E53: 11 | F53: 4724 | K53: 0 | L53: 211
A54: 21 | B54: 4811 | C54: 11 | D54: 4818 | E54: 11 | F54: 4822 | K54: 1 | L54: 211

Sheet !N601910.010
A1: Report for:!N601910.010
A2: Date: | B2: <date>
A3: Hen: | B3: <hen> | F3: Correct Sequence | G3: =Start!J2 -> 211 | P3: Total Sequences in Data | Q3: =4994-COUNTBLANK(L7:L5000) -> 52 | V3: Total Sequences in Block Data | W3: =COUNTA(L7:L15) -> 9 | AA3: Total Sequences in Block Data | AB3: =COUNTA(L16:L23) -> 8 | AF3: Total Sequences in Block Data | AG3: =COUNTA(L24:L32) -> 9 | AK3: Total Sequences in Block Data | AL3: =COUNTA(L33:L41) -> 9 | AP3: Total Sequences in Block Data | AQ3: =COUNTA(L42:L49) -> 8 | AU3: Total Sequences in Block Data | AV3: =COUNTA(L50:L58) -> 9
P4: Total Sequences in Summary | Q4: =SUM(O7:O14) -> 52 | V4: Total Sequences in Block Summary | W4: =SUM(U7:U14) -> 9 | AA4: Total Sequences in Block Summary | AB4: =SUM(Z7:Z14) -> 8 | AF4: Total Sequences in Block Summary | AG4: =SUM(AE7:AE14) -> 9 | AK4: Total Sequences in Block Summary | AL4: =SUM(AJ7:AJ14) -> 9 | AP4: Total Sequences in Block Summary | AQ4: =SUM(AO7:AO14) -> 8 | AU4: Total Sequences in Block Summary | AV4: =SUM(AT7:AT14) -> 9
T5: Block 1 | Y5: Block 2 | AD5: Block 3 | AI5: Block 4 | AN5: Block 5 | AS5: Block 6
A6: Sequence Component 1 | B6: Time 1 | C6: Sequence Component 2 | D6: Time 2 | E6: Sequence Component 3 | F6: Time 3 | G6: Sequence Component 4 | H6: Time 4 | I6: Sequence Component 5 | J6: Time 5 | K6: Correct? 0=No 1=Yes | L6: Sequence | N6: Frequency | P6: Relative Frequency | Q6: Variability | T6: Frequency | V6: Relative Frequency | W6: Variability | Y6: Frequency | AA6: Relative Frequency | AB6: Variability | AD6: Frequency | AF6: Relative Frequency | AG6: Variability | AI6: Frequency | AK6: Relative Frequency | AL6: Variability | AN6: Frequency | AP6: Relative Frequency | AQ6: Variability | AS6: Frequency | AU6: Relative Frequency | AV6: Variability
A7: 21 | B7: 7 | C7: 11 | D7: 14 | E7: 11 | F7: 21 | K7: 0 | L7: 211 | N7: 111 | O7: =COUNTIF($L$7:$L$500,N7) -> 3 | P7: =O7/$Q$4 -> 0.05769230769 | Q7: =IF(P7=0,0,(P7*((LOG(P7))/LOG(2)))) -> -0.2374313779 | T7: =N7 -> 111 | U7: =COUNTIF(L7:L15,T7) -> 0 | V7: =U7/(W4-U11) ->  | W7: =IF(V7=0,0,(V7*((LOG(V7))/LOG(2)))) ->  | Y7: =N7 -> 111 | Z7: =COUNTIF(L16:L23,Y7) -> 0 | AA7: =Z7/(AB4-Z11) -> 0 | AB7: =IF(AA7=0,0,(AA7*((LOG(AA7))/LOG(2)))) -> 0 | AD7: =N7 -> 111 | AE7: =COUNTIF(L24:L32,AD7) -> 0 | AF7: =AE7/(AG4-AE11) ->  | AG7: =IF(AF7=0,0,(AF7*((LOG(AF7))/LOG(2)))) ->  | AI7: =N7 -> 111 | AJ7: =COUNTIF(L33:L41,AI7) -> 0 | AK7: =AJ7/(AL4-AJ11) -> 0 | AL7: =IF(AK7=0,0,(AK7*((LOG(AK7))/LOG(2)))) -> 0 | AN7: =N7 -> 111 | AO7: =COUNTIF(L42:L49,AN7) -> 1 | AP7: =AO7/(AQ4-AO11) -> 0.5 | AQ7: =IF(AP7=0,0,(AP7*((LOG(AP7))/LOG(2)))) -> -0.5 | AS7: =N7 -> 111 | AT7: =COUNTIF(L50:L58,AS7) -> 2 | AU7: =AT7/(AV4-AT11) -> 0.6666666667 | AV7: =IF(AU7=0,0,(AU7*((LOG(AU7))/LOG(2)))) -> -0.3899750005
A8: 21 | B8: 109 | C8: 11 | D8: 116 | E8: 11 | F8: 119 | K8: 0 | L8: 211 | N8: 112 | O8: =COUNTIF($L$7:$L$500,N8) -> 0 | P8: =O8/$Q$4 -> 0 | Q8: =IF(P8=0,0,(P8*((LOG(P8))/LOG(2)))) -> 0 | T8: =N8 -> 112 | U8: =COUNTIF(L7:L15,T8) -> 0 | V8: =U8/(W4-U11) ->  | W8: =IF(V8=0,0,(V8*((LOG(V8))/LOG(2)))) ->  | Y8: =N8 -> 112 | Z8: =COUNTIF(L16:L23,Y8) -> 0 | AA8: =Z8/(AB4-Z11) -> 0 | AB8: =IF(AA8=0,0,(AA8*((LOG(AA8))/LOG(2)))) -> 0 | AD8: =N8 -> 112 | AE8: =COUNTIF(L24:L32,AD8) -> 0 | AF8: =AE8/(AG4-AE11) ->  | AG8: =IF(AF8=0,0,(AF8*((LOG(AF8))/LOG(2)))) ->  | AI8: =N8 -> 112 | AJ8: =COUNTIF(L33:L41,AI8) -> 0 | AK8: =AJ8/(AL4-AJ11) -> 0 | AL8: =IF(AK8=0,0,(AK8*((LOG(AK8))/LOG(2)))) -> 0 | AN8: =N8 -> 112 | AO8: =COUNTIF(L42:L49,AN8) -> 0 | AP8: =AO8/(AQ4-AO11) -> 0 | AQ8: =IF(AP8=0,0,(AP8*((LOG(AP8))/LOG(2)))) -> 0 | AS8: =N8 -> 112 | AT8: =COUNTIF(L50:L58,AS8) -> 0 | AU8: =AT8/(AV4-AT11) -> 0 | AV8: =IF(AU8=0,0,(AU8*((LOG(AU8))/LOG(2)))) -> 0
A9: 21 | B9: 206 | C9: 11 | D9: 212 | E9: 11 | F9: 216 | K9: 0 | L9: 211 | N9: 121 | O9: =COUNTIF($L$7:$L$500,N9) -> 0 | P9: =O9/$Q$4 -> 0 | Q9: =IF(P9=0,0,(P9*((LOG(P9))/LOG(2)))) -> 0 | T9: =N9 -> 121 | U9: =COUNTIF(L7:L15,T9) -> 0 | V9: =U9/(W4-U11) ->  | W9: =IF(V9=0,0,(V9*((LOG(V9))/LOG(2)))) ->  | Y9: =N9 -> 121 | Z9: =COUNTIF(L16:L23,Y9) -> 0 | AA9: =Z9/(AB4-Z11) -> 0 | AB9: =IF(AA9=0,0,(AA9*((LOG(AA9))/LOG(2)))) -> 0 | AD9: =N9 -> 121 | AE9: =COUNTIF(L24:L32,AD9) -> 0 | AF9: =AE9/(AG4-AE11) ->  | AG9: =IF(AF9=0,0,(AF9*((LOG(AF9))/LOG(2)))) ->  | AI9: =N9 -> 121 | AJ9: =COUNTIF(L33:L41,AI9) -> 0 | AK9: =AJ9/(AL4-AJ11) -> 0 | AL9: =IF(AK9=0,0,(AK9*((LOG(AK9))/LOG(2)))) -> 0 | AN9: =N9 -> 121 | AO9: =COUNTIF(L42:L49,AN9) -> 0 | AP9: =AO9/(AQ4-AO11) -> 0 | AQ9: =IF(AP9=0,0,(AP9*((LOG(AP9))/LOG(2)))) -> 0 | AS9: =N9 -> 121 | AT9: =COUNTIF(L50:L58,AS9) -> 0 | AU9: =AT9/(AV4-AT11) -> 0 | AV9: =IF(AU9=0,0,(AU9*((LOG(AU9))/LOG(2)))) -> 0
A10: 21 | B10: 303 | C10: 11 | D10: 309 | E10: 11 | F10: 314 | K10: 0 | L10: 211 | N10: 122 | O10: =COUNTIF($L$7:$L$500,N10) -> 0 | P10: =O10/$Q$4 -> 0 | Q10: =IF(P10=0,0,(P10*((LOG(P10))/LOG(2)))) -> 0 | T10: =N10 -> 122 | U10: =COUNTIF(L7:L15,T10) -> 0 | V10: =U10/(W4-U11) ->  | W10: =IF(V10=0,0,(V10*((LOG(V10))/LOG(2)))) ->  | Y10: =N10 -> 122 | Z10: =COUNTIF(L16:L23,Y10) -> 0 | AA10: =Z10/(AB4-Z11) -> 0 | AB10: =IF(AA10=0,0,(AA10*((LOG(AA10))/LOG(2)))) -> 0 | AD10: =N10 -> 122 | AE10: =COUNTIF(L24:L32,AD10) -> 0 | AF10: =AE10/(AG4-AE11) ->  | AG10: =IF(AF10=0,0,(AF10*((LOG(AF10))/LOG(2)))) ->  | AI10: =N10 -> 122 | AJ10: =COUNTIF(L33:L41,AI10) -> 0 | AK10: =AJ10/(AL4-AJ11) -> 0 | AL10: =IF(AK10=0,0,(AK10*((LOG(AK10))/LOG(2)))) -> 0 | AN10: =N10 -> 122 | AO10: =COUNTIF(L42:L49,AN10) -> 0 | AP10: =AO10/(AQ4-AO11) -> 0 | AQ10: =IF(AP10=0,0,(AP10*((LOG(AP10))/LOG(2)))) -> 0 | AS10: =N10 -> 122 | AT10: =COUNTIF(L50:L58,AS10) -> 0 | AU10: =AT10/(AV4-AT11) -> 0 | AV10: =IF(AU10=0,0,(AU10*((LOG(AU10))/LOG(2)))) -> 0
A11: 21 | B11: 401 | C11: 11 | D11: 408 | E11: 11 | F11: 412 | K11: 0 | L11: 211 | N11: 211 | O11: =COUNTIF($L$7:$L$500,N11) -> 40 | P11: =O11/$Q$4 -> 0.7692307692 | Q11: =IF(P11=0,0,(P11*((LOG(P11))/LOG(2)))) -> -0.2911627871 | T11: =N11 -> 211 | U11: =COUNTIF(L7:L15,T11) -> 9 | Y11: =N11 -> 211 | Z11: =COUNTIF(L16:L23,Y11) -> 4 | AD11: =N11 -> 211 | AE11: =COUNTIF(L24:L32,AD11) -> 9 | AI11: =N11 -> 211 | AJ11: =COUNTIF(L33:L41,AI11) -> 6 | AN11: =N11 -> 211 | AO11: =COUNTIF(L42:L49,AN11) -> 6 | AS11: =N11 -> 211 | AT11: =COUNTIF(L50:L58,AS11) -> 6
A12: 21 | B12: 499 | C12: 11 | D12: 506 | E12: 11 | F12: 509 | K12: 0 | L12: 211 | N12: 212 | O12: =COUNTIF($L$7:$L$500,N12) -> 0 | P12: =O12/$Q$4 -> 0 | Q12: =IF(P12=0,0,(P12*((LOG(P12))/LOG(2)))) -> 0 | T12: =N12 -> 212 | U12: =COUNTIF(L7:L15,T12) -> 0 | V12: =U12/(W4-U11) ->  | W12: =IF(V12=0,0,(V12*((LOG(V12))/LOG(2)))) ->  | Y12: =N12 -> 212 | Z12: =COUNTIF(L16:L23,Y12) -> 0 | AA12: =Z12/(AB4-Z11) -> 0 | AB12: =IF(AA12=0,0,(AA12*((LOG(AA12))/LOG(2)))) -> 0 | AD12: =N12 -> 212 | AE12: =COUNTIF(L24:L32,AD12) -> 0 | AF12: =AE12/(AG4-AE11) ->  | AG12: =IF(AF12=0,0,(AF12*((LOG(AF12))/LOG(2)))) ->  | AI12: =N12 -> 212 | AJ12: =COUNTIF(L33:L41,AI12) -> 0 | AK12: =AJ12/(AL4-AJ11) -> 0 | AL12: =IF(AK12=0,0,(AK12*((LOG(AK12))/LOG(2)))) -> 0 | AN12: =N12 -> 212 | AO12: =COUNTIF(L42:L49,AN12) -> 0 | AP12: =AO12/(AQ4-AO11) -> 0 | AQ12: =IF(AP12=0,0,(AP12*((LOG(AP12))/LOG(2)))) -> 0 | AS12: =N12 -> 212 | AT12: =COUNTIF(L50:L58,AS12) -> 0 | AU12: =AT12/(AV4-AT11) -> 0 | AV12: =IF(AU12=0,0,(AU12*((LOG(AU12))/LOG(2)))) -> 0
A13: 21 | B13: 606 | C13: 11 | D13: 613 | E13: 11 | F13: 617 | K13: 0 | L13: 211 | N13: 221 | O13: =COUNTIF($L$7:$L$500,N13) -> 8 | P13: =O13/$Q$4 -> 0.1538461538 | Q13: =IF(P13=0,0,(P13*((LOG(P13))/LOG(2)))) -> -0.4154522643 | T13: =N13 -> 221 | U13: =COUNTIF(L7:L15,T13) -> 0 | V13: =U13/(W4-U11) ->  | W13: =IF(V13=0,0,(V13*((LOG(V13))/LOG(2)))) ->  | Y13: =N13 -> 221 | Z13: =COUNTIF(L16:L23,Y13) -> 3 | AA13: =Z13/(AB4-Z11) -> 0.75 | AB13: =IF(AA13=0,0,(AA13*((LOG(AA13))/LOG(2)))) -> -0.3112781245 | AD13: =N13 -> 221 | AE13: =COUNTIF(L24:L32,AD13) -> 0 | AF13: =AE13/(AG4-AE11) ->  | AG13: =IF(AF13=0,0,(AF13*((LOG(AF13))/LOG(2)))) ->  | AI13: =N13 -> 221 | AJ13: =COUNTIF(L33:L41,AI13) -> 3 | AK13: =AJ13/(AL4-AJ11) -> 1 | AL13: =IF(AK13=0,0,(AK13*((LOG(AK13))/LOG(2)))) -> 0 | AN13: =N13 -> 221 | AO13: =COUNTIF(L42:L49,AN13) -> 1 | AP13: =AO13/(AQ4-AO11) -> 0.5 | AQ13: =IF(AP13=0,0,(AP13*((LOG(AP13))/LOG(2)))) -> -0.5 | AS13: =N13 -> 221 | AT13: =COUNTIF(L50:L58,AS13) -> 1 | AU13: =AT13/(AV4-AT11) -> 0.3333333333 | AV13: =IF(AU13=0,0,(AU13*((LOG(AU13))/LOG(2)))) -> -0.5283208336
A14: 21 | B14: 705 | C14: 11 | D14: 712 | E14: 11 | F14: 715 | K14: 0 | L14: 211 | N14: 222 | O14: =COUNTIF($L$7:$L$500,N14) -> 1 | P14: =O14/$Q$4 -> 0.01923076923 | Q14: =IF(P14=0,0,(P14*((LOG(P14))/LOG(2)))) -> -0.1096238407 | T14: =N14 -> 222 | U14: =COUNTIF(L7:L15,T14) -> 0 | V14: =U14/(W4-U11) ->  | W14: =IF(V14=0,0,(V14*((LOG(V14))/LOG(2)))) ->  | Y14: =N14 -> 222 | Z14: =COUNTIF(L16:L23,Y14) -> 1 | AA14: =Z14/(AB4-Z11) -> 0.25 | AB14: =IF(AA14=0,0,(AA14*((LOG(AA14))/LOG(2)))) -> -0.5 | AD14: =N14 -> 222 | AE14: =COUNTIF(L24:L32,AD14) -> 0 | AF14: =AE14/(AG4-AE11) ->  | AG14: =IF(AF14=0,0,(AF14*((LOG(AF14))/LOG(2)))) ->  | AI14: =N14 -> 222 | AJ14: =COUNTIF(L33:L41,AI14) -> 0 | AK14: =AJ14/(AL4-AJ11) -> 0 | AL14: =IF(AK14=0,0,(AK14*((LOG(AK14))/LOG(2)))) -> 0 | AN14: =N14 -> 222 | AO14: =COUNTIF(L42:L49,AN14) -> 0 | AP14: =AO14/(AQ4-AO11) -> 0 | AQ14: =IF(AP14=0,0,(AP14*((LOG(AP14))/LOG(2)))) -> 0 | AS14: =N14 -> 222 | AT14: =COUNTIF(L50:L58,AS14) -> 0 | AU14: =AT14/(AV4-AT11) -> 0 | AV14: =IF(AU14=0,0,(AU14*((LOG(AU14))/LOG(2)))) -> 0
A15: 21 | B15: 814 | C15: 11 | D15: 822 | E15: 11 | F15: 826 | K15: 0 | L15: 211 | P15: =SUM(P7:P14) -> 1 | Q15: =-SUM(Q7:Q14) -> 1.05367027 | V15: =SUM(V7:V14) ->  | W15: =-SUM(W7:W14) ->  | AA15: =SUM(AA7:AA14) -> 1 | AB15: =-SUM(AB7:AB14) -> 0.8112781245 | AF15: =SUM(AF7:AF14) ->  | AG15: =-SUM(AG7:AG14) ->  | AK15: =SUM(AK7:AK14) -> 1 | AL15: =-SUM(AL7:AL14) -> 0 | AP15: =SUM(AP7:AP14) -> 1 | AQ15: =-SUM(AQ7:AQ14) -> 1 | AU15: =SUM(AU7:AU14) -> 1 | AV15: =-SUM(AV7:AV14) -> 0.9182958341
A16: 21 | B16: 923 | C16: 11 | D16: 930 | E16: 11 | F16: 934 | K16: 0 | L16: 211 | P16: U= | Q16: =Q15/(LOG(Q4)/LOG(2)) -> 0.1848401741 | V16: U1= | W16: =W15/(LOG(W4)/LOG(2)) ->  | AA16: U2= | AB16: =AB15/(LOG(AB4)/LOG(2)) -> 0.2704260415 | AF16: U3= | AG16: =AG15/(LOG(AG4)/LOG(2)) ->  | AK16: U4= | AL16: =AL15/(LOG(AL4)/LOG(2)) -> 0 | AP16: U5= | AQ16: =AQ15/(LOG(AQ4)/LOG(2)) -> 0.3333333333 | AU16: U6= | AV16: =AV15/(LOG(AV4)/LOG(2)) -> 0.2896900821
A17: 21 | B17: 1023 | C17: 11 | D17: 1030 | E17: 11 | F17: 1038 | K17: 0 | L17: 211
A18: 21 | B18: 1125 | C18: 22 | D18: 1133 | E18: 24 | F18: 1138 | K18: 0 | L18: 222
A19: 21 | B19: 1226 | C19: 22 | D19: 1234 | E19: 13 | F19: 1241 | K19: 0 | L19: 221 | N19: Total Target Seq
A20: 21 | B20: 1331 | C20: 22 | D20: 1339 | E20: 13 | F20: 1346 | K20: 0 | L20: 221 | N20: =COUNTIF(L7:L58,G3) -> 40 | P20: 9 | Q20: 8 | R20: 9 | S20: 9 | T20: 8 | U20: 9
A21: 21 | B21: 1444 | C21: 11 | D21: 1451 | E21: 11 | F21: 1454 | K21: 0 | L21: 211 | P21: % of reinforcement given in 6 equal intervals based on number of trials
A22: 21 | B22: 1541 | C22: 11 | D22: 1548 | E22: 11 | F22: 1552 | K22: 0 | L22: 211 | P22: %_1 | Q22: %_2 | R22: %_3 | S22: %_4 | T22: %_5 | U22: %_6
A23: 21 | B23: 1640 | C23: 22 | D23: 1645 | E23: 13 | F23: 1655 | K23: 0 | L23: 221 | O23: target sequence | P23: =$G$3 -> 211 | Q23: =$G$3 -> 211 | R23: =$G$3 -> 211 | S23: =$G$3 -> 211 | T23: =$G$3 -> 211 | U23: =$G$3 -> 211
A24: 21 | B24: 1765 | C24: 11 | D24: 1771 | E24: 11 | F24: 1775 | K24: 0 | L24: 211 | O24: total reinforcement | P24: =U11 -> 9 | Q24: =Z11 -> 4 | R24: =AE11 -> 9 | S24: =AJ11 -> 6 | T24: =AO11 -> 6 | U24: =AT11 -> 6
A25: 21 | B25: 1863 | C25: 11 | D25: 1874 | E25: 11 | F25: 1878 | K25: 0 | L25: 211 | O25: % target
A26: 21 | B26: 1966 | C26: 11 | D26: 1973 | E26: 11 | F26: 1977 | K26: 0 | L26: 211 | O26: CCRF
A27: 21 | B27: 2070 | C27: 11 | D27: 2077 | E27: 11 | F27: 2081 | K27: 0 | L27: 211 | O27: % CCRf
A28: 21 | B28: 2176 | C28: 11 | D28: 2183 | E28: 11 | F28: 2189 | K28: 0 | L28: 211 | O28: average response rate | P28: =F15/P20 -> 91.77777778 | Q28: =(F23-F15)/Q20 -> 103.625 | R28: =(F32-F23)/R20 -> 106.5555556 | S28: =(F41-F32)/S20 -> 104.6666667 | T28: =(F49-F41)/T20 -> 112 | U28: =(F58-F49)/U20 -> 104.4444444
A29: 21 | B29: 2298 | C29: 11 | D29: 2305 | E29: 11 | F29: 2309 | K29: 0 | L29: 211
A30: 21 | B30: 2396 | C30: 11 | D30: 2403 | E30: 11 | F30: 2410 | K30: 0 | L30: 211
A31: 21 | B31: 2497 | C31: 11 | D31: 2504 | E31: 11 | F31: 2507 | K31: 0 | L31: 211
A32: 21 | B32: 2601 | C32: 11 | D32: 2608 | E32: 11 | F32: 2614 | K32: 0 | L32: 211
A33: 21 | B33: 2702 | C33: 22 | D33: 2720 | E33: 13 | F33: 2727 | K33: 0 | L33: 221
A34: 21 | B34: 2823 | C34: 11 | D34: 2830 | E34: 11 | F34: 2833 | K34: 0 | L34: 211
A35: 21 | B35: 2921 | C35: 11 | D35: 2929 | E35: 11 | F35: 2932 | K35: 0 | L35: 211
A36: 21 | B36: 3019 | C36: 11 | D36: 3027 | E36: 11 | F36: 3030 | K36: 0 | L36: 211
A37: 21 | B37: 3117 | C37: 22 | D37: 3125 | E37: 13 | F37: 3132 | K37: 0 | L37: 221
A38: 21 | B38: 3229 | C38: 11 | D38: 3236 | E38: 11 | F38: 3240 | K38: 0 | L38: 211
A39: 21 | B39: 3328 | C39: 11 | D39: 3334 | E39: 11 | F39: 3338 | K39: 0 | L39: 211
A40: 21 | B40: 3432 | C40: 22 | D40: 3440 | E40: 13 | F40: 3447 | K40: 0 | L40: 221
A41: 21 | B41: 3543 | C41: 11 | D41: 3553 | E41: 11 | F41: 3556 | K41: 0 | L41: 211
A42: 21 | B42: 3644 | C42: 11 | D42: 3651 | E42: 11 | F42: 3654 | K42: 0 | L42: 211
A43: 21 | B43: 3751 | C43: 11 | D43: 3758 | E43: 11 | F43: 3768 | K43: 0 | L43: 211
A44: 21 | B44: 3854 | C44: 11 | D44: 3861 | E44: 11 | F44: 3865 | K44: 0 | L44: 211
A45: 21 | B45: 3962 | C45: 11 | D45: 3971 | E45: 11 | F45: 3981 | K45: 0 | L45: 211
A46: 12 | B46: 4100 | C46: 13 | D46: 4109 | E46: 13 | F46: 4118 | K46: 0 | L46: 111
A47: 21 | B47: 4211 | C47: 11 | D47: 4217 | E47: 11 | F47: 4223 | K47: 0 | L47: 211
A48: 21 | B48: 4310 | C48: 22 | D48: 4319 | E48: 13 | F48: 4326 | K48: 0 | L48: 221
A49: 21 | B49: 4433 | C49: 11 | D49: 4442 | E49: 11 | F49: 4452 | K49: 0 | L49: 211
A50: 12 | B50: 4546 | C50: 13 | D50: 4551 | E50: 13 | F50: 4561 | K50: 0 | L50: 111
A51: 12 | B51: 4660 | C51: 13 | D51: 4663 | E51: 13 | F51: 4675 | K51: 0 | L51: 111
A52: 21 | B52: 4771 | C52: 11 | D52: 4779 | E52: 11 | F52: 4782 | K52: 0 | L52: 211
A53: 21 | B53: 4871 | C53: 11 | D53: 4878 | E53: 11 | F53: 4882 | K53: 0 | L53: 211
A54: 21 | B54: 4974 | C54: 11 | D54: 4981 | E54: 11 | F54: 4984 | K54: 0 | L54: 211
A55: 21 | B55: 5073 | C55: 11 | D55: 5080 | E55: 11 | F55: 5083 | K55: 0 | L55: 211
A56: 21 | B56: 5171 | C56: 22 | D56: 5178 | E56: 13 | F56: 5187 | K56: 0 | L56: 221
A57: 21 | B57: 5284 | C57: 11 | D57: 5292 | E57: 11 | F57: 5295 | K57: 0 | L57: 211
A58: 21 | B58: 5382 | C58: 11 | D58: 5388 | E58: 11 | F58: 5392 | K58: 1 | L58: 211

Sheet !N602A30.010
A1: Report for:!N602A30.010
A2: Date: | B2: <date>
A3: Hen: | B3: <hen> | F3: Correct Sequence | G3: =Start!J2 -> 211 | P3: Total Sequences in Data | Q3: =4994-COUNTBLANK(L7:L5000) -> 43 | V3: Total Sequences in Block Data | W3: =COUNTA(L7:L13) -> 7 | AA3: Total Sequences in Block Data | AB3: =COUNTA(L14:L20) -> 7 | AF3: Total Sequences in Block Data | AG3: =COUNTA(L21:L28) -> 8 | AK3: Total Sequences in Block Data | AL3: =COUNTA(L29:L35) -> 7 | AP3: Total Sequences in Block Data | AQ3: =COUNTA(L36:L42) -> 7 | AU3: Total Sequences in Block Data | AV3: =COUNTA(L43:L49) -> 7
P4: Total Sequences in Summary | Q4: =SUM(O7:O14) -> 43 | V4: Total Sequences in Block Summary | W4: =SUM(U7:U14) -> 7 | AA4: Total Sequences in Block Summary | AB4: =SUM(Z7:Z14) -> 7 | AF4: Total Sequences in Block Summary | AG4: =SUM(AE7:AE14) -> 8 | AK4: Total Sequences in Block Summary | AL4: =SUM(AJ7:AJ14) -> 7 | AP4: Total Sequences in Block Summary | AQ4: =SUM(AO7:AO14) -> 7 | AU4: Total Sequences in Block Summary | AV4: =SUM(AT7:AT14) -> 7
T5: Block 1 | Y5: Block 2 | AD5: Block 3 | AI5: Block 4 | AN5: Block 5 | AS5: Block 6
A6: Sequence Component 1 | B6: Time 1 | C6: Sequence Component 2 | D6: Time 2 | E6: Sequence Component 3 | F6: Time 3 | G6: Sequence Component 4 | H6: Time 4 | I6: Sequence Component 5 | J6: Time 5 | K6: Correct? 0=No 1=Yes | L6: Sequence | N6: Frequency | P6: Relative Frequency | Q6: Variability | T6: Frequency | V6: Relative Frequency | W6: Variability | Y6: Frequency | AA6: Relative Frequency | AB6: Variability | AD6: Frequency | AF6: Relative Frequency | AG6: Variability | AI6: Frequency | AK6: Relative Frequency | AL6: Variability | AN6: Frequency | AP6: Relative Frequency | AQ6: Variability | AS6: Frequency | AU6: Relative Frequency | AV6: Variability
A7: 21 | B7: 6 | C7: 11 | D7: 12 | E7: 11 | F7: 15 | K7: 0 | L7: 211 | N7: 111 | O7: =COUNTIF($L$7:$L$500,N7) -> 2 | P7: =O7/$Q$4 -> 0.04651162791 | Q7: =IF(P7=0,0,(P7*((LOG(P7))/LOG(2)))) -> -0.2058727793 | T7: =N7 -> 111 | U7: =COUNTIF(L7:L13,T7) -> 0 | V7: =U7/(W4-U11) ->  | W7: =IF(V7=0,0,(V7*((LOG(V7))/LOG(2)))) ->  | Y7: =N7 -> 111 | Z7: =COUNTIF(L14:L20,Y7) -> 0 | AA7: =Z7/(AB4-Z11) ->  | AB7: =IF(AA7=0,0,(AA7*((LOG(AA7))/LOG(2)))) ->  | AD7: =N7 -> 111 | AE7: =COUNTIF(L21:L28,AD7) -> 0 | AF7: =AE7/(AG4-AE11) ->  | AG7: =IF(AF7=0,0,(AF7*((LOG(AF7))/LOG(2)))) ->  | AI7: =N7 -> 111 | AJ7: =COUNTIF(L29:L35,AI7) -> 0 | AK7: =AJ7/(AL4-AJ11) ->  | AL7: =IF(AK7=0,0,(AK7*((LOG(AK7))/LOG(2)))) ->  | AN7: =N7 -> 111 | AO7: =COUNTIF(L36:L42,AN7) -> 0 | AP7: =AO7/(AQ4-AO11) ->  | AQ7: =IF(AP7=0,0,(AP7*((LOG(AP7))/LOG(2)))) ->  | AS7: =N7 -> 111 | AT7: =COUNTIF(L43:L49,AS7) -> 2 | AU7: =AT7/(AV4-AT11) -> 0.6666666667 | AV7: =IF(AU7=0,0,(AU7*((LOG(AU7))/LOG(2)))) -> -0.3899750005
A8: 21 | B8: 107 | C8: 11 | D8: 114 | E8: 11 | F8: 117 | K8: 0 | L8: 211 | N8: 112 | O8: =COUNTIF($L$7:$L$500,N8) -> 0 | P8: =O8/$Q$4 -> 0 | Q8: =IF(P8=0,0,(P8*((LOG(P8))/LOG(2)))) -> 0 | T8: =N8 -> 112 | U8: =COUNTIF(L7:L13,T8) -> 0 | V8: =U8/(W4-U11) ->  | W8: =IF(V8=0,0,(V8*((LOG(V8))/LOG(2)))) ->  | Y8: =N8 -> 112 | Z8: =COUNTIF(L14:L20,Y8) -> 0 | AA8: =Z8/(AB4-Z11) ->  | AB8: =IF(AA8=0,0,(AA8*((LOG(AA8))/LOG(2)))) ->  | AD8: =N8 -> 112 | AE8: =COUNTIF(L21:L28,AD8) -> 0 | AF8: =AE8/(AG4-AE11) ->  | AG8: =IF(AF8=0,0,(AF8*((LOG(AF8))/LOG(2)))) ->  | AI8: =N8 -> 112 | AJ8: =COUNTIF(L29:L35,AI8) -> 0 | AK8: =AJ8/(AL4-AJ11) ->  | AL8: =IF(AK8=0,0,(AK8*((LOG(AK8))/LOG(2)))) ->  | AN8: =N8 -> 112 | AO8: =COUNTIF(L36:L42,AN8) -> 0 | AP8: =AO8/(AQ4-AO11) ->  | AQ8: =IF(AP8=0,0,(AP8*((LOG(AP8))/LOG(2)))) ->  | AS8: =N8 -> 112 | AT8: =COUNTIF(L43:L49,AS8) -> 0 | AU8: =AT8/(AV4-AT11) -> 0 | AV8: =IF(AU8=0,0,(AU8*((LOG(AU8))/LOG(2)))) -> 0
A9: 21 | B9: 203 | C9: 11 | D9: 210 | E9: 11 | F9: 213 | K9: 0 | L9: 211 | N9: 121 | O9: =COUNTIF($L$7:$L$500,N9) -> 0 | P9: =O9/$Q$4 -> 0 | Q9: =IF(P9=0,0,(P9*((LOG(P9))/LOG(2)))) -> 0 | T9: =N9 -> 121 | U9: =COUNTIF(L7:L13,T9) -> 0 | V9: =U9/(W4-U11) ->  | W9: =IF(V9=0,0,(V9*((LOG(V9))/LOG(2)))) ->  | Y9: =N9 -> 121 | Z9: =COUNTIF(L14:L20,Y9) -> 0 | AA9: =Z9/(AB4-Z11) ->  | AB9: =IF(AA9=0,0,(AA9*((LOG(AA9))/LOG(2)))) ->  | AD9: =N9 -> 121 | AE9: =COUNTIF(L21:L28,AD9) -> 0 | AF9: =AE9/(AG4-AE11) ->  | AG9: =IF(AF9=0,0,(AF9*((LOG(AF9))/LOG(2)))) ->  | AI9: =N9 -> 121 | AJ9: =COUNTIF(L29:L35,AI9) -> 0 | AK9: =AJ9/(AL4-AJ11) ->  | AL9: =IF(AK9=0,0,(AK9*((LOG(AK9))/LOG(2)))) ->  | AN9: =N9 -> 121 | AO9: =COUNTIF(L36:L42,AN9) -> 0 | AP9: =AO9/(AQ4-AO11) ->  | AQ9: =IF(AP9=0,0,(AP9*((LOG(AP9))/LOG(2)))) ->  | AS9: =N9 -> 121 | AT9: =COUNTIF(L43:L49,AS9) -> 0 | AU9: =AT9/(AV4-AT11) -> 0 | AV9: =IF(AU9=0,0,(AU9*((LOG(AU9))/LOG(2)))) -> 0
A10: 21 | B10: 301 | C10: 11 | D10: 307 | E10: 11 | F10: 311 | K10: 0 | L10: 211 | N10: 122 | O10: =COUNTIF($L$7:$L$500,N10) -> 0 | P10: =O10/$Q$4 -> 0 | Q10: =IF(P10=0,0,(P10*((LOG(P10))/LOG(2)))) -> 0 | T10: =N10 -> 122 | U10: =COUNTIF(L7:L13,T10) -> 0 | V10: =U10/(W4-U11) ->  | W10: =IF(V10=0,0,(V10*((LOG(V10))/LOG(2)))) ->  | Y10: =N10 -> 122 | Z10: =COUNTIF(L14:L20,Y10) -> 0 | AA10: =Z10/(AB4-Z11) ->  | AB10: =IF(AA10=0,0,(AA10*((LOG(AA10))/LOG(2)))) ->  | AD10: =N10 -> 122 | AE10: =COUNTIF(L21:L28,AD10) -> 0 | AF10: =AE10/(AG4-AE11) ->  | AG10: =IF(AF10=0,0,(AF10*((LOG(AF10))/LOG(2)))) ->  | AI10: =N10 -> 122 | AJ10: =COUNTIF(L29:L35,AI10) -> 0 | AK10: =AJ10/(AL4-AJ11) ->  | AL10: =IF(AK10=0,0,(AK10*((LOG(AK10))/LOG(2)))) ->  | AN10: =N10 -> 122 | AO10: =COUNTIF(L36:L42,AN10) -> 0 | AP10: =AO10/(AQ4-AO11) ->  | AQ10: =IF(AP10=0,0,(AP10*((LOG(AP10))/LOG(2)))) ->  | AS10: =N10 -> 122 | AT10: =COUNTIF(L43:L49,AS10) -> 0 | AU10: =AT10/(AV4-AT11) -> 0 | AV10: =IF(AU10=0,0,(AU10*((LOG(AU10))/LOG(2)))) -> 0
A11: 21 | B11: 398 | C11: 11 | D11: 405 | E11: 11 | F11: 408 | K11: 0 | L11: 211 | N11: 211 | O11: =COUNTIF($L$7:$L$500,N11) -> 40 | P11: =O11/$Q$4 -> 0.9302325581 | Q11: =IF(P11=0,0,(P11*((LOG(P11))/LOG(2)))) -> -0.09705735797 | T11: =N11 -> 211 | U11: =COUNTIF(L7:L13,T11) -> 7 | Y11: =N11 -> 211 | Z11: =COUNTIF(L14:L20,Y11) -> 7 | AD11: =N11 -> 211 | AE11: =COUNTIF(L21:L28,AD11) -> 8 | AI11: =N11 -> 211 | AJ11: =COUNTIF(L29:L35,AI11) -> 7 | AN11: =N11 -> 211 | AO11: =COUNTIF(L36:L42,AN11) -> 7 | AS11: =N11 -> 211 | AT11: =COUNTIF(L43:L49,AS11) -> 4
A12: 21 | B12: 497 | C12: 11 | D12: 503 | E12: 11 | F12: 507 | K12: 0 | L12: 211 | N12: 212 | O12: =COUNTIF($L$7:$L$500,N12) -> 0 | P12: =O12/$Q$4 -> 0 | Q12: =IF(P12=0,0,(P12*((LOG(P12))/LOG(2)))) -> 0 | T12: =N12 -> 212 | U12: =COUNTIF(L7:L13,T12) -> 0 | V12: =U12/(W4-U11) ->  | W12: =IF(V12=0,0,(V12*((LOG(V12))/LOG(2)))) ->  | Y12: =N12 -> 212 | Z12: =COUNTIF(L14:L20,Y12) -> 0 | AA12: =Z12/(AB4-Z11) ->  | AB12: =IF(AA12=0,0,(AA12*((LOG(AA12))/LOG(2)))) ->  | AD12: =N12 -> 212 | AE12: =COUNTIF(L21:L28,AD12) -> 0 | AF12: =AE12/(AG4-AE11) ->  | AG12: =IF(AF12=0,0,(AF12*((LOG(AF12))/LOG(2)))) ->  | AI12: =N12 -> 212 | AJ12: =COUNTIF(L29:L35,AI12) -> 0 | AK12: =AJ12/(AL4-AJ11) ->  | AL12: =IF(AK12=0,0,(AK12*((LOG(AK12))/LOG(2)))) ->  | AN12: =N12 -> 212 | AO12: =COUNTIF(L36:L42,AN12) -> 0 | AP12: =AO12/(AQ4-AO11) ->  | AQ12: =IF(AP12=0,0,(AP12*((LOG(AP12))/LOG(2)))) ->  | AS12: =N12 -> 212 | AT12: =COUNTIF(L43:L49,AS12) -> 0 | AU12: =AT12/(AV4-AT11) -> 0 | AV12: =IF(AU12=0,0,(AU12*((LOG(AU12))/LOG(2)))) -> 0
A13: 21 | B13: 597 | C13: 11 | D13: 604 | E13: 11 | F13: 609 | K13: 0 | L13: 211 | N13: 221 | O13: =COUNTIF($L$7:$L$500,N13) -> 1 | P13: =O13/$Q$4 -> 0.02325581395 | Q13: =IF(P13=0,0,(P13*((LOG(P13))/LOG(2)))) -> -0.1261922036 | T13: =N13 -> 221 | U13: =COUNTIF(L7:L13,T13) -> 0 | V13: =U13/(W4-U11) ->  | W13: =IF(V13=0,0,(V13*((LOG(V13))/LOG(2)))) ->  | Y13: =N13 -> 221 | Z13: =COUNTIF(L14:L20,Y13) -> 0 | AA13: =Z13/(AB4-Z11) ->  | AB13: =IF(AA13=0,0,(AA13*((LOG(AA13))/LOG(2)))) ->  | AD13: =N13 -> 221 | AE13: =COUNTIF(L21:L28,AD13) -> 0 | AF13: =AE13/(AG4-AE11) ->  | AG13: =IF(AF13=0,0,(AF13*((LOG(AF13))/LOG(2)))) ->  | AI13: =N13 -> 221 | AJ13: =COUNTIF(L29:L35,AI13) -> 0 | AK13: =AJ13/(AL4-AJ11) ->  | AL13: =IF(AK13=0,0,(AK13*((LOG(AK13))/LOG(2)))) ->  | AN13: =N13 -> 221 | AO13: =COUNTIF(L36:L42,AN13) -> 0 | AP13: =AO13/(AQ4-AO11) ->  | AQ13: =IF(AP13=0,0,(AP13*((LOG(AP13))/LOG(2)))) ->  | AS13: =N13 -> 221 | AT13: =COUNTIF(L43:L49,AS13) -> 1 | AU13: =AT13/(AV4-AT11) -> 0.3333333333 | AV13: =IF(AU13=0,0,(AU13*((LOG(AU13))/LOG(2)))) -> -0.5283208336
A14: 21 | B14: 703 | C14: 11 | D14: 724 | E14: 11 | F14: 734 | K14: 0 | L14: 211 | N14: 222 | O14: =COUNTIF($L$7:$L$500,N14) -> 0 | P14: =O14/$Q$4 -> 0 | Q14: =IF(P14=0,0,(P14*((LOG(P14))/LOG(2)))) -> 0 | T14: =N14 -> 222 | U14: =COUNTIF(L7:L13,T14) -> 0 | V14: =U14/(W4-U11) ->  | W14: =IF(V14=0,0,(V14*((LOG(V14))/LOG(2)))) ->  | Y14: =N14 -> 222 | Z14: =COUNTIF(L14:L20,Y14) -> 0 | AA14: =Z14/(AB4-Z11) ->  | AB14: =IF(AA14=0,0,(AA14*((LOG(AA14))/LOG(2)))) ->  | AD14: =N14 -> 222 | AE14: =COUNTIF(L21:L28,AD14) -> 0 | AF14: =AE14/(AG4-AE11) ->  | AG14: =IF(AF14=0,0,(AF14*((LOG(AF14))/LOG(2)))) ->  | AI14: =N14 -> 222 | AJ14: =COUNTIF(L29:L35,AI14) -> 0 | AK14: =AJ14/(AL4-AJ11) ->  | AL14: =IF(AK14=0,0,(AK14*((LOG(AK14))/LOG(2)))) ->  | AN14: =N14 -> 222 | AO14: =COUNTIF(L36:L42,AN14) -> 0 | AP14: =AO14/(AQ4-AO11) ->  | AQ14: =IF(AP14=0,0,(AP14*((LOG(AP14))/LOG(2)))) ->  | AS14: =N14 -> 222 | AT14: =COUNTIF(L43:L49,AS14) -> 0 | AU14: =AT14/(AV4-AT11) -> 0 | AV14: =IF(AU14=0,0,(AU14*((LOG(AU14))/LOG(2)))) -> 0
A15: 21 | B15: 828 | C15: 11 | D15: 835 | E15: 11 | F15: 838 | K15: 0 | L15: 211 | P15: =SUM(P7:P14) -> 1 | Q15: =-SUM(Q7:Q14) -> 0.4291223409 | V15: =SUM(V7:V14) ->  | W15: =-SUM(W7:W14) ->  | AA15: =SUM(AA7:AA14) ->  | AB15: =-SUM(AB7:AB14) ->  | AF15: =SUM(AF7:AF14) ->  | AG15: =-SUM(AG7:AG14) ->  | AK15: =SUM(AK7:AK14) ->  | AL15: =-SUM(AL7:AL14) ->  | AP15: =SUM(AP7:AP14) ->  | AQ15: =-SUM(AQ7:AQ14) ->  | AU15: =SUM(AU7:AU14) -> 1 | AV15: =-SUM(AV7:AV14) -> 0.9182958341
A16: 21 | B16: 927 | C16: 11 | D16: 937 | E16: 11 | F16: 943 | K16: 0 | L16: 211 | P16: U= | Q16: =Q15/(LOG(Q4)/LOG(2)) -> 0.07908245547 | V16: U1= | W16: =W15/(LOG(W4)/LOG(2)) ->  | AA16: U2= | AB16: =AB15/(LOG(AB4)/LOG(2)) ->  | AF16: U3= | AG16: =AG15/(LOG(AG4)/LOG(2)) ->  | AK16: U4= | AL16: =AL15/(LOG(AL4)/LOG(2)) ->  | AP16: U5= | AQ16: =AQ15/(LOG(AQ4)/LOG(2)) ->  | AU16: U6= | AV16: =AV15/(LOG(AV4)/LOG(2)) -> 0.327103576
A17: 21 | B17: 1033 | C17: 11 | D17: 1048 | E17: 11 | F17: 1052 | K17: 0 | L17: 211
A18: 21 | B18: 1139 | C18: 11 | D18: 1161 | E18: 11 | F18: 1168 | K18: 0 | L18: 211
A19: 21 | B19: 1262 | C19: 11 | D19: 1273 | E19: 11 | F19: 1282 | K19: 0 | L19: 211 | N19: Total Target Seq
A20: 21 | B20: 1378 | C20: 11 | D20: 1386 | E20: 11 | F20: 1389 | K20: 0 | L20: 211 | N20: =COUNTIF(L7:L49,G3) -> 40 | P20: 7 | Q20: 7 | R20: 8 | S20: 7 | T20: 7 | U20: 7
A21: 21 | B21: 1476 | C21: 11 | D21: 1483 | E21: 11 | F21: 1488 | K21: 0 | L21: 211 | P21: % of reinforcement given in 6 equal intervals based on number of trials
A22: 21 | B22: 1576 | C22: 11 | D22: 1586 | E22: 11 | F22: 1590 | K22: 0 | L22: 211 | P22: %_1 | Q22: %_2 | R22: %_3 | S22: %_4 | T22: %_5 | U22: %_6
A23: 21 | B23: 1680 | C23: 11 | D23: 1686 | E23: 11 | F23: 1690 | K23: 0 | L23: 211 | O23: target sequence | P23: =$G$3 -> 211 | Q23: =$G$3 -> 211 | R23: =$G$3 -> 211 | S23: =$G$3 -> 211 | T23: =$G$3 -> 211 | U23: =$G$3 -> 211
A24: 21 | B24: 1792 | C24: 11 | D24: 1806 | E24: 11 | F24: 1817 | K24: 0 | L24: 211 | O24: total reinforcement | P24: =U11 -> 7 | Q24: =Z11 -> 7 | R24: =AE11 -> 8 | S24: =AJ11 -> 7 | T24: =AO11 -> 7 | U24: =AT11 -> 4
A25: 21 | B25: 1904 | C25: 11 | D25: 1911 | E25: 11 | F25: 1914 | K25: 0 | L25: 211 | O25: % target
A26: 21 | B26: 2007 | C26: 11 | D26: 2014 | E26: 11 | F26: 2018 | K26: 0 | L26: 211 | O26: CCRF
A27: 21 | B27: 2108 | C27: 11 | D27: 2115 | E27: 11 | F27: 2118 | K27: 0 | L27: 211 | O27: % CCRf
A28: 21 | B28: 2205 | C28: 11 | D28: 2212 | E28: 11 | F28: 2217 | K28: 0 | L28: 211 | O28: average response rate | P28: =F13/P20 -> 87 | Q28: =(F20-F13)/Q20 -> 111.4285714 | R28: =(F28-F20)/R20 -> 103.5 | S28: =(F35-F28)/S20 -> 98.42857143 | T28: =(F42-F35)/T20 -> 103.1428571 | U28: =(F49-F42)/U20 -> 108.4285714
A29: 21 | B29: 2303 | C29: 11 | D29: 2310 | E29: 11 | F29: 2314 | K29: 0 | L29: 211
A30: 21 | B30: 2401 | C30: 11 | D30: 2408 | E30: 11 | F30: 2411 | K30: 0 | L30: 211
A31: 21 | B31: 2498 | C31: 11 | D31: 2504 | E31: 11 | F31: 2508 | K31: 0 | L31: 211
A32: 21 | B32: 2600 | C32: 11 | D32: 2607 | E32: 11 | F32: 2611 | K32: 0 | L32: 211
A33: 21 | B33: 2698 | C33: 11 | D33: 2705 | E33: 11 | F33: 2708 | K33: 0 | L33: 211
A34: 21 | B34: 2795 | C34: 11 | D34: 2801 | E34: 11 | F34: 2808 | K34: 0 | L34: 211
A35: 21 | B35: 2895 | C35: 11 | D35: 2902 | E35: 11 | F35: 2906 | K35: 0 | L35: 211
A36: 21 | B36: 3005 | C36: 11 | D36: 3012 | E36: 11 | F36: 3016 | K36: 0 | L36: 211
A37: 21 | B37: 3105 | C37: 11 | D37: 3112 | E37: 11 | F37: 3115 | K37: 0 | L37: 211
A38: 21 | B38: 3202 | C38: 11 | D38: 3209 | E38: 11 | F38: 3212 | K38: 0 | L38: 211
A39: 21 | B39: 3313 | C39: 11 | D39: 3322 | E39: 11 | F39: 3327 | K39: 0 | L39: 211
A40: 21 | B40: 3420 | C40: 11 | D40: 3427 | E40: 11 | F40: 3432 | K40: 0 | L40: 211
A41: 21 | B41: 3518 | C41: 11 | D41: 3525 | E41: 11 | F41: 3528 | K41: 0 | L41: 211
A42: 21 | B42: 3618 | C42: 11 | D42: 3625 | E42: 11 | F42: 3628 | K42: 0 | L42: 211
A43: 21 | B43: 3714 | C43: 11 | D43: 3721 | E43: 11 | F43: 3724 | K43: 0 | L43: 211
A44: 21 | B44: 3810 | C44: 11 | D44: 3817 | E44: 11 | F44: 3821 | K44: 0 | L44: 211
A45: 21 | B45: 3908 | C45: 22 | D45: 3915 | E45: 13 | F45: 3931 | K45: 0 | L45: 221
A46: 12 | B46: 4037 | C46: 13 | D46: 4040 | E46: 13 | F46: 4046 | K46: 0 | L46: 111
A47: 12 | B47: 4144 | C47: 13 | D47: 4155 | E47: 13 | F47: 4158 | K47: 0 | L47: 111
A48: 21 | B48: 4261 | C48: 11 | D48: 4275 | E48: 11 | F48: 4281 | K48: 0 | L48: 211
A49: 21 | B49: 4376 | C49: 11 | D49: 4383 | E49: 11 | F49: 4387 | K49: 1 | L49: 211

Sheet !N603A40.010
A1: Report for:!N603A40.010
A2: Date: | B2: <date>
A3: Hen: | B3: <hen> | F3: Correct Sequence | G3: =Start!J2 -> 211 | P3: Total Sequences in Data | Q3: =4994-COUNTBLANK(L7:L5000) -> 42 | V3: Total Sequences in Block Data | W3: =COUNTA(L7:L13) -> 7 | AA3: Total Sequences in Block Data | AB3: =COUNTA(L14:L20) -> 7 | AF3: Total Sequences in Block Data | AG3: =COUNTA(L21:L27) -> 7 | AK3: Total Sequences in Block Data | AL3: =COUNTA(L28:L34) -> 7 | AP3: Total Sequences in Block Data | AQ3: =COUNTA(L35:L41) -> 7 | AU3: Total Sequences in Block Data | AV3: =COUNTA(L42:L48) -> 7
P4: Total Sequences in Summary | Q4: =SUM(O7:O14) -> 42 | V4: Total Sequences in Block Summary | W4: =SUM(U7:U14) -> 7 | AA4: Total Sequences in Block Summary | AB4: =SUM(Z7:Z14) -> 7 | AF4: Total Sequences in Block Summary | AG4: =SUM(AE7:AE14) -> 7 | AK4: Total Sequences in Block Summary | AL4: =SUM(AJ7:AJ14) -> 7 | AP4: Total Sequences in Block Summary | AQ4: =SUM(AO7:AO14) -> 7 | AU4: Total Sequences in Block Summary | AV4: =SUM(AT7:AT14) -> 7
T5: Block 1 | Y5: Block 2 | AD5: Block 3 | AI5: Block 4 | AN5: Block 5 | AS5: Block 6
A6: Sequence Component 1 | B6: Time 1 | C6: Sequence Component 2 | D6: Time 2 | E6: Sequence Component 3 | F6: Time 3 | G6: Sequence Component 4 | H6: Time 4 | I6: Sequence Component 5 | J6: Time 5 | K6: Correct? 0=No 1=Yes | L6: Sequence | N6: Frequency | P6: Relative Frequency | Q6: Variability | T6: Frequency | V6: Relative Frequency | W6: Variability | Y6: Frequency | AA6: Relative Frequency | AB6: Variability | AD6: Frequency | AF6: Relative Frequency | AG6: Variability | AI6: Frequency | AK6: Relative Frequency | AL6: Variability | AN6: Frequency | AP6: Relative Frequency | AQ6: Variability | AS6: Frequency | AU6: Relative Frequency | AV6: Variability
A7: 21 | B7: 11 | C7: 11 | D7: 17 | E7: 11 | F7: 21 | K7: 0 | L7: 211 | N7: 111 | O7: =COUNTIF($L$7:$L$500,N7) -> 0 | P7: =O7/$Q$4 -> 0 | Q7: =IF(P7=0,0,(P7*((LOG(P7))/LOG(2)))) -> 0 | T7: =N7 -> 111 | U7: =COUNTIF(L7:L13,T7) -> 0 | V7: =U7/(W4-U11) -> 0 | W7: =IF(V7=0,0,(V7*((LOG(V7))/LOG(2)))) -> 0 | Y7: =N7 -> 111 | Z7: =COUNTIF(L14:L20,Y7) -> 0 | AA7: =Z7/(AB4-Z11) -> 0 | AB7: =IF(AA7=0,0,(AA7*((LOG(AA7))/LOG(2)))) -> 0 | AD7: =N7 -> 111 | AE7: =COUNTIF(L21:L27,AD7) -> 0 | AF7: =AE7/(AG4-AE11) ->  | AG7: =IF(AF7=0,0,(AF7*((LOG(AF7))/LOG(2)))) ->  | AI7: =N7 -> 111 | AJ7: =COUNTIF(L28:L34,AI7) -> 0 | AK7: =AJ7/(AL4-AJ11) ->  | AL7: =IF(AK7=0,0,(AK7*((LOG(AK7))/LOG(2)))) ->  | AN7: =N7 -> 111 | AO7: =COUNTIF(L35:L41,AN7) -> 0 | AP7: =AO7/(AQ4-AO11) ->  | AQ7: =IF(AP7=0,0,(AP7*((LOG(AP7))/LOG(2)))) ->  | AS7: =N7 -> 111 | AT7: =COUNTIF(L42:L48,AS7) -> 0 | AU7: =AT7/(AV4-AT11) ->  | AV7: =IF(AU7=0,0,(AU7*((LOG(AU7))/LOG(2)))) -> 
A8: 21 | B8: 109 | C8: 11 | D8: 123 | E8: 11 | F8: 133 | K8: 0 | L8: 211 | N8: 112 | O8: =COUNTIF($L$7:$L$500,N8) -> 0 | P8: =O8/$Q$4 -> 0 | Q8: =IF(P8=0,0,(P8*((LOG(P8))/LOG(2)))) -> 0 | T8: =N8 -> 112 | U8: =COUNTIF(L7:L13,T8) -> 0 | V8: =U8/(W4-U11) -> 0 | W8: =IF(V8=0,0,(V8*((LOG(V8))/LOG(2)))) -> 0 | Y8: =N8 -> 112 | Z8: =COUNTIF(L14:L20,Y8) -> 0 | AA8: =Z8/(AB4-Z11) -> 0 | AB8: =IF(AA8=0,0,(AA8*((LOG(AA8))/LOG(2)))) -> 0 | AD8: =N8 -> 112 | AE8: =COUNTIF(L21:L27,AD8) -> 0 | AF8: =AE8/(AG4-AE11) ->  | AG8: =IF(AF8=0,0,(AF8*((LOG(AF8))/LOG(2)))) ->  | AI8: =N8 -> 112 | AJ8: =COUNTIF(L28:L34,AI8) -> 0 | AK8: =AJ8/(AL4-AJ11) ->  | AL8: =IF(AK8=0,0,(AK8*((LOG(AK8))/LOG(2)))) ->  | AN8: =N8 -> 112 | AO8: =COUNTIF(L35:L41,AN8) -> 0 | AP8: =AO8/(AQ4-AO11) ->  | AQ8: =IF(AP8=0,0,(AP8*((LOG(AP8))/LOG(2)))) ->  | AS8: =N8 -> 112 | AT8: =COUNTIF(L42:L48,AS8) -> 0 | AU8: =AT8/(AV4-AT11) ->  | AV8: =IF(AU8=0,0,(AU8*((LOG(AU8))/LOG(2)))) -> 
A9: 21 | B9: 227 | C9: 11 | D9: 233 | E9: 11 | F9: 237 | K9: 0 | L9: 211 | N9: 121 | O9: =COUNTIF($L$7:$L$500,N9) -> 0 | P9: =O9/$Q$4 -> 0 | Q9: =IF(P9=0,0,(P9*((LOG(P9))/LOG(2)))) -> 0 | T9: =N9 -> 121 | U9: =COUNTIF(L7:L13,T9) -> 0 | V9: =U9/(W4-U11) -> 0 | W9: =IF(V9=0,0,(V9*((LOG(V9))/LOG(2)))) -> 0 | Y9: =N9 -> 121 | Z9: =COUNTIF(L14:L20,Y9) -> 0 | AA9: =Z9/(AB4-Z11) -> 0 | AB9: =IF(AA9=0,0,(AA9*((LOG(AA9))/LOG(2)))) -> 0 | AD9: =N9 -> 121 | AE9: =COUNTIF(L21:L27,AD9) -> 0 | AF9: =AE9/(AG4-AE11) ->  | AG9: =IF(AF9=0,0,(AF9*((LOG(AF9))/LOG(2)))) ->  | AI9: =N9 -> 121 | AJ9: =COUNTIF(L28:L34,AI9) -> 0 | AK9: =AJ9/(AL4-AJ11) ->  | AL9: =IF(AK9=0,0,(AK9*((LOG(AK9))/LOG(2)))) ->  | AN9: =N9 -> 121 | AO9: =COUNTIF(L35:L41,AN9) -> 0 | AP9: =AO9/(AQ4-AO11) ->  | AQ9: =IF(AP9=0,0,(AP9*((LOG(AP9))/LOG(2)))) ->  | AS9: =N9 -> 121 | AT9: =COUNTIF(L42:L48,AS9) -> 0 | AU9: =AT9/(AV4-AT11) ->  | AV9: =IF(AU9=0,0,(AU9*((LOG(AU9))/LOG(2)))) -> 
A10: 21 | B10: 323 | C10: 11 | D10: 330 | E10: 11 | F10: 334 | K10: 0 | L10: 211 | N10: 122 | O10: =COUNTIF($L$7:$L$500,N10) -> 0 | P10: =O10/$Q$4 -> 0 | Q10: =IF(P10=0,0,(P10*((LOG(P10))/LOG(2)))) -> 0 | T10: =N10 -> 122 | U10: =COUNTIF(L7:L13,T10) -> 0 | V10: =U10/(W4-U11) -> 0 | W10: =IF(V10=0,0,(V10*((LOG(V10))/LOG(2)))) -> 0 | Y10: =N10 -> 122 | Z10: =COUNTIF(L14:L20,Y10) -> 0 | AA10: =Z10/(AB4-Z11) -> 0 | AB10: =IF(AA10=0,0,(AA10*((LOG(AA10))/LOG(2)))) -> 0 | AD10: =N10 -> 122 | AE10: =COUNTIF(L21:L27,AD10) -> 0 | AF10: =AE10/(AG4-AE11) ->  | AG10: =IF(AF10=0,0,(AF10*((LOG(AF10))/LOG(2)))) ->  | AI10: =N10 -> 122 | AJ10: =COUNTIF(L28:L34,AI10) -> 0 | AK10: =AJ10/(AL4-AJ11) ->  | AL10: =IF(AK10=0,0,(AK10*((LOG(AK10))/LOG(2)))) ->  | AN10: =N10 -> 122 | AO10: =COUNTIF(L35:L41,AN10) -> 0 | AP10: =AO10/(AQ4-AO11) ->  | AQ10: =IF(AP10=0,0,(AP10*((LOG(AP10))/LOG(2)))) ->  | AS10: =N10 -> 122 | AT10: =COUNTIF(L42:L48,AS10) -> 0 | AU10: =AT10/(AV4-AT11) ->  | AV10: =IF(AU10=0,0,(AU10*((LOG(AU10))/LOG(2)))) -> 
A11: 21 | B11: 422 | C11: 11 | D11: 429 | E11: 11 | F11: 436 | K11: 0 | L11: 211 | N11: 211 | O11: =COUNTIF($L$7:$L$500,N11) -> 40 | P11: =O11/$Q$4 -> 0.9523809524 | Q11: =IF(P11=0,0,(P11*((LOG(P11))/LOG(2)))) -> -0.06703745513 | T11: =N11 -> 211 | U11: =COUNTIF(L7:L13,T11) -> 6 | Y11: =N11 -> 211 | Z11: =COUNTIF(L14:L20,Y11) -> 6 | AD11: =N11 -> 211 | AE11: =COUNTIF(L21:L27,AD11) -> 7 | AI11: =N11 -> 211 | AJ11: =COUNTIF(L28:L34,AI11) -> 7 | AN11: =N11 -> 211 | AO11: =COUNTIF(L35:L41,AN11) -> 7 | AS11: =N11 -> 211 | AT11: =COUNTIF(L42:L48,AS11) -> 7
A12: 21 | B12: 522 | C12: 11 | D12: 536 | E12: 11 | F12: 550 | K12: 0 | L12: 211 | N12: 212 | O12: =COUNTIF($L$7:$L$500,N12) -> 0 | P12: =O12/$Q$4 -> 0 | Q12: =IF(P12=0,0,(P12*((LOG(P12))/LOG(2)))) -> 0 | T12: =N12 -> 212 | U12: =COUNTIF(L7:L13,T12) -> 0 | V12: =U12/(W4-U11) -> 0 | W12: =IF(V12=0,0,(V12*((LOG(V12))/LOG(2)))) -> 0 | Y12: =N12 -> 212 | Z12: =COUNTIF(L14:L20,Y12) -> 0 | AA12: =Z12/(AB4-Z11) -> 0 | AB12: =IF(AA12=0,0,(AA12*((LOG(AA12))/LOG(2)))) -> 0 | AD12: =N12 -> 212 | AE12: =COUNTIF(L21:L27,AD12) -> 0 | AF12: =AE12/(AG4-AE11) ->  | AG12: =IF(AF12=0,0,(AF12*((LOG(AF12))/LOG(2)))) ->  | AI12: =N12 -> 212 | AJ12: =COUNTIF(L28:L34,AI12) -> 0 | AK12: =AJ12/(AL4-AJ11) ->  | AL12: =IF(AK12=0,0,(AK12*((LOG(AK12))/LOG(2)))) ->  | AN12: =N12 -> 212 | AO12: =COUNTIF(L35:L41,AN12) -> 0 | AP12: =AO12/(AQ4-AO11) ->  | AQ12: =IF(AP12=0,0,(AP12*((LOG(AP12))/LOG(2)))) ->  | AS12: =N12 -> 212 | AT12: =COUNTIF(L42:L48,AS12) -> 0 | AU12: =AT12/(AV4-AT11) ->  | AV12: =IF(AU12=0,0,(AU12*((LOG(AU12))/LOG(2)))) -> 
A13: 21 | B13: 638 | C13: 22 | D13: 645 | E13: 24 | F13: 653 | K13: 0 | L13: 222 | N13: 221 | O13: =COUNTIF($L$7:$L$500,N13) -> 1 | P13: =O13/$Q$4 -> 0.02380952381 | Q13: =IF(P13=0,0,(P13*((LOG(P13))/LOG(2)))) -> -0.1283885101 | T13: =N13 -> 221 | U13: =COUNTIF(L7:L13,T13) -> 0 | V13: =U13/(W4-U11) -> 0 | W13: =IF(V13=0,0,(V13*((LOG(V13))/LOG(2)))) -> 0 | Y13: =N13 -> 221 | Z13: =COUNTIF(L14:L20,Y13) -> 1 | AA13: =Z13/(AB4-Z11) -> 1 | AB13: =IF(AA13=0,0,(AA13*((LOG(AA13))/LOG(2)))) -> 0 | AD13: =N13 -> 221 | AE13: =COUNTIF(L21:L27,AD13) -> 0 | AF13: =AE13/(AG4-AE11) ->  | AG13: =IF(AF13=0,0,(AF13*((LOG(AF13))/LOG(2)))) ->  | AI13: =N13 -> 221 | AJ13: =COUNTIF(L28:L34,AI13) -> 0 | AK13: =AJ13/(AL4-AJ11) ->  | AL13: =IF(AK13=0,0,(AK13*((LOG(AK13))/LOG(2)))) ->  | AN13: =N13 -> 221 | AO13: =COUNTIF(L35:L41,AN13) -> 0 | AP13: =AO13/(AQ4-AO11) ->  | AQ13: =IF(AP13=0,0,(AP13*((LOG(AP13))/LOG(2)))) ->  | AS13: =N13 -> 221 | AT13: =COUNTIF(L42:L48,AS13) -> 0 | AU13: =AT13/(AV4-AT11) ->  | AV13: =IF(AU13=0,0,(AU13*((LOG(AU13))/LOG(2)))) -> 
A14: 21 | B14: 739 | C14: 22 | D14: 744 | E14: 13 | F14: 753 | K14: 0 | L14: 221 | N14: 222 | O14: =COUNTIF($L$7:$L$500,N14) -> 1 | P14: =O14/$Q$4 -> 0.02380952381 | Q14: =IF(P14=0,0,(P14*((LOG(P14))/LOG(2)))) -> -0.1283885101 | T14: =N14 -> 222 | U14: =COUNTIF(L7:L13,T14) -> 1 | V14: =U14/(W4-U11) -> 1 | W14: =IF(V14=0,0,(V14*((LOG(V14))/LOG(2)))) -> 0 | Y14: =N14 -> 222 | Z14: =COUNTIF(L14:L20,Y14) -> 0 | AA14: =Z14/(AB4-Z11) -> 0 | AB14: =IF(AA14=0,0,(AA14*((LOG(AA14))/LOG(2)))) -> 0 | AD14: =N14 -> 222 | AE14: =COUNTIF(L21:L27,AD14) -> 0 | AF14: =AE14/(AG4-AE11) ->  | AG14: =IF(AF14=0,0,(AF14*((LOG(AF14))/LOG(2)))) ->  | AI14: =N14 -> 222 | AJ14: =COUNTIF(L28:L34,AI14) -> 0 | AK14: =AJ14/(AL4-AJ11) ->  | AL14: =IF(AK14=0,0,(AK14*((LOG(AK14))/LOG(2)))) ->  | AN14: =N14 -> 222 | AO14: =COUNTIF(L35:L41,AN14) -> 0 | AP14: =AO14/(AQ4-AO11) ->  | AQ14: =IF(AP14=0,0,(AP14*((LOG(AP14))/LOG(2)))) ->  | AS14: =N14 -> 222 | AT14: =COUNTIF(L42:L48,AS14) -> 0 | AU14: =AT14/(AV4-AT11) ->  | AV14: =IF(AU14=0,0,(AU14*((LOG(AU14))/LOG(2)))) -> 
A15: 21 | B15: 840 | C15: 11 | D15: 855 | E15: 11 | F15: 858 | K15: 0 | L15: 211 | P15: =SUM(P7:P14) -> 1 | Q15: =-SUM(Q7:Q14) -> 0.3238144753 | V15: =SUM(V7:V14) -> 1 | W15: =-SUM(W7:W14) -> 0 | AA15: =SUM(AA7:AA14) -> 1 | AB15: =-SUM(AB7:AB14) -> 0 | AF15: =SUM(AF7:AF14) ->  | AG15: =-SUM(AG7:AG14) ->  | AK15: =SUM(AK7:AK14) ->  | AL15: =-SUM(AL7:AL14) ->  | AP15: =SUM(AP7:AP14) ->  | AQ15: =-SUM(AQ7:AQ14) ->  | AU15: =SUM(AU7:AU14) ->  | AV15: =-SUM(AV7:AV14) -> 
A16: 21 | B16: 948 | C16: 11 | D16: 954 | E16: 11 | F16: 958 | K16: 0 | L16: 211 | P16: U= | Q16: =Q15/(LOG(Q4)/LOG(2)) -> 0.06005107821 | V16: U1= | W16: =W15/(LOG(W4)/LOG(2)) -> 0 | AA16: U2= | AB16: =AB15/(LOG(AB4)/LOG(2)) -> 0 | AF16: U3= | AG16: =AG15/(LOG(AG4)/LOG(2)) ->  | AK16: U4= | AL16: =AL15/(LOG(AL4)/LOG(2)) ->  | AP16: U5= | AQ16: =AQ15/(LOG(AQ4)/LOG(2)) ->  | AU16: U6= | AV16: =AV15/(LOG(AV4)/LOG(2)) -> 
A17: 21 | B17: 1048 | C17: 11 | D17: 1055 | E17: 11 | F17: 1059 | K17: 0 | L17: 211
A18: 21 | B18: 1145 | C18: 11 | D18: 1152 | E18: 11 | F18: 1155 | K18: 0 | L18: 211
A19: 21 | B19: 1251 | C19: 11 | D19: 1258 | E19: 11 | F19: 1261 | K19: 0 | L19: 211 | N19: Total Target Seq
A20: 21 | B20: 1357 | C20: 11 | D20: 1364 | E20: 11 | F20: 1367 | K20: 0 | L20: 211 | N20: =COUNTIF(L7:L48,G3) -> 40 | P20: 7 | Q20: 7 | R20: 7 | S20: 7 | T20: 7 | U20: 7
A21: 21 | B21: 1468 | C21: 11 | D21: 1475 | E21: 11 | F21: 1479 | K21: 0 | L21: 211 | P21: % of reinforcement given in 6 equal intervals based on number of trials
A22: 21 | B22: 1567 | C22: 11 | D22: 1574 | E22: 11 | F22: 1578 | K22: 0 | L22: 211 | P22: %_1 | Q22: %_2 | R22: %_3 | S22: %_4 | T22: %_5 | U22: %_6
A23: 21 | B23: 1669 | C23: 11 | D23: 1680 | E23: 11 | F23: 1685 | K23: 0 | L23: 211 | O23: target sequence | P23: =$G$3 -> 211 | Q23: =$G$3 -> 211 | R23: =$G$3 -> 211 | S23: =$G$3 -> 211 | T23: =$G$3 -> 211 | U23: =$G$3 -> 211
A24: 21 | B24: 1780 | C24: 11 | D24: 1788 | E24: 11 | F24: 1793 | K24: 0 | L24: 211 | O24: total reinforcement | P24: =U11 -> 6 | Q24: =Z11 -> 6 | R24: =AE11 -> 7 | S24: =AJ11 -> 7 | T24: =AO11 -> 7 | U24: =AT11 -> 7
A25: 21 | B25: 1884 | C25: 11 | D25: 1891 | E25: 11 | F25: 1895 | K25: 0 | L25: 211 | O25: % target
A26: 21 | B26: 1990 | C26: 11 | D26: 1997 | E26: 11 | F26: 2001 | K26: 0 | L26: 211 | O26: CCRF
A27: 21 | B27: 2098 | C27: 11 | D27: 2105 | E27: 11 | F27: 2109 | K27: 0 | L27: 211 | O27: % CCRf
A28: 21 | B28: 2204 | C28: 11 | D28: 2211 | E28: 11 | F28: 2215 | K28: 0 | L28: 211 | O28: average response rate | P28: =F13/P20 -> 93.28571429 | Q28: =(F20-F13)/Q20 -> 102 | R28: =(F27-F20)/R20 -> 106 | S28: =(F34-F27)/S20 -> 108.7142857 | T28: =(F41-F34)/T20 -> 107.4285714 | U28: =(F48-F41)/U20 -> 103.4285714
A29: 21 | B29: 2302 | C29: 11 | D29: 2308 | E29: 11 | F29: 2312 | K29: 0 | L29: 211
A30: 21 | B30: 2400 | C30: 11 | D30: 2407 | E30: 11 | F30: 2410 | K30: 0 | L30: 211
A31: 21 | B31: 2502 | C31: 11 | D31: 2509 | E31: 11 | F31: 2515 | K31: 0 | L31: 211
A32: 21 | B32: 2601 | C32: 11 | D32: 2615 | E32: 11 | F32: 2625 | K32: 0 | L32: 211
A33: 21 | B33: 2728 | C33: 11 | D33: 2735 | E33: 11 | F33: 2739 | K33: 0 | L33: 211
A34: 21 | B34: 2850 | C34: 11 | D34: 2860 | E34: 11 | F34: 2870 | K34: 0 | L34: 211
A35: 21 | B35: 2968 | C35: 11 | D35: 2976 | E35: 11 | F35: 2980 | K35: 0 | L35: 211
A36: 21 | B36: 3077 | C36: 11 | D36: 3084 | E36: 11 | F36: 3088 | K36: 0 | L36: 211
A37: 21 | B37: 3191 | C37: 11 | D37: 3197 | E37: 11 | F37: 3202 | K37: 0 | L37: 211
A38: 21 | B38: 3288 | C38: 11 | D38: 3296 | E38: 11 | F38: 3300 | K38: 0 | L38: 211
A39: 21 | B39: 3402 | C39: 11 | D39: 3409 | E39: 11 | F39: 3413 | K39: 0 | L39: 211
A40: 21 | B40: 3513 | C40: 11 | D40: 3520 | E40: 11 | F40: 3524 | K40: 0 | L40: 211
A41: 21 | B41: 3612 | C41: 11 | D41: 3619 | E41: 11 | F41: 3622 | K41: 0 | L41: 211
A42: 21 | B42: 3718 | C42: 11 | D42: 3725 | E42: 11 | F42: 3728 | K42: 0 | L42: 211
A43: 21 | B43: 3814 | C43: 11 | D43: 3821 | E43: 11 | F43: 3825 | K43: 0 | L43: 211
A44: 21 | B44: 3911 | C44: 11 | D44: 3918 | E44: 11 | F44: 3922 | K44: 0 | L44: 211
A45: 21 | B45: 4028 | C45: 11 | D45: 4037 | E45: 11 | F45: 4040 | K45: 0 | L45: 211
A46: 21 | B46: 4127 | C46: 11 | D46: 4134 | E46: 11 | F46: 4137 | K46: 0 | L46: 211
A47: 21 | B47: 4230 | C47: 11 | D47: 4237 | E47: 11 | F47: 4241 | K47: 0 | L47: 211
A48: 21 | B48: 4335 | C48: 11 | D48: 4342 | E48: 11 | F48: 4346 | K48: 1 | L48: 211

Sheet !N604A40.010
A1: Report for:!N604A40.010
A2: Date: | B2: <date>
A3: Hen: | B3: <hen> | F3: Correct Sequence | G3: =Start!J2 -> 211 | P3: Total Sequences in Data | Q3: =4994-COUNTBLANK(L7:L5000) -> 79 | V3: Total Sequences in Block Data | W3: =COUNTA(L7:L19) -> 13 | AA3: Total Sequences in Block Data | AB3: =COUNTA(L20:L32) -> 13 | AF3: Total Sequences in Block Data | AG3: =COUNTA(L33:L46) -> 14 | AK3: Total Sequences in Block Data | AL3: =COUNTA(L47:L59) -> 13 | AP3: Total Sequences in Block Data | AQ3: =COUNTA(L60:L72) -> 13 | AU3: Total Sequences in Block Data | AV3: =COUNTA(L73:L85) -> 13
P4: Total Sequences in Summary | Q4: =SUM(O7:O14) -> 79 | V4: Total Sequences in Block Summary | W4: =SUM(U7:U14) -> 13 | AA4: Total Sequences in Block Summary | AB4: =SUM(Z7:Z14) -> 13 | AF4: Total Sequences in Block Summary | AG4: =SUM(AE7:AE14) -> 14 | AK4: Total Sequences in Block Summary | AL4: =SUM(AJ7:AJ14) -> 13 | AP4: Total Sequences in Block Summary | AQ4: =SUM(AO7:AO14) -> 13 | AU4: Total Sequences in Block Summary | AV4: =SUM(AT7:AT14) -> 13
T5: Block 1 | Y5: Block 2 | AD5: Block 3 | AI5: Block 4 | AN5: Block 5 | AS5: Block 6
A6: Sequence Component 1 | B6: Time 1 | C6: Sequence Component 2 | D6: Time 2 | E6: Sequence Component 3 | F6: Time 3 | G6: Sequence Component 4 | H6: Time 4 | I6: Sequence Component 5 | J6: Time 5 | K6: Correct? 0=No 1=Yes | L6: Sequence | N6: Frequency | P6: Relative Frequency | Q6: Variability | T6: Frequency | V6: Relative Frequency | W6: Variability | Y6: Frequency | AA6: Relative Frequency | AB6: Variability | AD6: Frequency | AF6: Relative Frequency | AG6: Variability | AI6: Frequency | AK6: Relative Frequency | AL6: Variability | AN6: Frequency | AP6: Relative Frequency | AQ6: Variability | AS6: Frequency | AU6: Relative Frequency | AV6: Variability
A7: 21 | B7: 8 | C7: 11 | D7: 15 | E7: 11 | F7: 18 | K7: 0 | L7: 211 | N7: 111 | O7: =COUNTIF($L$7:$L$500,N7) -> 33 | P7: =O7/$Q$4 -> 0.417721519 | Q7: =IF(P7=0,0,(P7*((LOG(P7))/LOG(2)))) -> -0.5260728956 | T7: =N7 -> 111 | U7: =COUNTIF(L7:L19,T7) -> 1 | V7: =U7/(W4-U11) -> 0.5 | W7: =IF(V7=0,0,(V7*((LOG(V7))/LOG(2)))) -> -0.5 | Y7: =N7 -> 111 | Z7: =COUNTIF(L20:L32,Y7) -> 0 | AA7: =Z7/(AB4-Z11) -> 0 | AB7: =IF(AA7=0,0,(AA7*((LOG(AA7))/LOG(2)))) -> 0 | AD7: =N7 -> 111 | AE7: =COUNTIF(L33:L46,AD7) -> 6 | AF7: =AE7/(AG4-AE11) -> 0.8571428571 | AG7: =IF(AF7=0,0,(AF7*((LOG(AF7))/LOG(2)))) -> -0.1906220754 | AI7: =N7 -> 111 | AJ7: =COUNTIF(L47:L59,AI7) -> 9 | AK7: =AJ7/(AL4-AJ11) -> 0.9 | AL7: =IF(AK7=0,0,(AK7*((LOG(AK7))/LOG(2)))) -> -0.1368027841 | AN7: =N7 -> 111 | AO7: =COUNTIF(L60:L72,AN7) -> 6 | AP7: =AO7/(AQ4-AO11) -> 1 | AQ7: =IF(AP7=0,0,(AP7*((LOG(AP7))/LOG(2)))) -> 0 | AS7: =N7 -> 111 | AT7: =COUNTIF(L73:L85,AS7) -> 11 | AU7: =AT7/(AV4-AT11) -> 1 | AV7: =IF(AU7=0,0,(AU7*((LOG(AU7))/LOG(2)))) -> 0
A8: 21 | B8: 105 | C8: 11 | D8: 112 | E8: 11 | F8: 115 | K8: 0 | L8: 211 | N8: 112 | O8: =COUNTIF($L$7:$L$500,N8) -> 0 | P8: =O8/$Q$4 -> 0 | Q8: =IF(P8=0,0,(P8*((LOG(P8))/LOG(2)))) -> 0 | T8: =N8 -> 112 | U8: =COUNTIF(L7:L19,T8) -> 0 | V8: =U8/(W4-U11) -> 0 | W8: =IF(V8=0,0,(V8*((LOG(V8))/LOG(2)))) -> 0 | Y8: =N8 -> 112 | Z8: =COUNTIF(L20:L32,Y8) -> 0 | AA8: =Z8/(AB4-Z11) -> 0 | AB8: =IF(AA8=0,0,(AA8*((LOG(AA8))/LOG(2)))) -> 0 | AD8: =N8 -> 112 | AE8: =COUNTIF(L33:L46,AD8) -> 0 | AF8: =AE8/(AG4-AE11) -> 0 | AG8: =IF(AF8=0,0,(AF8*((LOG(AF8))/LOG(2)))) -> 0 | AI8: =N8 -> 112 | AJ8: =COUNTIF(L47:L59,AI8) -> 0 | AK8: =AJ8/(AL4-AJ11) -> 0 | AL8: =IF(AK8=0,0,(AK8*((LOG(AK8))/LOG(2)))) -> 0 | AN8: =N8 -> 112 | AO8: =COUNTIF(L60:L72,AN8) -> 0 | AP8: =AO8/(AQ4-AO11) -> 0 | AQ8: =IF(AP8=0,0,(AP8*((LOG(AP8))/LOG(2)))) -> 0 | AS8: =N8 -> 112 | AT8: =COUNTIF(L73:L85,AS8) -> 0 | AU8: =AT8/(AV4-AT11) -> 0 | AV8: =IF(AU8=0,0,(AU8*((LOG(AU8))/LOG(2)))) -> 0
A9: 21 | B9: 208 | C9: 11 | D9: 214 | E9: 11 | F9: 218 | K9: 0 | L9: 211 | N9: 121 | O9: =COUNTIF($L$7:$L$500,N9) -> 0 | P9: =O9/$Q$4 -> 0 | Q9: =IF(P9=0,0,(P9*((LOG(P9))/LOG(2)))) -> 0 | T9: =N9 -> 121 | U9: =COUNTIF(L7:L19,T9) -> 0 | V9: =U9/(W4-U11) -> 0 | W9: =IF(V9=0,0,(V9*((LOG(V9))/LOG(2)))) -> 0 | Y9: =N9 -> 121 | Z9: =COUNTIF(L20:L32,Y9) -> 0 | AA9: =Z9/(AB4-Z11) -> 0 | AB9: =IF(AA9=0,0,(AA9*((LOG(AA9))/LOG(2)))) -> 0 | AD9: =N9 -> 121 | AE9: =COUNTIF(L33:L46,AD9) -> 0 | AF9: =AE9/(AG4-AE11) -> 0 | AG9: =IF(AF9=0,0,(AF9*((LOG(AF9))/LOG(2)))) -> 0 | AI9: =N9 -> 121 | AJ9: =COUNTIF(L47:L59,AI9) -> 0 | AK9: =AJ9/(AL4-AJ11) -> 0 | AL9: =IF(AK9=0,0,(AK9*((LOG(AK9))/LOG(2)))) -> 0 | AN9: =N9 -> 121 | AO9: =COUNTIF(L60:L72,AN9) -> 0 | AP9: =AO9/(AQ4-AO11) -> 0 | AQ9: =IF(AP9=0,0,(AP9*((LOG(AP9))/LOG(2)))) -> 0 | AS9: =N9 -> 121 | AT9: =COUNTIF(L73:L85,AS9) -> 0 | AU9: =AT9/(AV4-AT11) -> 0 | AV9: =IF(AU9=0,0,(AU9*((LOG(AU9))/LOG(2)))) -> 0
A10: 21 | B10: 306 | C10: 11 | D10: 319 | E10: 11 | F10: 325 | K10: 0 | L10: 211 | N10: 122 | O10: =COUNTIF($L$7:$L$500,N10) -> 0 | P10: =O10/$Q$4 -> 0 | Q10: =IF(P10=0,0,(P10*((LOG(P10))/LOG(2)))) -> 0 | T10: =N10 -> 122 | U10: =COUNTIF(L7:L19,T10) -> 0 | V10: =U10/(W4-U11) -> 0 | W10: =IF(V10=0,0,(V10*((LOG(V10))/LOG(2)))) -> 0 | Y10: =N10 -> 122 | Z10: =COUNTIF(L20:L32,Y10) -> 0 | AA10: =Z10/(AB4-Z11) -> 0 | AB10: =IF(AA10=0,0,(AA10*((LOG(AA10))/LOG(2)))) -> 0 | AD10: =N10 -> 122 | AE10: =COUNTIF(L33:L46,AD10) -> 0 | AF10: =AE10/(AG4-AE11) -> 0 | AG10: =IF(AF10=0,0,(AF10*((LOG(AF10))/LOG(2)))) -> 0 | AI10: =N10 -> 122 | AJ10: =COUNTIF(L47:L59,AI10) -> 0 | AK10: =AJ10/(AL4-AJ11) -> 0 | AL10: =IF(AK10=0,0,(AK10*((LOG(AK10))/LOG(2)))) -> 0 | AN10: =N10 -> 122 | AO10: =COUNTIF(L60:L72,AN10) -> 0 | AP10: =AO10/(AQ4-AO11) -> 0 | AQ10: =IF(AP10=0,0,(AP10*((LOG(AP10))/LOG(2)))) -> 0 | AS10: =N10 -> 122 | AT10: =COUNTIF(L73:L85,AS10) -> 0 | AU10: =AT10/(AV4-AT11) -> 0 | AV10: =IF(AU10=0,0,(AU10*((LOG(AU10))/LOG(2)))) -> 0
A11: 12 | B11: 423 | C11: 13 | D11: 427 | E11: 13 | F11: 437 | K11: 0 | L11: 111 | N11: 211 | O11: =COUNTIF($L$7:$L$500,N11) -> 40 | P11: =O11/$Q$4 -> 0.5063291139 | Q11: =IF(P11=0,0,(P11*((LOG(P11))/LOG(2)))) -> -0.4971405839 | T11: =N11 -> 211 | U11: =COUNTIF(L7:L19,T11) -> 11 | Y11: =N11 -> 211 | Z11: =COUNTIF(L20:L32,Y11) -> 10 | AD11: =N11 -> 211 | AE11: =COUNTIF(L33:L46,AD11) -> 7 | AI11: =N11 -> 211 | AJ11: =COUNTIF(L47:L59,AI11) -> 3 | AN11: =N11 -> 211 | AO11: =COUNTIF(L60:L72,AN11) -> 7 | AS11: =N11 -> 211 | AT11: =COUNTIF(L73:L85,AS11) -> 2
A12: 21 | B12: 528 | C12: 11 | D12: 542 | E12: 11 | F12: 547 | K12: 0 | L12: 211 | N12: 212 | O12: =COUNTIF($L$7:$L$500,N12) -> 0 | P12: =O12/$Q$4 -> 0 | Q12: =IF(P12=0,0,(P12*((LOG(P12))/LOG(2)))) -> 0 | T12: =N12 -> 212 | U12: =COUNTIF(L7:L19,T12) -> 0 | V12: =U12/(W4-U11) -> 0 | W12: =IF(V12=0,0,(V12*((LOG(V12))/LOG(2)))) -> 0 | Y12: =N12 -> 212 | Z12: =COUNTIF(L20:L32,Y12) -> 0 | AA12: =Z12/(AB4-Z11) -> 0 | AB12: =IF(AA12=0,0,(AA12*((LOG(AA12))/LOG(2)))) -> 0 | AD12: =N12 -> 212 | AE12: =COUNTIF(L33:L46,AD12) -> 0 | AF12: =AE12/(AG4-AE11) -> 0 | AG12: =IF(AF12=0,0,(AF12*((LOG(AF12))/LOG(2)))) -> 0 | AI12: =N12 -> 212 | AJ12: =COUNTIF(L47:L59,AI12) -> 0 | AK12: =AJ12/(AL4-AJ11) -> 0 | AL12: =IF(AK12=0,0,(AK12*((LOG(AK12))/LOG(2)))) -> 0 | AN12: =N12 -> 212 | AO12: =COUNTIF(L60:L72,AN12) -> 0 | AP12: =AO12/(AQ4-AO11) -> 0 | AQ12: =IF(AP12=0,0,(AP12*((LOG(AP12))/LOG(2)))) -> 0 | AS12: =N12 -> 212 | AT12: =COUNTIF(L73:L85,AS12) -> 0 | AU12: =AT12/(AV4-AT11) -> 0 | AV12: =IF(AU12=0,0,(AU12*((LOG(AU12))/LOG(2)))) -> 0
A13: 21 | B13: 634 | C13: 11 | D13: 641 | E13: 11 | F13: 644 | K13: 0 | L13: 211 | N13: 221 | O13: =COUNTIF($L$7:$L$500,N13) -> 6 | P13: =O13/$Q$4 -> 0.07594936709 | Q13: =IF(P13=0,0,(P13*((LOG(P13))/LOG(2)))) -> -0.2824418922 | T13: =N13 -> 221 | U13: =COUNTIF(L7:L19,T13) -> 1 | V13: =U13/(W4-U11) -> 0.5 | W13: =IF(V13=0,0,(V13*((LOG(V13))/LOG(2)))) -> -0.5 | Y13: =N13 -> 221 | Z13: =COUNTIF(L20:L32,Y13) -> 3 | AA13: =Z13/(AB4-Z11) -> 1 | AB13: =IF(AA13=0,0,(AA13*((LOG(AA13))/LOG(2)))) -> 0 | AD13: =N13 -> 221 | AE13: =COUNTIF(L33:L46,AD13) -> 1 | AF13: =AE13/(AG4-AE11) -> 0.1428571429 | AG13: =IF(AF13=0,0,(AF13*((LOG(AF13))/LOG(2)))) -> -0.4010507032 | AI13: =N13 -> 221 | AJ13: =COUNTIF(L47:L59,AI13) -> 1 | AK13: =AJ13/(AL4-AJ11) -> 0.1 | AL13: =IF(AK13=0,0,(AK13*((LOG(AK13))/LOG(2)))) -> -0.3321928095 | AN13: =N13 -> 221 | AO13: =COUNTIF(L60:L72,AN13) -> 0 | AP13: =AO13/(AQ4-AO11) -> 0 | AQ13: =IF(AP13=0,0,(AP13*((LOG(AP13))/LOG(2)))) -> 0 | AS13: =N13 -> 221 | AT13: =COUNTIF(L73:L85,AS13) -> 0 | AU13: =AT13/(AV4-AT11) -> 0 | AV13: =IF(AU13=0,0,(AU13*((LOG(AU13))/LOG(2)))) -> 0
A14: 21 | B14: 731 | C14: 11 | D14: 745 | E14: 11 | F14: 755 | K14: 0 | L14: 211 | N14: 222 | O14: =COUNTIF($L$7:$L$500,N14) -> 0 | P14: =O14/$Q$4 -> 0 | Q14: =IF(P14=0,0,(P14*((LOG(P14))/LOG(2)))) -> 0 | T14: =N14 -> 222 | U14: =COUNTIF(L7:L19,T14) -> 0 | V14: =U14/(W4-U11) -> 0 | W14: =IF(V14=0,0,(V14*((LOG(V14))/LOG(2)))) -> 0 | Y14: =N14 -> 222 | Z14: =COUNTIF(L20:L32,Y14) -> 0 | AA14: =Z14/(AB4-Z11) -> 0 | AB14: =IF(AA14=0,0,(AA14*((LOG(AA14))/LOG(2)))) -> 0 | AD14: =N14 -> 222 | AE14: =COUNTIF(L33:L46,AD14) -> 0 | AF14: =AE14/(AG4-AE11) -> 0 | AG14: =IF(AF14=0,0,(AF14*((LOG(AF14))/LOG(2)))) -> 0 | AI14: =N14 -> 222 | AJ14: =COUNTIF(L47:L59,AI14) -> 0 | AK14: =AJ14/(AL4-AJ11) -> 0 | AL14: =IF(AK14=0,0,(AK14*((LOG(AK14))/LOG(2)))) -> 0 | AN14: =N14 -> 222 | AO14: =COUNTIF(L60:L72,AN14) -> 0 | AP14: =AO14/(AQ4-AO11) -> 0 | AQ14: =IF(AP14=0,0,(AP14*((LOG(AP14))/LOG(2)))) -> 0 | AS14: =N14 -> 222 | AT14: =COUNTIF(L73:L85,AS14) -> 0 | AU14: =AT14/(AV4-AT11) -> 0 | AV14: =IF(AU14=0,0,(AU14*((LOG(AU14))/LOG(2)))) -> 0
A15: 21 | B15: 845 | C15: 11 | D15: 852 | E15: 11 | F15: 856 | K15: 0 | L15: 211 | P15: =SUM(P7:P14) -> 1 | Q15: =-SUM(Q7:Q14) -> 1.305655372 | V15: =SUM(V7:V14) -> 1 | W15: =-SUM(W7:W14) -> 1 | AA15: =SUM(AA7:AA14) -> 1 | AB15: =-SUM(AB7:AB14) -> 0 | AF15: =SUM(AF7:AF14) -> 1 | AG15: =-SUM(AG7:AG14) -> 0.5916727786 | AK15: =SUM(AK7:AK14) -> 1 | AL15: =-SUM(AL7:AL14) -> 0.4689955936 | AP15: =SUM(AP7:AP14) -> 1 | AQ15: =-SUM(AQ7:AQ14) -> 0 | AU15: =SUM(AU7:AU14) -> 1 | AV15: =-SUM(AV7:AV14) -> 0
A16: 21 | B16: 944 | C16: 11 | D16: 951 | E16: 11 | F16: 954 | K16: 0 | L16: 211 | P16: U= | Q16: =Q15/(LOG(Q4)/LOG(2)) -> 0.2071225863 | V16: U1= | W16: =W15/(LOG(W4)/LOG(2)) -> 0.2702381544 | AA16: U2= | AB16: =AB15/(LOG(AB4)/LOG(2)) -> 0 | AF16: U3= | AG16: =AG15/(LOG(AG4)/LOG(2)) -> 0.1554025802 | AK16: U4= | AL16: =AL15/(LOG(AL4)/LOG(2)) -> 0.1267405036 | AP16: U5= | AQ16: =AQ15/(LOG(AQ4)/LOG(2)) -> 0 | AU16: U6= | AV16: =AV15/(LOG(AV4)/LOG(2)) -> 0
A17: 21 | B17: 1048 | C17: 11 | D17: 1055 | E17: 11 | F17: 1059 | K17: 0 | L17: 211
A18: 21 | B18: 1145 | C18: 11 | D18: 1162 | E18: 11 | F18: 1172 | K18: 0 | L18: 211
A19: 21 | B19: 1258 | C19: 22 | D19: 1266 | E19: 13 | F19: 1278 | K19: 0 | L19: 221 | N19: Total Target Seq
A20: 21 | B20: 1378 | C20: 11 | D20: 1385 | E20: 11 | F20: 1389 | K20: 0 | L20: 211 | N20: =COUNTIF(L7:L85,G3) -> 40 | P20: 13 | Q20: 13 | R20: 14 | S20: 13 | T20: 13 | U20: 13
A21: 21 | B21: 1485 | C21: 11 | D21: 1493 | E21: 11 | F21: 1497 | K21: 0 | L21: 211 | P21: % of reinforcement given in 6 equal intervals based on number of trials
A22: 21 | B22: 1599 | C22: 11 | D22: 1606 | E22: 11 | F22: 1610 | K22: 0 | L22: 211 | P22: %_1 | Q22: %_2 | R22: %_3 | S22: %_4 | T22: %_5 | U22: %_6
A23: 21 | B23: 1698 | C23: 11 | D23: 1706 | E23: 11 | F23: 1709 | K23: 0 | L23: 211 | O23: target sequence | P23: =$G$3 -> 211 | Q23: =$G$3 -> 211 | R23: =$G$3 -> 211 | S23: =$G$3 -> 211 | T23: =$G$3 -> 211 | U23: =$G$3 -> 211
A24: 21 | B24: 1803 | C24: 22 | D24: 1806 | E24: 13 | F24: 1816 | K24: 0 | L24: 221 | O24: total reinforcement | P24: =U11 -> 11 | Q24: =Z11 -> 10 | R24: =AE11 -> 7 | S24: =AJ11 -> 3 | T24: =AO11 -> 7 | U24: =AT11 -> 2
A25: 21 | B25: 1913 | C25: 11 | D25: 1921 | E25: 11 | F25: 1924 | K25: 0 | L25: 211 | O25: % target
A26: 21 | B26: 2014 | C26: 22 | D26: 2024 | E26: 13 | F26: 2033 | K26: 0 | L26: 221 | O26: CCRF
A27: 21 | B27: 2131 | C27: 22 | D27: 2146 | E27: 13 | F27: 2155 | K27: 0 | L27: 221 | O27: % CCRf
A28: 21 | B28: 2262 | C28: 11 | D28: 2269 | E28: 11 | F28: 2273 | K28: 0 | L28: 211 | O28: average response rate | P28: =F19/P20 -> 98.30769231 | Q28: =(F32-F19)/Q20 -> 108 | R28: =(F46-F32)/R20 -> 119.7857143 | S28: =(F59-F46)/S20 -> 119.4615385 | T28: =(F72-F59)/T20 -> 115.3076923 | U28: =(F85-F72)/U20 -> 118.6153846
A29: 21 | B29: 2360 | C29: 11 | D29: 2368 | E29: 11 | F29: 2371 | K29: 0 | L29: 211
A30: 21 | B30: 2465 | C30: 11 | D30: 2475 | E30: 11 | F30: 2479 | K30: 0 | L30: 211
A31: 21 | B31: 2569 | C31: 11 | D31: 2580 | E31: 11 | F31: 2584 | K31: 0 | L31: 211
A32: 21 | B32: 2671 | C32: 11 | D32: 2678 | E32: 11 | F32: 2682 | K32: 0 | L32: 211
A33: 21 | B33: 2771 | C33: 11 | D33: 2779 | E33: 11 | F33: 2783 | K33: 0 | L33: 211
A34: 21 | B34: 2869 | C34: 11 | D34: 2876 | E34: 11 | F34: 2880 | K34: 0 | L34: 211
A35: 21 | B35: 2970 | C35: 22 | D35: 2980 | E35: 13 | F35: 2987 | K35: 0 | L35: 221
A36: 21 | B36: 3098 | C36: 11 | D36: 3108 | E36: 11 | F36: 3118 | K36: 0 | L36: 211
A37: 21 | B37: 3220 | C37: 11 | D37: 3227 | E37: 11 | F37: 3231 | K37: 0 | L37: 211
A38: 21 | B38: 3344 | C38: 11 | D38: 3351 | E38: 11 | F38: 3355 | K38: 0 | L38: 211
A39: 21 | B39: 3442 | C39: 11 | D39: 3449 | E39: 11 | F39: 3452 | K39: 0 | L39: 211
A40: 12 | B40: 3591 | C40: 13 | D40: 3595 | E40: 13 | F40: 3607 | K40: 0 | L40: 111
A41: 12 | B41: 3728 | C41: 13 | D41: 3732 | E41: 13 | F41: 3741 | K41: 0 | L41: 111
A42: 12 | B42: 3856 | C42: 13 | D42: 3860 | E42: 13 | F42: 3868 | K42: 0 | L42: 111
A43: 21 | B43: 3975 | C43: 11 | D43: 3982 | E43: 11 | F43: 3986 | K43: 0 | L43: 211
A44: 12 | B44: 4098 | C44: 13 | D44: 4102 | E44: 13 | F44: 4111 | K44: 0 | L44: 111
A45: 12 | B45: 4217 | C45: 13 | D45: 4224 | E45: 13 | F45: 4228 | K45: 0 | L45: 111
A46: 12 | B46: 4344 | C46: 13 | D46: 4348 | E46: 13 | F46: 4359 | K46: 0 | L46: 111
A47: 21 | B47: 4456 | C47: 11 | D47: 4465 | E47: 11 | F47: 4469 | K47: 0 | L47: 211
A48: 12 | B48: 4587 | C48: 13 | D48: 4591 | E48: 13 | F48: 4604 | K48: 0 | L48: 111
A49: 12 | B49: 4714 | C49: 13 | D49: 4718 | E49: 13 | F49: 4728 | K49: 0 | L49: 111
A50: 12 | B50: 4833 | C50: 13 | D50: 4836 | E50: 13 | F50: 4844 | K50: 0 | L50: 111
A51: 12 | B51: 4963 | C51: 13 | D51: 4966 | E51: 13 | F51: 4975 | K51: 0 | L51: 111
A52: 12 | B52: 5080 | C52: 13 | D52: 5084 | E52: 13 | F52: 5090 | K52: 0 | L52: 111
A53: 21 | B53: 5189 | C53: 11 | D53: 5199 | E53: 11 | F53: 5203 | K53: 0 | L53: 211
A54: 12 | B54: 5309 | C54: 13 | D54: 5315 | E54: 13 | F54: 5324 | K54: 0 | L54: 111
A55: 12 | B55: 5433 | C55: 13 | D55: 5436 | E55: 13 | F55: 5444 | K55: 0 | L55: 111
A56: 21 | B56: 5543 | C56: 22 | D56: 5554 | E56: 13 | F56: 5562 | K56: 0 | L56: 221
A57: 21 | B57: 5662 | C57: 11 | D57: 5671 | E57: 11 | F57: 5674 | K57: 0 | L57: 211
A58: 12 | B58: 5775 | C58: 13 | D58: 5778 | E58: 13 | F58: 5788 | K58: 0 | L58: 111
A59: 12 | B59: 5898 | C59: 13 | D59: 5902 | E59: 13 | F59: 5912 | K59: 0 | L59: 111
A60: 21 | B60: 6026 | C60: 11 | D60: 6046 | E60: 11 | F60: 6050 | K60: 0 | L60: 211
A61: 21 | B61: 6136 | C61: 11 | D61: 6144 | E61: 11 | F61: 6147 | K61: 0 | L61: 211
A62: 12 | B62: 6254 | C62: 13 | D62: 6259 | E62: 13 | F62: 6272 | K62: 0 | L62: 111
A63: 21 | B63: 6377 | C63: 11 | D63: 6386 | E63: 11 | F63: 6390 | K63: 0 | L63: 211
A64: 21 | B64: 6478 | C64: 11 | D64: 6486 | E64: 11 | F64: 6489 | K64: 0 | L64: 211
A65: 12 | B65: 6587 | C65: 13 | D65: 6590 | E65: 13 | F65: 6597 | K65: 0 | L65: 111
A66: 12 | B66: 6708 | C66: 13 | D66: 6712 | E66: 13 | F66: 6719 | K66: 0 | L66: 111
A67: 21 | B67: 6820 | C67: 11 | D67: 6830 | E67: 11 | F67: 6833 | K67: 0 | L67: 211
A68: 21 | B68: 6920 | C68: 11 | D68: 6928 | E68: 11 | F68: 6931 | K68: 0 | L68: 211
A69: 12 | B69: 7040 | C69: 13 | D69: 7043 | E69: 13 | F69: 7052 | K69: 0 | L69: 111
A70: 21 | B70: 7149 | C70: 11 | D70: 7160 | E70: 11 | F70: 7164 | K70: 0 | L70: 211
A71: 12 | B71: 7276 | C71: 13 | D71: 7281 | E71: 13 | F71: 7294 | K71: 0 | L71: 111
A72: 12 | B72: 7401 | C72: 13 | D72: 7405 | E72: 13 | F72: 7411 | K72: 0 | L72: 111
A73: 12 | B73: 7516 | C73: 13 | D73: 7520 | E73: 13 | F73: 7526 | K73: 0 | L73: 111
A74: 12 | B74: 7633 | C74: 13 | D74: 7637 | E74: 13 | F74: 7644 | K74: 0 | L74: 111
A75: 12 | B75: 7752 | C75: 13 | D75: 7756 | E75: 13 | F75: 7763 | K75: 0 | L75: 111
A76: 12 | B76: 7868 | C76: 13 | D76: 7872 | E76: 13 | F76: 7878 | K76: 0 | L76: 111
A77: 12 | B77: 7983 | C77: 13 | D77: 7987 | E77: 13 | F77: 7994 | K77: 0 | L77: 111
A78: 12 | B78: 8102 | C78: 13 | D78: 8106 | E78: 13 | F78: 8113 | K78: 0 | L78: 111
A79: 12 | B79: 8215 | C79: 13 | D79: 8219 | E79: 13 | F79: 8224 | K79: 0 | L79: 111
A80: 12 | B80: 8338 | C80: 13 | D80: 8342 | E80: 13 | F80: 8348 | K80: 0 | L80: 111
A81: 12 | B81: 8464 | C81: 13 | D81: 8467 | E81: 13 | F81: 8475 | K81: 0 | L81: 111
A82: 12 | B82: 8581 | C82: 13 | D82: 8589 | E82: 13 | F82: 8597 | K82: 0 | L82: 111
A83: 21 | B83: 8702 | C83: 11 | D83: 8710 | E83: 11 | F83: 8714 | K83: 0 | L83: 211
A84: 12 | B84: 8822 | C84: 13 | D84: 8826 | E84: 13 | F84: 8838 | K84: 0 | L84: 111
A85: 21 | B85: 8936 | C85: 11 | D85: 8949 | E85: 11 | F85: 8953 | K85: 1 | L85: 211

Sheet !N605A00.010
A1: Report for:!N605A00.010
A2: Date: | B2: <date>
A3: Hen: | B3: <hen> | F3: Correct Sequence | G3: =Start!J2 -> 211 | P3: Total Sequences in Data | Q3: =4994-COUNTBLANK(L7:L5000) -> 52 | V3: Total Sequences in Block Data | W3: =COUNTA(L7:L15) -> 9 | AA3: Total Sequences in Block Data | AB3: =COUNTA(L16:L23) -> 8 | AF3: Total Sequences in Block Data | AG3: =COUNTA(L24:L32) -> 9 | AK3: Total Sequences in Block Data | AL3: =COUNTA(L33:L41) -> 9 | AP3: Total Sequences in Block Data | AQ3: =COUNTA(L42:L49) -> 8 | AU3: Total Sequences in Block Data | AV3: =COUNTA(L50:L58) -> 9
P4: Total Sequences in Summary | Q4: =SUM(O7:O14) -> 52 | V4: Total Sequences in Block Summary | W4: =SUM(U7:U14) -> 9 | AA4: Total Sequences in Block Summary | AB4: =SUM(Z7:Z14) -> 8 | AF4: Total Sequences in Block Summary | AG4: =SUM(AE7:AE14) -> 9 | AK4: Total Sequences in Block Summary | AL4: =SUM(AJ7:AJ14) -> 9 | AP4: Total Sequences in Block Summary | AQ4: =SUM(AO7:AO14) -> 8 | AU4: Total Sequences in Block Summary | AV4: =SUM(AT7:AT14) -> 9
T5: Block 1 | Y5: Block 2 | AD5: Block 3 | AI5: Block 4 | AN5: Block 5 | AS5: Block 6
